Workbook

Sheet MAIN-INTERFACE
C2: Revert to Market | D2: Yes | F2: Lease Escalation Rate | G2: 0.075 | W2: Region | X2: Revert to Market | Y2: Delay (Months) | Z2: Market Escalation | AA2: RTM Premium | AB2: Lease Escalation Rate | AC2: Urban Classification
W3: All | X3: No | Y3: 0 | Z3: 0 | AA3: -0.1 | AB3: 0.05 | AC3: All
C4: Market Growth | D4: 0.04 | W4: Eastern Cape | X4: Yes | Y4: 3 | Z4: 0.02 | AA4: -0.03 | AB4: 0.06 | AC4: CBD
W5: Free State | Y5: 6 | Z5: 0.03 | AA5: 0 | AB5: 0.07 | AC5: Main Centre
C6: Delay (Months) | D6: 6 | W6: Gauteng | Y6: 12 | Z6: 0.04 | AA6: 0.025 | AB6: 0.075 | AC6: VTSD
W7: KwaZulu-Natal | Z7: 0.045 | AA7: 0.03 | AB7: 0.08
C8: RTM Pre/Disc | D8: 0 | W8: Limpopo | Z8: 0.06 | AA8: 0.06
W9: Mpumalanga | Z9: 0.075 | AA9: 0.1
W10: North West | Z10: 0.09 | AA10: 0.3
W11: Northern Cape | Z11: 0.105
W12: Western Cape
C15: Select Urban Classification: | D15: All
C17: Select Province: | D17: All
B19: Baseline | C19: Urban Classification | D19: (All)
C21: Row Labels | D21: Sum of FY 2018/19 | E21: Sum of FY 2019/20 | F21: Sum of FY 2020/21 | G21: Sum of FY 2021/22 | H21: Sum of FY 2022/23 | I21: Sum of FY 2023/24
C22: Eastern Cape | D22: 227630146.2 | E22: 241627358.8 | F22: 256603986.3 | G22: 272629764.4 | H22: 289779417.5 | I22: 308133017.2
C23: Free State | D23: 248133080.3 | E23: 270501986 | F23: 294913807 | G23: 321557283.6 | H23: 350638781.1 | I23: 382383950.8
C24: Gauteng | D24: 468078462.5 | E24: 509062241.9 | F24: 553675682.2 | G24: 602243584.8 | H24: 655120091.1 | I24: 712691355.9
C25: KwaZulu-Natal | D25: 349920073.9 | E25: 371754225.6 | F25: 395304971.7 | G25: 420709154.9 | H25: 448114688.8 | I25: 477681468.2
C26: Limpopo | D26: 272681336.1 | E26: 294302599 | F26: 317867548.8 | G26: 343552374.6 | H26: 371549351.8 | I26: 402068320.1
C27: Mpumalanga | D27: 118456046.5 | E27: 129333783.8 | F27: 141225873.5 | G27: 154227936.4 | H27: 168444689.8 | I27: 183990819.6
C28: Northern Cape | D28: 69313630.65 | E28: 74722055.87 | F28: 80569486.69 | G28: 86892718.91 | H28: 93731717.67 | I28: 101129896.8
C29: Western Cape | D29: 155383285.9 | E29: 167483120.9 | F29: 180563419.3 | G29: 194706502.9 | H29: 210001818.6 | I29: 226546570.6
C30: North West | D30: 88286363.74 | E30: 95984341.95 | F30: 104364996.1 | G30: 113489669.4 | H30: 123425287.6 | I30: 134244874
C31: Grand Total | D31: 1997882426 | E31: 2154771714 | F31: 2325089772 | G31: 2510008990 | H31: 2710805844 | I31: 2928870273
B33: Revert to Market | C33: Urban Classification | D33: (All)
C35: Row Labels | D35: Sum of FY 2018/19 | E35: Sum of FY 2019/20 | F35: Sum of FY 2020/21 | G35: Sum of FY 2021/22 | H35: Sum of FY 2022/23 | I35: Sum of FY 2023/24 | J35: Sum of All FY
C36: Eastern Cape | D36: 210661461.3 | E36: 197907890.1 | F36: 196225703.8 | G36: 195270224.7 | H36: 201824497.9 | I36: 216545667.4 | J36: 1218435445
C37: Free State | D37: 203761139.2 | E37: 163037869.2 | F37: 169659929.8 | G37: 182899864.6 | H37: 195475995.5 | I37: 210577969.2 | J37: 1125412767
C38: Gauteng | D38: 449776977.2 | E38: 465232787.6 | F38: 445361463.7 | G38: 426011598 | H38: 389613812.6 | I38: 415369566.5 | J38: 2591366206
C39: KwaZulu-Natal | D39: 333888354.5 | E39: 327943505.2 | F39: 319780251.4 | G39: 322334594.3 | H39: 333407421.1 | I39: 354594348.7 | J39: 1991948475
C40: Limpopo | D40: 259958384.3 | E40: 191348389.9 | F40: 176225593.7 | G40: 179965932.4 | H40: 177684401.1 | I40: 191002074.9 | J40: 1176184776
C41: Mpumalanga | D41: 102633423 | E41: 93331185.86 | F41: 71367349.13 | G41: 75702305.91 | H41: 76834202.44 | I41: 81702841.14 | J41: 501571307.5
C42: Northern Cape | D42: 66378320.76 | E42: 65904531.74 | F42: 67179094.01 | G42: 69644206.26 | H42: 73796815.24 | I42: 73951651.47 | J42: 416854619.5
C43: Western Cape | D43: 145201862.4 | E43: 140393746.7 | F43: 146068584.4 | G43: 149051290.3 | H43: 155582008.1 | I43: 163840134.6 | J43: 900137626.5
C44: North West | D44: 81387797.1 | E44: 78977904.39 | F44: 78876391.08 | G44: 72398300.68 | H44: 76776552.63 | I44: 82534794.08 | J44: 470951740
C45: Grand Total | D45: 1853647720 | E45: 1724077811 | F45: 1670744361 | G45: 1673278317 | H45: 1680995707 | I45: 1790119048 | J45: 1.039286296e+10
B47: POTENTIAL SAVINGS | C47: Urban Classification | D47: (All)
C49: Row Labels | D49: Sum of ΔFY 2018/19 | E49: Sum of ΔFY 2019/20 | F49: Sum of ΔFY 2020/21 | G49: Sum of ΔFY 2021/22 | H49: Sum of ΔFY 2022/23 | I49: Sum of ΔFY 2023/24 | J49: Sum of Δ All FY
C50: Eastern Cape | D50: 16968684.93 | E50: 43719468.61 | F50: 60378282.54 | G50: 77359539.73 | H50: 87954919.64 | I50: 91587349.83 | J50: 377968245.3
C51: Free State | D51: 44371941.08 | E51: 107464116.9 | F51: 125253877.2 | G51: 138657419.1 | H51: 155162785.7 | I51: 171805981.6 | J51: 742716121.5
C52: Gauteng | D52: 18301485.37 | E52: 43829454.24 | F52: 108314218.5 | G52: 176231986.7 | H52: 265506278.5 | I52: 297321789.4 | J52: 909505212.8
C53: KwaZulu-Natal | D53: 16031719.3 | E53: 43810720.39 | F53: 75524720.27 | G53: 98374560.56 | H53: 114707267.7 | I53: 123087119.5 | J53: 471536107.7
C54: Limpopo | D54: 12722951.8 | E54: 102954209.1 | F54: 141641955.1 | G54: 163586442.2 | H54: 193864950.7 | I54: 211066245.2 | J54: 825836754
C55: Mpumalanga | D55: 15822623.49 | E55: 36002597.98 | F55: 69858524.39 | G55: 78525630.46 | H55: 91610487.33 | I55: 102287978.4 | J55: 394107842.1
C56: Northern Cape | D56: 2935309.892 | E56: 8817524.128 | F56: 13390392.68 | G56: 17248512.65 | H56: 19934902.43 | I56: 27178245.34 | J56: 89504887.12
C57: Western Cape | D57: 10181423.51 | E57: 27089374.18 | F57: 34494834.85 | G57: 45655212.65 | H57: 54419810.53 | I57: 62706435.98 | J57: 234547091.7
C58: North West | D58: 6898566.642 | E58: 17006437.56 | F58: 25488605.07 | G58: 41091368.71 | H58: 46648734.97 | I58: 51710079.88 | J58: 188843792.8
C59: Grand Total | D59: 144234706 | E59: 430693903 | F59: 654345410.6 | G59: 836730672.8 | H59: 1029810137 | I59: 1138751225 | J59: 4234566055

Sheet BSL (Y1-Y5) (hidden)
A1: SystemID | B1: ProvinceCode | C1: Province | D1: AdjCostPerm2 | E1: Benchmark | F1: Urban Classification | G1: ExtentM2 | H1: TnTUseLease | I1: TnTEscalation | J1: RentalPerMonth | K1: Adj.RentalPerMonth2 | L1: Adj.AnnualRental | M1: LeaseStartDate | N1: LeaseEndDate | O1: MonthToMonth | P1: FY 2017/18 | Q1: FY 2018/19 | R1: FY 2019/20 | S1: FY 2020/21 | T1: FY 2021/22 | U1: FY 2022/23 | V1: FY 2023/24 | X1: DATE | Z1: RTM
A2: 1 | B2: =VLOOKUP($A2,DATA2!$A$2:$S$607,2,FALSE) -> KZN | C2: =VLOOKUP($A2,DATA2!$A$2:$S$607,3,FALSE) -> KwaZulu-Natal | D2: =VLOOKUP($A2,DATA2!$A$2:$S$607,4,FALSE) -> 182.335689 | E2: =VLOOKUP($A2,DATA2!$A$2:$S$607,5,FALSE) -> 65 | F2: =VLOOKUP($A2,DATA2!$A$2:$S$607,6,FALSE) -> VTSD | G2: =VLOOKUP($A2,DATA2!$A$2:$S$607,7,FALSE) -> 791 | H2: =VLOOKUP($A2,DATA2!$A$2:$S$607,8,FALSE) -> TRUE | I2: =VLOOKUP($A2,DATA2!$A$2:$S$607,9,FALSE) -> 0.07 | J2: 160927.53 | K2: =VLOOKUP($A2,DATA2!$A$2:$S$607,10,FALSE) -> 144227.53 | L2: =VLOOKUP($A2,DATA2!$A$2:$S$607,11,FALSE) -> 1730730.36 | M2: =VLOOKUP($A2,DATA2!$A$2:$S$607,12,FALSE) -> 2017-04-01 | N2: =VLOOKUP($A2,DATA2!$A$2:$S$607,13,FALSE) -> 2022-03-31 | O2: =VLOOKUP($A2,DATA2!$A$2:$S$607,14,FALSE) -> No | P2: =IF(MATRIX2!D2=1,($Y$8-$X$2)/365*Table_Provincial_GTAC3536[[#This Row],[Adj.AnnualRental]]*MATRIX2!D2,($Y$8-$X$2)/365*Table_Provincial_GTAC3536[[#This Row],[Adj.AnnualRental]]) -> 569007.2416 | Q2: =(Table_Provincial_GTAC3536[[#This Row],[Adj.AnnualRental]]*(1+$I2)^(2)) -> 1981513.189 | R2: =(Table_Provincial_GTAC3536[[#This Row],[Adj.AnnualRental]]*(1+$I2)^(3)) -> 2120219.112 | S2: =(Table_Provincial_GTAC3536[[#This Row],[Adj.AnnualRental]]*(1+$I2)^(4)) -> 2268634.45 | T2: =(Table_Provincial_GTAC3536[[#This Row],[Adj.AnnualRental]]*(1+$I2)^(5)) -> 2427438.862 | U2: =(Table_Provincial_GTAC3536[[#This Row],[Adj.AnnualRental]]*(1+$I2)^(6)) -> 2597359.582 | V2: =(Table_Provincial_GTAC3536[[#This Row],[Adj.AnnualRental]]*(1+$I2)^(7)) -> 2779174.753 | X2: =DATE(2017,12,1) -> 2017-12-01 | Y2: L/M/U | Z2: 0.06 | AB2: 0.02
A3: 2 | B3: =VLOOKUP($A3,DATA2!$A$2:$S$607,2,FALSE) -> KZN | C3: =VLOOKUP($A3,DATA2!$A$2:$S$607,3,FALSE) -> KwaZulu-Natal | D3: =VLOOKUP($A3,DATA2!$A$2:$S$607,4,FALSE) -> 169.3535633 | E3: =VLOOKUP($A3,DATA2!$A$2:$S$607,5,FALSE) -> 65 | F3: =VLOOKUP($A3,DATA2!$A$2:$S$607,6,FALSE) -> MAIN CENTRE | G3: =VLOOKUP($A3,DATA2!$A$2:$S$607,7,FALSE) -> 1406 | H3: =VLOOKUP($A3,DATA2!$A$2:$S$607,8,FALSE) -> TRUE | I3: =VLOOKUP($A3,DATA2!$A$2:$S$607,9,FALSE) -> 0.08 | J3: 279861.11 | K3: =VLOOKUP($A3,DATA2!$A$2:$S$607,10,FALSE) -> 238111.11 | L3: =VLOOKUP($A3,DATA2!$A$2:$S$607,11,FALSE) -> 2857333.32 | M3: =VLOOKUP($A3,DATA2!$A$2:$S$607,12,FALSE) -> 2015-01-01 | N3: =VLOOKUP($A3,DATA2!$A$2:$S$607,13,FALSE) -> 2017-12-31 | O3: =VLOOKUP($A3,DATA2!$A$2:$S$607,14,FALSE) -> No | P3: =IF(MATRIX2!D3=1,($Y$8-$X$2)/365*Table_Provincial_GTAC3536[[#This Row],[Adj.AnnualRental]]*MATRIX2!D3,($Y$8-$X$2)/365*Table_Provincial_GTAC3536[[#This Row],[Adj.AnnualRental]]) -> 939397.2559 | Q3: =(Table_Provincial_GTAC3536[[#This Row],[Adj.AnnualRental]]*(1+$I3)^(2)) -> 3332793.584 | R3: =(Table_Provincial_GTAC3536[[#This Row],[Adj.AnnualRental]]*(1+$I3)^(3)) -> 3599417.071 | S3: =(Table_Provincial_GTAC3536[[#This Row],[Adj.AnnualRental]]*(1+$I3)^(4)) -> 3887370.437 | T3: =(Table_Provincial_GTAC3536[[#This Row],[Adj.AnnualRental]]*(1+$I3)^(5)) -> 4198360.072 | U3: =(Table_Provincial_GTAC3536[[#This Row],[Adj.AnnualRental]]*(1+$I3)^(6)) -> 4534228.878 | V3: =(Table_Provincial_GTAC3536[[#This Row],[Adj.AnnualRental]]*(1+$I3)^(7)) -> 4896967.188 | Y3: M | Z3: 0.045 | AB3: 0.045
A4: 3 | B4: =VLOOKUP($A4,DATA2!$A$2:$S$607,2,FALSE) -> KZN | C4: =VLOOKUP($A4,DATA2!$A$2:$S$607,3,FALSE) -> KwaZulu-Natal | D4: =VLOOKUP($A4,DATA2!$A$2:$S$607,4,FALSE) -> 124.1633898 | E4: =VLOOKUP($A4,DATA2!$A$2:$S$607,5,FALSE) -> 77.5 | F4: =VLOOKUP($A4,DATA2!$A$2:$S$607,6,FALSE) -> VTSD | G4: =VLOOKUP($A4,DATA2!$A$2:$S$607,7,FALSE) -> 295 | H4: =VLOOKUP($A4,DATA2!$A$2:$S$607,8,FALSE) -> TRUE | I4: =VLOOKUP($A4,DATA2!$A$2:$S$607,9,FALSE) -> 0 | J4: 36628.2 | K4: =VLOOKUP($A4,DATA2!$A$2:$S$607,10,FALSE) -> 36628.2 | L4: =VLOOKUP($A4,DATA2!$A$2:$S$607,11,FALSE) -> 439538.4 | M4: =VLOOKUP($A4,DATA2!$A$2:$S$607,12,FALSE) -> 2016-04-01 | N4: =VLOOKUP($A4,DATA2!$A$2:$S$607,13,FALSE) -> 2017-03-31 | O4: =VLOOKUP($A4,DATA2!$A$2:$S$607,14,FALSE) -> Yes | P4: =IF(MATRIX2!D4=1,($Y$8-$X$2)/365*Table_Provincial_GTAC3536[[#This Row],[Adj.AnnualRental]]*MATRIX2!D4,($Y$8-$X$2)/365*Table_Provincial_GTAC3536[[#This Row],[Adj.AnnualRental]]) -> 144505.7753 | Q4: =(Table_Provincial_GTAC3536[[#This Row],[Adj.AnnualRental]]*(1+$I4)^(2)) -> 439538.4 | R4: =(Table_Provincial_GTAC3536[[#This Row],[Adj.AnnualRental]]*(1+$I4)^(3)) -> 439538.4 | S4: =(Table_Provincial_GTAC3536[[#This Row],[Adj.AnnualRental]]*(1+$I4)^(4)) -> 439538.4 | T4: =(Table_Provincial_GTAC3536[[#This Row],[Adj.AnnualRental]]*(1+$I4)^(5)) -> 439538.4 | U4: =(Table_Provincial_GTAC3536[[#This Row],[Adj.AnnualRental]]*(1+$I4)^(6)) -> 439538.4 | V4: =(Table_Provincial_GTAC3536[[#This Row],[Adj.AnnualRental]]*(1+$I4)^(7)) -> 439538.4 | Y4: U | Z4: 0.06 | AB4: 0.06
A5: 4 | B5: =VLOOKUP($A5,DATA2!$A$2:$S$607,2,FALSE) -> KZN | C5: =VLOOKUP($A5,DATA2!$A$2:$S$607,3,FALSE) -> KwaZulu-Natal | D5: =VLOOKUP($A5,DATA2!$A$2:$S$607,4,FALSE) -> 110.2381921 | E5: =VLOOKUP($A5,DATA2!$A$2:$S$607,5,FALSE) -> 65 | F5: =VLOOKUP($A5,DATA2!$A$2:$S$607,6,FALSE) -> VTSD | G5: =VLOOKUP($A5,DATA2!$A$2:$S$607,7,FALSE) -> 354 | H5: =VLOOKUP($A5,DATA2!$A$2:$S$607,8,FALSE) -> TRUE | I5: =VLOOKUP($A5,DATA2!$A$2:$S$607,9,FALSE) -> 0 | J5: 39024.32 | K5: =VLOOKUP($A5,DATA2!$A$2:$S$607,10,FALSE) -> 39024.32 | L5: =VLOOKUP($A5,DATA2!$A$2:$S$607,11,FALSE) -> 468291.84 | M5: =VLOOKUP($A5,DATA2!$A$2:$S$607,12,FALSE) -> 2016-05-01 | N5: =VLOOKUP($A5,DATA2!$A$2:$S$607,13,FALSE) -> 2016-10-31 | O5: =VLOOKUP($A5,DATA2!$A$2:$S$607,14,FALSE) -> Yes | P5: =IF(MATRIX2!D5=1,($Y$8-$X$2)/365*Table_Provincial_GTAC3536[[#This Row],[Adj.AnnualRental]]*MATRIX2!D5,($Y$8-$X$2)/365*Table_Provincial_GTAC3536[[#This Row],[Adj.AnnualRental]]) -> 153958.9611 | Q5: =(Table_Provincial_GTAC3536[[#This Row],[Adj.AnnualRental]]*(1+$I5)^(2)) -> 468291.84 | R5: =(Table_Provincial_GTAC3536[[#This Row],[Adj.AnnualRental]]*(1+$I5)^(3)) -> 468291.84 | S5: =(Table_Provincial_GTAC3536[[#This Row],[Adj.AnnualRental]]*(1+$I5)^(4)) -> 468291.84 | T5: =(Table_Provincial_GTAC3536[[#This Row],[Adj.AnnualRental]]*(1+$I5)^(5)) -> 468291.84 | U5: =(Table_Provincial_GTAC3536[[#This Row],[Adj.AnnualRental]]*(1+$I5)^(6)) -> 468291.84 | V5: =(Table_Provincial_GTAC3536[[#This Row],[Adj.AnnualRental]]*(1+$I5)^(7)) -> 468291.84
A6: 5 | B6: =VLOOKUP($A6,DATA2!$A$2:$S$607,2,FALSE) -> KZN | C6: =VLOOKUP($A6,DATA2!$A$2:$S$607,3,FALSE) -> KwaZulu-Natal | D6: =VLOOKUP($A6,DATA2!$A$2:$S$607,4,FALSE) -> 121.1889848 | E6: =VLOOKUP($A6,DATA2!$A$2:$S$607,5,FALSE) -> 77.5 | F6: =VLOOKUP($A6,DATA2!$A$2:$S$607,6,FALSE) -> VTSD | G6: =VLOOKUP($A6,DATA2!$A$2:$S$607,7,FALSE) -> 394 | H6: =VLOOKUP($A6,DATA2!$A$2:$S$607,8,FALSE) -> TRUE | I6: =VLOOKUP($A6,DATA2!$A$2:$S$607,9,FALSE) -> 0.08 | J6: 54948.46 | K6: =VLOOKUP($A6,DATA2!$A$2:$S$607,10,FALSE) -> 47748.46 | L6: =VLOOKUP($A6,DATA2!$A$2:$S$607,11,FALSE) -> 572981.52 | M6: =VLOOKUP($A6,DATA2!$A$2:$S$607,12,FALSE) -> 2016-01-01 | N6: =VLOOKUP($A6,DATA2!$A$2:$S$607,13,FALSE) -> 2020-12-31 | O6: =VLOOKUP($A6,DATA2!$A$2:$S$607,14,FALSE) -> No | P6: =IF(MATRIX2!D6=1,($Y$8-$X$2)/365*Table_Provincial_GTAC3536[[#This Row],[Adj.AnnualRental]]*MATRIX2!D6,($Y$8-$X$2)/365*Table_Provincial_GTAC3536[[#This Row],[Adj.AnnualRental]]) -> 188377.486 | Q6: =(Table_Provincial_GTAC3536[[#This Row],[Adj.AnnualRental]]*(1+$I6)^(2)) -> 668325.6449 | R6: =(Table_Provincial_GTAC3536[[#This Row],[Adj.AnnualRental]]*(1+$I6)^(3)) -> 721791.6965 | S6: =(Table_Provincial_GTAC3536[[#This Row],[Adj.AnnualRental]]*(1+$I6)^(4)) -> 779535.0322 | T6: =(Table_Provincial_GTAC3536[[#This Row],[Adj.AnnualRental]]*(1+$I6)^(5)) -> 841897.8348 | U6: =(Table_Provincial_GTAC3536[[#This Row],[Adj.AnnualRental]]*(1+$I6)^(6)) -> 909249.6616 | V6: =(Table_Provincial_GTAC3536[[#This Row],[Adj.AnnualRental]]*(1+$I6)^(7)) -> 981989.6345
A7: 6 | B7: =VLOOKUP($A7,DATA2!$A$2:$S$607,2,FALSE) -> KZN | C7: =VLOOKUP($A7,DATA2!$A$2:$S$607,3,FALSE) -> KwaZulu-Natal | D7: =VLOOKUP($A7,DATA2!$A$2:$S$607,4,FALSE) -> 115.0467222 | E7: =VLOOKUP($A7,DATA2!$A$2:$S$607,5,FALSE) -> 77.5 | F7: =VLOOKUP($A7,DATA2!$A$2:$S$607,6,FALSE) -> VTSD | G7: =VLOOKUP($A7,DATA2!$A$2:$S$607,7,FALSE) -> 540 | H7: =VLOOKUP($A7,DATA2!$A$2:$S$607,8,FALSE) -> TRUE | I7: =VLOOKUP($A7,DATA2!$A$2:$S$607,9,FALSE) -> 0.08 | J7: 65111.25 | K7: =VLOOKUP($A7,DATA2!$A$2:$S$607,10,FALSE) -> 62125.23 | L7: =VLOOKUP($A7,DATA2!$A$2:$S$607,11,FALSE) -> 745502.76 | M7: =VLOOKUP($A7,DATA2!$A$2:$S$607,12,FALSE) -> 2012-09-01 | N7: =VLOOKUP($A7,DATA2!$A$2:$S$607,13,FALSE) -> 2017-08-31 | O7: =VLOOKUP($A7,DATA2!$A$2:$S$607,14,FALSE) -> No | P7: =IF(MATRIX2!D7=1,($Y$8-$X$2)/365*Table_Provincial_GTAC3536[[#This Row],[Adj.AnnualRental]]*MATRIX2!D7,($Y$8-$X$2)/365*Table_Provincial_GTAC3536[[#This Row],[Adj.AnnualRental]]) -> 245096.7978 | Q7: =(Table_Provincial_GTAC3536[[#This Row],[Adj.AnnualRental]]*(1+$I7)^(2)) -> 869554.4193 | R7: =(Table_Provincial_GTAC3536[[#This Row],[Adj.AnnualRental]]*(1+$I7)^(3)) -> 939118.7728 | S7: =(Table_Provincial_GTAC3536[[#This Row],[Adj.AnnualRental]]*(1+$I7)^(4)) -> 1014248.275 | T7: =(Table_Provincial_GTAC3536[[#This Row],[Adj.AnnualRental]]*(1+$I7)^(5)) -> 1095388.137 | U7: =(Table_Provincial_GTAC3536[[#This Row],[Adj.AnnualRental]]*(1+$I7)^(6)) -> 1183019.188 | V7: =(Table_Provincial_GTAC3536[[#This Row],[Adj.AnnualRental]]*(1+$I7)^(7)) -> 1277660.723 | Y7: 2018/19 | Z7: 2019/20 | AA7: 2020/21 | AB7: 2021/22 | AC7: 2022/23 | AD7: 2023+
A8: 7 | B8: =VLOOKUP($A8,DATA2!$A$2:$S$607,2,FALSE) -> KZN | C8: =VLOOKUP($A8,DATA2!$A$2:$S$607,3,FALSE) -> KwaZulu-Natal | D8: =VLOOKUP($A8,DATA2!$A$2:$S$607,4,FALSE) -> 61.64104545 | E8: =VLOOKUP($A8,DATA2!$A$2:$S$607,5,FALSE) -> 77.5 | F8: =VLOOKUP($A8,DATA2!$A$2:$S$607,6,FALSE) -> VTSD | G8: =VLOOKUP($A8,DATA2!$A$2:$S$607,7,FALSE) -> 440 | H8: =VLOOKUP($A8,DATA2!$A$2:$S$607,8,FALSE) -> TRUE | I8: =VLOOKUP($A8,DATA2!$A$2:$S$607,9,FALSE) -> 0.08 | J8: 29929.1 | K8: =VLOOKUP($A8,DATA2!$A$2:$S$607,10,FALSE) -> 27122.06 | L8: =VLOOKUP($A8,DATA2!$A$2:$S$607,11,FALSE) -> 325464.72 | M8: =VLOOKUP($A8,DATA2!$A$2:$S$607,12,FALSE) -> 2013-04-01 | N8: =VLOOKUP($A8,DATA2!$A$2:$S$607,13,FALSE) -> 2018-03-31 | O8: =VLOOKUP($A8,DATA2!$A$2:$S$607,14,FALSE) -> No | P8: =IF(MATRIX2!D8=1,($Y$8-$X$2)/365*Table_Provincial_GTAC3536[[#This Row],[Adj.AnnualRental]]*MATRIX2!D8,($Y$8-$X$2)/365*Table_Provincial_GTAC3536[[#This Row],[Adj.AnnualRental]]) -> 107002.0997 | Q8: =(Table_Provincial_GTAC3536[[#This Row],[Adj.AnnualRental]]*(1+$I8)^(2)) -> 379622.0494 | R8: =(Table_Provincial_GTAC3536[[#This Row],[Adj.AnnualRental]]*(1+$I8)^(3)) -> 409991.8134 | S8: =(Table_Provincial_GTAC3536[[#This Row],[Adj.AnnualRental]]*(1+$I8)^(4)) -> 442791.1584 | T8: =(Table_Provincial_GTAC3536[[#This Row],[Adj.AnnualRental]]*(1+$I8)^(5)) -> 478214.4511 | U8: =(Table_Provincial_GTAC3536[[#This Row],[Adj.AnnualRental]]*(1+$I8)^(6)) -> 516471.6072 | V8: =(Table_Provincial_GTAC3536[[#This Row],[Adj.AnnualRental]]*(1+$I8)^(7)) -> 557789.3358 | Y8: 43190 | Z8: 43555 | AA8: 43921 | AB8: 44286 | AC8: 44651 | AD8: 45016 | AE8: 45017
A9: 8 | B9: =VLOOKUP($A9,DATA2!$A$2:$S$607,2,FALSE) -> KZN | C9: =VLOOKUP($A9,DATA2!$A$2:$S$607,3,FALSE) -> KwaZulu-Natal | D9: =VLOOKUP($A9,DATA2!$A$2:$S$607,4,FALSE) -> 113.4248913 | E9: =VLOOKUP($A9,DATA2!$A$2:$S$607,5,FALSE) -> 77.5 | F9: =VLOOKUP($A9,DATA2!$A$2:$S$607,6,FALSE) -> VTSD | G9: =VLOOKUP($A9,DATA2!$A$2:$S$607,7,FALSE) -> 736 | H9: =VLOOKUP($A9,DATA2!$A$2:$S$607,8,FALSE) -> TRUE | I9: =VLOOKUP($A9,DATA2!$A$2:$S$607,9,FALSE) -> 0.08 | J9: 95730.72 | K9: =VLOOKUP($A9,DATA2!$A$2:$S$607,10,FALSE) -> 83480.72 | L9: =VLOOKUP($A9,DATA2!$A$2:$S$607,11,FALSE) -> 1001768.64 | M9: =VLOOKUP($A9,DATA2!$A$2:$S$607,12,FALSE) -> 2015-10-01 | N9: =VLOOKUP($A9,DATA2!$A$2:$S$607,13,FALSE) -> 2020-09-30 | O9: =VLOOKUP($A9,DATA2!$A$2:$S$607,14,FALSE) -> No | P9: =IF(MATRIX2!D9=1,($Y$8-$X$2)/365*Table_Provincial_GTAC3536[[#This Row],[Adj.AnnualRental]]*MATRIX2!D9,($Y$8-$X$2)/365*Table_Provincial_GTAC3536[[#This Row],[Adj.AnnualRental]]) -> 329348.594 | Q9: =(Table_Provincial_GTAC3536[[#This Row],[Adj.AnnualRental]]*(1+$I9)^(2)) -> 1168462.942 | R9: =(Table_Provincial_GTAC3536[[#This Row],[Adj.AnnualRental]]*(1+$I9)^(3)) -> 1261939.977 | S9: =(Table_Provincial_GTAC3536[[#This Row],[Adj.AnnualRental]]*(1+$I9)^(4)) -> 1362895.175 | T9: =(Table_Provincial_GTAC3536[[#This Row],[Adj.AnnualRental]]*(1+$I9)^(5)) -> 1471926.789 | U9: =(Table_Provincial_GTAC3536[[#This Row],[Adj.AnnualRental]]*(1+$I9)^(6)) -> 1589680.932 | V9: =(Table_Provincial_GTAC3536[[#This Row],[Adj.AnnualRental]]*(1+$I9)^(7)) -> 1716855.407 | Y9: 42826
A10: 9 | B10: =VLOOKUP($A10,DATA2!$A$2:$S$607,2,FALSE) -> KZN | C10: =VLOOKUP($A10,DATA2!$A$2:$S$607,3,FALSE) -> KwaZulu-Natal | D10: =VLOOKUP($A10,DATA2!$A$2:$S$607,4,FALSE) -> 93.31201823 | E10: =VLOOKUP($A10,DATA2!$A$2:$S$607,5,FALSE) -> 77.5 | F10: =VLOOKUP($A10,DATA2!$A$2:$S$607,6,FALSE) -> VTSD | G10: =VLOOKUP($A10,DATA2!$A$2:$S$607,7,FALSE) -> 412.54 | H10: =VLOOKUP($A10,DATA2!$A$2:$S$607,8,FALSE) -> TRUE | I10: =VLOOKUP($A10,DATA2!$A$2:$S$607,9,FALSE) -> 0.08 | J10: 38494.94 | K10: =VLOOKUP($A10,DATA2!$A$2:$S$607,10,FALSE) -> 38494.94 | L10: =VLOOKUP($A10,DATA2!$A$2:$S$607,11,FALSE) -> 461939.28 | M10: =VLOOKUP($A10,DATA2!$A$2:$S$607,12,FALSE) -> 2015-02-01 | N10: =VLOOKUP($A10,DATA2!$A$2:$S$607,13,FALSE) -> 2020-01-31 | O10: =VLOOKUP($A10,DATA2!$A$2:$S$607,14,FALSE) -> No | P10: =IF(MATRIX2!D10=1,($Y$8-$X$2)/365*Table_Provincial_GTAC3536[[#This Row],[Adj.AnnualRental]]*MATRIX2!D10,($Y$8-$X$2)/365*Table_Provincial_GTAC3536[[#This Row],[Adj.AnnualRental]]) -> 151870.4482 | Q10: =(Table_Provincial_GTAC3536[[#This Row],[Adj.AnnualRental]]*(1+$I10)^(2)) -> 538805.9762 | R10: =(Table_Provincial_GTAC3536[[#This Row],[Adj.AnnualRental]]*(1+$I10)^(3)) -> 581910.4543 | S10: =(Table_Provincial_GTAC3536[[#This Row],[Adj.AnnualRental]]*(1+$I10)^(4)) -> 628463.2906 | T10: =(Table_Provincial_GTAC3536[[#This Row],[Adj.AnnualRental]]*(1+$I10)^(5)) -> 678740.3539 | U10: =(Table_Provincial_GTAC3536[[#This Row],[Adj.AnnualRental]]*(1+$I10)^(6)) -> 733039.5822 | V10: =(Table_Provincial_GTAC3536[[#This Row],[Adj.AnnualRental]]*(1+$I10)^(7)) -> 791682.7488 | Y10: =Y8-Y9 -> 364
A11: 10 | B11: =VLOOKUP($A11,DATA2!$A$2:$S$607,2,FALSE) -> KZN | C11: =VLOOKUP($A11,DATA2!$A$2:$S$607,3,FALSE) -> KwaZulu-Natal | D11: =VLOOKUP($A11,DATA2!$A$2:$S$607,4,FALSE) -> 98.82131094 | E11: =VLOOKUP($A11,DATA2!$A$2:$S$607,5,FALSE) -> 77.5 | F11: =VLOOKUP($A11,DATA2!$A$2:$S$607,6,FALSE) -> VTSD | G11: =VLOOKUP($A11,DATA2!$A$2:$S$607,7,FALSE) -> 923 | H11: =VLOOKUP($A11,DATA2!$A$2:$S$607,8,FALSE) -> TRUE | I11: =VLOOKUP($A11,DATA2!$A$2:$S$607,9,FALSE) -> 0.065 | J11: 98512.07 | K11: =VLOOKUP($A11,DATA2!$A$2:$S$607,10,FALSE) -> 91212.07 | L11: =VLOOKUP($A11,DATA2!$A$2:$S$607,11,FALSE) -> 1094544.84 | M11: =VLOOKUP($A11,DATA2!$A$2:$S$607,12,FALSE) -> 2015-10-01 | N11: =VLOOKUP($A11,DATA2!$A$2:$S$607,13,FALSE) -> 2020-09-30 | O11: =VLOOKUP($A11,DATA2!$A$2:$S$607,14,FALSE) -> No | P11: =IF(MATRIX2!D11=1,($Y$8-$X$2)/365*Table_Provincial_GTAC3536[[#This Row],[Adj.AnnualRental]]*MATRIX2!D11,($Y$8-$X$2)/365*Table_Provincial_GTAC3536[[#This Row],[Adj.AnnualRental]]) -> 359850.3584 | Q11: =(Table_Provincial_GTAC3536[[#This Row],[Adj.AnnualRental]]*(1+$I11)^(2)) -> 1241460.121 | R11: =(Table_Provincial_GTAC3536[[#This Row],[Adj.AnnualRental]]*(1+$I11)^(3)) -> 1322155.029 | S11: =(Table_Provincial_GTAC3536[[#This Row],[Adj.AnnualRental]]*(1+$I11)^(4)) -> 1408095.106 | T11: =(Table_Provincial_GTAC3536[[#This Row],[Adj.AnnualRental]]*(1+$I11)^(5)) -> 1499621.288 | U11: =(Table_Provincial_GTAC3536[[#This Row],[Adj.AnnualRental]]*(1+$I11)^(6)) -> 1597096.672 | V11: =(Table_Provincial_GTAC3536[[#This Row],[Adj.AnnualRental]]*(1+$I11)^(7)) -> 1700907.955
A12: 11 | B12: =VLOOKUP($A12,DATA2!$A$2:$S$607,2,FALSE) -> KZN | C12: =VLOOKUP($A12,DATA2!$A$2:$S$607,3,FALSE) -> KwaZulu-Natal | D12: =VLOOKUP($A12,DATA2!$A$2:$S$607,4,FALSE) -> 133.1673077 | E12: =VLOOKUP($A12,DATA2!$A$2:$S$607,5,FALSE) -> 77.5 | F12: =VLOOKUP($A12,DATA2!$A$2:$S$607,6,FALSE) -> VTSD | G12: =VLOOKUP($A12,DATA2!$A$2:$S$607,7,FALSE) -> 1164.8 | H12: =VLOOKUP($A12,DATA2!$A$2:$S$607,8,FALSE) -> TRUE | I12: =VLOOKUP($A12,DATA2!$A$2:$S$607,9,FALSE) -> 0.08 | J12: 172313.28 | K12: =VLOOKUP($A12,DATA2!$A$2:$S$607,10,FALSE) -> 155113.28 | L12: =VLOOKUP($A12,DATA2!$A$2:$S$607,11,FALSE) -> 1861359.36 | M12: =VLOOKUP($A12,DATA2!$A$2:$S$607,12,FALSE) -> 2016-10-01 | N12: =VLOOKUP($A12,DATA2!$A$2:$S$607,13,FALSE) -> 2019-09-30 | O12: =VLOOKUP($A12,DATA2!$A$2:$S$607,14,FALSE) -> No | P12: =IF(MATRIX2!D12=1,($Y$8-$X$2)/365*Table_Provincial_GTAC3536[[#This Row],[Adj.AnnualRental]]*MATRIX2!D12,($Y$8-$X$2)/365*Table_Provincial_GTAC3536[[#This Row],[Adj.AnnualRental]]) -> 611953.7622 | Q12: =(Table_Provincial_GTAC3536[[#This Row],[Adj.AnnualRental]]*(1+$I12)^(2)) -> 2171089.558 | R12: =(Table_Provincial_GTAC3536[[#This Row],[Adj.AnnualRental]]*(1+$I12)^(3)) -> 2344776.722 | S12: =(Table_Provincial_GTAC3536[[#This Row],[Adj.AnnualRental]]*(1+$I12)^(4)) -> 2532358.86 | T12: =(Table_Provincial_GTAC3536[[#This Row],[Adj.AnnualRental]]*(1+$I12)^(5)) -> 2734947.569 | U12: =(Table_Provincial_GTAC3536[[#This Row],[Adj.AnnualRental]]*(1+$I12)^(6)) -> 2953743.374 | V12: =(Table_Provincial_GTAC3536[[#This Row],[Adj.AnnualRental]]*(1+$I12)^(7)) -> 3190042.844 | Z12: =Z8-Y8 -> 365
A13: 12 | B13: =VLOOKUP($A13,DATA2!$A$2:$S$607,2,FALSE) -> KZN | C13: =VLOOKUP($A13,DATA2!$A$2:$S$607,3,FALSE) -> KwaZulu-Natal | D13: =VLOOKUP($A13,DATA2!$A$2:$S$607,4,FALSE) -> 139.1287117 | E13: =VLOOKUP($A13,DATA2!$A$2:$S$607,5,FALSE) -> 100 | F13: =VLOOKUP($A13,DATA2!$A$2:$S$607,6,FALSE) -> VTSD | G13: =VLOOKUP($A13,DATA2!$A$2:$S$607,7,FALSE) -> 2566.2 | H13: =VLOOKUP($A13,DATA2!$A$2:$S$607,8,FALSE) -> TRUE | I13: =VLOOKUP($A13,DATA2!$A$2:$S$607,9,FALSE) -> 0.07 | J13: 385532.1 | K13: =VLOOKUP($A13,DATA2!$A$2:$S$607,10,FALSE) -> 357032.1 | L13: =VLOOKUP($A13,DATA2!$A$2:$S$607,11,FALSE) -> 4284385.2 | M13: =VLOOKUP($A13,DATA2!$A$2:$S$607,12,FALSE) -> 2014-12-01 | N13: =VLOOKUP($A13,DATA2!$A$2:$S$607,13,FALSE) -> 2019-11-30 | O13: =VLOOKUP($A13,DATA2!$A$2:$S$607,14,FALSE) -> No | P13: =IF(MATRIX2!D13=1,($Y$8-$X$2)/365*Table_Provincial_GTAC3536[[#This Row],[Adj.AnnualRental]]*MATRIX2!D13,($Y$8-$X$2)/365*Table_Provincial_GTAC3536[[#This Row],[Adj.AnnualRental]]) -> 1408564.997 | Q13: =(Table_Provincial_GTAC3536[[#This Row],[Adj.AnnualRental]]*(1+$I13)^(2)) -> 4905192.615 | R13: =(Table_Provincial_GTAC3536[[#This Row],[Adj.AnnualRental]]*(1+$I13)^(3)) -> 5248556.099 | S13: =(Table_Provincial_GTAC3536[[#This Row],[Adj.AnnualRental]]*(1+$I13)^(4)) -> 5615955.025 | T13: =(Table_Provincial_GTAC3536[[#This Row],[Adj.AnnualRental]]*(1+$I13)^(5)) -> 6009071.877 | U13: =(Table_Provincial_GTAC3536[[#This Row],[Adj.AnnualRental]]*(1+$I13)^(6)) -> 6429706.909 | V13: =(Table_Provincial_GTAC3536[[#This Row],[Adj.AnnualRental]]*(1+$I13)^(7)) -> 6879786.392 | Y13: =365/2 -> 182.5 | Z13: =(1+$I13)^(SUM(MATRIX!C13:F13)+1) ->  | AA13: =(0.333)*Table_Provincial_GTAC3536[[#This Row],[Adj.AnnualRental]]*1.07 +Table_Provincial_GTAC3536[[#This Row],[Adj.AnnualRental]]*0.667 -> 4384254.219 | AB13: =IF(Table_Provincial_GTAC3536[[#This Row],[MonthToMonth]]="Yes",MATRIX2!V13*Table_Provincial_GTAC3536[[#This Row],[Adj.AnnualRental]]+MATRIX2!N13*(Table_Provincial_GTAC3536[[#This Row],[Adj.AnnualRental]]*(1+$I13)^(SUM(MATRIX!C13:D13)+1)),MATRIX2!V13*Table_Provincial_GTAC3536[[#This Row],[Adj.AnnualRental]]+MATRIX2!N13*(Table_Provincial_GTAC3536[[#This Row],[Adj.AnnualRental]]*(1+$I13)^(COUNTIF(MATRIX!C13:D13,0)+1))) -> 4284385.2 | AC13: =MATRIX2!V13*Table_Provincial_GTAC3536[[#This Row],[Adj.AnnualRental]]+MATRIX2!N13*(Table_Provincial_GTAC3536[[#This Row],[Adj.AnnualRental]]*(1+$I13)^(SUM(MATRIX!C13:D13)+1)) ->  | AD13: =MATRIX2!V13*Table_Provincial_GTAC3536[[#This Row],[Adj.AnnualRental]]+MATRIX2!N13*(Table_Provincial_GTAC3536[[#This Row],[Adj.AnnualRental]]*(1+$I13)^(COUNTIF(MATRIX!C13:D13,0)+1)) -> 4284385.2
A14: 13 | B14: =VLOOKUP($A14,DATA2!$A$2:$S$607,2,FALSE) -> KZN | C14: =VLOOKUP($A14,DATA2!$A$2:$S$607,3,FALSE) -> KwaZulu-Natal | D14: =VLOOKUP($A14,DATA2!$A$2:$S$607,4,FALSE) -> 41.61845779 | E14: =VLOOKUP($A14,DATA2!$A$2:$S$607,5,FALSE) -> 77.5 | F14: =VLOOKUP($A14,DATA2!$A$2:$S$607,6,FALSE) -> VTSD | G14: =VLOOKUP($A14,DATA2!$A$2:$S$607,7,FALSE) -> 616 | H14: =VLOOKUP($A14,DATA2!$A$2:$S$607,8,FALSE) -> TRUE | I14: =VLOOKUP($A14,DATA2!$A$2:$S$607,9,FALSE) -> 0 | J14: 25636.97 | K14: =VLOOKUP($A14,DATA2!$A$2:$S$607,10,FALSE) -> 25636.97 | L14: =VLOOKUP($A14,DATA2!$A$2:$S$607,11,FALSE) -> 307643.64 | M14: =VLOOKUP($A14,DATA2!$A$2:$S$607,12,FALSE) -> 2016-04-01 | N14: =VLOOKUP($A14,DATA2!$A$2:$S$607,13,FALSE) -> 2016-09-30 | O14: =VLOOKUP($A14,DATA2!$A$2:$S$607,14,FALSE) -> Yes | P14: =IF(MATRIX2!D14=1,($Y$8-$X$2)/365*Table_Provincial_GTAC3536[[#This Row],[Adj.AnnualRental]]*MATRIX2!D14,($Y$8-$X$2)/365*Table_Provincial_GTAC3536[[#This Row],[Adj.AnnualRental]]) -> 101143.1145 | Q14: =(Table_Provincial_GTAC3536[[#This Row],[Adj.AnnualRental]]*(1+$I14)^(2)) -> 307643.64 | R14: =(Table_Provincial_GTAC3536[[#This Row],[Adj.AnnualRental]]*(1+$I14)^(3)) -> 307643.64 | S14: =(Table_Provincial_GTAC3536[[#This Row],[Adj.AnnualRental]]*(1+$I14)^(4)) -> 307643.64 | T14: =(Table_Provincial_GTAC3536[[#This Row],[Adj.AnnualRental]]*(1+$I14)^(5)) -> 307643.64 | U14: =(Table_Provincial_GTAC3536[[#This Row],[Adj.AnnualRental]]*(1+$I14)^(6)) -> 307643.64 | V14: =(Table_Provincial_GTAC3536[[#This Row],[Adj.AnnualRental]]*(1+$I14)^(7)) -> 307643.64 | Z14: =(1+$I13)^(SUM(MATRIX!C13:F13)) ->  | AC14: =(SUM(MATRIX!C13:D13)+1) ->  | AD14: =(COUNTIF(MATRIX!C13:D13,0)+1) -> 1
A15: 14 | B15: =VLOOKUP($A15,DATA2!$A$2:$S$607,2,FALSE) -> KZN | C15: =VLOOKUP($A15,DATA2!$A$2:$S$607,3,FALSE) -> KwaZulu-Natal | D15: =VLOOKUP($A15,DATA2!$A$2:$S$607,4,FALSE) -> 130.6738889 | E15: =VLOOKUP($A15,DATA2!$A$2:$S$607,5,FALSE) -> 77.5 | F15: =VLOOKUP($A15,DATA2!$A$2:$S$607,6,FALSE) -> VTSD | G15: =VLOOKUP($A15,DATA2!$A$2:$S$607,7,FALSE) -> 450 | H15: =VLOOKUP($A15,DATA2!$A$2:$S$607,8,FALSE) -> TRUE | I15: =VLOOKUP($A15,DATA2!$A$2:$S$607,9,FALSE) -> 0.1 | J15: 73908.25 | K15: =VLOOKUP($A15,DATA2!$A$2:$S$607,10,FALSE) -> 58803.25 | L15: =VLOOKUP($A15,DATA2!$A$2:$S$607,11,FALSE) -> 705639 | M15: =VLOOKUP($A15,DATA2!$A$2:$S$607,12,FALSE) -> 2013-12-01 | N15: =VLOOKUP($A15,DATA2!$A$2:$S$607,13,FALSE) -> 2016-11-30 | O15: =VLOOKUP($A15,DATA2!$A$2:$S$607,14,FALSE) -> Yes | P15: =IF(MATRIX2!D15=1,($Y$8-$X$2)/365*Table_Provincial_GTAC3536[[#This Row],[Adj.AnnualRental]]*MATRIX2!D15,($Y$8-$X$2)/365*Table_Provincial_GTAC3536[[#This Row],[Adj.AnnualRental]]) -> 231990.9041 | Q15: =(Table_Provincial_GTAC3536[[#This Row],[Adj.AnnualRental]]*(1+$I15)^(2)) -> 853823.19 | R15: =(Table_Provincial_GTAC3536[[#This Row],[Adj.AnnualRental]]*(1+$I15)^(3)) -> 939205.509 | S15: =(Table_Provincial_GTAC3536[[#This Row],[Adj.AnnualRental]]*(1+$I15)^(4)) -> 1033126.06 | T15: =(Table_Provincial_GTAC3536[[#This Row],[Adj.AnnualRental]]*(1+$I15)^(5)) -> 1136438.666 | U15: =(Table_Provincial_GTAC3536[[#This Row],[Adj.AnnualRental]]*(1+$I15)^(6)) -> 1250082.532 | V15: =(Table_Provincial_GTAC3536[[#This Row],[Adj.AnnualRental]]*(1+$I15)^(7)) -> 1375090.786 | Z15: =MATRIX2!X13*L13 -> 698413.4778
A16: 15 | B16: =VLOOKUP($A16,DATA2!$A$2:$S$607,2,FALSE) -> KZN | C16: =VLOOKUP($A16,DATA2!$A$2:$S$607,3,FALSE) -> KwaZulu-Natal | D16: =VLOOKUP($A16,DATA2!$A$2:$S$607,4,FALSE) -> 123.2833758 | E16: =VLOOKUP($A16,DATA2!$A$2:$S$607,5,FALSE) -> 77.5 | F16: =VLOOKUP($A16,DATA2!$A$2:$S$607,6,FALSE) -> VTSD | G16: =VLOOKUP($A16,DATA2!$A$2:$S$607,7,FALSE) -> 314 | H16: =VLOOKUP($A16,DATA2!$A$2:$S$607,8,FALSE) -> TRUE | I16: =VLOOKUP($A16,DATA2!$A$2:$S$607,9,FALSE) -> 0 | J16: 38710.98 | K16: =VLOOKUP($A16,DATA2!$A$2:$S$607,10,FALSE) -> 38710.98 | L16: =VLOOKUP($A16,DATA2!$A$2:$S$607,11,FALSE) -> 464531.76 | M16: =VLOOKUP($A16,DATA2!$A$2:$S$607,12,FALSE) -> 2015-10-01 | N16: =VLOOKUP($A16,DATA2!$A$2:$S$607,13,FALSE) -> 2016-09-30 | O16: =VLOOKUP($A16,DATA2!$A$2:$S$607,14,FALSE) -> Yes | P16: =IF(MATRIX2!D16=1,($Y$8-$X$2)/365*Table_Provincial_GTAC3536[[#This Row],[Adj.AnnualRental]]*MATRIX2!D16,($Y$8-$X$2)/365*Table_Provincial_GTAC3536[[#This Row],[Adj.AnnualRental]]) -> 152722.7704 | Q16: =(Table_Provincial_GTAC3536[[#This Row],[Adj.AnnualRental]]*(1+$I16)^(2)) -> 464531.76 | R16: =(Table_Provincial_GTAC3536[[#This Row],[Adj.AnnualRental]]*(1+$I16)^(3)) -> 464531.76 | S16: =(Table_Provincial_GTAC3536[[#This Row],[Adj.AnnualRental]]*(1+$I16)^(4)) -> 464531.76 | T16: =(Table_Provincial_GTAC3536[[#This Row],[Adj.AnnualRental]]*(1+$I16)^(5)) -> 464531.76 | U16: =(Table_Provincial_GTAC3536[[#This Row],[Adj.AnnualRental]]*(1+$I16)^(6)) -> 464531.76 | V16: =(Table_Provincial_GTAC3536[[#This Row],[Adj.AnnualRental]]*(1+$I16)^(7)) -> 464531.76 | Y16: =8/12 -> 0.6666666667
A17: 16 | B17: =VLOOKUP($A17,DATA2!$A$2:$S$607,2,FALSE) -> KZN | C17: =VLOOKUP($A17,DATA2!$A$2:$S$607,3,FALSE) -> KwaZulu-Natal | D17: =VLOOKUP($A17,DATA2!$A$2:$S$607,4,FALSE) -> 140.7210219 | E17: =VLOOKUP($A17,DATA2!$A$2:$S$607,5,FALSE) -> 77.5 | F17: =VLOOKUP($A17,DATA2!$A$2:$S$607,6,FALSE) -> VTSD | G17: =VLOOKUP($A17,DATA2!$A$2:$S$607,7,FALSE) -> 548 | H17: =VLOOKUP($A17,DATA2!$A$2:$S$607,8,FALSE) -> TRUE | I17: =VLOOKUP($A17,DATA2!$A$2:$S$607,9,FALSE) -> 0.1 | J17: 83115.12 | K17: =VLOOKUP($A17,DATA2!$A$2:$S$607,10,FALSE) -> 77115.12 | L17: =VLOOKUP($A17,DATA2!$A$2:$S$607,11,FALSE) -> 925381.44 | M17: =VLOOKUP($A17,DATA2!$A$2:$S$607,12,FALSE) -> 2015-09-01 | N17: =VLOOKUP($A17,DATA2!$A$2:$S$607,13,FALSE) -> 2018-08-31 | O17: =VLOOKUP($A17,DATA2!$A$2:$S$607,14,FALSE) -> No | P17: =IF(MATRIX2!D17=1,($Y$8-$X$2)/365*Table_Provincial_GTAC3536[[#This Row],[Adj.AnnualRental]]*MATRIX2!D17,($Y$8-$X$2)/365*Table_Provincial_GTAC3536[[#This Row],[Adj.AnnualRental]]) -> 304234.994 | Q17: =(Table_Provincial_GTAC3536[[#This Row],[Adj.AnnualRental]]*(1+$I17)^(2)) -> 1119711.542 | R17: =(Table_Provincial_GTAC3536[[#This Row],[Adj.AnnualRental]]*(1+$I17)^(3)) -> 1231682.697 | S17: =(Table_Provincial_GTAC3536[[#This Row],[Adj.AnnualRental]]*(1+$I17)^(4)) -> 1354850.966 | T17: =(Table_Provincial_GTAC3536[[#This Row],[Adj.AnnualRental]]*(1+$I17)^(5)) -> 1490336.063 | U17: =(Table_Provincial_GTAC3536[[#This Row],[Adj.AnnualRental]]*(1+$I17)^(6)) -> 1639369.669 | V17: =(Table_Provincial_GTAC3536[[#This Row],[Adj.AnnualRental]]*(1+$I17)^(7)) -> 1803306.636
A18: 18 | B18: =VLOOKUP($A18,DATA2!$A$2:$S$607,2,FALSE) -> KZN | C18: =VLOOKUP($A18,DATA2!$A$2:$S$607,3,FALSE) -> KwaZulu-Natal | D18: =VLOOKUP($A18,DATA2!$A$2:$S$607,4,FALSE) -> 79.94807692 | E18: =VLOOKUP($A18,DATA2!$A$2:$S$607,5,FALSE) -> 110 | F18: =VLOOKUP($A18,DATA2!$A$2:$S$607,6,FALSE) -> MAIN CENTRE | G18: =VLOOKUP($A18,DATA2!$A$2:$S$607,7,FALSE) -> 520 | H18: =VLOOKUP($A18,DATA2!$A$2:$S$607,8,FALSE) -> TRUE | I18: =VLOOKUP($A18,DATA2!$A$2:$S$607,9,FALSE) -> 0 | J18: 42123 | K18: =VLOOKUP($A18,DATA2!$A$2:$S$607,10,FALSE) -> 41573 | L18: =VLOOKUP($A18,DATA2!$A$2:$S$607,11,FALSE) -> 498876 | M18: =VLOOKUP($A18,DATA2!$A$2:$S$607,12,FALSE) -> 2016-06-01 | N18: =VLOOKUP($A18,DATA2!$A$2:$S$607,13,FALSE) -> 2016-11-30 | O18: =VLOOKUP($A18,DATA2!$A$2:$S$607,14,FALSE) -> Yes | P18: =IF(MATRIX2!D18=1,($Y$8-$X$2)/365*Table_Provincial_GTAC3536[[#This Row],[Adj.AnnualRental]]*MATRIX2!D18,($Y$8-$X$2)/365*Table_Provincial_GTAC3536[[#This Row],[Adj.AnnualRental]]) -> 164014.0274 | Q18: =(Table_Provincial_GTAC3536[[#This Row],[Adj.AnnualRental]]*(1+$I18)^(2)) -> 498876 | R18: =(Table_Provincial_GTAC3536[[#This Row],[Adj.AnnualRental]]*(1+$I18)^(3)) -> 498876 | S18: =(Table_Provincial_GTAC3536[[#This Row],[Adj.AnnualRental]]*(1+$I18)^(4)) -> 498876 | T18: =(Table_Provincial_GTAC3536[[#This Row],[Adj.AnnualRental]]*(1+$I18)^(5)) -> 498876 | U18: =(Table_Provincial_GTAC3536[[#This Row],[Adj.AnnualRental]]*(1+$I18)^(6)) -> 498876 | V18: =(Table_Provincial_GTAC3536[[#This Row],[Adj.AnnualRental]]*(1+$I18)^(7)) -> 498876
A19: 19 | B19: =VLOOKUP($A19,DATA2!$A$2:$S$607,2,FALSE) -> KZN | C19: =VLOOKUP($A19,DATA2!$A$2:$S$607,3,FALSE) -> KwaZulu-Natal | D19: =VLOOKUP($A19,DATA2!$A$2:$S$607,4,FALSE) -> 128.4027064 | E19: =VLOOKUP($A19,DATA2!$A$2:$S$607,5,FALSE) -> 110 | F19: =VLOOKUP($A19,DATA2!$A$2:$S$607,6,FALSE) -> MAIN CENTRE | G19: =VLOOKUP($A19,DATA2!$A$2:$S$607,7,FALSE) -> 739 | H19: =VLOOKUP($A19,DATA2!$A$2:$S$607,8,FALSE) -> TRUE | I19: =VLOOKUP($A19,DATA2!$A$2:$S$607,9,FALSE) -> 0.09 | J19: 110739.6 | K19: =VLOOKUP($A19,DATA2!$A$2:$S$607,10,FALSE) -> 94889.6 | L19: =VLOOKUP($A19,DATA2!$A$2:$S$607,11,FALSE) -> 1138675.2 | M19: =VLOOKUP($A19,DATA2!$A$2:$S$607,12,FALSE) -> 2016-08-01 | N19: =VLOOKUP($A19,DATA2!$A$2:$S$607,13,FALSE) -> 2019-07-31 | O19: =VLOOKUP($A19,DATA2!$A$2:$S$607,14,FALSE) -> No | P19: =IF(MATRIX2!D19=1,($Y$8-$X$2)/365*Table_Provincial_GTAC3536[[#This Row],[Adj.AnnualRental]]*MATRIX2!D19,($Y$8-$X$2)/365*Table_Provincial_GTAC3536[[#This Row],[Adj.AnnualRental]]) -> 374358.9699 | Q19: =(Table_Provincial_GTAC3536[[#This Row],[Adj.AnnualRental]]*(1+$I19)^(2)) -> 1352860.005 | R19: =(Table_Provincial_GTAC3536[[#This Row],[Adj.AnnualRental]]*(1+$I19)^(3)) -> 1474617.406 | S19: =(Table_Provincial_GTAC3536[[#This Row],[Adj.AnnualRental]]*(1+$I19)^(4)) -> 1607332.972 | T19: =(Table_Provincial_GTAC3536[[#This Row],[Adj.AnnualRental]]*(1+$I19)^(5)) -> 1751992.94 | U19: =(Table_Provincial_GTAC3536[[#This Row],[Adj.AnnualRental]]*(1+$I19)^(6)) -> 1909672.304 | V19: =(Table_Provincial_GTAC3536[[#This Row],[Adj.AnnualRental]]*(1+$I19)^(7)) -> 2081542.812
A20: 20 | B20: =VLOOKUP($A20,DATA2!$A$2:$S$607,2,FALSE) -> KZN | C20: =VLOOKUP($A20,DATA2!$A$2:$S$607,3,FALSE) -> KwaZulu-Natal | D20: =VLOOKUP($A20,DATA2!$A$2:$S$607,4,FALSE) -> 110.1924024 | E20: =VLOOKUP($A20,DATA2!$A$2:$S$607,5,FALSE) -> 77.5 | F20: =VLOOKUP($A20,DATA2!$A$2:$S$607,6,FALSE) -> VTSD | G20: =VLOOKUP($A20,DATA2!$A$2:$S$607,7,FALSE) -> 422.5 | H20: =VLOOKUP($A20,DATA2!$A$2:$S$607,8,FALSE) -> TRUE | I20: =VLOOKUP($A20,DATA2!$A$2:$S$607,9,FALSE) -> 0.07 | J20: 46556.29 | K20: =VLOOKUP($A20,DATA2!$A$2:$S$607,10,FALSE) -> 46556.29 | L20: =VLOOKUP($A20,DATA2!$A$2:$S$607,11,FALSE) -> 558675.48 | M20: =VLOOKUP($A20,DATA2!$A$2:$S$607,12,FALSE) -> 2015-05-01 | N20: =VLOOKUP($A20,DATA2!$A$2:$S$607,13,FALSE) -> 2016-09-30 | O20: =VLOOKUP($A20,DATA2!$A$2:$S$607,14,FALSE) -> Yes | P20: =IF(MATRIX2!D20=1,($Y$8-$X$2)/365*Table_Provincial_GTAC3536[[#This Row],[Adj.AnnualRental]]*MATRIX2!D20,($Y$8-$X$2)/365*Table_Provincial_GTAC3536[[#This Row],[Adj.AnnualRental]]) -> 183674.1304 | Q20: =(Table_Provincial_GTAC3536[[#This Row],[Adj.AnnualRental]]*(1+$I20)^(2)) -> 639627.5571 | R20: =(Table_Provincial_GTAC3536[[#This Row],[Adj.AnnualRental]]*(1+$I20)^(3)) -> 684401.486 | S20: =(Table_Provincial_GTAC3536[[#This Row],[Adj.AnnualRental]]*(1+$I20)^(4)) -> 732309.5901 | T20: =(Table_Provincial_GTAC3536[[#This Row],[Adj.AnnualRental]]*(1+$I20)^(5)) -> 783571.2614 | U20: =(Table_Provincial_GTAC3536[[#This Row],[Adj.AnnualRental]]*(1+$I20)^(6)) -> 838421.2497 | V20: =(Table_Provincial_GTAC3536[[#This Row],[Adj.AnnualRental]]*(1+$I20)^(7)) -> 897110.7371
A21: 21 | B21: =VLOOKUP($A21,DATA2!$A$2:$S$607,2,FALSE) -> KZN | C21: =VLOOKUP($A21,DATA2!$A$2:$S$607,3,FALSE) -> KwaZulu-Natal | D21: =VLOOKUP($A21,DATA2!$A$2:$S$607,4,FALSE) -> 138.2884318 | E21: =VLOOKUP($A21,DATA2!$A$2:$S$607,5,FALSE) -> 87.5 | F21: =VLOOKUP($A21,DATA2!$A$2:$S$607,6,FALSE) -> MAIN CENTRE | G21: =VLOOKUP($A21,DATA2!$A$2:$S$607,7,FALSE) -> 2708.89 | H21: =VLOOKUP($A21,DATA2!$A$2:$S$607,8,FALSE) -> TRUE | I21: =VLOOKUP($A21,DATA2!$A$2:$S$607,9,FALSE) -> 0.08 | J21: 403408.15 | K21: =VLOOKUP($A21,DATA2!$A$2:$S$607,10,FALSE) -> 374608.15 | L21: =VLOOKUP($A21,DATA2!$A$2:$S$607,11,FALSE) -> 4495297.8 | M21: =VLOOKUP($A21,DATA2!$A$2:$S$607,12,FALSE) -> 2016-06-01 | N21: =VLOOKUP($A21,DATA2!$A$2:$S$607,13,FALSE) -> 2017-11-30 | O21: =VLOOKUP($A21,DATA2!$A$2:$S$607,14,FALSE) -> No | P21: =IF(MATRIX2!D21=1,($Y$8-$X$2)/365*Table_Provincial_GTAC3536[[#This Row],[Adj.AnnualRental]]*MATRIX2!D21,($Y$8-$X$2)/365*Table_Provincial_GTAC3536[[#This Row],[Adj.AnnualRental]]) -> 1477906.126 | Q21: =(Table_Provincial_GTAC3536[[#This Row],[Adj.AnnualRental]]*(1+$I21)^(2)) -> 5243315.354 | R21: =(Table_Provincial_GTAC3536[[#This Row],[Adj.AnnualRental]]*(1+$I21)^(3)) -> 5662780.582 | S21: =(Table_Provincial_GTAC3536[[#This Row],[Adj.AnnualRental]]*(1+$I21)^(4)) -> 6115803.029 | T21: =(Table_Provincial_GTAC3536[[#This Row],[Adj.AnnualRental]]*(1+$I21)^(5)) -> 6605067.271 | U21: =(Table_Provincial_GTAC3536[[#This Row],[Adj.AnnualRental]]*(1+$I21)^(6)) -> 7133472.653 | V21: =(Table_Provincial_GTAC3536[[#This Row],[Adj.AnnualRental]]*(1+$I21)^(7)) -> 7704150.465
A22: 22 | B22: =VLOOKUP($A22,DATA2!$A$2:$S$607,2,FALSE) -> KZN | C22: =VLOOKUP($A22,DATA2!$A$2:$S$607,3,FALSE) -> KwaZulu-Natal | D22: =VLOOKUP($A22,DATA2!$A$2:$S$607,4,FALSE) -> 134.1638506 | E22: =VLOOKUP($A22,DATA2!$A$2:$S$607,5,FALSE) -> 65 | F22: =VLOOKUP($A22,DATA2!$A$2:$S$607,6,FALSE) -> CBD | G22: =VLOOKUP($A22,DATA2!$A$2:$S$607,7,FALSE) -> 1218 | H22: =VLOOKUP($A22,DATA2!$A$2:$S$607,8,FALSE) -> TRUE | I22: =VLOOKUP($A22,DATA2!$A$2:$S$607,9,FALSE) -> 0 | J22: 204249.07 | K22: =VLOOKUP($A22,DATA2!$A$2:$S$607,10,FALSE) -> 163411.57 | L22: =VLOOKUP($A22,DATA2!$A$2:$S$607,11,FALSE) -> 1960938.84 | M22: =VLOOKUP($A22,DATA2!$A$2:$S$607,12,FALSE) -> 2015-12-01 | N22: =VLOOKUP($A22,DATA2!$A$2:$S$607,13,FALSE) -> 2016-11-30 | O22: =VLOOKUP($A22,DATA2!$A$2:$S$607,14,FALSE) -> Yes | P22: =IF(MATRIX2!D22=1,($Y$8-$X$2)/365*Table_Provincial_GTAC3536[[#This Row],[Adj.AnnualRental]]*MATRIX2!D22,($Y$8-$X$2)/365*Table_Provincial_GTAC3536[[#This Row],[Adj.AnnualRental]]) -> 644692.2214 | Q22: =(Table_Provincial_GTAC3536[[#This Row],[Adj.AnnualRental]]*(1+$I22)^(2)) -> 1960938.84 | R22: =(Table_Provincial_GTAC3536[[#This Row],[Adj.AnnualRental]]*(1+$I22)^(3)) -> 1960938.84 | S22: =(Table_Provincial_GTAC3536[[#This Row],[Adj.AnnualRental]]*(1+$I22)^(4)) -> 1960938.84 | T22: =(Table_Provincial_GTAC3536[[#This Row],[Adj.AnnualRental]]*(1+$I22)^(5)) -> 1960938.84 | U22: =(Table_Provincial_GTAC3536[[#This Row],[Adj.AnnualRental]]*(1+$I22)^(6)) -> 1960938.84 | V22: =(Table_Provincial_GTAC3536[[#This Row],[Adj.AnnualRental]]*(1+$I22)^(7)) -> 1960938.84
A23: 24 | B23: =VLOOKUP($A23,DATA2!$A$2:$S$607,2,FALSE) -> KZN | C23: =VLOOKUP($A23,DATA2!$A$2:$S$607,3,FALSE) -> KwaZulu-Natal | D23: =VLOOKUP($A23,DATA2!$A$2:$S$607,4,FALSE) -> 124.4782051 | E23: =VLOOKUP($A23,DATA2!$A$2:$S$607,5,FALSE) -> 77.5 | F23: =VLOOKUP($A23,DATA2!$A$2:$S$607,6,FALSE) -> VTSD | G23: =VLOOKUP($A23,DATA2!$A$2:$S$607,7,FALSE) -> 585 | H23: =VLOOKUP($A23,DATA2!$A$2:$S$607,8,FALSE) -> TRUE | I23: =VLOOKUP($A23,DATA2!$A$2:$S$607,9,FALSE) -> 0 | J23: 72819.75 | K23: =VLOOKUP($A23,DATA2!$A$2:$S$607,10,FALSE) -> 72819.75 | L23: =VLOOKUP($A23,DATA2!$A$2:$S$607,11,FALSE) -> 873837 | M23: =VLOOKUP($A23,DATA2!$A$2:$S$607,12,FALSE) -> 2016-09-01 | N23: =VLOOKUP($A23,DATA2!$A$2:$S$607,13,FALSE) -> 2017-08-31 | O23: =VLOOKUP($A23,DATA2!$A$2:$S$607,14,FALSE) -> No | P23: =IF(MATRIX2!D23=1,($Y$8-$X$2)/365*Table_Provincial_GTAC3536[[#This Row],[Adj.AnnualRental]]*MATRIX2!D23,($Y$8-$X$2)/365*Table_Provincial_GTAC3536[[#This Row],[Adj.AnnualRental]]) -> 287288.8767 | Q23: =(Table_Provincial_GTAC3536[[#This Row],[Adj.AnnualRental]]*(1+$I23)^(2)) -> 873837 | R23: =(Table_Provincial_GTAC3536[[#This Row],[Adj.AnnualRental]]*(1+$I23)^(3)) -> 873837 | S23: =(Table_Provincial_GTAC3536[[#This Row],[Adj.AnnualRental]]*(1+$I23)^(4)) -> 873837 | T23: =(Table_Provincial_GTAC3536[[#This Row],[Adj.AnnualRental]]*(1+$I23)^(5)) -> 873837 | U23: =(Table_Provincial_GTAC3536[[#This Row],[Adj.AnnualRental]]*(1+$I23)^(6)) -> 873837 | V23: =(Table_Provincial_GTAC3536[[#This Row],[Adj.AnnualRental]]*(1+$I23)^(7)) -> 873837
A24: 25 | B24: =VLOOKUP($A24,DATA2!$A$2:$S$607,2,FALSE) -> KZN | C24: =VLOOKUP($A24,DATA2!$A$2:$S$607,3,FALSE) -> KwaZulu-Natal | D24: =VLOOKUP($A24,DATA2!$A$2:$S$607,4,FALSE) -> 132.1569948 | E24: =VLOOKUP($A24,DATA2!$A$2:$S$607,5,FALSE) -> 110 | F24: =VLOOKUP($A24,DATA2!$A$2:$S$607,6,FALSE) -> CBD | G24: =VLOOKUP($A24,DATA2!$A$2:$S$607,7,FALSE) -> 1930 | H24: =VLOOKUP($A24,DATA2!$A$2:$S$607,8,FALSE) -> TRUE | I24: =VLOOKUP($A24,DATA2!$A$2:$S$607,9,FALSE) -> 0.07 | J24: 281523 | K24: =VLOOKUP($A24,DATA2!$A$2:$S$607,10,FALSE) -> 255063 | L24: =VLOOKUP($A24,DATA2!$A$2:$S$607,11,FALSE) -> 3060756 | M24: =VLOOKUP($A24,DATA2!$A$2:$S$607,12,FALSE) -> 2014-01-15 | N24: =VLOOKUP($A24,DATA2!$A$2:$S$607,13,FALSE) -> 2017-01-14 | O24: =VLOOKUP($A24,DATA2!$A$2:$S$607,14,FALSE) -> Yes | P24: =IF(MATRIX2!D24=1,($Y$8-$X$2)/365*Table_Provincial_GTAC3536[[#This Row],[Adj.AnnualRental]]*MATRIX2!D24,($Y$8-$X$2)/365*Table_Provincial_GTAC3536[[#This Row],[Adj.AnnualRental]]) -> 1006275.945 | Q24: =(Table_Provincial_GTAC3536[[#This Row],[Adj.AnnualRental]]*(1+$I24)^(2)) -> 3504259.544 | R24: =(Table_Provincial_GTAC3536[[#This Row],[Adj.AnnualRental]]*(1+$I24)^(3)) -> 3749557.713 | S24: =(Table_Provincial_GTAC3536[[#This Row],[Adj.AnnualRental]]*(1+$I24)^(4)) -> 4012026.752 | T24: =(Table_Provincial_GTAC3536[[#This Row],[Adj.AnnualRental]]*(1+$I24)^(5)) -> 4292868.625 | U24: =(Table_Provincial_GTAC3536[[#This Row],[Adj.AnnualRental]]*(1+$I24)^(6)) -> 4593369.429 | V24: =(Table_Provincial_GTAC3536[[#This Row],[Adj.AnnualRental]]*(1+$I24)^(7)) -> 4914905.289
A25: 26 | B25: =VLOOKUP($A25,DATA2!$A$2:$S$607,2,FALSE) -> KZN | C25: =VLOOKUP($A25,DATA2!$A$2:$S$607,3,FALSE) -> KwaZulu-Natal | D25: =VLOOKUP($A25,DATA2!$A$2:$S$607,4,FALSE) -> 117.2203704 | E25: =VLOOKUP($A25,DATA2!$A$2:$S$607,5,FALSE) -> 110 | F25: =VLOOKUP($A25,DATA2!$A$2:$S$607,6,FALSE) -> CBD | G25: =VLOOKUP($A25,DATA2!$A$2:$S$607,7,FALSE) -> 1728 | H25: =VLOOKUP($A25,DATA2!$A$2:$S$607,8,FALSE) -> TRUE | I25: =VLOOKUP($A25,DATA2!$A$2:$S$607,9,FALSE) -> 0.07 | J25: 225856.8 | K25: =VLOOKUP($A25,DATA2!$A$2:$S$607,10,FALSE) -> 202556.8 | L25: =VLOOKUP($A25,DATA2!$A$2:$S$607,11,FALSE) -> 2430681.6 | M25: =VLOOKUP($A25,DATA2!$A$2:$S$607,12,FALSE) -> 2015-03-01 | N25: =VLOOKUP($A25,DATA2!$A$2:$S$607,13,FALSE) -> 2017-02-28 | O25: =VLOOKUP($A25,DATA2!$A$2:$S$607,14,FALSE) -> Yes | P25: =IF(MATRIX2!D25=1,($Y$8-$X$2)/365*Table_Provincial_GTAC3536[[#This Row],[Adj.AnnualRental]]*MATRIX2!D25,($Y$8-$X$2)/365*Table_Provincial_GTAC3536[[#This Row],[Adj.AnnualRental]]) -> 799128.1973 | Q25: =(Table_Provincial_GTAC3536[[#This Row],[Adj.AnnualRental]]*(1+$I25)^(2)) -> 2782887.364 | R25: =(Table_Provincial_GTAC3536[[#This Row],[Adj.AnnualRental]]*(1+$I25)^(3)) -> 2977689.479 | S25: =(Table_Provincial_GTAC3536[[#This Row],[Adj.AnnualRental]]*(1+$I25)^(4)) -> 3186127.743 | T25: =(Table_Provincial_GTAC3536[[#This Row],[Adj.AnnualRental]]*(1+$I25)^(5)) -> 3409156.685 | U25: =(Table_Provincial_GTAC3536[[#This Row],[Adj.AnnualRental]]*(1+$I25)^(6)) -> 3647797.653 | V25: =(Table_Provincial_GTAC3536[[#This Row],[Adj.AnnualRental]]*(1+$I25)^(7)) -> 3903143.488
A26: 27 | B26: =VLOOKUP($A26,DATA2!$A$2:$S$607,2,FALSE) -> KZN | C26: =VLOOKUP($A26,DATA2!$A$2:$S$607,3,FALSE) -> KwaZulu-Natal | D26: =VLOOKUP($A26,DATA2!$A$2:$S$607,4,FALSE) -> 143.6594041 | E26: =VLOOKUP($A26,DATA2!$A$2:$S$607,5,FALSE) -> 65 | F26: =VLOOKUP($A26,DATA2!$A$2:$S$607,6,FALSE) -> VTSD | G26: =VLOOKUP($A26,DATA2!$A$2:$S$607,7,FALSE) -> 537 | H26: =VLOOKUP($A26,DATA2!$A$2:$S$607,8,FALSE) -> TRUE | I26: =VLOOKUP($A26,DATA2!$A$2:$S$607,9,FALSE) -> 0.1 | J26: 89145.1 | K26: =VLOOKUP($A26,DATA2!$A$2:$S$607,10,FALSE) -> 77145.1 | L26: =VLOOKUP($A26,DATA2!$A$2:$S$607,11,FALSE) -> 925741.2 | M26: =VLOOKUP($A26,DATA2!$A$2:$S$607,12,FALSE) -> 2014-11-01 | N26: =VLOOKUP($A26,DATA2!$A$2:$S$607,13,FALSE) -> 2019-10-31 | O26: =VLOOKUP($A26,DATA2!$A$2:$S$607,14,FALSE) -> No | P26: =IF(MATRIX2!D26=1,($Y$8-$X$2)/365*Table_Provincial_GTAC3536[[#This Row],[Adj.AnnualRental]]*MATRIX2!D26,($Y$8-$X$2)/365*Table_Provincial_GTAC3536[[#This Row],[Adj.AnnualRental]]) -> 304353.2712 | Q26: =(Table_Provincial_GTAC3536[[#This Row],[Adj.AnnualRental]]*(1+$I26)^(2)) -> 1120146.852 | R26: =(Table_Provincial_GTAC3536[[#This Row],[Adj.AnnualRental]]*(1+$I26)^(3)) -> 1232161.537 | S26: =(Table_Provincial_GTAC3536[[#This Row],[Adj.AnnualRental]]*(1+$I26)^(4)) -> 1355377.691 | T26: =(Table_Provincial_GTAC3536[[#This Row],[Adj.AnnualRental]]*(1+$I26)^(5)) -> 1490915.46 | U26: =(Table_Provincial_GTAC3536[[#This Row],[Adj.AnnualRental]]*(1+$I26)^(6)) -> 1640007.006 | V26: =(Table_Provincial_GTAC3536[[#This Row],[Adj.AnnualRental]]*(1+$I26)^(7)) -> 1804007.707
A27: 28 | B27: =VLOOKUP($A27,DATA2!$A$2:$S$607,2,FALSE) -> KZN | C27: =VLOOKUP($A27,DATA2!$A$2:$S$607,3,FALSE) -> KwaZulu-Natal | D27: =VLOOKUP($A27,DATA2!$A$2:$S$607,4,FALSE) -> 58.21199287 | E27: =VLOOKUP($A27,DATA2!$A$2:$S$607,5,FALSE) -> 77.5 | F27: =VLOOKUP($A27,DATA2!$A$2:$S$607,6,FALSE) -> MAIN CENTRE | G27: =VLOOKUP($A27,DATA2!$A$2:$S$607,7,FALSE) -> 729.6 | H27: =VLOOKUP($A27,DATA2!$A$2:$S$607,8,FALSE) -> TRUE | I27: =VLOOKUP($A27,DATA2!$A$2:$S$607,9,FALSE) -> 0.075 | J27: 49471.47 | K27: =VLOOKUP($A27,DATA2!$A$2:$S$607,10,FALSE) -> 42471.47 | L27: =VLOOKUP($A27,DATA2!$A$2:$S$607,11,FALSE) -> 509657.64 | M27: =VLOOKUP($A27,DATA2!$A$2:$S$607,12,FALSE) -> 2015-02-01 | N27: =VLOOKUP($A27,DATA2!$A$2:$S$607,13,FALSE) -> 2020-01-31 | O27: =VLOOKUP($A27,DATA2!$A$2:$S$607,14,FALSE) -> No | P27: =IF(MATRIX2!D27=1,($Y$8-$X$2)/365*Table_Provincial_GTAC3536[[#This Row],[Adj.AnnualRental]]*MATRIX2!D27,($Y$8-$X$2)/365*Table_Provincial_GTAC3536[[#This Row],[Adj.AnnualRental]]) -> 167558.6762 | Q27: =(Table_Provincial_GTAC3536[[#This Row],[Adj.AnnualRental]]*(1+$I27)^(2)) -> 588973.1102 | R27: =(Table_Provincial_GTAC3536[[#This Row],[Adj.AnnualRental]]*(1+$I27)^(3)) -> 633146.0935 | S27: =(Table_Provincial_GTAC3536[[#This Row],[Adj.AnnualRental]]*(1+$I27)^(4)) -> 680632.0505 | T27: =(Table_Provincial_GTAC3536[[#This Row],[Adj.AnnualRental]]*(1+$I27)^(5)) -> 731679.4543 | U27: =(Table_Provincial_GTAC3536[[#This Row],[Adj.AnnualRental]]*(1+$I27)^(6)) -> 786555.4134 | V27: =(Table_Provincial_GTAC3536[[#This Row],[Adj.AnnualRental]]*(1+$I27)^(7)) -> 845547.0694
A28: 29 | B28: =VLOOKUP($A28,DATA2!$A$2:$S$607,2,FALSE) -> KZN | C28: =VLOOKUP($A28,DATA2!$A$2:$S$607,3,FALSE) -> KwaZulu-Natal | D28: =VLOOKUP($A28,DATA2!$A$2:$S$607,4,FALSE) -> 128.9117864 | E28: =VLOOKUP($A28,DATA2!$A$2:$S$607,5,FALSE) -> 77.5 | F28: =VLOOKUP($A28,DATA2!$A$2:$S$607,6,FALSE) -> VTSD | G28: =VLOOKUP($A28,DATA2!$A$2:$S$607,7,FALSE) -> 543 | H28: =VLOOKUP($A28,DATA2!$A$2:$S$607,8,FALSE) -> TRUE | I28: =VLOOKUP($A28,DATA2!$A$2:$S$607,9,FALSE) -> 0.09 | J28: 81275.1 | K28: =VLOOKUP($A28,DATA2!$A$2:$S$607,10,FALSE) -> 69999.1 | L28: =VLOOKUP($A28,DATA2!$A$2:$S$607,11,FALSE) -> 839989.2 | M28: =VLOOKUP($A28,DATA2!$A$2:$S$607,12,FALSE) -> 2014-06-01 | N28: =VLOOKUP($A28,DATA2!$A$2:$S$607,13,FALSE) -> 2019-05-31 | O28: =VLOOKUP($A28,DATA2!$A$2:$S$607,14,FALSE) -> No | P28: =IF(MATRIX2!D28=1,($Y$8-$X$2)/365*Table_Provincial_GTAC3536[[#This Row],[Adj.AnnualRental]]*MATRIX2!D28,($Y$8-$X$2)/365*Table_Provincial_GTAC3536[[#This Row],[Adj.AnnualRental]]) -> 276160.8329 | Q28: =(Table_Provincial_GTAC3536[[#This Row],[Adj.AnnualRental]]*(1+$I28)^(2)) -> 997991.1685 | R28: =(Table_Provincial_GTAC3536[[#This Row],[Adj.AnnualRental]]*(1+$I28)^(3)) -> 1087810.374 | S28: =(Table_Provincial_GTAC3536[[#This Row],[Adj.AnnualRental]]*(1+$I28)^(4)) -> 1185713.307 | T28: =(Table_Provincial_GTAC3536[[#This Row],[Adj.AnnualRental]]*(1+$I28)^(5)) -> 1292427.505 | U28: =(Table_Provincial_GTAC3536[[#This Row],[Adj.AnnualRental]]*(1+$I28)^(6)) -> 1408745.98 | V28: =(Table_Provincial_GTAC3536[[#This Row],[Adj.AnnualRental]]*(1+$I28)^(7)) -> 1535533.119
A29: 30 | B29: =VLOOKUP($A29,DATA2!$A$2:$S$607,2,FALSE) -> KZN | C29: =VLOOKUP($A29,DATA2!$A$2:$S$607,3,FALSE) -> KwaZulu-Natal | D29: =VLOOKUP($A29,DATA2!$A$2:$S$607,4,FALSE) -> 128.3821686 | E29: =VLOOKUP($A29,DATA2!$A$2:$S$607,5,FALSE) -> 110 | F29: =VLOOKUP($A29,DATA2!$A$2:$S$607,6,FALSE) -> CBD | G29: =VLOOKUP($A29,DATA2!$A$2:$S$607,7,FALSE) -> 7101.63 | H29: =VLOOKUP($A29,DATA2!$A$2:$S$607,8,FALSE) -> TRUE | I29: =VLOOKUP($A29,DATA2!$A$2:$S$607,9,FALSE) -> 0.07 | J29: 953122.66 | K29: =VLOOKUP($A29,DATA2!$A$2:$S$607,10,FALSE) -> 911722.66 | L29: =VLOOKUP($A29,DATA2!$A$2:$S$607,11,FALSE) -> 10940671.92 | M29: =VLOOKUP($A29,DATA2!$A$2:$S$607,12,FALSE) -> 2015-01-01 | N29: =VLOOKUP($A29,DATA2!$A$2:$S$607,13,FALSE) -> 2019-12-31 | O29: =VLOOKUP($A29,DATA2!$A$2:$S$607,14,FALSE) -> No | P29: =IF(MATRIX2!D29=1,($Y$8-$X$2)/365*Table_Provincial_GTAC3536[[#This Row],[Adj.AnnualRental]]*MATRIX2!D29,($Y$8-$X$2)/365*Table_Provincial_GTAC3536[[#This Row],[Adj.AnnualRental]]) -> 3596933.234 | Q29: =(Table_Provincial_GTAC3536[[#This Row],[Adj.AnnualRental]]*(1+$I29)^(2)) -> 12525975.28 | R29: =(Table_Provincial_GTAC3536[[#This Row],[Adj.AnnualRental]]*(1+$I29)^(3)) -> 13402793.55 | S29: =(Table_Provincial_GTAC3536[[#This Row],[Adj.AnnualRental]]*(1+$I29)^(4)) -> 14340989.1 | T29: =(Table_Provincial_GTAC3536[[#This Row],[Adj.AnnualRental]]*(1+$I29)^(5)) -> 15344858.34 | U29: =(Table_Provincial_GTAC3536[[#This Row],[Adj.AnnualRental]]*(1+$I29)^(6)) -> 16418998.42 | V29: =(Table_Provincial_GTAC3536[[#This Row],[Adj.AnnualRental]]*(1+$I29)^(7)) -> 17568328.31
A30: 33 | B30: =VLOOKUP($A30,DATA2!$A$2:$S$607,2,FALSE) -> KZN | C30: =VLOOKUP($A30,DATA2!$A$2:$S$607,3,FALSE) -> KwaZulu-Natal | D30: =VLOOKUP($A30,DATA2!$A$2:$S$607,4,FALSE) -> 139.36904 | E30: =VLOOKUP($A30,DATA2!$A$2:$S$607,5,FALSE) -> 110 | F30: =VLOOKUP($A30,DATA2!$A$2:$S$607,6,FALSE) -> MAIN CENTRE | G30: =VLOOKUP($A30,DATA2!$A$2:$S$607,7,FALSE) -> 500 | H30: =VLOOKUP($A30,DATA2!$A$2:$S$607,8,FALSE) -> TRUE | I30: =VLOOKUP($A30,DATA2!$A$2:$S$607,9,FALSE) -> 0.08 | J30: 83884.52 | K30: =VLOOKUP($A30,DATA2!$A$2:$S$607,10,FALSE) -> 69684.52 | L30: =VLOOKUP($A30,DATA2!$A$2:$S$607,11,FALSE) -> 836214.24 | M30: =VLOOKUP($A30,DATA2!$A$2:$S$607,12,FALSE) -> 2013-03-01 | N30: =VLOOKUP($A30,DATA2!$A$2:$S$607,13,FALSE) -> 2018-02-28 | O30: =VLOOKUP($A30,DATA2!$A$2:$S$607,14,FALSE) -> No | P30: =IF(MATRIX2!D30=1,($Y$8-$X$2)/365*Table_Provincial_GTAC3536[[#This Row],[Adj.AnnualRental]]*MATRIX2!D30,($Y$8-$X$2)/365*Table_Provincial_GTAC3536[[#This Row],[Adj.AnnualRental]]) -> 274919.7501 | Q30: =(Table_Provincial_GTAC3536[[#This Row],[Adj.AnnualRental]]*(1+$I30)^(2)) -> 975360.2895 | R30: =(Table_Provincial_GTAC3536[[#This Row],[Adj.AnnualRental]]*(1+$I30)^(3)) -> 1053389.113 | S30: =(Table_Provincial_GTAC3536[[#This Row],[Adj.AnnualRental]]*(1+$I30)^(4)) -> 1137660.242 | T30: =(Table_Provincial_GTAC3536[[#This Row],[Adj.AnnualRental]]*(1+$I30)^(5)) -> 1228673.061 | U30: =(Table_Provincial_GTAC3536[[#This Row],[Adj.AnnualRental]]*(1+$I30)^(6)) -> 1326966.906 | V30: =(Table_Provincial_GTAC3536[[#This Row],[Adj.AnnualRental]]*(1+$I30)^(7)) -> 1433124.258
A31: 34 | B31: =VLOOKUP($A31,DATA2!$A$2:$S$607,2,FALSE) -> KZN | C31: =VLOOKUP($A31,DATA2!$A$2:$S$607,3,FALSE) -> KwaZulu-Natal | D31: =VLOOKUP($A31,DATA2!$A$2:$S$607,4,FALSE) -> 158.1369183 | E31: =VLOOKUP($A31,DATA2!$A$2:$S$607,5,FALSE) -> 110 | F31: =VLOOKUP($A31,DATA2!$A$2:$S$607,6,FALSE) -> MAIN CENTRE | G31: =VLOOKUP($A31,DATA2!$A$2:$S$607,7,FALSE) -> 967 | H31: =VLOOKUP($A31,DATA2!$A$2:$S$607,8,FALSE) -> TRUE | I31: =VLOOKUP($A31,DATA2!$A$2:$S$607,9,FALSE) -> 0.08 | J31: 157958.4 | K31: =VLOOKUP($A31,DATA2!$A$2:$S$607,10,FALSE) -> 152918.4 | L31: =VLOOKUP($A31,DATA2!$A$2:$S$607,11,FALSE) -> 1835020.8 | M31: =VLOOKUP($A31,DATA2!$A$2:$S$607,12,FALSE) -> 2012-09-01 | N31: =VLOOKUP($A31,DATA2!$A$2:$S$607,13,FALSE) -> 2015-08-31 | O31: =VLOOKUP($A31,DATA2!$A$2:$S$607,14,FALSE) -> Yes | P31: =IF(MATRIX2!D31=1,($Y$8-$X$2)/365*Table_Provincial_GTAC3536[[#This Row],[Adj.AnnualRental]]*MATRIX2!D31,($Y$8-$X$2)/365*Table_Provincial_GTAC3536[[#This Row],[Adj.AnnualRental]]) -> 603294.5096 | Q31: =(Table_Provincial_GTAC3536[[#This Row],[Adj.AnnualRental]]*(1+$I31)^(2)) -> 2140368.261 | R31: =(Table_Provincial_GTAC3536[[#This Row],[Adj.AnnualRental]]*(1+$I31)^(3)) -> 2311597.722 | S31: =(Table_Provincial_GTAC3536[[#This Row],[Adj.AnnualRental]]*(1+$I31)^(4)) -> 2496525.54 | T31: =(Table_Provincial_GTAC3536[[#This Row],[Adj.AnnualRental]]*(1+$I31)^(5)) -> 2696247.583 | U31: =(Table_Provincial_GTAC3536[[#This Row],[Adj.AnnualRental]]*(1+$I31)^(6)) -> 2911947.39 | V31: =(Table_Provincial_GTAC3536[[#This Row],[Adj.AnnualRental]]*(1+$I31)^(7)) -> 3144903.181
A32: 35 | B32: =VLOOKUP($A32,DATA2!$A$2:$S$607,2,FALSE) -> KZN | C32: =VLOOKUP($A32,DATA2!$A$2:$S$607,3,FALSE) -> KwaZulu-Natal | D32: =VLOOKUP($A32,DATA2!$A$2:$S$607,4,FALSE) -> 100.1070866 | E32: =VLOOKUP($A32,DATA2!$A$2:$S$607,5,FALSE) -> 77.5 | F32: =VLOOKUP($A32,DATA2!$A$2:$S$607,6,FALSE) -> VTSD | G32: =VLOOKUP($A32,DATA2!$A$2:$S$607,7,FALSE) -> 25.4 | H32: =VLOOKUP($A32,DATA2!$A$2:$S$607,8,FALSE) -> TRUE | I32: =VLOOKUP($A32,DATA2!$A$2:$S$607,9,FALSE) -> 0.1 | J32: 2942.72 | K32: =VLOOKUP($A32,DATA2!$A$2:$S$607,10,FALSE) -> 2542.72 | L32: =VLOOKUP($A32,DATA2!$A$2:$S$607,11,FALSE) -> 30512.64 | M32: =VLOOKUP($A32,DATA2!$A$2:$S$607,12,FALSE) -> 2014-06-01 | N32: =VLOOKUP($A32,DATA2!$A$2:$S$607,13,FALSE) -> 2019-05-31 | O32: =VLOOKUP($A32,DATA2!$A$2:$S$607,14,FALSE) -> No | P32: =IF(MATRIX2!D32=1,($Y$8-$X$2)/365*Table_Provincial_GTAC3536[[#This Row],[Adj.AnnualRental]]*MATRIX2!D32,($Y$8-$X$2)/365*Table_Provincial_GTAC3536[[#This Row],[Adj.AnnualRental]]) -> 10031.55288 | Q32: =(Table_Provincial_GTAC3536[[#This Row],[Adj.AnnualRental]]*(1+$I32)^(2)) -> 36920.2944 | R32: =(Table_Provincial_GTAC3536[[#This Row],[Adj.AnnualRental]]*(1+$I32)^(3)) -> 40612.32384 | S32: =(Table_Provincial_GTAC3536[[#This Row],[Adj.AnnualRental]]*(1+$I32)^(4)) -> 44673.55622 | T32: =(Table_Provincial_GTAC3536[[#This Row],[Adj.AnnualRental]]*(1+$I32)^(5)) -> 49140.91185 | U32: =(Table_Provincial_GTAC3536[[#This Row],[Adj.AnnualRental]]*(1+$I32)^(6)) -> 54055.00303 | V32: =(Table_Provincial_GTAC3536[[#This Row],[Adj.AnnualRental]]*(1+$I32)^(7)) -> 59460.50333
A33: 36 | B33: =VLOOKUP($A33,DATA2!$A$2:$S$607,2,FALSE) -> KZN | C33: =VLOOKUP($A33,DATA2!$A$2:$S$607,3,FALSE) -> KwaZulu-Natal | D33: =VLOOKUP($A33,DATA2!$A$2:$S$607,4,FALSE) -> 127.9588048 | E33: =VLOOKUP($A33,DATA2!$A$2:$S$607,5,FALSE) -> 100 | F33: =VLOOKUP($A33,DATA2!$A$2:$S$607,6,FALSE) -> VTSD | G33: =VLOOKUP($A33,DATA2!$A$2:$S$607,7,FALSE) -> 629.2 | H33: =VLOOKUP($A33,DATA2!$A$2:$S$607,8,FALSE) -> TRUE | I33: =VLOOKUP($A33,DATA2!$A$2:$S$607,9,FALSE) -> 0.08 | J33: 92011.68 | K33: =VLOOKUP($A33,DATA2!$A$2:$S$607,10,FALSE) -> 80511.68 | L33: =VLOOKUP($A33,DATA2!$A$2:$S$607,11,FALSE) -> 966140.16 | M33: =VLOOKUP($A33,DATA2!$A$2:$S$607,12,FALSE) -> 2017-01-01 | N33: =VLOOKUP($A33,DATA2!$A$2:$S$607,13,FALSE) -> 2021-12-31 | O33: =VLOOKUP($A33,DATA2!$A$2:$S$607,14,FALSE) -> No | P33: =IF(MATRIX2!D33=1,($Y$8-$X$2)/365*Table_Provincial_GTAC3536[[#This Row],[Adj.AnnualRental]]*MATRIX2!D33,($Y$8-$X$2)/365*Table_Provincial_GTAC3536[[#This Row],[Adj.AnnualRental]]) -> 317635.1211 | Q33: =(Table_Provincial_GTAC3536[[#This Row],[Adj.AnnualRental]]*(1+$I33)^(2)) -> 1126905.883 | R33: =(Table_Provincial_GTAC3536[[#This Row],[Adj.AnnualRental]]*(1+$I33)^(3)) -> 1217058.353 | S33: =(Table_Provincial_GTAC3536[[#This Row],[Adj.AnnualRental]]*(1+$I33)^(4)) -> 1314423.021 | T33: =(Table_Provincial_GTAC3536[[#This Row],[Adj.AnnualRental]]*(1+$I33)^(5)) -> 1419576.863 | U33: =(Table_Provincial_GTAC3536[[#This Row],[Adj.AnnualRental]]*(1+$I33)^(6)) -> 1533143.012 | V33: =(Table_Provincial_GTAC3536[[#This Row],[Adj.AnnualRental]]*(1+$I33)^(7)) -> 1655794.453
A34: 37 | B34: =VLOOKUP($A34,DATA2!$A$2:$S$607,2,FALSE) -> KZN | C34: =VLOOKUP($A34,DATA2!$A$2:$S$607,3,FALSE) -> KwaZulu-Natal | D34: =VLOOKUP($A34,DATA2!$A$2:$S$607,4,FALSE) -> 152.7529952 | E34: =VLOOKUP($A34,DATA2!$A$2:$S$607,5,FALSE) -> 65 | F34: =VLOOKUP($A34,DATA2!$A$2:$S$607,6,FALSE) -> CBD | G34: =VLOOKUP($A34,DATA2!$A$2:$S$607,7,FALSE) -> 288.464 | H34: =VLOOKUP($A34,DATA2!$A$2:$S$607,8,FALSE) -> TRUE | I34: =VLOOKUP($A34,DATA2!$A$2:$S$607,9,FALSE) -> 0.08 | J34: 50113.74 | K34: =VLOOKUP($A34,DATA2!$A$2:$S$607,10,FALSE) -> 44063.74 | L34: =VLOOKUP($A34,DATA2!$A$2:$S$607,11,FALSE) -> 528764.88 | M34: =VLOOKUP($A34,DATA2!$A$2:$S$607,12,FALSE) -> 2013-11-01 | N34: =VLOOKUP($A34,DATA2!$A$2:$S$607,13,FALSE) -> 2018-10-31 | O34: =VLOOKUP($A34,DATA2!$A$2:$S$607,14,FALSE) -> No | P34: =IF(MATRIX2!D34=1,($Y$8-$X$2)/365*Table_Provincial_GTAC3536[[#This Row],[Adj.AnnualRental]]*MATRIX2!D34,($Y$8-$X$2)/365*Table_Provincial_GTAC3536[[#This Row],[Adj.AnnualRental]]) -> 173840.5085 | Q34: =(Table_Provincial_GTAC3536[[#This Row],[Adj.AnnualRental]]*(1+$I34)^(2)) -> 616751.356 | R34: =(Table_Provincial_GTAC3536[[#This Row],[Adj.AnnualRental]]*(1+$I34)^(3)) -> 666091.4645 | S34: =(Table_Provincial_GTAC3536[[#This Row],[Adj.AnnualRental]]*(1+$I34)^(4)) -> 719378.7817 | T34: =(Table_Provincial_GTAC3536[[#This Row],[Adj.AnnualRental]]*(1+$I34)^(5)) -> 776929.0842 | U34: =(Table_Provincial_GTAC3536[[#This Row],[Adj.AnnualRental]]*(1+$I34)^(6)) -> 839083.4109 | V34: =(Table_Provincial_GTAC3536[[#This Row],[Adj.AnnualRental]]*(1+$I34)^(7)) -> 906210.0838
A35: 38 | B35: =VLOOKUP($A35,DATA2!$A$2:$S$607,2,FALSE) -> KZN | C35: =VLOOKUP($A35,DATA2!$A$2:$S$607,3,FALSE) -> KwaZulu-Natal | D35: =VLOOKUP($A35,DATA2!$A$2:$S$607,4,FALSE) -> 148.1955372 | E35: =VLOOKUP($A35,DATA2!$A$2:$S$607,5,FALSE) -> 65 | F35: =VLOOKUP($A35,DATA2!$A$2:$S$607,6,FALSE) -> VTSD | G35: =VLOOKUP($A35,DATA2!$A$2:$S$607,7,FALSE) -> 242 | H35: =VLOOKUP($A35,DATA2!$A$2:$S$607,8,FALSE) -> TRUE | I35: =VLOOKUP($A35,DATA2!$A$2:$S$607,9,FALSE) -> 0.07 | J35: 39013.32 | K35: =VLOOKUP($A35,DATA2!$A$2:$S$607,10,FALSE) -> 35863.32 | L35: =VLOOKUP($A35,DATA2!$A$2:$S$607,11,FALSE) -> 430359.84 | M35: =VLOOKUP($A35,DATA2!$A$2:$S$607,12,FALSE) -> 2015-07-01 | N35: =VLOOKUP($A35,DATA2!$A$2:$S$607,13,FALSE) -> 2020-06-30 | O35: =VLOOKUP($A35,DATA2!$A$2:$S$607,14,FALSE) -> No | P35: =IF(MATRIX2!D35=1,($Y$8-$X$2)/365*Table_Provincial_GTAC3536[[#This Row],[Adj.AnnualRental]]*MATRIX2!D35,($Y$8-$X$2)/365*Table_Provincial_GTAC3536[[#This Row],[Adj.AnnualRental]]) -> 141488.1666 | Q35: =(Table_Provincial_GTAC3536[[#This Row],[Adj.AnnualRental]]*(1+$I35)^(2)) -> 492718.9808 | R35: =(Table_Provincial_GTAC3536[[#This Row],[Adj.AnnualRental]]*(1+$I35)^(3)) -> 527209.3095 | S35: =(Table_Provincial_GTAC3536[[#This Row],[Adj.AnnualRental]]*(1+$I35)^(4)) -> 564113.9611 | T35: =(Table_Provincial_GTAC3536[[#This Row],[Adj.AnnualRental]]*(1+$I35)^(5)) -> 603601.9384 | U35: =(Table_Provincial_GTAC3536[[#This Row],[Adj.AnnualRental]]*(1+$I35)^(6)) -> 645854.0741 | V35: =(Table_Provincial_GTAC3536[[#This Row],[Adj.AnnualRental]]*(1+$I35)^(7)) -> 691063.8593
A36: 39 | B36: =VLOOKUP($A36,DATA2!$A$2:$S$607,2,FALSE) -> KZN | C36: =VLOOKUP($A36,DATA2!$A$2:$S$607,3,FALSE) -> KwaZulu-Natal | D36: =VLOOKUP($A36,DATA2!$A$2:$S$607,4,FALSE) -> 118.7679403 | E36: =VLOOKUP($A36,DATA2!$A$2:$S$607,5,FALSE) -> 77.5 | F36: =VLOOKUP($A36,DATA2!$A$2:$S$607,6,FALSE) -> MAIN CENTRE | G36: =VLOOKUP($A36,DATA2!$A$2:$S$607,7,FALSE) -> 335 | H36: =VLOOKUP($A36,DATA2!$A$2:$S$607,8,FALSE) -> TRUE | I36: =VLOOKUP($A36,DATA2!$A$2:$S$607,9,FALSE) -> 0.07 | J36: 44187.26 | K36: =VLOOKUP($A36,DATA2!$A$2:$S$607,10,FALSE) -> 39787.26 | L36: =VLOOKUP($A36,DATA2!$A$2:$S$607,11,FALSE) -> 477447.12 | M36: =VLOOKUP($A36,DATA2!$A$2:$S$607,12,FALSE) -> 2015-09-01 | N36: =VLOOKUP($A36,DATA2!$A$2:$S$607,13,FALSE) -> 2020-08-31 | O36: =VLOOKUP($A36,DATA2!$A$2:$S$607,14,FALSE) -> No | P36: =IF(MATRIX2!D36=1,($Y$8-$X$2)/365*Table_Provincial_GTAC3536[[#This Row],[Adj.AnnualRental]]*MATRIX2!D36,($Y$8-$X$2)/365*Table_Provincial_GTAC3536[[#This Row],[Adj.AnnualRental]]) -> 156968.9162 | Q36: =(Table_Provincial_GTAC3536[[#This Row],[Adj.AnnualRental]]*(1+$I36)^(2)) -> 546629.2077 | R36: =(Table_Provincial_GTAC3536[[#This Row],[Adj.AnnualRental]]*(1+$I36)^(3)) -> 584893.2522 | S36: =(Table_Provincial_GTAC3536[[#This Row],[Adj.AnnualRental]]*(1+$I36)^(4)) -> 625835.7799 | T36: =(Table_Provincial_GTAC3536[[#This Row],[Adj.AnnualRental]]*(1+$I36)^(5)) -> 669644.2845 | U36: =(Table_Provincial_GTAC3536[[#This Row],[Adj.AnnualRental]]*(1+$I36)^(6)) -> 716519.3844 | V36: =(Table_Provincial_GTAC3536[[#This Row],[Adj.AnnualRental]]*(1+$I36)^(7)) -> 766675.7413
A37: 40 | B37: =VLOOKUP($A37,DATA2!$A$2:$S$607,2,FALSE) -> KZN | C37: =VLOOKUP($A37,DATA2!$A$2:$S$607,3,FALSE) -> KwaZulu-Natal | D37: =VLOOKUP($A37,DATA2!$A$2:$S$607,4,FALSE) -> 148.6563636 | E37: =VLOOKUP($A37,DATA2!$A$2:$S$607,5,FALSE) -> 77.5 | F37: =VLOOKUP($A37,DATA2!$A$2:$S$607,6,FALSE) -> VTSD | G37: =VLOOKUP($A37,DATA2!$A$2:$S$607,7,FALSE) -> 242 | H37: =VLOOKUP($A37,DATA2!$A$2:$S$607,8,FALSE) -> TRUE | I37: =VLOOKUP($A37,DATA2!$A$2:$S$607,9,FALSE) -> 0.09 | J37: 40244.84 | K37: =VLOOKUP($A37,DATA2!$A$2:$S$607,10,FALSE) -> 35974.84 | L37: =VLOOKUP($A37,DATA2!$A$2:$S$607,11,FALSE) -> 431698.08 | M37: =VLOOKUP($A37,DATA2!$A$2:$S$607,12,FALSE) -> 2014-02-01 | N37: =VLOOKUP($A37,DATA2!$A$2:$S$607,13,FALSE) -> 2019-01-31 | O37: =VLOOKUP($A37,DATA2!$A$2:$S$607,14,FALSE) -> No | P37: =IF(MATRIX2!D37=1,($Y$8-$X$2)/365*Table_Provincial_GTAC3536[[#This Row],[Adj.AnnualRental]]*MATRIX2!D37,($Y$8-$X$2)/365*Table_Provincial_GTAC3536[[#This Row],[Adj.AnnualRental]]) -> 141928.1359 | Q37: =(Table_Provincial_GTAC3536[[#This Row],[Adj.AnnualRental]]*(1+$I37)^(2)) -> 512900.4888 | R37: =(Table_Provincial_GTAC3536[[#This Row],[Adj.AnnualRental]]*(1+$I37)^(3)) -> 559061.5328 | S37: =(Table_Provincial_GTAC3536[[#This Row],[Adj.AnnualRental]]*(1+$I37)^(4)) -> 609377.0708 | T37: =(Table_Provincial_GTAC3536[[#This Row],[Adj.AnnualRental]]*(1+$I37)^(5)) -> 664221.0072 | U37: =(Table_Provincial_GTAC3536[[#This Row],[Adj.AnnualRental]]*(1+$I37)^(6)) -> 724000.8978 | V37: =(Table_Provincial_GTAC3536[[#This Row],[Adj.AnnualRental]]*(1+$I37)^(7)) -> 789160.9786
A38: 41 | B38: =VLOOKUP($A38,DATA2!$A$2:$S$607,2,FALSE) -> KZN | C38: =VLOOKUP($A38,DATA2!$A$2:$S$607,3,FALSE) -> KwaZulu-Natal | D38: =VLOOKUP($A38,DATA2!$A$2:$S$607,4,FALSE) -> 136.934876 | E38: =VLOOKUP($A38,DATA2!$A$2:$S$607,5,FALSE) -> 65 | F38: =VLOOKUP($A38,DATA2!$A$2:$S$607,6,FALSE) -> VTSD | G38: =VLOOKUP($A38,DATA2!$A$2:$S$607,7,FALSE) -> 242 | H38: =VLOOKUP($A38,DATA2!$A$2:$S$607,8,FALSE) -> TRUE | I38: =VLOOKUP($A38,DATA2!$A$2:$S$607,9,FALSE) -> 0.1 | J38: 37888.24 | K38: =VLOOKUP($A38,DATA2!$A$2:$S$607,10,FALSE) -> 33138.24 | L38: =VLOOKUP($A38,DATA2!$A$2:$S$607,11,FALSE) -> 397658.88 | M38: =VLOOKUP($A38,DATA2!$A$2:$S$607,12,FALSE) -> 2014-02-01 | N38: =VLOOKUP($A38,DATA2!$A$2:$S$607,13,FALSE) -> 2019-01-31 | O38: =VLOOKUP($A38,DATA2!$A$2:$S$607,14,FALSE) -> No | P38: =IF(MATRIX2!D38=1,($Y$8-$X$2)/365*Table_Provincial_GTAC3536[[#This Row],[Adj.AnnualRental]]*MATRIX2!D38,($Y$8-$X$2)/365*Table_Provincial_GTAC3536[[#This Row],[Adj.AnnualRental]]) -> 130737.166 | Q38: =(Table_Provincial_GTAC3536[[#This Row],[Adj.AnnualRental]]*(1+$I38)^(2)) -> 481167.2448 | R38: =(Table_Provincial_GTAC3536[[#This Row],[Adj.AnnualRental]]*(1+$I38)^(3)) -> 529283.9693 | S38: =(Table_Provincial_GTAC3536[[#This Row],[Adj.AnnualRental]]*(1+$I38)^(4)) -> 582212.3662 | T38: =(Table_Provincial_GTAC3536[[#This Row],[Adj.AnnualRental]]*(1+$I38)^(5)) -> 640433.6028 | U38: =(Table_Provincial_GTAC3536[[#This Row],[Adj.AnnualRental]]*(1+$I38)^(6)) -> 704476.9631 | V38: =(Table_Provincial_GTAC3536[[#This Row],[Adj.AnnualRental]]*(1+$I38)^(7)) -> 774924.6594
A39: 42 | B39: =VLOOKUP($A39,DATA2!$A$2:$S$607,2,FALSE) -> KZN | C39: =VLOOKUP($A39,DATA2!$A$2:$S$607,3,FALSE) -> KwaZulu-Natal | D39: =VLOOKUP($A39,DATA2!$A$2:$S$607,4,FALSE) -> 136.4339147 | E39: =VLOOKUP($A39,DATA2!$A$2:$S$607,5,FALSE) -> 77.5 | F39: =VLOOKUP($A39,DATA2!$A$2:$S$607,6,FALSE) -> VTSD | G39: =VLOOKUP($A39,DATA2!$A$2:$S$607,7,FALSE) -> 258 | H39: =VLOOKUP($A39,DATA2!$A$2:$S$607,8,FALSE) -> TRUE | I39: =VLOOKUP($A39,DATA2!$A$2:$S$607,9,FALSE) -> 0.09 | J39: 37929.95 | K39: =VLOOKUP($A39,DATA2!$A$2:$S$607,10,FALSE) -> 35199.95 | L39: =VLOOKUP($A39,DATA2!$A$2:$S$607,11,FALSE) -> 422399.4 | M39: =VLOOKUP($A39,DATA2!$A$2:$S$607,12,FALSE) -> 2014-06-01 | N39: =VLOOKUP($A39,DATA2!$A$2:$S$607,13,FALSE) -> 2019-05-31 | O39: =VLOOKUP($A39,DATA2!$A$2:$S$607,14,FALSE) -> No | P39: =IF(MATRIX2!D39=1,($Y$8-$X$2)/365*Table_Provincial_GTAC3536[[#This Row],[Adj.AnnualRental]]*MATRIX2!D39,($Y$8-$X$2)/365*Table_Provincial_GTAC3536[[#This Row],[Adj.AnnualRental]]) -> 138871.0356 | Q39: =(Table_Provincial_GTAC3536[[#This Row],[Adj.AnnualRental]]*(1+$I39)^(2)) -> 501852.7271 | R39: =(Table_Provincial_GTAC3536[[#This Row],[Adj.AnnualRental]]*(1+$I39)^(3)) -> 547019.4726 | S39: =(Table_Provincial_GTAC3536[[#This Row],[Adj.AnnualRental]]*(1+$I39)^(4)) -> 596251.2251 | T39: =(Table_Provincial_GTAC3536[[#This Row],[Adj.AnnualRental]]*(1+$I39)^(5)) -> 649913.8354 | U39: =(Table_Provincial_GTAC3536[[#This Row],[Adj.AnnualRental]]*(1+$I39)^(6)) -> 708406.0806 | V39: =(Table_Provincial_GTAC3536[[#This Row],[Adj.AnnualRental]]*(1+$I39)^(7)) -> 772162.6278
A40: 44 | B40: =VLOOKUP($A40,DATA2!$A$2:$S$607,2,FALSE) -> KZN | C40: =VLOOKUP($A40,DATA2!$A$2:$S$607,3,FALSE) -> KwaZulu-Natal | D40: =VLOOKUP($A40,DATA2!$A$2:$S$607,4,FALSE) -> 118.7402182 | E40: =VLOOKUP($A40,DATA2!$A$2:$S$607,5,FALSE) -> 110 | F40: =VLOOKUP($A40,DATA2!$A$2:$S$607,6,FALSE) -> CBD | G40: =VLOOKUP($A40,DATA2!$A$2:$S$607,7,FALSE) -> 3300 | H40: =VLOOKUP($A40,DATA2!$A$2:$S$607,8,FALSE) -> TRUE | I40: =VLOOKUP($A40,DATA2!$A$2:$S$607,9,FALSE) -> 0.07 | J40: 398142.72 | K40: =VLOOKUP($A40,DATA2!$A$2:$S$607,10,FALSE) -> 391842.72 | L40: =VLOOKUP($A40,DATA2!$A$2:$S$607,11,FALSE) -> 4702112.64 | M40: =VLOOKUP($A40,DATA2!$A$2:$S$607,12,FALSE) -> 2015-09-01 | N40: =VLOOKUP($A40,DATA2!$A$2:$S$607,13,FALSE) -> 2019-08-31 | O40: =VLOOKUP($A40,DATA2!$A$2:$S$607,14,FALSE) -> No | P40: =IF(MATRIX2!D40=1,($Y$8-$X$2)/365*Table_Provincial_GTAC3536[[#This Row],[Adj.AnnualRental]]*MATRIX2!D40,($Y$8-$X$2)/365*Table_Provincial_GTAC3536[[#This Row],[Adj.AnnualRental]]) -> 1545900.046 | Q40: =(Table_Provincial_GTAC3536[[#This Row],[Adj.AnnualRental]]*(1+$I40)^(2)) -> 5383448.762 | R40: =(Table_Provincial_GTAC3536[[#This Row],[Adj.AnnualRental]]*(1+$I40)^(3)) -> 5760290.175 | S40: =(Table_Provincial_GTAC3536[[#This Row],[Adj.AnnualRental]]*(1+$I40)^(4)) -> 6163510.487 | T40: =(Table_Provincial_GTAC3536[[#This Row],[Adj.AnnualRental]]*(1+$I40)^(5)) -> 6594956.221 | U40: =(Table_Provincial_GTAC3536[[#This Row],[Adj.AnnualRental]]*(1+$I40)^(6)) -> 7056603.157 | V40: =(Table_Provincial_GTAC3536[[#This Row],[Adj.AnnualRental]]*(1+$I40)^(7)) -> 7550565.378
A41: 46 | B41: =VLOOKUP($A41,DATA2!$A$2:$S$607,2,FALSE) -> KZN | C41: =VLOOKUP($A41,DATA2!$A$2:$S$607,3,FALSE) -> KwaZulu-Natal | D41: =VLOOKUP($A41,DATA2!$A$2:$S$607,4,FALSE) -> 110.204695 | E41: =VLOOKUP($A41,DATA2!$A$2:$S$607,5,FALSE) -> 110 | F41: =VLOOKUP($A41,DATA2!$A$2:$S$607,6,FALSE) -> MAIN CENTRE | G41: =VLOOKUP($A41,DATA2!$A$2:$S$607,7,FALSE) -> 377 | H41: =VLOOKUP($A41,DATA2!$A$2:$S$607,8,FALSE) -> TRUE | I41: =VLOOKUP($A41,DATA2!$A$2:$S$607,9,FALSE) -> 0.05 | J41: 46497.17 | K41: =VLOOKUP($A41,DATA2!$A$2:$S$607,10,FALSE) -> 41547.17 | L41: =VLOOKUP($A41,DATA2!$A$2:$S$607,11,FALSE) -> 498566.04 | M41: =VLOOKUP($A41,DATA2!$A$2:$S$607,12,FALSE) -> 2015-03-01 | N41: =VLOOKUP($A41,DATA2!$A$2:$S$607,13,FALSE) -> 2020-02-28 | O41: =VLOOKUP($A41,DATA2!$A$2:$S$607,14,FALSE) -> No | P41: =IF(MATRIX2!D41=1,($Y$8-$X$2)/365*Table_Provincial_GTAC3536[[#This Row],[Adj.AnnualRental]]*MATRIX2!D41,($Y$8-$X$2)/365*Table_Provincial_GTAC3536[[#This Row],[Adj.AnnualRental]]) -> 163912.1227 | Q41: =(Table_Provincial_GTAC3536[[#This Row],[Adj.AnnualRental]]*(1+$I41)^(2)) -> 549669.0591 | R41: =(Table_Provincial_GTAC3536[[#This Row],[Adj.AnnualRental]]*(1+$I41)^(3)) -> 577152.5121 | S41: =(Table_Provincial_GTAC3536[[#This Row],[Adj.AnnualRental]]*(1+$I41)^(4)) -> 606010.1377 | T41: =(Table_Provincial_GTAC3536[[#This Row],[Adj.AnnualRental]]*(1+$I41)^(5)) -> 636310.6445 | U41: =(Table_Provincial_GTAC3536[[#This Row],[Adj.AnnualRental]]*(1+$I41)^(6)) -> 668126.1768 | V41: =(Table_Provincial_GTAC3536[[#This Row],[Adj.AnnualRental]]*(1+$I41)^(7)) -> 701532.4856
A42: 47 | B42: =VLOOKUP($A42,DATA2!$A$2:$S$607,2,FALSE) -> KZN | C42: =VLOOKUP($A42,DATA2!$A$2:$S$607,3,FALSE) -> KwaZulu-Natal | D42: =VLOOKUP($A42,DATA2!$A$2:$S$607,4,FALSE) -> 108.771583 | E42: =VLOOKUP($A42,DATA2!$A$2:$S$607,5,FALSE) -> 77.5 | F42: =VLOOKUP($A42,DATA2!$A$2:$S$607,6,FALSE) -> VTSD | G42: =VLOOKUP($A42,DATA2!$A$2:$S$607,7,FALSE) -> 314.6 | H42: =VLOOKUP($A42,DATA2!$A$2:$S$607,8,FALSE) -> TRUE | I42: =VLOOKUP($A42,DATA2!$A$2:$S$607,9,FALSE) -> 0.08 | J42: 40469.54 | K42: =VLOOKUP($A42,DATA2!$A$2:$S$607,10,FALSE) -> 34219.54 | L42: =VLOOKUP($A42,DATA2!$A$2:$S$607,11,FALSE) -> 410634.48 | M42: =VLOOKUP($A42,DATA2!$A$2:$S$607,12,FALSE) -> 2016-06-01 | N42: =VLOOKUP($A42,DATA2!$A$2:$S$607,13,FALSE) -> 2021-05-31 | O42: =VLOOKUP($A42,DATA2!$A$2:$S$607,14,FALSE) -> No | P42: =IF(MATRIX2!D42=1,($Y$8-$X$2)/365*Table_Provincial_GTAC3536[[#This Row],[Adj.AnnualRental]]*MATRIX2!D42,($Y$8-$X$2)/365*Table_Provincial_GTAC3536[[#This Row],[Adj.AnnualRental]]) -> 135003.1167 | Q42: =(Table_Provincial_GTAC3536[[#This Row],[Adj.AnnualRental]]*(1+$I42)^(2)) -> 478964.0575 | R42: =(Table_Provincial_GTAC3536[[#This Row],[Adj.AnnualRental]]*(1+$I42)^(3)) -> 517281.1821 | S42: =(Table_Provincial_GTAC3536[[#This Row],[Adj.AnnualRental]]*(1+$I42)^(4)) -> 558663.6766 | T42: =(Table_Provincial_GTAC3536[[#This Row],[Adj.AnnualRental]]*(1+$I42)^(5)) -> 603356.7708 | U42: =(Table_Provincial_GTAC3536[[#This Row],[Adj.AnnualRental]]*(1+$I42)^(6)) -> 651625.3124 | V42: =(Table_Provincial_GTAC3536[[#This Row],[Adj.AnnualRental]]*(1+$I42)^(7)) -> 703755.3374
A43: 48 | B43: =VLOOKUP($A43,DATA2!$A$2:$S$607,2,FALSE) -> KZN | C43: =VLOOKUP($A43,DATA2!$A$2:$S$607,3,FALSE) -> KwaZulu-Natal | D43: =VLOOKUP($A43,DATA2!$A$2:$S$607,4,FALSE) -> 69.01417625 | E43: =VLOOKUP($A43,DATA2!$A$2:$S$607,5,FALSE) -> 65 | F43: =VLOOKUP($A43,DATA2!$A$2:$S$607,6,FALSE) -> VTSD | G43: =VLOOKUP($A43,DATA2!$A$2:$S$607,7,FALSE) -> 783 | H43: =VLOOKUP($A43,DATA2!$A$2:$S$607,8,FALSE) -> TRUE | I43: =VLOOKUP($A43,DATA2!$A$2:$S$607,9,FALSE) -> 0.07 | J43: 73288.1 | K43: =VLOOKUP($A43,DATA2!$A$2:$S$607,10,FALSE) -> 54038.1 | L43: =VLOOKUP($A43,DATA2!$A$2:$S$607,11,FALSE) -> 648457.2 | M43: =VLOOKUP($A43,DATA2!$A$2:$S$607,12,FALSE) -> 2017-04-01 | N43: =VLOOKUP($A43,DATA2!$A$2:$S$607,13,FALSE) -> 2022-03-31 | O43: =VLOOKUP($A43,DATA2!$A$2:$S$607,14,FALSE) -> No | P43: =IF(MATRIX2!D43=1,($Y$8-$X$2)/365*Table_Provincial_GTAC3536[[#This Row],[Adj.AnnualRental]]*MATRIX2!D43,($Y$8-$X$2)/365*Table_Provincial_GTAC3536[[#This Row],[Adj.AnnualRental]]) -> 213191.4082 | Q43: =(Table_Provincial_GTAC3536[[#This Row],[Adj.AnnualRental]]*(1+$I43)^(2)) -> 742418.6483 | R43: =(Table_Provincial_GTAC3536[[#This Row],[Adj.AnnualRental]]*(1+$I43)^(3)) -> 794387.9537 | S43: =(Table_Provincial_GTAC3536[[#This Row],[Adj.AnnualRental]]*(1+$I43)^(4)) -> 849995.1104 | T43: =(Table_Provincial_GTAC3536[[#This Row],[Adj.AnnualRental]]*(1+$I43)^(5)) -> 909494.7681 | U43: =(Table_Provincial_GTAC3536[[#This Row],[Adj.AnnualRental]]*(1+$I43)^(6)) -> 973159.4019 | V43: =(Table_Provincial_GTAC3536[[#This Row],[Adj.AnnualRental]]*(1+$I43)^(7)) -> 1041280.56
A44: 50 | B44: =VLOOKUP($A44,DATA2!$A$2:$S$607,2,FALSE) -> KZN | C44: =VLOOKUP($A44,DATA2!$A$2:$S$607,3,FALSE) -> KwaZulu-Natal | D44: =VLOOKUP($A44,DATA2!$A$2:$S$607,4,FALSE) -> 119.7 | E44: =VLOOKUP($A44,DATA2!$A$2:$S$607,5,FALSE) -> 65 | F44: =VLOOKUP($A44,DATA2!$A$2:$S$607,6,FALSE) -> CBD | G44: =VLOOKUP($A44,DATA2!$A$2:$S$607,7,FALSE) -> 1527 | H44: =VLOOKUP($A44,DATA2!$A$2:$S$607,8,FALSE) -> TRUE | I44: =VLOOKUP($A44,DATA2!$A$2:$S$607,9,FALSE) -> 0 | J44: 182781.9 | K44: =VLOOKUP($A44,DATA2!$A$2:$S$607,10,FALSE) -> 182781.9 | L44: =VLOOKUP($A44,DATA2!$A$2:$S$607,11,FALSE) -> 2193382.8 | M44: =VLOOKUP($A44,DATA2!$A$2:$S$607,12,FALSE) -> 2016-04-01 | N44: =VLOOKUP($A44,DATA2!$A$2:$S$607,13,FALSE) -> 2017-03-31 | O44: =VLOOKUP($A44,DATA2!$A$2:$S$607,14,FALSE) -> Yes | P44: =IF(MATRIX2!D44=1,($Y$8-$X$2)/365*Table_Provincial_GTAC3536[[#This Row],[Adj.AnnualRental]]*MATRIX2!D44,($Y$8-$X$2)/365*Table_Provincial_GTAC3536[[#This Row],[Adj.AnnualRental]]) -> 721112.1534 | Q44: =(Table_Provincial_GTAC3536[[#This Row],[Adj.AnnualRental]]*(1+$I44)^(2)) -> 2193382.8 | R44: =(Table_Provincial_GTAC3536[[#This Row],[Adj.AnnualRental]]*(1+$I44)^(3)) -> 2193382.8 | S44: =(Table_Provincial_GTAC3536[[#This Row],[Adj.AnnualRental]]*(1+$I44)^(4)) -> 2193382.8 | T44: =(Table_Provincial_GTAC3536[[#This Row],[Adj.AnnualRental]]*(1+$I44)^(5)) -> 2193382.8 | U44: =(Table_Provincial_GTAC3536[[#This Row],[Adj.AnnualRental]]*(1+$I44)^(6)) -> 2193382.8 | V44: =(Table_Provincial_GTAC3536[[#This Row],[Adj.AnnualRental]]*(1+$I44)^(7)) -> 2193382.8
A45: 51 | B45: =VLOOKUP($A45,DATA2!$A$2:$S$607,2,FALSE) -> KZN | C45: =VLOOKUP($A45,DATA2!$A$2:$S$607,3,FALSE) -> KwaZulu-Natal | D45: =VLOOKUP($A45,DATA2!$A$2:$S$607,4,FALSE) -> 120.0980932 | E45: =VLOOKUP($A45,DATA2!$A$2:$S$607,5,FALSE) -> 77.5 | F45: =VLOOKUP($A45,DATA2!$A$2:$S$607,6,FALSE) -> VTSD | G45: =VLOOKUP($A45,DATA2!$A$2:$S$607,7,FALSE) -> 472 | H45: =VLOOKUP($A45,DATA2!$A$2:$S$607,8,FALSE) -> TRUE | I45: =VLOOKUP($A45,DATA2!$A$2:$S$607,9,FALSE) -> 0.08 | J45: 61265.78 | K45: =VLOOKUP($A45,DATA2!$A$2:$S$607,10,FALSE) -> 56686.3 | L45: =VLOOKUP($A45,DATA2!$A$2:$S$607,11,FALSE) -> 680235.6 | M45: =VLOOKUP($A45,DATA2!$A$2:$S$607,12,FALSE) -> 2013-04-01 | N45: =VLOOKUP($A45,DATA2!$A$2:$S$607,13,FALSE) -> 2018-03-31 | O45: =VLOOKUP($A45,DATA2!$A$2:$S$607,14,FALSE) -> No | P45: =IF(MATRIX2!D45=1,($Y$8-$X$2)/365*Table_Provincial_GTAC3536[[#This Row],[Adj.AnnualRental]]*MATRIX2!D45,($Y$8-$X$2)/365*Table_Provincial_GTAC3536[[#This Row],[Adj.AnnualRental]]) -> 223639.1014 | Q45: =(Table_Provincial_GTAC3536[[#This Row],[Adj.AnnualRental]]*(1+$I45)^(2)) -> 793426.8038 | R45: =(Table_Provincial_GTAC3536[[#This Row],[Adj.AnnualRental]]*(1+$I45)^(3)) -> 856900.9481 | S45: =(Table_Provincial_GTAC3536[[#This Row],[Adj.AnnualRental]]*(1+$I45)^(4)) -> 925453.024 | T45: =(Table_Provincial_GTAC3536[[#This Row],[Adj.AnnualRental]]*(1+$I45)^(5)) -> 999489.2659 | U45: =(Table_Provincial_GTAC3536[[#This Row],[Adj.AnnualRental]]*(1+$I45)^(6)) -> 1079448.407 | V45: =(Table_Provincial_GTAC3536[[#This Row],[Adj.AnnualRental]]*(1+$I45)^(7)) -> 1165804.28
A46: 52 | B46: =VLOOKUP($A46,DATA2!$A$2:$S$607,2,FALSE) -> KZN | C46: =VLOOKUP($A46,DATA2!$A$2:$S$607,3,FALSE) -> KwaZulu-Natal | D46: =VLOOKUP($A46,DATA2!$A$2:$S$607,4,FALSE) -> 121.5726796 | E46: =VLOOKUP($A46,DATA2!$A$2:$S$607,5,FALSE) -> 77.5 | F46: =VLOOKUP($A46,DATA2!$A$2:$S$607,6,FALSE) -> VTSD | G46: =VLOOKUP($A46,DATA2!$A$2:$S$607,7,FALSE) -> 362 | H46: =VLOOKUP($A46,DATA2!$A$2:$S$607,8,FALSE) -> TRUE | I46: =VLOOKUP($A46,DATA2!$A$2:$S$607,9,FALSE) -> 0.08 | J46: 47459.31 | K46: =VLOOKUP($A46,DATA2!$A$2:$S$607,10,FALSE) -> 44009.31 | L46: =VLOOKUP($A46,DATA2!$A$2:$S$607,11,FALSE) -> 528111.72 | M46: =VLOOKUP($A46,DATA2!$A$2:$S$607,12,FALSE) -> 2013-03-01 | N46: =VLOOKUP($A46,DATA2!$A$2:$S$607,13,FALSE) -> 2018-02-28 | O46: =VLOOKUP($A46,DATA2!$A$2:$S$607,14,FALSE) -> No | P46: =IF(MATRIX2!D46=1,($Y$8-$X$2)/365*Table_Provincial_GTAC3536[[#This Row],[Adj.AnnualRental]]*MATRIX2!D46,($Y$8-$X$2)/365*Table_Provincial_GTAC3536[[#This Row],[Adj.AnnualRental]]) -> 173625.771 | Q46: =(Table_Provincial_GTAC3536[[#This Row],[Adj.AnnualRental]]*(1+$I46)^(2)) -> 615989.5102 | R46: =(Table_Provincial_GTAC3536[[#This Row],[Adj.AnnualRental]]*(1+$I46)^(3)) -> 665268.671 | S46: =(Table_Provincial_GTAC3536[[#This Row],[Adj.AnnualRental]]*(1+$I46)^(4)) -> 718490.1647 | T46: =(Table_Provincial_GTAC3536[[#This Row],[Adj.AnnualRental]]*(1+$I46)^(5)) -> 775969.3779 | U46: =(Table_Provincial_GTAC3536[[#This Row],[Adj.AnnualRental]]*(1+$I46)^(6)) -> 838046.9281 | V46: =(Table_Provincial_GTAC3536[[#This Row],[Adj.AnnualRental]]*(1+$I46)^(7)) -> 905090.6824
A47: 53 | B47: =VLOOKUP($A47,DATA2!$A$2:$S$607,2,FALSE) -> KZN | C47: =VLOOKUP($A47,DATA2!$A$2:$S$607,3,FALSE) -> KwaZulu-Natal | D47: =VLOOKUP($A47,DATA2!$A$2:$S$607,4,FALSE) -> 145.2843151 | E47: =VLOOKUP($A47,DATA2!$A$2:$S$607,5,FALSE) -> 77.5 | F47: =VLOOKUP($A47,DATA2!$A$2:$S$607,6,FALSE) -> MAIN CENTRE | G47: =VLOOKUP($A47,DATA2!$A$2:$S$607,7,FALSE) -> 292 | H47: =VLOOKUP($A47,DATA2!$A$2:$S$607,8,FALSE) -> TRUE | I47: =VLOOKUP($A47,DATA2!$A$2:$S$607,9,FALSE) -> 0.08 | J47: 42423.02 | K47: =VLOOKUP($A47,DATA2!$A$2:$S$607,10,FALSE) -> 42423.02 | L47: =VLOOKUP($A47,DATA2!$A$2:$S$607,11,FALSE) -> 509076.24 | M47: =VLOOKUP($A47,DATA2!$A$2:$S$607,12,FALSE) -> 2016-10-01 | N47: =VLOOKUP($A47,DATA2!$A$2:$S$607,13,FALSE) -> 2017-06-30 | O47: =VLOOKUP($A47,DATA2!$A$2:$S$607,14,FALSE) -> Yes | P47: =IF(MATRIX2!D47=1,($Y$8-$X$2)/365*Table_Provincial_GTAC3536[[#This Row],[Adj.AnnualRental]]*MATRIX2!D47,($Y$8-$X$2)/365*Table_Provincial_GTAC3536[[#This Row],[Adj.AnnualRental]]) -> 167367.531 | Q47: =(Table_Provincial_GTAC3536[[#This Row],[Adj.AnnualRental]]*(1+$I47)^(2)) -> 593786.5263 | R47: =(Table_Provincial_GTAC3536[[#This Row],[Adj.AnnualRental]]*(1+$I47)^(3)) -> 641289.4484 | S47: =(Table_Provincial_GTAC3536[[#This Row],[Adj.AnnualRental]]*(1+$I47)^(4)) -> 692592.6043 | T47: =(Table_Provincial_GTAC3536[[#This Row],[Adj.AnnualRental]]*(1+$I47)^(5)) -> 748000.0127 | U47: =(Table_Provincial_GTAC3536[[#This Row],[Adj.AnnualRental]]*(1+$I47)^(6)) -> 807840.0137 | V47: =(Table_Provincial_GTAC3536[[#This Row],[Adj.AnnualRental]]*(1+$I47)^(7)) -> 872467.2148
A48: 54 | B48: =VLOOKUP($A48,DATA2!$A$2:$S$607,2,FALSE) -> KZN | C48: =VLOOKUP($A48,DATA2!$A$2:$S$607,3,FALSE) -> KwaZulu-Natal | D48: =VLOOKUP($A48,DATA2!$A$2:$S$607,4,FALSE) -> 88.43770492 | E48: =VLOOKUP($A48,DATA2!$A$2:$S$607,5,FALSE) -> 77.5 | F48: =VLOOKUP($A48,DATA2!$A$2:$S$607,6,FALSE) -> MAIN CENTRE | G48: =VLOOKUP($A48,DATA2!$A$2:$S$607,7,FALSE) -> 305 | H48: =VLOOKUP($A48,DATA2!$A$2:$S$607,8,FALSE) -> TRUE | I48: =VLOOKUP($A48,DATA2!$A$2:$S$607,9,FALSE) -> 0 | J48: 33373.5 | K48: =VLOOKUP($A48,DATA2!$A$2:$S$607,10,FALSE) -> 26973.5 | L48: =VLOOKUP($A48,DATA2!$A$2:$S$607,11,FALSE) -> 323682 | M48: =VLOOKUP($A48,DATA2!$A$2:$S$607,12,FALSE) -> 2016-07-01 | N48: =VLOOKUP($A48,DATA2!$A$2:$S$607,13,FALSE) -> 2017-03-31 | O48: =VLOOKUP($A48,DATA2!$A$2:$S$607,14,FALSE) -> Yes | P48: =IF(MATRIX2!D48=1,($Y$8-$X$2)/365*Table_Provincial_GTAC3536[[#This Row],[Adj.AnnualRental]]*MATRIX2!D48,($Y$8-$X$2)/365*Table_Provincial_GTAC3536[[#This Row],[Adj.AnnualRental]]) -> 106416 | Q48: =(Table_Provincial_GTAC3536[[#This Row],[Adj.AnnualRental]]*(1+$I48)^(2)) -> 323682 | R48: =(Table_Provincial_GTAC3536[[#This Row],[Adj.AnnualRental]]*(1+$I48)^(3)) -> 323682 | S48: =(Table_Provincial_GTAC3536[[#This Row],[Adj.AnnualRental]]*(1+$I48)^(4)) -> 323682 | T48: =(Table_Provincial_GTAC3536[[#This Row],[Adj.AnnualRental]]*(1+$I48)^(5)) -> 323682 | U48: =(Table_Provincial_GTAC3536[[#This Row],[Adj.AnnualRental]]*(1+$I48)^(6)) -> 323682 | V48: =(Table_Provincial_GTAC3536[[#This Row],[Adj.AnnualRental]]*(1+$I48)^(7)) -> 323682
A49: 55 | B49: =VLOOKUP($A49,DATA2!$A$2:$S$607,2,FALSE) -> KZN | C49: =VLOOKUP($A49,DATA2!$A$2:$S$607,3,FALSE) -> KwaZulu-Natal | D49: =VLOOKUP($A49,DATA2!$A$2:$S$607,4,FALSE) -> 144.6403964 | E49: =VLOOKUP($A49,DATA2!$A$2:$S$607,5,FALSE) -> 77.5 | F49: =VLOOKUP($A49,DATA2!$A$2:$S$607,6,FALSE) -> VTSD | G49: =VLOOKUP($A49,DATA2!$A$2:$S$607,7,FALSE) -> 510.59 | H49: =VLOOKUP($A49,DATA2!$A$2:$S$607,8,FALSE) -> TRUE | I49: =VLOOKUP($A49,DATA2!$A$2:$S$607,9,FALSE) -> 0.08 | J49: 73851.94 | K49: =VLOOKUP($A49,DATA2!$A$2:$S$607,10,FALSE) -> 73851.94 | L49: =VLOOKUP($A49,DATA2!$A$2:$S$607,11,FALSE) -> 886223.28 | M49: =VLOOKUP($A49,DATA2!$A$2:$S$607,12,FALSE) -> 2012-12-01 | N49: =VLOOKUP($A49,DATA2!$A$2:$S$607,13,FALSE) -> 2016-11-30 | O49: =VLOOKUP($A49,DATA2!$A$2:$S$607,14,FALSE) -> Yes | P49: =IF(MATRIX2!D49=1,($Y$8-$X$2)/365*Table_Provincial_GTAC3536[[#This Row],[Adj.AnnualRental]]*MATRIX2!D49,($Y$8-$X$2)/365*Table_Provincial_GTAC3536[[#This Row],[Adj.AnnualRental]]) -> 291361.0784 | Q49: =(Table_Provincial_GTAC3536[[#This Row],[Adj.AnnualRental]]*(1+$I49)^(2)) -> 1033690.834 | R49: =(Table_Provincial_GTAC3536[[#This Row],[Adj.AnnualRental]]*(1+$I49)^(3)) -> 1116386.1 | S49: =(Table_Provincial_GTAC3536[[#This Row],[Adj.AnnualRental]]*(1+$I49)^(4)) -> 1205696.989 | T49: =(Table_Provincial_GTAC3536[[#This Row],[Adj.AnnualRental]]*(1+$I49)^(5)) -> 1302152.748 | U49: =(Table_Provincial_GTAC3536[[#This Row],[Adj.AnnualRental]]*(1+$I49)^(6)) -> 1406324.967 | V49: =(Table_Provincial_GTAC3536[[#This Row],[Adj.AnnualRental]]*(1+$I49)^(7)) -> 1518830.965
A50: 56 | B50: =VLOOKUP($A50,DATA2!$A$2:$S$607,2,FALSE) -> KZN | C50: =VLOOKUP($A50,DATA2!$A$2:$S$607,3,FALSE) -> KwaZulu-Natal | D50: =VLOOKUP($A50,DATA2!$A$2:$S$607,4,FALSE) -> 133.3435897 | E50: =VLOOKUP($A50,DATA2!$A$2:$S$607,5,FALSE) -> 100 | F50: =VLOOKUP($A50,DATA2!$A$2:$S$607,6,FALSE) -> VTSD | G50: =VLOOKUP($A50,DATA2!$A$2:$S$607,7,FALSE) -> 561.6 | H50: =VLOOKUP($A50,DATA2!$A$2:$S$607,8,FALSE) -> TRUE | I50: =VLOOKUP($A50,DATA2!$A$2:$S$607,9,FALSE) -> 0.08 | J50: 83885.76 | K50: =VLOOKUP($A50,DATA2!$A$2:$S$607,10,FALSE) -> 74885.76 | L50: =VLOOKUP($A50,DATA2!$A$2:$S$607,11,FALSE) -> 898629.12 | M50: =VLOOKUP($A50,DATA2!$A$2:$S$607,12,FALSE) -> 2017-03-01 | N50: =VLOOKUP($A50,DATA2!$A$2:$S$607,13,FALSE) -> 2021-02-28 | O50: =VLOOKUP($A50,DATA2!$A$2:$S$607,14,FALSE) -> No | P50: =IF(MATRIX2!D50=1,($Y$8-$X$2)/365*Table_Provincial_GTAC3536[[#This Row],[Adj.AnnualRental]]*MATRIX2!D50,($Y$8-$X$2)/365*Table_Provincial_GTAC3536[[#This Row],[Adj.AnnualRental]]) -> 295439.7107 | Q50: =(Table_Provincial_GTAC3536[[#This Row],[Adj.AnnualRental]]*(1+$I50)^(2)) -> 1048161.006 | R50: =(Table_Provincial_GTAC3536[[#This Row],[Adj.AnnualRental]]*(1+$I50)^(3)) -> 1132013.886 | S50: =(Table_Provincial_GTAC3536[[#This Row],[Adj.AnnualRental]]*(1+$I50)^(4)) -> 1222574.997 | T50: =(Table_Provincial_GTAC3536[[#This Row],[Adj.AnnualRental]]*(1+$I50)^(5)) -> 1320380.997 | U50: =(Table_Provincial_GTAC3536[[#This Row],[Adj.AnnualRental]]*(1+$I50)^(6)) -> 1426011.476 | V50: =(Table_Provincial_GTAC3536[[#This Row],[Adj.AnnualRental]]*(1+$I50)^(7)) -> 1540092.394
A51: 57 | B51: =VLOOKUP($A51,DATA2!$A$2:$S$607,2,FALSE) -> KZN | C51: =VLOOKUP($A51,DATA2!$A$2:$S$607,3,FALSE) -> KwaZulu-Natal | D51: =VLOOKUP($A51,DATA2!$A$2:$S$607,4,FALSE) -> -3.046875 | E51: =VLOOKUP($A51,DATA2!$A$2:$S$607,5,FALSE) -> 77.5 | F51: =VLOOKUP($A51,DATA2!$A$2:$S$607,6,FALSE) -> VTSD | G51: =VLOOKUP($A51,DATA2!$A$2:$S$607,7,FALSE) -> 64 | H51: =VLOOKUP($A51,DATA2!$A$2:$S$607,8,FALSE) -> TRUE | I51: =VLOOKUP($A51,DATA2!$A$2:$S$607,9,FALSE) -> 0.08 | J51: 7125 | K51: =VLOOKUP($A51,DATA2!$A$2:$S$607,10,FALSE) -> -195 | L51: =VLOOKUP($A51,DATA2!$A$2:$S$607,11,FALSE) -> -2340 | M51: =VLOOKUP($A51,DATA2!$A$2:$S$607,12,FALSE) -> 2016-10-01 | N51: =VLOOKUP($A51,DATA2!$A$2:$S$607,13,FALSE) -> 2021-09-30 | O51: =VLOOKUP($A51,DATA2!$A$2:$S$607,14,FALSE) -> No | P51: =IF(MATRIX2!D51=1,($Y$8-$X$2)/365*Table_Provincial_GTAC3536[[#This Row],[Adj.AnnualRental]]*MATRIX2!D51,($Y$8-$X$2)/365*Table_Provincial_GTAC3536[[#This Row],[Adj.AnnualRental]]) -> -769.3150685 | Q51: =(Table_Provincial_GTAC3536[[#This Row],[Adj.AnnualRental]]*(1+$I51)^(2)) -> -2729.376 | R51: =(Table_Provincial_GTAC3536[[#This Row],[Adj.AnnualRental]]*(1+$I51)^(3)) -> -2947.72608 | S51: =(Table_Provincial_GTAC3536[[#This Row],[Adj.AnnualRental]]*(1+$I51)^(4)) -> -3183.544166 | T51: =(Table_Provincial_GTAC3536[[#This Row],[Adj.AnnualRental]]*(1+$I51)^(5)) -> -3438.2277 | U51: =(Table_Provincial_GTAC3536[[#This Row],[Adj.AnnualRental]]*(1+$I51)^(6)) -> -3713.285916 | V51: =(Table_Provincial_GTAC3536[[#This Row],[Adj.AnnualRental]]*(1+$I51)^(7)) -> -4010.348789
A52: 58 | B52: =VLOOKUP($A52,DATA2!$A$2:$S$607,2,FALSE) -> KZN | C52: =VLOOKUP($A52,DATA2!$A$2:$S$607,3,FALSE) -> KwaZulu-Natal | D52: =VLOOKUP($A52,DATA2!$A$2:$S$607,4,FALSE) -> 102.7939368 | E52: =VLOOKUP($A52,DATA2!$A$2:$S$607,5,FALSE) -> 110 | F52: =VLOOKUP($A52,DATA2!$A$2:$S$607,6,FALSE) -> CBD | G52: =VLOOKUP($A52,DATA2!$A$2:$S$607,7,FALSE) -> 475 | H52: =VLOOKUP($A52,DATA2!$A$2:$S$607,8,FALSE) -> TRUE | I52: =VLOOKUP($A52,DATA2!$A$2:$S$607,9,FALSE) -> 0.08 | J52: 54427.12 | K52: =VLOOKUP($A52,DATA2!$A$2:$S$607,10,FALSE) -> 48827.12 | L52: =VLOOKUP($A52,DATA2!$A$2:$S$607,11,FALSE) -> 585925.44 | M52: =VLOOKUP($A52,DATA2!$A$2:$S$607,12,FALSE) -> 2013-09-01 | N52: =VLOOKUP($A52,DATA2!$A$2:$S$607,13,FALSE) -> 2018-08-31 | O52: =VLOOKUP($A52,DATA2!$A$2:$S$607,14,FALSE) -> No | P52: =IF(MATRIX2!D52=1,($Y$8-$X$2)/365*Table_Provincial_GTAC3536[[#This Row],[Adj.AnnualRental]]*MATRIX2!D52,($Y$8-$X$2)/365*Table_Provincial_GTAC3536[[#This Row],[Adj.AnnualRental]]) -> 192633.0214 | Q52: =(Table_Provincial_GTAC3536[[#This Row],[Adj.AnnualRental]]*(1+$I52)^(2)) -> 683423.4332 | R52: =(Table_Provincial_GTAC3536[[#This Row],[Adj.AnnualRental]]*(1+$I52)^(3)) -> 738097.3079 | S52: =(Table_Provincial_GTAC3536[[#This Row],[Adj.AnnualRental]]*(1+$I52)^(4)) -> 797145.0925 | T52: =(Table_Provincial_GTAC3536[[#This Row],[Adj.AnnualRental]]*(1+$I52)^(5)) -> 860916.6999 | U52: =(Table_Provincial_GTAC3536[[#This Row],[Adj.AnnualRental]]*(1+$I52)^(6)) -> 929790.0359 | V52: =(Table_Provincial_GTAC3536[[#This Row],[Adj.AnnualRental]]*(1+$I52)^(7)) -> 1004173.239
A53: 59 | B53: =VLOOKUP($A53,DATA2!$A$2:$S$607,2,FALSE) -> KZN | C53: =VLOOKUP($A53,DATA2!$A$2:$S$607,3,FALSE) -> KwaZulu-Natal | D53: =VLOOKUP($A53,DATA2!$A$2:$S$607,4,FALSE) -> 124.26 | E53: =VLOOKUP($A53,DATA2!$A$2:$S$607,5,FALSE) -> 77.5 | F53: =VLOOKUP($A53,DATA2!$A$2:$S$607,6,FALSE) -> VTSD | G53: =VLOOKUP($A53,DATA2!$A$2:$S$607,7,FALSE) -> 395 | H53: =VLOOKUP($A53,DATA2!$A$2:$S$607,8,FALSE) -> TRUE | I53: =VLOOKUP($A53,DATA2!$A$2:$S$607,9,FALSE) -> 0.09 | J53: 49082.7 | K53: =VLOOKUP($A53,DATA2!$A$2:$S$607,10,FALSE) -> 49082.7 | L53: =VLOOKUP($A53,DATA2!$A$2:$S$607,11,FALSE) -> 588992.4 | M53: =VLOOKUP($A53,DATA2!$A$2:$S$607,12,FALSE) -> 2016-02-01 | N53: =VLOOKUP($A53,DATA2!$A$2:$S$607,13,FALSE) -> 2019-01-31 | O53: =VLOOKUP($A53,DATA2!$A$2:$S$607,14,FALSE) -> No | P53: =IF(MATRIX2!D53=1,($Y$8-$X$2)/365*Table_Provincial_GTAC3536[[#This Row],[Adj.AnnualRental]]*MATRIX2!D53,($Y$8-$X$2)/365*Table_Provincial_GTAC3536[[#This Row],[Adj.AnnualRental]]) -> 193641.337 | Q53: =(Table_Provincial_GTAC3536[[#This Row],[Adj.AnnualRental]]*(1+$I53)^(2)) -> 699781.8704 | R53: =(Table_Provincial_GTAC3536[[#This Row],[Adj.AnnualRental]]*(1+$I53)^(3)) -> 762762.2388 | S53: =(Table_Provincial_GTAC3536[[#This Row],[Adj.AnnualRental]]*(1+$I53)^(4)) -> 831410.8403 | T53: =(Table_Provincial_GTAC3536[[#This Row],[Adj.AnnualRental]]*(1+$I53)^(5)) -> 906237.8159 | U53: =(Table_Provincial_GTAC3536[[#This Row],[Adj.AnnualRental]]*(1+$I53)^(6)) -> 987799.2193 | V53: =(Table_Provincial_GTAC3536[[#This Row],[Adj.AnnualRental]]*(1+$I53)^(7)) -> 1076701.149
A54: 60 | B54: =VLOOKUP($A54,DATA2!$A$2:$S$607,2,FALSE) -> KZN | C54: =VLOOKUP($A54,DATA2!$A$2:$S$607,3,FALSE) -> KwaZulu-Natal | D54: =VLOOKUP($A54,DATA2!$A$2:$S$607,4,FALSE) -> 109.9003383 | E54: =VLOOKUP($A54,DATA2!$A$2:$S$607,5,FALSE) -> 110 | F54: =VLOOKUP($A54,DATA2!$A$2:$S$607,6,FALSE) -> MAIN CENTRE | G54: =VLOOKUP($A54,DATA2!$A$2:$S$607,7,FALSE) -> 473 | H54: =VLOOKUP($A54,DATA2!$A$2:$S$607,8,FALSE) -> TRUE | I54: =VLOOKUP($A54,DATA2!$A$2:$S$607,9,FALSE) -> 0.05 | J54: 57632.86 | K54: =VLOOKUP($A54,DATA2!$A$2:$S$607,10,FALSE) -> 51982.86 | L54: =VLOOKUP($A54,DATA2!$A$2:$S$607,11,FALSE) -> 623794.32 | M54: =VLOOKUP($A54,DATA2!$A$2:$S$607,12,FALSE) -> 2014-08-01 | N54: =VLOOKUP($A54,DATA2!$A$2:$S$607,13,FALSE) -> 2019-07-31 | O54: =VLOOKUP($A54,DATA2!$A$2:$S$607,14,FALSE) -> No | P54: =IF(MATRIX2!D54=1,($Y$8-$X$2)/365*Table_Provincial_GTAC3536[[#This Row],[Adj.AnnualRental]]*MATRIX2!D54,($Y$8-$X$2)/365*Table_Provincial_GTAC3536[[#This Row],[Adj.AnnualRental]]) -> 205083.0641 | Q54: =(Table_Provincial_GTAC3536[[#This Row],[Adj.AnnualRental]]*(1+$I54)^(2)) -> 687733.2378 | R54: =(Table_Provincial_GTAC3536[[#This Row],[Adj.AnnualRental]]*(1+$I54)^(3)) -> 722119.8997 | S54: =(Table_Provincial_GTAC3536[[#This Row],[Adj.AnnualRental]]*(1+$I54)^(4)) -> 758225.8947 | T54: =(Table_Provincial_GTAC3536[[#This Row],[Adj.AnnualRental]]*(1+$I54)^(5)) -> 796137.1894 | U54: =(Table_Provincial_GTAC3536[[#This Row],[Adj.AnnualRental]]*(1+$I54)^(6)) -> 835944.0489 | V54: =(Table_Provincial_GTAC3536[[#This Row],[Adj.AnnualRental]]*(1+$I54)^(7)) -> 877741.2513
A55: 61 | B55: =VLOOKUP($A55,DATA2!$A$2:$S$607,2,FALSE) -> KZN | C55: =VLOOKUP($A55,DATA2!$A$2:$S$607,3,FALSE) -> KwaZulu-Natal | D55: =VLOOKUP($A55,DATA2!$A$2:$S$607,4,FALSE) -> 135.2219904 | E55: =VLOOKUP($A55,DATA2!$A$2:$S$607,5,FALSE) -> 110 | F55: =VLOOKUP($A55,DATA2!$A$2:$S$607,6,FALSE) -> CBD | G55: =VLOOKUP($A55,DATA2!$A$2:$S$607,7,FALSE) -> 9517.8 | H55: =VLOOKUP($A55,DATA2!$A$2:$S$607,8,FALSE) -> TRUE | I55: =VLOOKUP($A55,DATA2!$A$2:$S$607,9,FALSE) -> 0.07 | J55: 1348215.86 | K55: =VLOOKUP($A55,DATA2!$A$2:$S$607,10,FALSE) -> 1287015.86 | L55: =VLOOKUP($A55,DATA2!$A$2:$S$607,11,FALSE) -> 15444190.32 | M55: =VLOOKUP($A55,DATA2!$A$2:$S$607,12,FALSE) -> 2014-04-01 | N55: =VLOOKUP($A55,DATA2!$A$2:$S$607,13,FALSE) -> 2019-03-31 | O55: =VLOOKUP($A55,DATA2!$A$2:$S$607,14,FALSE) -> No | P55: =IF(MATRIX2!D55=1,($Y$8-$X$2)/365*Table_Provincial_GTAC3536[[#This Row],[Adj.AnnualRental]]*MATRIX2!D55,($Y$8-$X$2)/365*Table_Provincial_GTAC3536[[#This Row],[Adj.AnnualRental]]) -> 5077542.023 | Q55: =(Table_Provincial_GTAC3536[[#This Row],[Adj.AnnualRental]]*(1+$I55)^(2)) -> 17682053.5 | R55: =(Table_Provincial_GTAC3536[[#This Row],[Adj.AnnualRental]]*(1+$I55)^(3)) -> 18919797.24 | S55: =(Table_Provincial_GTAC3536[[#This Row],[Adj.AnnualRental]]*(1+$I55)^(4)) -> 20244183.05 | T55: =(Table_Provincial_GTAC3536[[#This Row],[Adj.AnnualRental]]*(1+$I55)^(5)) -> 21661275.86 | U55: =(Table_Provincial_GTAC3536[[#This Row],[Adj.AnnualRental]]*(1+$I55)^(6)) -> 23177565.17 | V55: =(Table_Provincial_GTAC3536[[#This Row],[Adj.AnnualRental]]*(1+$I55)^(7)) -> 24799994.74
A56: 62 | B56: =VLOOKUP($A56,DATA2!$A$2:$S$607,2,FALSE) -> KZN | C56: =VLOOKUP($A56,DATA2!$A$2:$S$607,3,FALSE) -> KwaZulu-Natal | D56: =VLOOKUP($A56,DATA2!$A$2:$S$607,4,FALSE) -> 126.446812 | E56: =VLOOKUP($A56,DATA2!$A$2:$S$607,5,FALSE) -> 110 | F56: =VLOOKUP($A56,DATA2!$A$2:$S$607,6,FALSE) -> CBD | G56: =VLOOKUP($A56,DATA2!$A$2:$S$607,7,FALSE) -> 1399 | H56: =VLOOKUP($A56,DATA2!$A$2:$S$607,8,FALSE) -> TRUE | I56: =VLOOKUP($A56,DATA2!$A$2:$S$607,9,FALSE) -> 0.07 | J56: 188149.09 | K56: =VLOOKUP($A56,DATA2!$A$2:$S$607,10,FALSE) -> 176899.09 | L56: =VLOOKUP($A56,DATA2!$A$2:$S$607,11,FALSE) -> 2122789.08 | M56: =VLOOKUP($A56,DATA2!$A$2:$S$607,12,FALSE) -> 2015-05-01 | N56: =VLOOKUP($A56,DATA2!$A$2:$S$607,13,FALSE) -> 2019-04-30 | O56: =VLOOKUP($A56,DATA2!$A$2:$S$607,14,FALSE) -> No | P56: =IF(MATRIX2!D56=1,($Y$8-$X$2)/365*Table_Provincial_GTAC3536[[#This Row],[Adj.AnnualRental]]*MATRIX2!D56,($Y$8-$X$2)/365*Table_Provincial_GTAC3536[[#This Row],[Adj.AnnualRental]]) -> 697903.2592 | Q56: =(Table_Provincial_GTAC3536[[#This Row],[Adj.AnnualRental]]*(1+$I56)^(2)) -> 2430381.218 | R56: =(Table_Provincial_GTAC3536[[#This Row],[Adj.AnnualRental]]*(1+$I56)^(3)) -> 2600507.903 | S56: =(Table_Provincial_GTAC3536[[#This Row],[Adj.AnnualRental]]*(1+$I56)^(4)) -> 2782543.456 | T56: =(Table_Provincial_GTAC3536[[#This Row],[Adj.AnnualRental]]*(1+$I56)^(5)) -> 2977321.498 | U56: =(Table_Provincial_GTAC3536[[#This Row],[Adj.AnnualRental]]*(1+$I56)^(6)) -> 3185734.003 | V56: =(Table_Provincial_GTAC3536[[#This Row],[Adj.AnnualRental]]*(1+$I56)^(7)) -> 3408735.383
A57: 63 | B57: =VLOOKUP($A57,DATA2!$A$2:$S$607,2,FALSE) -> KZN | C57: =VLOOKUP($A57,DATA2!$A$2:$S$607,3,FALSE) -> KwaZulu-Natal | D57: =VLOOKUP($A57,DATA2!$A$2:$S$607,4,FALSE) -> 93.89230769 | E57: =VLOOKUP($A57,DATA2!$A$2:$S$607,5,FALSE) -> 110 | F57: =VLOOKUP($A57,DATA2!$A$2:$S$607,6,FALSE) -> MAIN CENTRE | G57: =VLOOKUP($A57,DATA2!$A$2:$S$607,7,FALSE) -> 1040 | H57: =VLOOKUP($A57,DATA2!$A$2:$S$607,8,FALSE) -> TRUE | I57: =VLOOKUP($A57,DATA2!$A$2:$S$607,9,FALSE) -> 0.08 | J57: 117648 | K57: =VLOOKUP($A57,DATA2!$A$2:$S$607,10,FALSE) -> 97648 | L57: =VLOOKUP($A57,DATA2!$A$2:$S$607,11,FALSE) -> 1171776 | M57: =VLOOKUP($A57,DATA2!$A$2:$S$607,12,FALSE) -> 2017-01-01 | N57: =VLOOKUP($A57,DATA2!$A$2:$S$607,13,FALSE) -> 2021-12-31 | O57: =VLOOKUP($A57,DATA2!$A$2:$S$607,14,FALSE) -> No | P57: =IF(MATRIX2!D57=1,($Y$8-$X$2)/365*Table_Provincial_GTAC3536[[#This Row],[Adj.AnnualRental]]*MATRIX2!D57,($Y$8-$X$2)/365*Table_Provincial_GTAC3536[[#This Row],[Adj.AnnualRental]]) -> 385241.4247 | Q57: =(Table_Provincial_GTAC3536[[#This Row],[Adj.AnnualRental]]*(1+$I57)^(2)) -> 1366759.526 | R57: =(Table_Provincial_GTAC3536[[#This Row],[Adj.AnnualRental]]*(1+$I57)^(3)) -> 1476100.289 | S57: =(Table_Provincial_GTAC3536[[#This Row],[Adj.AnnualRental]]*(1+$I57)^(4)) -> 1594188.312 | T57: =(Table_Provincial_GTAC3536[[#This Row],[Adj.AnnualRental]]*(1+$I57)^(5)) -> 1721723.377 | U57: =(Table_Provincial_GTAC3536[[#This Row],[Adj.AnnualRental]]*(1+$I57)^(6)) -> 1859461.247 | V57: =(Table_Provincial_GTAC3536[[#This Row],[Adj.AnnualRental]]*(1+$I57)^(7)) -> 2008218.146
A58: 64 | B58: =VLOOKUP($A58,DATA2!$A$2:$S$607,2,FALSE) -> KZN | C58: =VLOOKUP($A58,DATA2!$A$2:$S$607,3,FALSE) -> KwaZulu-Natal | D58: =VLOOKUP($A58,DATA2!$A$2:$S$607,4,FALSE) -> 110.1924024 | E58: =VLOOKUP($A58,DATA2!$A$2:$S$607,5,FALSE) -> 77.5 | F58: =VLOOKUP($A58,DATA2!$A$2:$S$607,6,FALSE) -> VTSD | G58: =VLOOKUP($A58,DATA2!$A$2:$S$607,7,FALSE) -> 422.5 | H58: =VLOOKUP($A58,DATA2!$A$2:$S$607,8,FALSE) -> TRUE | I58: =VLOOKUP($A58,DATA2!$A$2:$S$607,9,FALSE) -> 0.07 | J58: 46556.29 | K58: =VLOOKUP($A58,DATA2!$A$2:$S$607,10,FALSE) -> 46556.29 | L58: =VLOOKUP($A58,DATA2!$A$2:$S$607,11,FALSE) -> 558675.48 | M58: =VLOOKUP($A58,DATA2!$A$2:$S$607,12,FALSE) -> 2015-05-01 | N58: =VLOOKUP($A58,DATA2!$A$2:$S$607,13,FALSE) -> 2018-04-30 | O58: =VLOOKUP($A58,DATA2!$A$2:$S$607,14,FALSE) -> No | P58: =IF(MATRIX2!D58=1,($Y$8-$X$2)/365*Table_Provincial_GTAC3536[[#This Row],[Adj.AnnualRental]]*MATRIX2!D58,($Y$8-$X$2)/365*Table_Provincial_GTAC3536[[#This Row],[Adj.AnnualRental]]) -> 183674.1304 | Q58: =(Table_Provincial_GTAC3536[[#This Row],[Adj.AnnualRental]]*(1+$I58)^(2)) -> 639627.5571 | R58: =(Table_Provincial_GTAC3536[[#This Row],[Adj.AnnualRental]]*(1+$I58)^(3)) -> 684401.486 | S58: =(Table_Provincial_GTAC3536[[#This Row],[Adj.AnnualRental]]*(1+$I58)^(4)) -> 732309.5901 | T58: =(Table_Provincial_GTAC3536[[#This Row],[Adj.AnnualRental]]*(1+$I58)^(5)) -> 783571.2614 | U58: =(Table_Provincial_GTAC3536[[#This Row],[Adj.AnnualRental]]*(1+$I58)^(6)) -> 838421.2497 | V58: =(Table_Provincial_GTAC3536[[#This Row],[Adj.AnnualRental]]*(1+$I58)^(7)) -> 897110.7371
A59: 66 | B59: =VLOOKUP($A59,DATA2!$A$2:$S$607,2,FALSE) -> KZN | C59: =VLOOKUP($A59,DATA2!$A$2:$S$607,3,FALSE) -> KwaZulu-Natal | D59: =VLOOKUP($A59,DATA2!$A$2:$S$607,4,FALSE) -> 95.00753285 | E59: =VLOOKUP($A59,DATA2!$A$2:$S$607,5,FALSE) -> 65 | F59: =VLOOKUP($A59,DATA2!$A$2:$S$607,6,FALSE) -> VTSD | G59: =VLOOKUP($A59,DATA2!$A$2:$S$607,7,FALSE) -> 685 | H59: =VLOOKUP($A59,DATA2!$A$2:$S$607,8,FALSE) -> TRUE | I59: =VLOOKUP($A59,DATA2!$A$2:$S$607,9,FALSE) -> 0 | J59: 68817.02 | K59: =VLOOKUP($A59,DATA2!$A$2:$S$607,10,FALSE) -> 65080.16 | L59: =VLOOKUP($A59,DATA2!$A$2:$S$607,11,FALSE) -> 780961.92 | M59: =VLOOKUP($A59,DATA2!$A$2:$S$607,12,FALSE) -> 2016-09-01 | N59: =VLOOKUP($A59,DATA2!$A$2:$S$607,13,FALSE) -> 2017-08-31 | O59: =VLOOKUP($A59,DATA2!$A$2:$S$607,14,FALSE) -> No | P59: =IF(MATRIX2!D59=1,($Y$8-$X$2)/365*Table_Provincial_GTAC3536[[#This Row],[Adj.AnnualRental]]*MATRIX2!D59,($Y$8-$X$2)/365*Table_Provincial_GTAC3536[[#This Row],[Adj.AnnualRental]]) -> 256754.6038 | Q59: =(Table_Provincial_GTAC3536[[#This Row],[Adj.AnnualRental]]*(1+$I59)^(2)) -> 780961.92 | R59: =(Table_Provincial_GTAC3536[[#This Row],[Adj.AnnualRental]]*(1+$I59)^(3)) -> 780961.92 | S59: =(Table_Provincial_GTAC3536[[#This Row],[Adj.AnnualRental]]*(1+$I59)^(4)) -> 780961.92 | T59: =(Table_Provincial_GTAC3536[[#This Row],[Adj.AnnualRental]]*(1+$I59)^(5)) -> 780961.92 | U59: =(Table_Provincial_GTAC3536[[#This Row],[Adj.AnnualRental]]*(1+$I59)^(6)) -> 780961.92 | V59: =(Table_Provincial_GTAC3536[[#This Row],[Adj.AnnualRental]]*(1+$I59)^(7)) -> 780961.92
A60: 67 | B60: =VLOOKUP($A60,DATA2!$A$2:$S$607,2,FALSE) -> KZN | C60: =VLOOKUP($A60,DATA2!$A$2:$S$607,3,FALSE) -> KwaZulu-Natal | D60: =VLOOKUP($A60,DATA2!$A$2:$S$607,4,FALSE) -> 111.229652 | E60: =VLOOKUP($A60,DATA2!$A$2:$S$607,5,FALSE) -> 65 | F60: =VLOOKUP($A60,DATA2!$A$2:$S$607,6,FALSE) -> MAIN CENTRE | G60: =VLOOKUP($A60,DATA2!$A$2:$S$607,7,FALSE) -> 862 | H60: =VLOOKUP($A60,DATA2!$A$2:$S$607,8,FALSE) -> TRUE | I60: =VLOOKUP($A60,DATA2!$A$2:$S$607,9,FALSE) -> 0 | J60: 99879.96 | K60: =VLOOKUP($A60,DATA2!$A$2:$S$607,10,FALSE) -> 95879.96 | L60: =VLOOKUP($A60,DATA2!$A$2:$S$607,11,FALSE) -> 1150559.52 | M60: =VLOOKUP($A60,DATA2!$A$2:$S$607,12,FALSE) -> 2016-04-01 | N60: =VLOOKUP($A60,DATA2!$A$2:$S$607,13,FALSE) -> 2017-03-31 | O60: =VLOOKUP($A60,DATA2!$A$2:$S$607,14,FALSE) -> Yes | P60: =IF(MATRIX2!D60=1,($Y$8-$X$2)/365*Table_Provincial_GTAC3536[[#This Row],[Adj.AnnualRental]]*MATRIX2!D60,($Y$8-$X$2)/365*Table_Provincial_GTAC3536[[#This Row],[Adj.AnnualRental]]) -> 378266.1436 | Q60: =(Table_Provincial_GTAC3536[[#This Row],[Adj.AnnualRental]]*(1+$I60)^(2)) -> 1150559.52 | R60: =(Table_Provincial_GTAC3536[[#This Row],[Adj.AnnualRental]]*(1+$I60)^(3)) -> 1150559.52 | S60: =(Table_Provincial_GTAC3536[[#This Row],[Adj.AnnualRental]]*(1+$I60)^(4)) -> 1150559.52 | T60: =(Table_Provincial_GTAC3536[[#This Row],[Adj.AnnualRental]]*(1+$I60)^(5)) -> 1150559.52 | U60: =(Table_Provincial_GTAC3536[[#This Row],[Adj.AnnualRental]]*(1+$I60)^(6)) -> 1150559.52 | V60: =(Table_Provincial_GTAC3536[[#This Row],[Adj.AnnualRental]]*(1+$I60)^(7)) -> 1150559.52
A61: 68 | B61: =VLOOKUP($A61,DATA2!$A$2:$S$607,2,FALSE) -> KZN | C61: =VLOOKUP($A61,DATA2!$A$2:$S$607,3,FALSE) -> KwaZulu-Natal | D61: =VLOOKUP($A61,DATA2!$A$2:$S$607,4,FALSE) -> 142.4947588 | E61: =VLOOKUP($A61,DATA2!$A$2:$S$607,5,FALSE) -> 65 | F61: =VLOOKUP($A61,DATA2!$A$2:$S$607,6,FALSE) -> VTSD | G61: =VLOOKUP($A61,DATA2!$A$2:$S$607,7,FALSE) -> 5451 | H61: =VLOOKUP($A61,DATA2!$A$2:$S$607,8,FALSE) -> TRUE | I61: =VLOOKUP($A61,DATA2!$A$2:$S$607,9,FALSE) -> 0.07 | J61: 831738.93 | K61: =VLOOKUP($A61,DATA2!$A$2:$S$607,10,FALSE) -> 776738.93 | L61: =VLOOKUP($A61,DATA2!$A$2:$S$607,11,FALSE) -> 9320867.16 | M61: =VLOOKUP($A61,DATA2!$A$2:$S$607,12,FALSE) -> 2016-07-01 | N61: =VLOOKUP($A61,DATA2!$A$2:$S$607,13,FALSE) -> 2021-06-30 | O61: =VLOOKUP($A61,DATA2!$A$2:$S$607,14,FALSE) -> No | P61: =IF(MATRIX2!D61=1,($Y$8-$X$2)/365*Table_Provincial_GTAC3536[[#This Row],[Adj.AnnualRental]]*MATRIX2!D61,($Y$8-$X$2)/365*Table_Provincial_GTAC3536[[#This Row],[Adj.AnnualRental]]) -> 3064394.683 | Q61: =(Table_Provincial_GTAC3536[[#This Row],[Adj.AnnualRental]]*(1+$I61)^(2)) -> 10671460.81 | R61: =(Table_Provincial_GTAC3536[[#This Row],[Adj.AnnualRental]]*(1+$I61)^(3)) -> 11418463.07 | S61: =(Table_Provincial_GTAC3536[[#This Row],[Adj.AnnualRental]]*(1+$I61)^(4)) -> 12217755.48 | T61: =(Table_Provincial_GTAC3536[[#This Row],[Adj.AnnualRental]]*(1+$I61)^(5)) -> 13072998.37 | U61: =(Table_Provincial_GTAC3536[[#This Row],[Adj.AnnualRental]]*(1+$I61)^(6)) -> 13988108.25 | V61: =(Table_Provincial_GTAC3536[[#This Row],[Adj.AnnualRental]]*(1+$I61)^(7)) -> 14967275.83
A62: 69 | B62: =VLOOKUP($A62,DATA2!$A$2:$S$607,2,FALSE) -> KZN | C62: =VLOOKUP($A62,DATA2!$A$2:$S$607,3,FALSE) -> KwaZulu-Natal | D62: =VLOOKUP($A62,DATA2!$A$2:$S$607,4,FALSE) -> 143.5313566 | E62: =VLOOKUP($A62,DATA2!$A$2:$S$607,5,FALSE) -> 77.5 | F62: =VLOOKUP($A62,DATA2!$A$2:$S$607,6,FALSE) -> VTSD | G62: =VLOOKUP($A62,DATA2!$A$2:$S$607,7,FALSE) -> 6811 | H62: =VLOOKUP($A62,DATA2!$A$2:$S$607,8,FALSE) -> TRUE | I62: =VLOOKUP($A62,DATA2!$A$2:$S$607,9,FALSE) -> 0.08 | J62: 1034842.07 | K62: =VLOOKUP($A62,DATA2!$A$2:$S$607,10,FALSE) -> 977592.07 | L62: =VLOOKUP($A62,DATA2!$A$2:$S$607,11,FALSE) -> 11731104.84 | M62: =VLOOKUP($A62,DATA2!$A$2:$S$607,12,FALSE) -> 2015-11-01 | N62: =VLOOKUP($A62,DATA2!$A$2:$S$607,13,FALSE) -> 2020-10-31 | O62: =VLOOKUP($A62,DATA2!$A$2:$S$607,14,FALSE) -> No | P62: =IF(MATRIX2!D62=1,($Y$8-$X$2)/365*Table_Provincial_GTAC3536[[#This Row],[Adj.AnnualRental]]*MATRIX2!D62,($Y$8-$X$2)/365*Table_Provincial_GTAC3536[[#This Row],[Adj.AnnualRental]]) -> 3856801.591 | Q62: =(Table_Provincial_GTAC3536[[#This Row],[Adj.AnnualRental]]*(1+$I62)^(2)) -> 13683160.69 | R62: =(Table_Provincial_GTAC3536[[#This Row],[Adj.AnnualRental]]*(1+$I62)^(3)) -> 14777813.54 | S62: =(Table_Provincial_GTAC3536[[#This Row],[Adj.AnnualRental]]*(1+$I62)^(4)) -> 15960038.62 | T62: =(Table_Provincial_GTAC3536[[#This Row],[Adj.AnnualRental]]*(1+$I62)^(5)) -> 17236841.71 | U62: =(Table_Provincial_GTAC3536[[#This Row],[Adj.AnnualRental]]*(1+$I62)^(6)) -> 18615789.05 | V62: =(Table_Provincial_GTAC3536[[#This Row],[Adj.AnnualRental]]*(1+$I62)^(7)) -> 20105052.17
A63: 70 | B63: =VLOOKUP($A63,DATA2!$A$2:$S$607,2,FALSE) -> KZN | C63: =VLOOKUP($A63,DATA2!$A$2:$S$607,3,FALSE) -> KwaZulu-Natal | D63: =VLOOKUP($A63,DATA2!$A$2:$S$607,4,FALSE) -> 58.39426282 | E63: =VLOOKUP($A63,DATA2!$A$2:$S$607,5,FALSE) -> 77.5 | F63: =VLOOKUP($A63,DATA2!$A$2:$S$607,6,FALSE) -> VTSD | G63: =VLOOKUP($A63,DATA2!$A$2:$S$607,7,FALSE) -> 312 | H63: =VLOOKUP($A63,DATA2!$A$2:$S$607,8,FALSE) -> TRUE | I63: =VLOOKUP($A63,DATA2!$A$2:$S$607,9,FALSE) -> 0.08 | J63: 18219.01 | K63: =VLOOKUP($A63,DATA2!$A$2:$S$607,10,FALSE) -> 18219.01 | L63: =VLOOKUP($A63,DATA2!$A$2:$S$607,11,FALSE) -> 218628.12 | M63: =VLOOKUP($A63,DATA2!$A$2:$S$607,12,FALSE) -> 2015-04-01 | N63: =VLOOKUP($A63,DATA2!$A$2:$S$607,13,FALSE) -> 2016-09-30 | O63: =VLOOKUP($A63,DATA2!$A$2:$S$607,14,FALSE) -> Yes | P63: =IF(MATRIX2!D63=1,($Y$8-$X$2)/365*Table_Provincial_GTAC3536[[#This Row],[Adj.AnnualRental]]*MATRIX2!D63,($Y$8-$X$2)/365*Table_Provincial_GTAC3536[[#This Row],[Adj.AnnualRental]]) -> 71877.73808 | Q63: =(Table_Provincial_GTAC3536[[#This Row],[Adj.AnnualRental]]*(1+$I63)^(2)) -> 255007.8392 | R63: =(Table_Provincial_GTAC3536[[#This Row],[Adj.AnnualRental]]*(1+$I63)^(3)) -> 275408.4663 | S63: =(Table_Provincial_GTAC3536[[#This Row],[Adj.AnnualRental]]*(1+$I63)^(4)) -> 297441.1436 | T63: =(Table_Provincial_GTAC3536[[#This Row],[Adj.AnnualRental]]*(1+$I63)^(5)) -> 321236.4351 | U63: =(Table_Provincial_GTAC3536[[#This Row],[Adj.AnnualRental]]*(1+$I63)^(6)) -> 346935.3499 | V63: =(Table_Provincial_GTAC3536[[#This Row],[Adj.AnnualRental]]*(1+$I63)^(7)) -> 374690.1779
A64: 71 | B64: =VLOOKUP($A64,DATA2!$A$2:$S$607,2,FALSE) -> KZN | C64: =VLOOKUP($A64,DATA2!$A$2:$S$607,3,FALSE) -> KwaZulu-Natal | D64: =VLOOKUP($A64,DATA2!$A$2:$S$607,4,FALSE) -> 114 | E64: =VLOOKUP($A64,DATA2!$A$2:$S$607,5,FALSE) -> 77.5 | F64: =VLOOKUP($A64,DATA2!$A$2:$S$607,6,FALSE) -> VTSD | G64: =VLOOKUP($A64,DATA2!$A$2:$S$607,7,FALSE) -> 689 | H64: =VLOOKUP($A64,DATA2!$A$2:$S$607,8,FALSE) -> TRUE | I64: =VLOOKUP($A64,DATA2!$A$2:$S$607,9,FALSE) -> 0 | J64: 78546 | K64: =VLOOKUP($A64,DATA2!$A$2:$S$607,10,FALSE) -> 78546 | L64: =VLOOKUP($A64,DATA2!$A$2:$S$607,11,FALSE) -> 942552 | M64: =VLOOKUP($A64,DATA2!$A$2:$S$607,12,FALSE) -> 2016-11-01 | N64: =VLOOKUP($A64,DATA2!$A$2:$S$607,13,FALSE) -> 2017-04-30 | O64: =VLOOKUP($A64,DATA2!$A$2:$S$607,14,FALSE) -> Yes | P64: =IF(MATRIX2!D64=1,($Y$8-$X$2)/365*Table_Provincial_GTAC3536[[#This Row],[Adj.AnnualRental]]*MATRIX2!D64,($Y$8-$X$2)/365*Table_Provincial_GTAC3536[[#This Row],[Adj.AnnualRental]]) -> 309880.1096 | Q64: =(Table_Provincial_GTAC3536[[#This Row],[Adj.AnnualRental]]*(1+$I64)^(2)) -> 942552 | R64: =(Table_Provincial_GTAC3536[[#This Row],[Adj.AnnualRental]]*(1+$I64)^(3)) -> 942552 | S64: =(Table_Provincial_GTAC3536[[#This Row],[Adj.AnnualRental]]*(1+$I64)^(4)) -> 942552 | T64: =(Table_Provincial_GTAC3536[[#This Row],[Adj.AnnualRental]]*(1+$I64)^(5)) -> 942552 | U64: =(Table_Provincial_GTAC3536[[#This Row],[Adj.AnnualRental]]*(1+$I64)^(6)) -> 942552 | V64: =(Table_Provincial_GTAC3536[[#This Row],[Adj.AnnualRental]]*(1+$I64)^(7)) -> 942552
A65: 72 | B65: =VLOOKUP($A65,DATA2!$A$2:$S$607,2,FALSE) -> KZN | C65: =VLOOKUP($A65,DATA2!$A$2:$S$607,3,FALSE) -> KwaZulu-Natal | D65: =VLOOKUP($A65,DATA2!$A$2:$S$607,4,FALSE) -> 78.808166 | E65: =VLOOKUP($A65,DATA2!$A$2:$S$607,5,FALSE) -> 100 | F65: =VLOOKUP($A65,DATA2!$A$2:$S$607,6,FALSE) -> VTSD | G65: =VLOOKUP($A65,DATA2!$A$2:$S$607,7,FALSE) -> 2012 | H65: =VLOOKUP($A65,DATA2!$A$2:$S$607,8,FALSE) -> TRUE | I65: =VLOOKUP($A65,DATA2!$A$2:$S$607,9,FALSE) -> 0 | J65: 158562.03 | K65: =VLOOKUP($A65,DATA2!$A$2:$S$607,10,FALSE) -> 158562.03 | L65: =VLOOKUP($A65,DATA2!$A$2:$S$607,11,FALSE) -> 1902744.36 | M65: =VLOOKUP($A65,DATA2!$A$2:$S$607,12,FALSE) -> 2016-04-01 | N65: =VLOOKUP($A65,DATA2!$A$2:$S$607,13,FALSE) -> 2017-03-31 | O65: =VLOOKUP($A65,DATA2!$A$2:$S$607,14,FALSE) -> Yes | P65: =IF(MATRIX2!D65=1,($Y$8-$X$2)/365*Table_Provincial_GTAC3536[[#This Row],[Adj.AnnualRental]]*MATRIX2!D65,($Y$8-$X$2)/365*Table_Provincial_GTAC3536[[#This Row],[Adj.AnnualRental]]) -> 625559.7896 | Q65: =(Table_Provincial_GTAC3536[[#This Row],[Adj.AnnualRental]]*(1+$I65)^(2)) -> 1902744.36 | R65: =(Table_Provincial_GTAC3536[[#This Row],[Adj.AnnualRental]]*(1+$I65)^(3)) -> 1902744.36 | S65: =(Table_Provincial_GTAC3536[[#This Row],[Adj.AnnualRental]]*(1+$I65)^(4)) -> 1902744.36 | T65: =(Table_Provincial_GTAC3536[[#This Row],[Adj.AnnualRental]]*(1+$I65)^(5)) -> 1902744.36 | U65: =(Table_Provincial_GTAC3536[[#This Row],[Adj.AnnualRental]]*(1+$I65)^(6)) -> 1902744.36 | V65: =(Table_Provincial_GTAC3536[[#This Row],[Adj.AnnualRental]]*(1+$I65)^(7)) -> 1902744.36
A66: 73 | B66: =VLOOKUP($A66,DATA2!$A$2:$S$607,2,FALSE) -> KZN | C66: =VLOOKUP($A66,DATA2!$A$2:$S$607,3,FALSE) -> KwaZulu-Natal | D66: =VLOOKUP($A66,DATA2!$A$2:$S$607,4,FALSE) -> 91.32437148 | E66: =VLOOKUP($A66,DATA2!$A$2:$S$607,5,FALSE) -> 77.5 | F66: =VLOOKUP($A66,DATA2!$A$2:$S$607,6,FALSE) -> VTSD | G66: =VLOOKUP($A66,DATA2!$A$2:$S$607,7,FALSE) -> 533 | H66: =VLOOKUP($A66,DATA2!$A$2:$S$607,8,FALSE) -> TRUE | I66: =VLOOKUP($A66,DATA2!$A$2:$S$607,9,FALSE) -> 0.08 | J66: 52175.89 | K66: =VLOOKUP($A66,DATA2!$A$2:$S$607,10,FALSE) -> 48675.89 | L66: =VLOOKUP($A66,DATA2!$A$2:$S$607,11,FALSE) -> 584110.68 | M66: =VLOOKUP($A66,DATA2!$A$2:$S$607,12,FALSE) -> 2016-07-01 | N66: =VLOOKUP($A66,DATA2!$A$2:$S$607,13,FALSE) -> 2019-06-30 | O66: =VLOOKUP($A66,DATA2!$A$2:$S$607,14,FALSE) -> No | P66: =IF(MATRIX2!D66=1,($Y$8-$X$2)/365*Table_Provincial_GTAC3536[[#This Row],[Adj.AnnualRental]]*MATRIX2!D66,($Y$8-$X$2)/365*Table_Provincial_GTAC3536[[#This Row],[Adj.AnnualRental]]) -> 192036.3879 | Q66: =(Table_Provincial_GTAC3536[[#This Row],[Adj.AnnualRental]]*(1+$I66)^(2)) -> 681306.6972 | R66: =(Table_Provincial_GTAC3536[[#This Row],[Adj.AnnualRental]]*(1+$I66)^(3)) -> 735811.2329 | S66: =(Table_Provincial_GTAC3536[[#This Row],[Adj.AnnualRental]]*(1+$I66)^(4)) -> 794676.1316 | T66: =(Table_Provincial_GTAC3536[[#This Row],[Adj.AnnualRental]]*(1+$I66)^(5)) -> 858250.2221 | U66: =(Table_Provincial_GTAC3536[[#This Row],[Adj.AnnualRental]]*(1+$I66)^(6)) -> 926910.2398 | V66: =(Table_Provincial_GTAC3536[[#This Row],[Adj.AnnualRental]]*(1+$I66)^(7)) -> 1001063.059
A67: 74 | B67: =VLOOKUP($A67,DATA2!$A$2:$S$607,2,FALSE) -> KZN | C67: =VLOOKUP($A67,DATA2!$A$2:$S$607,3,FALSE) -> KwaZulu-Natal | D67: =VLOOKUP($A67,DATA2!$A$2:$S$607,4,FALSE) -> 137.0426321 | E67: =VLOOKUP($A67,DATA2!$A$2:$S$607,5,FALSE) -> 77.5 | F67: =VLOOKUP($A67,DATA2!$A$2:$S$607,6,FALSE) -> VTSD | G67: =VLOOKUP($A67,DATA2!$A$2:$S$607,7,FALSE) -> 863.2 | H67: =VLOOKUP($A67,DATA2!$A$2:$S$607,8,FALSE) -> TRUE | I67: =VLOOKUP($A67,DATA2!$A$2:$S$607,9,FALSE) -> 0.07 | J67: 129545.2 | K67: =VLOOKUP($A67,DATA2!$A$2:$S$607,10,FALSE) -> 118295.2 | L67: =VLOOKUP($A67,DATA2!$A$2:$S$607,11,FALSE) -> 1419542.4 | M67: =VLOOKUP($A67,DATA2!$A$2:$S$607,12,FALSE) -> 2016-03-01 | N67: =VLOOKUP($A67,DATA2!$A$2:$S$607,13,FALSE) -> 2021-02-28 | O67: =VLOOKUP($A67,DATA2!$A$2:$S$607,14,FALSE) -> No | P67: =IF(MATRIX2!D67=1,($Y$8-$X$2)/365*Table_Provincial_GTAC3536[[#This Row],[Adj.AnnualRental]]*MATRIX2!D67,($Y$8-$X$2)/365*Table_Provincial_GTAC3536[[#This Row],[Adj.AnnualRental]]) -> 466698.8712 | Q67: =(Table_Provincial_GTAC3536[[#This Row],[Adj.AnnualRental]]*(1+$I67)^(2)) -> 1625234.094 | R67: =(Table_Provincial_GTAC3536[[#This Row],[Adj.AnnualRental]]*(1+$I67)^(3)) -> 1739000.48 | S67: =(Table_Provincial_GTAC3536[[#This Row],[Adj.AnnualRental]]*(1+$I67)^(4)) -> 1860730.514 | T67: =(Table_Provincial_GTAC3536[[#This Row],[Adj.AnnualRental]]*(1+$I67)^(5)) -> 1990981.65 | U67: =(Table_Provincial_GTAC3536[[#This Row],[Adj.AnnualRental]]*(1+$I67)^(6)) -> 2130350.365 | V67: =(Table_Provincial_GTAC3536[[#This Row],[Adj.AnnualRental]]*(1+$I67)^(7)) -> 2279474.891
A68: 75 | B68: =VLOOKUP($A68,DATA2!$A$2:$S$607,2,FALSE) -> KZN | C68: =VLOOKUP($A68,DATA2!$A$2:$S$607,3,FALSE) -> KwaZulu-Natal | D68: =VLOOKUP($A68,DATA2!$A$2:$S$607,4,FALSE) -> 131.7526437 | E68: =VLOOKUP($A68,DATA2!$A$2:$S$607,5,FALSE) -> 100 | F68: =VLOOKUP($A68,DATA2!$A$2:$S$607,6,FALSE) -> VTSD | G68: =VLOOKUP($A68,DATA2!$A$2:$S$607,7,FALSE) -> 348 | H68: =VLOOKUP($A68,DATA2!$A$2:$S$607,8,FALSE) -> TRUE | I68: =VLOOKUP($A68,DATA2!$A$2:$S$607,9,FALSE) -> 0.08 | J68: 47849.92 | K68: =VLOOKUP($A68,DATA2!$A$2:$S$607,10,FALSE) -> 45849.92 | L68: =VLOOKUP($A68,DATA2!$A$2:$S$607,11,FALSE) -> 550199.04 | M68: =VLOOKUP($A68,DATA2!$A$2:$S$607,12,FALSE) -> 2014-04-01 | N68: =VLOOKUP($A68,DATA2!$A$2:$S$607,13,FALSE) -> 2019-03-31 | O68: =VLOOKUP($A68,DATA2!$A$2:$S$607,14,FALSE) -> No | P68: =IF(MATRIX2!D68=1,($Y$8-$X$2)/365*Table_Provincial_GTAC3536[[#This Row],[Adj.AnnualRental]]*MATRIX2!D68,($Y$8-$X$2)/365*Table_Provincial_GTAC3536[[#This Row],[Adj.AnnualRental]]) -> 180887.3556 | Q68: =(Table_Provincial_GTAC3536[[#This Row],[Adj.AnnualRental]]*(1+$I68)^(2)) -> 641752.1603 | R68: =(Table_Provincial_GTAC3536[[#This Row],[Adj.AnnualRental]]*(1+$I68)^(3)) -> 693092.3331 | S68: =(Table_Provincial_GTAC3536[[#This Row],[Adj.AnnualRental]]*(1+$I68)^(4)) -> 748539.7197 | T68: =(Table_Provincial_GTAC3536[[#This Row],[Adj.AnnualRental]]*(1+$I68)^(5)) -> 808422.8973 | U68: =(Table_Provincial_GTAC3536[[#This Row],[Adj.AnnualRental]]*(1+$I68)^(6)) -> 873096.7291 | V68: =(Table_Provincial_GTAC3536[[#This Row],[Adj.AnnualRental]]*(1+$I68)^(7)) -> 942944.4674
A69: 76 | B69: =VLOOKUP($A69,DATA2!$A$2:$S$607,2,FALSE) -> KZN | C69: =VLOOKUP($A69,DATA2!$A$2:$S$607,3,FALSE) -> KwaZulu-Natal | D69: =VLOOKUP($A69,DATA2!$A$2:$S$607,4,FALSE) -> 149.3951492 | E69: =VLOOKUP($A69,DATA2!$A$2:$S$607,5,FALSE) -> 77.5 | F69: =VLOOKUP($A69,DATA2!$A$2:$S$607,6,FALSE) -> VTSD | G69: =VLOOKUP($A69,DATA2!$A$2:$S$607,7,FALSE) -> 1601.8 | H69: =VLOOKUP($A69,DATA2!$A$2:$S$607,8,FALSE) -> TRUE | I69: =VLOOKUP($A69,DATA2!$A$2:$S$607,9,FALSE) -> 0.08 | J69: 254501.15 | K69: =VLOOKUP($A69,DATA2!$A$2:$S$607,10,FALSE) -> 239301.15 | L69: =VLOOKUP($A69,DATA2!$A$2:$S$607,11,FALSE) -> 2871613.8 | M69: =VLOOKUP($A69,DATA2!$A$2:$S$607,12,FALSE) -> 2015-06-01 | N69: =VLOOKUP($A69,DATA2!$A$2:$S$607,13,FALSE) -> 2020-05-31 | O69: =VLOOKUP($A69,DATA2!$A$2:$S$607,14,FALSE) -> No | P69: =IF(MATRIX2!D69=1,($Y$8-$X$2)/365*Table_Provincial_GTAC3536[[#This Row],[Adj.AnnualRental]]*MATRIX2!D69,($Y$8-$X$2)/365*Table_Provincial_GTAC3536[[#This Row],[Adj.AnnualRental]]) -> 944092.2082 | Q69: =(Table_Provincial_GTAC3536[[#This Row],[Adj.AnnualRental]]*(1+$I69)^(2)) -> 3349450.336 | R69: =(Table_Provincial_GTAC3536[[#This Row],[Adj.AnnualRental]]*(1+$I69)^(3)) -> 3617406.363 | S69: =(Table_Provincial_GTAC3536[[#This Row],[Adj.AnnualRental]]*(1+$I69)^(4)) -> 3906798.872 | T69: =(Table_Provincial_GTAC3536[[#This Row],[Adj.AnnualRental]]*(1+$I69)^(5)) -> 4219342.782 | U69: =(Table_Provincial_GTAC3536[[#This Row],[Adj.AnnualRental]]*(1+$I69)^(6)) -> 4556890.205 | V69: =(Table_Provincial_GTAC3536[[#This Row],[Adj.AnnualRental]]*(1+$I69)^(7)) -> 4921441.421
A70: 77 | B70: =VLOOKUP($A70,DATA2!$A$2:$S$607,2,FALSE) -> KZN | C70: =VLOOKUP($A70,DATA2!$A$2:$S$607,3,FALSE) -> KwaZulu-Natal | D70: =VLOOKUP($A70,DATA2!$A$2:$S$607,4,FALSE) -> 136.7472727 | E70: =VLOOKUP($A70,DATA2!$A$2:$S$607,5,FALSE) -> 77.5 | F70: =VLOOKUP($A70,DATA2!$A$2:$S$607,6,FALSE) -> VTSD | G70: =VLOOKUP($A70,DATA2!$A$2:$S$607,7,FALSE) -> 572 | H70: =VLOOKUP($A70,DATA2!$A$2:$S$607,8,FALSE) -> TRUE | I70: =VLOOKUP($A70,DATA2!$A$2:$S$607,9,FALSE) -> 0.08 | J70: 87319.44 | K70: =VLOOKUP($A70,DATA2!$A$2:$S$607,10,FALSE) -> 78219.44 | L70: =VLOOKUP($A70,DATA2!$A$2:$S$607,11,FALSE) -> 938633.28 | M70: =VLOOKUP($A70,DATA2!$A$2:$S$607,12,FALSE) -> 2017-08-01 | N70: =VLOOKUP($A70,DATA2!$A$2:$S$607,13,FALSE) -> 2022-07-31 | O70: =VLOOKUP($A70,DATA2!$A$2:$S$607,14,FALSE) -> No | P70: =IF(MATRIX2!D70=1,($Y$8-$X$2)/365*Table_Provincial_GTAC3536[[#This Row],[Adj.AnnualRental]]*MATRIX2!D70,($Y$8-$X$2)/365*Table_Provincial_GTAC3536[[#This Row],[Adj.AnnualRental]]) -> 308591.7633 | Q70: =(Table_Provincial_GTAC3536[[#This Row],[Adj.AnnualRental]]*(1+$I70)^(2)) -> 1094821.858 | R70: =(Table_Provincial_GTAC3536[[#This Row],[Adj.AnnualRental]]*(1+$I70)^(3)) -> 1182407.606 | S70: =(Table_Provincial_GTAC3536[[#This Row],[Adj.AnnualRental]]*(1+$I70)^(4)) -> 1277000.215 | T70: =(Table_Provincial_GTAC3536[[#This Row],[Adj.AnnualRental]]*(1+$I70)^(5)) -> 1379160.232 | U70: =(Table_Provincial_GTAC3536[[#This Row],[Adj.AnnualRental]]*(1+$I70)^(6)) -> 1489493.051 | V70: =(Table_Provincial_GTAC3536[[#This Row],[Adj.AnnualRental]]*(1+$I70)^(7)) -> 1608652.495
A71: 78 | B71: =VLOOKUP($A71,DATA2!$A$2:$S$607,2,FALSE) -> KZN | C71: =VLOOKUP($A71,DATA2!$A$2:$S$607,3,FALSE) -> KwaZulu-Natal | D71: =VLOOKUP($A71,DATA2!$A$2:$S$607,4,FALSE) -> 129.3317576 | E71: =VLOOKUP($A71,DATA2!$A$2:$S$607,5,FALSE) -> 110 | F71: =VLOOKUP($A71,DATA2!$A$2:$S$607,6,FALSE) -> CBD | G71: =VLOOKUP($A71,DATA2!$A$2:$S$607,7,FALSE) -> 4654 | H71: =VLOOKUP($A71,DATA2!$A$2:$S$607,8,FALSE) -> TRUE | I71: =VLOOKUP($A71,DATA2!$A$2:$S$607,9,FALSE) -> 0.08 | J71: 644410 | K71: =VLOOKUP($A71,DATA2!$A$2:$S$607,10,FALSE) -> 601910 | L71: =VLOOKUP($A71,DATA2!$A$2:$S$607,11,FALSE) -> 7222920 | M71: =VLOOKUP($A71,DATA2!$A$2:$S$607,12,FALSE) -> 2014-11-01 | N71: =VLOOKUP($A71,DATA2!$A$2:$S$607,13,FALSE) -> 2017-05-31 | O71: =VLOOKUP($A71,DATA2!$A$2:$S$607,14,FALSE) -> Yes | P71: =IF(MATRIX2!D71=1,($Y$8-$X$2)/365*Table_Provincial_GTAC3536[[#This Row],[Adj.AnnualRental]]*MATRIX2!D71,($Y$8-$X$2)/365*Table_Provincial_GTAC3536[[#This Row],[Adj.AnnualRental]]) -> 2374658.63 | Q71: =(Table_Provincial_GTAC3536[[#This Row],[Adj.AnnualRental]]*(1+$I71)^(2)) -> 8424813.888 | R71: =(Table_Provincial_GTAC3536[[#This Row],[Adj.AnnualRental]]*(1+$I71)^(3)) -> 9098798.999 | S71: =(Table_Provincial_GTAC3536[[#This Row],[Adj.AnnualRental]]*(1+$I71)^(4)) -> 9826702.919 | T71: =(Table_Provincial_GTAC3536[[#This Row],[Adj.AnnualRental]]*(1+$I71)^(5)) -> 10612839.15 | U71: =(Table_Provincial_GTAC3536[[#This Row],[Adj.AnnualRental]]*(1+$I71)^(6)) -> 11461866.28 | V71: =(Table_Provincial_GTAC3536[[#This Row],[Adj.AnnualRental]]*(1+$I71)^(7)) -> 12378815.59
A72: 79 | B72: =VLOOKUP($A72,DATA2!$A$2:$S$607,2,FALSE) -> KZN | C72: =VLOOKUP($A72,DATA2!$A$2:$S$607,3,FALSE) -> KwaZulu-Natal | D72: =VLOOKUP($A72,DATA2!$A$2:$S$607,4,FALSE) -> 128.949426 | E72: =VLOOKUP($A72,DATA2!$A$2:$S$607,5,FALSE) -> 110 | F72: =VLOOKUP($A72,DATA2!$A$2:$S$607,6,FALSE) -> CBD | G72: =VLOOKUP($A72,DATA2!$A$2:$S$607,7,FALSE) -> 3136 | H72: =VLOOKUP($A72,DATA2!$A$2:$S$607,8,FALSE) -> TRUE | I72: =VLOOKUP($A72,DATA2!$A$2:$S$607,9,FALSE) -> 0.08 | J72: 429385.4 | K72: =VLOOKUP($A72,DATA2!$A$2:$S$607,10,FALSE) -> 404385.4 | L72: =VLOOKUP($A72,DATA2!$A$2:$S$607,11,FALSE) -> 4852624.8 | M72: =VLOOKUP($A72,DATA2!$A$2:$S$607,12,FALSE) -> 2014-06-01 | N72: =VLOOKUP($A72,DATA2!$A$2:$S$607,13,FALSE) -> 2017-05-31 | O72: =VLOOKUP($A72,DATA2!$A$2:$S$607,14,FALSE) -> Yes | P72: =IF(MATRIX2!D72=1,($Y$8-$X$2)/365*Table_Provincial_GTAC3536[[#This Row],[Adj.AnnualRental]]*MATRIX2!D72,($Y$8-$X$2)/365*Table_Provincial_GTAC3536[[#This Row],[Adj.AnnualRental]]) -> 1595383.496 | Q72: =(Table_Provincial_GTAC3536[[#This Row],[Adj.AnnualRental]]*(1+$I72)^(2)) -> 5660101.567 | R72: =(Table_Provincial_GTAC3536[[#This Row],[Adj.AnnualRental]]*(1+$I72)^(3)) -> 6112909.692 | S72: =(Table_Provincial_GTAC3536[[#This Row],[Adj.AnnualRental]]*(1+$I72)^(4)) -> 6601942.467 | T72: =(Table_Provincial_GTAC3536[[#This Row],[Adj.AnnualRental]]*(1+$I72)^(5)) -> 7130097.865 | U72: =(Table_Provincial_GTAC3536[[#This Row],[Adj.AnnualRental]]*(1+$I72)^(6)) -> 7700505.694 | V72: =(Table_Provincial_GTAC3536[[#This Row],[Adj.AnnualRental]]*(1+$I72)^(7)) -> 8316546.15
A73: 80 | B73: =VLOOKUP($A73,DATA2!$A$2:$S$607,2,FALSE) -> KZN | C73: =VLOOKUP($A73,DATA2!$A$2:$S$607,3,FALSE) -> KwaZulu-Natal | D73: =VLOOKUP($A73,DATA2!$A$2:$S$607,4,FALSE) -> 52.70782609 | E73: =VLOOKUP($A73,DATA2!$A$2:$S$607,5,FALSE) -> 77.5 | F73: =VLOOKUP($A73,DATA2!$A$2:$S$607,6,FALSE) -> VTSD | G73: =VLOOKUP($A73,DATA2!$A$2:$S$607,7,FALSE) -> 23 | H73: =VLOOKUP($A73,DATA2!$A$2:$S$607,8,FALSE) -> TRUE | I73: =VLOOKUP($A73,DATA2!$A$2:$S$607,9,FALSE) -> 0.1 | J73: 1212.28 | K73: =VLOOKUP($A73,DATA2!$A$2:$S$607,10,FALSE) -> 1212.28 | L73: =VLOOKUP($A73,DATA2!$A$2:$S$607,11,FALSE) -> 14547.36 | M73: =VLOOKUP($A73,DATA2!$A$2:$S$607,12,FALSE) -> 2011-01-01 | N73: =VLOOKUP($A73,DATA2!$A$2:$S$607,13,FALSE) -> 2016-12-31 | O73: =VLOOKUP($A73,DATA2!$A$2:$S$607,14,FALSE) -> Yes | P73: =IF(MATRIX2!D73=1,($Y$8-$X$2)/365*Table_Provincial_GTAC3536[[#This Row],[Adj.AnnualRental]]*MATRIX2!D73,($Y$8-$X$2)/365*Table_Provincial_GTAC3536[[#This Row],[Adj.AnnualRental]]) -> 4782.693699 | Q73: =(Table_Provincial_GTAC3536[[#This Row],[Adj.AnnualRental]]*(1+$I73)^(2)) -> 17602.3056 | R73: =(Table_Provincial_GTAC3536[[#This Row],[Adj.AnnualRental]]*(1+$I73)^(3)) -> 19362.53616 | S73: =(Table_Provincial_GTAC3536[[#This Row],[Adj.AnnualRental]]*(1+$I73)^(4)) -> 21298.78978 | T73: =(Table_Provincial_GTAC3536[[#This Row],[Adj.AnnualRental]]*(1+$I73)^(5)) -> 23428.66875 | U73: =(Table_Provincial_GTAC3536[[#This Row],[Adj.AnnualRental]]*(1+$I73)^(6)) -> 25771.53563 | V73: =(Table_Provincial_GTAC3536[[#This Row],[Adj.AnnualRental]]*(1+$I73)^(7)) -> 28348.68919
A74: 81 | B74: =VLOOKUP($A74,DATA2!$A$2:$S$607,2,FALSE) -> KZN | C74: =VLOOKUP($A74,DATA2!$A$2:$S$607,3,FALSE) -> KwaZulu-Natal | D74: =VLOOKUP($A74,DATA2!$A$2:$S$607,4,FALSE) -> 103.0392575 | E74: =VLOOKUP($A74,DATA2!$A$2:$S$607,5,FALSE) -> 110 | F74: =VLOOKUP($A74,DATA2!$A$2:$S$607,6,FALSE) -> CBD | G74: =VLOOKUP($A74,DATA2!$A$2:$S$607,7,FALSE) -> 4310 | H74: =VLOOKUP($A74,DATA2!$A$2:$S$607,8,FALSE) -> TRUE | I74: =VLOOKUP($A74,DATA2!$A$2:$S$607,9,FALSE) -> 0.08 | J74: 468949.2 | K74: =VLOOKUP($A74,DATA2!$A$2:$S$607,10,FALSE) -> 444099.2 | L74: =VLOOKUP($A74,DATA2!$A$2:$S$607,11,FALSE) -> 5329190.4 | M74: =VLOOKUP($A74,DATA2!$A$2:$S$607,12,FALSE) -> 2013-11-01 | N74: =VLOOKUP($A74,DATA2!$A$2:$S$607,13,FALSE) -> 2018-10-31 | O74: =VLOOKUP($A74,DATA2!$A$2:$S$607,14,FALSE) -> No | P74: =IF(MATRIX2!D74=1,($Y$8-$X$2)/365*Table_Provincial_GTAC3536[[#This Row],[Adj.AnnualRental]]*MATRIX2!D74,($Y$8-$X$2)/365*Table_Provincial_GTAC3536[[#This Row],[Adj.AnnualRental]]) -> 1752062.597 | Q74: =(Table_Provincial_GTAC3536[[#This Row],[Adj.AnnualRental]]*(1+$I74)^(2)) -> 6215967.683 | R74: =(Table_Provincial_GTAC3536[[#This Row],[Adj.AnnualRental]]*(1+$I74)^(3)) -> 6713245.097 | S74: =(Table_Provincial_GTAC3536[[#This Row],[Adj.AnnualRental]]*(1+$I74)^(4)) -> 7250304.705 | T74: =(Table_Provincial_GTAC3536[[#This Row],[Adj.AnnualRental]]*(1+$I74)^(5)) -> 7830329.081 | U74: =(Table_Provincial_GTAC3536[[#This Row],[Adj.AnnualRental]]*(1+$I74)^(6)) -> 8456755.408 | V74: =(Table_Provincial_GTAC3536[[#This Row],[Adj.AnnualRental]]*(1+$I74)^(7)) -> 9133295.84
A75: 83 | B75: =VLOOKUP($A75,DATA2!$A$2:$S$607,2,FALSE) -> KZN | C75: =VLOOKUP($A75,DATA2!$A$2:$S$607,3,FALSE) -> KwaZulu-Natal | D75: =VLOOKUP($A75,DATA2!$A$2:$S$607,4,FALSE) -> 126.6340785 | E75: =VLOOKUP($A75,DATA2!$A$2:$S$607,5,FALSE) -> 110 | F75: =VLOOKUP($A75,DATA2!$A$2:$S$607,6,FALSE) -> MAIN CENTRE | G75: =VLOOKUP($A75,DATA2!$A$2:$S$607,7,FALSE) -> 662 | H75: =VLOOKUP($A75,DATA2!$A$2:$S$607,8,FALSE) -> TRUE | I75: =VLOOKUP($A75,DATA2!$A$2:$S$607,9,FALSE) -> 0 | J75: 83831.76 | K75: =VLOOKUP($A75,DATA2!$A$2:$S$607,10,FALSE) -> 83831.76 | L75: =VLOOKUP($A75,DATA2!$A$2:$S$607,11,FALSE) -> 1005981.12 | M75: =VLOOKUP($A75,DATA2!$A$2:$S$607,12,FALSE) -> 2017-03-01 | N75: =VLOOKUP($A75,DATA2!$A$2:$S$607,13,FALSE) -> 2017-04-30 | O75: =VLOOKUP($A75,DATA2!$A$2:$S$607,14,FALSE) -> Yes | P75: =IF(MATRIX2!D75=1,($Y$8-$X$2)/365*Table_Provincial_GTAC3536[[#This Row],[Adj.AnnualRental]]*MATRIX2!D75,($Y$8-$X$2)/365*Table_Provincial_GTAC3536[[#This Row],[Adj.AnnualRental]]) -> 330733.5189 | Q75: =(Table_Provincial_GTAC3536[[#This Row],[Adj.AnnualRental]]*(1+$I75)^(2)) -> 1005981.12 | R75: =(Table_Provincial_GTAC3536[[#This Row],[Adj.AnnualRental]]*(1+$I75)^(3)) -> 1005981.12 | S75: =(Table_Provincial_GTAC3536[[#This Row],[Adj.AnnualRental]]*(1+$I75)^(4)) -> 1005981.12 | T75: =(Table_Provincial_GTAC3536[[#This Row],[Adj.AnnualRental]]*(1+$I75)^(5)) -> 1005981.12 | U75: =(Table_Provincial_GTAC3536[[#This Row],[Adj.AnnualRental]]*(1+$I75)^(6)) -> 1005981.12 | V75: =(Table_Provincial_GTAC3536[[#This Row],[Adj.AnnualRental]]*(1+$I75)^(7)) -> 1005981.12
A76: 84 | B76: =VLOOKUP($A76,DATA2!$A$2:$S$607,2,FALSE) -> KZN | C76: =VLOOKUP($A76,DATA2!$A$2:$S$607,3,FALSE) -> KwaZulu-Natal | D76: =VLOOKUP($A76,DATA2!$A$2:$S$607,4,FALSE) -> 165.8578484 | E76: =VLOOKUP($A76,DATA2!$A$2:$S$607,5,FALSE) -> 110 | F76: =VLOOKUP($A76,DATA2!$A$2:$S$607,6,FALSE) -> MAIN CENTRE | G76: =VLOOKUP($A76,DATA2!$A$2:$S$607,7,FALSE) -> 906.961 | H76: =VLOOKUP($A76,DATA2!$A$2:$S$607,8,FALSE) -> TRUE | I76: =VLOOKUP($A76,DATA2!$A$2:$S$607,9,FALSE) -> 0 | J76: 150426.6 | K76: =VLOOKUP($A76,DATA2!$A$2:$S$607,10,FALSE) -> 150426.6 | L76: =VLOOKUP($A76,DATA2!$A$2:$S$607,11,FALSE) -> 1805119.2 | M76: =VLOOKUP($A76,DATA2!$A$2:$S$607,12,FALSE) -> 2017-04-01 | N76: =VLOOKUP($A76,DATA2!$A$2:$S$607,13,FALSE) -> 2017-09-30 | O76: =VLOOKUP($A76,DATA2!$A$2:$S$607,14,FALSE) -> No | P76: =IF(MATRIX2!D76=1,($Y$8-$X$2)/365*Table_Provincial_GTAC3536[[#This Row],[Adj.AnnualRental]]*MATRIX2!D76,($Y$8-$X$2)/365*Table_Provincial_GTAC3536[[#This Row],[Adj.AnnualRental]]) -> 593463.8466 | Q76: =(Table_Provincial_GTAC3536[[#This Row],[Adj.AnnualRental]]*(1+$I76)^(2)) -> 1805119.2 | R76: =(Table_Provincial_GTAC3536[[#This Row],[Adj.AnnualRental]]*(1+$I76)^(3)) -> 1805119.2 | S76: =(Table_Provincial_GTAC3536[[#This Row],[Adj.AnnualRental]]*(1+$I76)^(4)) -> 1805119.2 | T76: =(Table_Provincial_GTAC3536[[#This Row],[Adj.AnnualRental]]*(1+$I76)^(5)) -> 1805119.2 | U76: =(Table_Provincial_GTAC3536[[#This Row],[Adj.AnnualRental]]*(1+$I76)^(6)) -> 1805119.2 | V76: =(Table_Provincial_GTAC3536[[#This Row],[Adj.AnnualRental]]*(1+$I76)^(7)) -> 1805119.2
A77: 85 | B77: =VLOOKUP($A77,DATA2!$A$2:$S$607,2,FALSE) -> KZN | C77: =VLOOKUP($A77,DATA2!$A$2:$S$607,3,FALSE) -> KwaZulu-Natal | D77: =VLOOKUP($A77,DATA2!$A$2:$S$607,4,FALSE) -> 183.3243258 | E77: =VLOOKUP($A77,DATA2!$A$2:$S$607,5,FALSE) -> 110 | F77: =VLOOKUP($A77,DATA2!$A$2:$S$607,6,FALSE) -> MAIN CENTRE | G77: =VLOOKUP($A77,DATA2!$A$2:$S$607,7,FALSE) -> 1320 | H77: =VLOOKUP($A77,DATA2!$A$2:$S$607,8,FALSE) -> TRUE | I77: =VLOOKUP($A77,DATA2!$A$2:$S$607,9,FALSE) -> 0 | J77: 241988.11 | K77: =VLOOKUP($A77,DATA2!$A$2:$S$607,10,FALSE) -> 241988.11 | L77: =VLOOKUP($A77,DATA2!$A$2:$S$607,11,FALSE) -> 2903857.32 | M77: =VLOOKUP($A77,DATA2!$A$2:$S$607,12,FALSE) -> 2017-04-01 | N77: =VLOOKUP($A77,DATA2!$A$2:$S$607,13,FALSE) -> 2017-09-30 | O77: =VLOOKUP($A77,DATA2!$A$2:$S$607,14,FALSE) -> No | P77: =IF(MATRIX2!D77=1,($Y$8-$X$2)/365*Table_Provincial_GTAC3536[[#This Row],[Adj.AnnualRental]]*MATRIX2!D77,($Y$8-$X$2)/365*Table_Provincial_GTAC3536[[#This Row],[Adj.AnnualRental]]) -> 954692.8175 | Q77: =(Table_Provincial_GTAC3536[[#This Row],[Adj.AnnualRental]]*(1+$I77)^(2)) -> 2903857.32 | R77: =(Table_Provincial_GTAC3536[[#This Row],[Adj.AnnualRental]]*(1+$I77)^(3)) -> 2903857.32 | S77: =(Table_Provincial_GTAC3536[[#This Row],[Adj.AnnualRental]]*(1+$I77)^(4)) -> 2903857.32 | T77: =(Table_Provincial_GTAC3536[[#This Row],[Adj.AnnualRental]]*(1+$I77)^(5)) -> 2903857.32 | U77: =(Table_Provincial_GTAC3536[[#This Row],[Adj.AnnualRental]]*(1+$I77)^(6)) -> 2903857.32 | V77: =(Table_Provincial_GTAC3536[[#This Row],[Adj.AnnualRental]]*(1+$I77)^(7)) -> 2903857.32
A78: 86 | B78: =VLOOKUP($A78,DATA2!$A$2:$S$607,2,FALSE) -> KZN | C78: =VLOOKUP($A78,DATA2!$A$2:$S$607,3,FALSE) -> KwaZulu-Natal | D78: =VLOOKUP($A78,DATA2!$A$2:$S$607,4,FALSE) -> 242.1086731 | E78: =VLOOKUP($A78,DATA2!$A$2:$S$607,5,FALSE) -> 110 | F78: =VLOOKUP($A78,DATA2!$A$2:$S$607,6,FALSE) -> MAIN CENTRE | G78: =VLOOKUP($A78,DATA2!$A$2:$S$607,7,FALSE) -> 4356 | H78: =VLOOKUP($A78,DATA2!$A$2:$S$607,8,FALSE) -> TRUE | I78: =VLOOKUP($A78,DATA2!$A$2:$S$607,9,FALSE) -> 0.08 | J78: 1251625.38 | K78: =VLOOKUP($A78,DATA2!$A$2:$S$607,10,FALSE) -> 1054625.38 | L78: =VLOOKUP($A78,DATA2!$A$2:$S$607,11,FALSE) -> 12655504.56 | M78: =VLOOKUP($A78,DATA2!$A$2:$S$607,12,FALSE) -> 2017-04-01 | N78: =VLOOKUP($A78,DATA2!$A$2:$S$607,13,FALSE) -> 2027-03-31 | O78: =VLOOKUP($A78,DATA2!$A$2:$S$607,14,FALSE) -> No | P78: =IF(MATRIX2!D78=1,($Y$8-$X$2)/365*Table_Provincial_GTAC3536[[#This Row],[Adj.AnnualRental]]*MATRIX2!D78,($Y$8-$X$2)/365*Table_Provincial_GTAC3536[[#This Row],[Adj.AnnualRental]]) -> 4160713.828 | Q78: =(Table_Provincial_GTAC3536[[#This Row],[Adj.AnnualRental]]*(1+$I78)^(2)) -> 14761380.52 | R78: =(Table_Provincial_GTAC3536[[#This Row],[Adj.AnnualRental]]*(1+$I78)^(3)) -> 15942290.96 | S78: =(Table_Provincial_GTAC3536[[#This Row],[Adj.AnnualRental]]*(1+$I78)^(4)) -> 17217674.24 | T78: =(Table_Provincial_GTAC3536[[#This Row],[Adj.AnnualRental]]*(1+$I78)^(5)) -> 18595088.18 | U78: =(Table_Provincial_GTAC3536[[#This Row],[Adj.AnnualRental]]*(1+$I78)^(6)) -> 20082695.23 | V78: =(Table_Provincial_GTAC3536[[#This Row],[Adj.AnnualRental]]*(1+$I78)^(7)) -> 21689310.85
A79: 87 | B79: =VLOOKUP($A79,DATA2!$A$2:$S$607,2,FALSE) -> KZN | C79: =VLOOKUP($A79,DATA2!$A$2:$S$607,3,FALSE) -> KwaZulu-Natal | D79: =VLOOKUP($A79,DATA2!$A$2:$S$607,4,FALSE) -> 123.8541138 | E79: =VLOOKUP($A79,DATA2!$A$2:$S$607,5,FALSE) -> 77.5 | F79: =VLOOKUP($A79,DATA2!$A$2:$S$607,6,FALSE) -> VTSD | G79: =VLOOKUP($A79,DATA2!$A$2:$S$607,7,FALSE) -> 3865 | H79: =VLOOKUP($A79,DATA2!$A$2:$S$607,8,FALSE) -> TRUE | I79: =VLOOKUP($A79,DATA2!$A$2:$S$607,9,FALSE) -> 0.1 | J79: 498502.89 | K79: =VLOOKUP($A79,DATA2!$A$2:$S$607,10,FALSE) -> 478696.15 | L79: =VLOOKUP($A79,DATA2!$A$2:$S$607,11,FALSE) -> 5744353.8 | M79: =VLOOKUP($A79,DATA2!$A$2:$S$607,12,FALSE) -> 2017-02-01 | N79: =VLOOKUP($A79,DATA2!$A$2:$S$607,13,FALSE) -> 2019-01-31 | O79: =VLOOKUP($A79,DATA2!$A$2:$S$607,14,FALSE) -> No | P79: =IF(MATRIX2!D79=1,($Y$8-$X$2)/365*Table_Provincial_GTAC3536[[#This Row],[Adj.AnnualRental]]*MATRIX2!D79,($Y$8-$X$2)/365*Table_Provincial_GTAC3536[[#This Row],[Adj.AnnualRental]]) -> 1888554.674 | Q79: =(Table_Provincial_GTAC3536[[#This Row],[Adj.AnnualRental]]*(1+$I79)^(2)) -> 6950668.098 | R79: =(Table_Provincial_GTAC3536[[#This Row],[Adj.AnnualRental]]*(1+$I79)^(3)) -> 7645734.908 | S79: =(Table_Provincial_GTAC3536[[#This Row],[Adj.AnnualRental]]*(1+$I79)^(4)) -> 8410308.399 | T79: =(Table_Provincial_GTAC3536[[#This Row],[Adj.AnnualRental]]*(1+$I79)^(5)) -> 9251339.238 | U79: =(Table_Provincial_GTAC3536[[#This Row],[Adj.AnnualRental]]*(1+$I79)^(6)) -> 10176473.16 | V79: =(Table_Provincial_GTAC3536[[#This Row],[Adj.AnnualRental]]*(1+$I79)^(7)) -> 11194120.48
A80: 88 | B80: =VLOOKUP($A80,DATA2!$A$2:$S$607,2,FALSE) -> KZN | C80: =VLOOKUP($A80,DATA2!$A$2:$S$607,3,FALSE) -> KwaZulu-Natal | D80: =VLOOKUP($A80,DATA2!$A$2:$S$607,4,FALSE) -> 39.15557944 | E80: =VLOOKUP($A80,DATA2!$A$2:$S$607,5,FALSE) -> 110 | F80: =VLOOKUP($A80,DATA2!$A$2:$S$607,6,FALSE) -> CBD | G80: =VLOOKUP($A80,DATA2!$A$2:$S$607,7,FALSE) -> 3210 | H80: =VLOOKUP($A80,DATA2!$A$2:$S$607,8,FALSE) -> TRUE | I80: =VLOOKUP($A80,DATA2!$A$2:$S$607,9,FALSE) -> 0.07 | J80: 125689.41 | K80: =VLOOKUP($A80,DATA2!$A$2:$S$607,10,FALSE) -> 125689.41 | L80: =VLOOKUP($A80,DATA2!$A$2:$S$607,11,FALSE) -> 1508272.92 | M80: =VLOOKUP($A80,DATA2!$A$2:$S$607,12,FALSE) -> 2014-08-01 | N80: =VLOOKUP($A80,DATA2!$A$2:$S$607,13,FALSE) -> 2019-07-31 | O80: =VLOOKUP($A80,DATA2!$A$2:$S$607,14,FALSE) -> No | P80: =IF(MATRIX2!D80=1,($Y$8-$X$2)/365*Table_Provincial_GTAC3536[[#This Row],[Adj.AnnualRental]]*MATRIX2!D80,($Y$8-$X$2)/365*Table_Provincial_GTAC3536[[#This Row],[Adj.AnnualRental]]) -> 495870.549 | Q80: =(Table_Provincial_GTAC3536[[#This Row],[Adj.AnnualRental]]*(1+$I80)^(2)) -> 1726821.666 | R80: =(Table_Provincial_GTAC3536[[#This Row],[Adj.AnnualRental]]*(1+$I80)^(3)) -> 1847699.183 | S80: =(Table_Provincial_GTAC3536[[#This Row],[Adj.AnnualRental]]*(1+$I80)^(4)) -> 1977038.126 | T80: =(Table_Provincial_GTAC3536[[#This Row],[Adj.AnnualRental]]*(1+$I80)^(5)) -> 2115430.794 | U80: =(Table_Provincial_GTAC3536[[#This Row],[Adj.AnnualRental]]*(1+$I80)^(6)) -> 2263510.95 | V80: =(Table_Provincial_GTAC3536[[#This Row],[Adj.AnnualRental]]*(1+$I80)^(7)) -> 2421956.716
A81: 89 | B81: =VLOOKUP($A81,DATA2!$A$2:$S$607,2,FALSE) -> KZN | C81: =VLOOKUP($A81,DATA2!$A$2:$S$607,3,FALSE) -> KwaZulu-Natal | D81: =VLOOKUP($A81,DATA2!$A$2:$S$607,4,FALSE) -> 135.0771024 | E81: =VLOOKUP($A81,DATA2!$A$2:$S$607,5,FALSE) -> 110 | F81: =VLOOKUP($A81,DATA2!$A$2:$S$607,6,FALSE) -> CBD | G81: =VLOOKUP($A81,DATA2!$A$2:$S$607,7,FALSE) -> 2226 | H81: =VLOOKUP($A81,DATA2!$A$2:$S$607,8,FALSE) -> TRUE | I81: =VLOOKUP($A81,DATA2!$A$2:$S$607,9,FALSE) -> 0.07 | J81: 314181.63 | K81: =VLOOKUP($A81,DATA2!$A$2:$S$607,10,FALSE) -> 300681.63 | L81: =VLOOKUP($A81,DATA2!$A$2:$S$607,11,FALSE) -> 3608179.56 | M81: =VLOOKUP($A81,DATA2!$A$2:$S$607,12,FALSE) -> 2014-01-01 | N81: =VLOOKUP($A81,DATA2!$A$2:$S$607,13,FALSE) -> 2018-12-31 | O81: =VLOOKUP($A81,DATA2!$A$2:$S$607,14,FALSE) -> No | P81: =IF(MATRIX2!D81=1,($Y$8-$X$2)/365*Table_Provincial_GTAC3536[[#This Row],[Adj.AnnualRental]]*MATRIX2!D81,($Y$8-$X$2)/365*Table_Provincial_GTAC3536[[#This Row],[Adj.AnnualRental]]) -> 1186250.814 | Q81: =(Table_Provincial_GTAC3536[[#This Row],[Adj.AnnualRental]]*(1+$I81)^(2)) -> 4131004.778 | R81: =(Table_Provincial_GTAC3536[[#This Row],[Adj.AnnualRental]]*(1+$I81)^(3)) -> 4420175.113 | S81: =(Table_Provincial_GTAC3536[[#This Row],[Adj.AnnualRental]]*(1+$I81)^(4)) -> 4729587.371 | T81: =(Table_Provincial_GTAC3536[[#This Row],[Adj.AnnualRental]]*(1+$I81)^(5)) -> 5060658.487 | U81: =(Table_Provincial_GTAC3536[[#This Row],[Adj.AnnualRental]]*(1+$I81)^(6)) -> 5414904.581 | V81: =(Table_Provincial_GTAC3536[[#This Row],[Adj.AnnualRental]]*(1+$I81)^(7)) -> 5793947.901
A82: 90 | B82: =VLOOKUP($A82,DATA2!$A$2:$S$607,2,FALSE) -> KZN | C82: =VLOOKUP($A82,DATA2!$A$2:$S$607,3,FALSE) -> KwaZulu-Natal | D82: =VLOOKUP($A82,DATA2!$A$2:$S$607,4,FALSE) -> 124.1072879 | E82: =VLOOKUP($A82,DATA2!$A$2:$S$607,5,FALSE) -> 110 | F82: =VLOOKUP($A82,DATA2!$A$2:$S$607,6,FALSE) -> CBD | G82: =VLOOKUP($A82,DATA2!$A$2:$S$607,7,FALSE) -> 859.09 | H82: =VLOOKUP($A82,DATA2!$A$2:$S$607,8,FALSE) -> TRUE | I82: =VLOOKUP($A82,DATA2!$A$2:$S$607,9,FALSE) -> 0.07 | J82: 118319.33 | K82: =VLOOKUP($A82,DATA2!$A$2:$S$607,10,FALSE) -> 106619.33 | L82: =VLOOKUP($A82,DATA2!$A$2:$S$607,11,FALSE) -> 1279431.96 | M82: =VLOOKUP($A82,DATA2!$A$2:$S$607,12,FALSE) -> 2014-07-01 | N82: =VLOOKUP($A82,DATA2!$A$2:$S$607,13,FALSE) -> 2019-06-30 | O82: =VLOOKUP($A82,DATA2!$A$2:$S$607,14,FALSE) -> No | P82: =IF(MATRIX2!D82=1,($Y$8-$X$2)/365*Table_Provincial_GTAC3536[[#This Row],[Adj.AnnualRental]]*MATRIX2!D82,($Y$8-$X$2)/365*Table_Provincial_GTAC3536[[#This Row],[Adj.AnnualRental]]) -> 420635.1649 | Q82: =(Table_Provincial_GTAC3536[[#This Row],[Adj.AnnualRental]]*(1+$I82)^(2)) -> 1464821.651 | R82: =(Table_Provincial_GTAC3536[[#This Row],[Adj.AnnualRental]]*(1+$I82)^(3)) -> 1567359.167 | S82: =(Table_Provincial_GTAC3536[[#This Row],[Adj.AnnualRental]]*(1+$I82)^(4)) -> 1677074.308 | T82: =(Table_Provincial_GTAC3536[[#This Row],[Adj.AnnualRental]]*(1+$I82)^(5)) -> 1794469.51 | U82: =(Table_Provincial_GTAC3536[[#This Row],[Adj.AnnualRental]]*(1+$I82)^(6)) -> 1920082.375 | V82: =(Table_Provincial_GTAC3536[[#This Row],[Adj.AnnualRental]]*(1+$I82)^(7)) -> 2054488.142
A83: 91 | B83: =VLOOKUP($A83,DATA2!$A$2:$S$607,2,FALSE) -> KZN | C83: =VLOOKUP($A83,DATA2!$A$2:$S$607,3,FALSE) -> KwaZulu-Natal | D83: =VLOOKUP($A83,DATA2!$A$2:$S$607,4,FALSE) -> 123.26195 | E83: =VLOOKUP($A83,DATA2!$A$2:$S$607,5,FALSE) -> 77.5 | F83: =VLOOKUP($A83,DATA2!$A$2:$S$607,6,FALSE) -> VTSD | G83: =VLOOKUP($A83,DATA2!$A$2:$S$607,7,FALSE) -> 400 | H83: =VLOOKUP($A83,DATA2!$A$2:$S$607,8,FALSE) -> TRUE | I83: =VLOOKUP($A83,DATA2!$A$2:$S$607,9,FALSE) -> 0.08 | J83: 54304.78 | K83: =VLOOKUP($A83,DATA2!$A$2:$S$607,10,FALSE) -> 49304.78 | L83: =VLOOKUP($A83,DATA2!$A$2:$S$607,11,FALSE) -> 591657.36 | M83: =VLOOKUP($A83,DATA2!$A$2:$S$607,12,FALSE) -> 2015-02-01 | N83: =VLOOKUP($A83,DATA2!$A$2:$S$607,13,FALSE) -> 2020-01-31 | O83: =VLOOKUP($A83,DATA2!$A$2:$S$607,14,FALSE) -> No | P83: =IF(MATRIX2!D83=1,($Y$8-$X$2)/365*Table_Provincial_GTAC3536[[#This Row],[Adj.AnnualRental]]*MATRIX2!D83,($Y$8-$X$2)/365*Table_Provincial_GTAC3536[[#This Row],[Adj.AnnualRental]]) -> 194517.4882 | Q83: =(Table_Provincial_GTAC3536[[#This Row],[Adj.AnnualRental]]*(1+$I83)^(2)) -> 690109.1447 | R83: =(Table_Provincial_GTAC3536[[#This Row],[Adj.AnnualRental]]*(1+$I83)^(3)) -> 745317.8763 | S83: =(Table_Provincial_GTAC3536[[#This Row],[Adj.AnnualRental]]*(1+$I83)^(4)) -> 804943.3064 | T83: =(Table_Provincial_GTAC3536[[#This Row],[Adj.AnnualRental]]*(1+$I83)^(5)) -> 869338.7709 | U83: =(Table_Provincial_GTAC3536[[#This Row],[Adj.AnnualRental]]*(1+$I83)^(6)) -> 938885.8726 | V83: =(Table_Provincial_GTAC3536[[#This Row],[Adj.AnnualRental]]*(1+$I83)^(7)) -> 1013996.742
A84: 92 | B84: =VLOOKUP($A84,DATA2!$A$2:$S$607,2,FALSE) -> KZN | C84: =VLOOKUP($A84,DATA2!$A$2:$S$607,3,FALSE) -> KwaZulu-Natal | D84: =VLOOKUP($A84,DATA2!$A$2:$S$607,4,FALSE) -> 127.8401479 | E84: =VLOOKUP($A84,DATA2!$A$2:$S$607,5,FALSE) -> 110 | F84: =VLOOKUP($A84,DATA2!$A$2:$S$607,6,FALSE) -> CBD | G84: =VLOOKUP($A84,DATA2!$A$2:$S$607,7,FALSE) -> 1285 | H84: =VLOOKUP($A84,DATA2!$A$2:$S$607,8,FALSE) -> TRUE | I84: =VLOOKUP($A84,DATA2!$A$2:$S$607,9,FALSE) -> 0.07 | J84: 180474.59 | K84: =VLOOKUP($A84,DATA2!$A$2:$S$607,10,FALSE) -> 164274.59 | L84: =VLOOKUP($A84,DATA2!$A$2:$S$607,11,FALSE) -> 1971295.08 | M84: =VLOOKUP($A84,DATA2!$A$2:$S$607,12,FALSE) -> 2014-08-01 | N84: =VLOOKUP($A84,DATA2!$A$2:$S$607,13,FALSE) -> 2019-07-31 | O84: =VLOOKUP($A84,DATA2!$A$2:$S$607,14,FALSE) -> No | P84: =IF(MATRIX2!D84=1,($Y$8-$X$2)/365*Table_Provincial_GTAC3536[[#This Row],[Adj.AnnualRental]]*MATRIX2!D84,($Y$8-$X$2)/365*Table_Provincial_GTAC3536[[#This Row],[Adj.AnnualRental]]) -> 648097.0126 | Q84: =(Table_Provincial_GTAC3536[[#This Row],[Adj.AnnualRental]]*(1+$I84)^(2)) -> 2256935.737 | R84: =(Table_Provincial_GTAC3536[[#This Row],[Adj.AnnualRental]]*(1+$I84)^(3)) -> 2414921.239 | S84: =(Table_Provincial_GTAC3536[[#This Row],[Adj.AnnualRental]]*(1+$I84)^(4)) -> 2583965.725 | T84: =(Table_Provincial_GTAC3536[[#This Row],[Adj.AnnualRental]]*(1+$I84)^(5)) -> 2764843.326 | U84: =(Table_Provincial_GTAC3536[[#This Row],[Adj.AnnualRental]]*(1+$I84)^(6)) -> 2958382.359 | V84: =(Table_Provincial_GTAC3536[[#This Row],[Adj.AnnualRental]]*(1+$I84)^(7)) -> 3165469.124
A85: 93 | B85: =VLOOKUP($A85,DATA2!$A$2:$S$607,2,FALSE) -> KZN | C85: =VLOOKUP($A85,DATA2!$A$2:$S$607,3,FALSE) -> KwaZulu-Natal | D85: =VLOOKUP($A85,DATA2!$A$2:$S$607,4,FALSE) -> 65 | E85: =VLOOKUP($A85,DATA2!$A$2:$S$607,5,FALSE) -> 87.5 | F85: =VLOOKUP($A85,DATA2!$A$2:$S$607,6,FALSE) -> VTSD | G85: =VLOOKUP($A85,DATA2!$A$2:$S$607,7,FALSE) -> 132 | H85: =VLOOKUP($A85,DATA2!$A$2:$S$607,8,FALSE) -> TRUE | I85: =VLOOKUP($A85,DATA2!$A$2:$S$607,9,FALSE) -> 0.08 | J85: 9030 | K85: =VLOOKUP($A85,DATA2!$A$2:$S$607,10,FALSE) -> 8580 | L85: =VLOOKUP($A85,DATA2!$A$2:$S$607,11,FALSE) -> 102960 | M85: =VLOOKUP($A85,DATA2!$A$2:$S$607,12,FALSE) -> 2016-09-01 | N85: =VLOOKUP($A85,DATA2!$A$2:$S$607,13,FALSE) -> 2021-08-31 | O85: =VLOOKUP($A85,DATA2!$A$2:$S$607,14,FALSE) -> No | P85: =IF(MATRIX2!D85=1,($Y$8-$X$2)/365*Table_Provincial_GTAC3536[[#This Row],[Adj.AnnualRental]]*MATRIX2!D85,($Y$8-$X$2)/365*Table_Provincial_GTAC3536[[#This Row],[Adj.AnnualRental]]) -> 33849.86301 | Q85: =(Table_Provincial_GTAC3536[[#This Row],[Adj.AnnualRental]]*(1+$I85)^(2)) -> 120092.544 | R85: =(Table_Provincial_GTAC3536[[#This Row],[Adj.AnnualRental]]*(1+$I85)^(3)) -> 129699.9475 | S85: =(Table_Provincial_GTAC3536[[#This Row],[Adj.AnnualRental]]*(1+$I85)^(4)) -> 140075.9433 | T85: =(Table_Provincial_GTAC3536[[#This Row],[Adj.AnnualRental]]*(1+$I85)^(5)) -> 151282.0188 | U85: =(Table_Provincial_GTAC3536[[#This Row],[Adj.AnnualRental]]*(1+$I85)^(6)) -> 163384.5803 | V85: =(Table_Provincial_GTAC3536[[#This Row],[Adj.AnnualRental]]*(1+$I85)^(7)) -> 176455.3467
A86: 95 | B86: =VLOOKUP($A86,DATA2!$A$2:$S$607,2,FALSE) -> KZN | C86: =VLOOKUP($A86,DATA2!$A$2:$S$607,3,FALSE) -> KwaZulu-Natal | D86: =VLOOKUP($A86,DATA2!$A$2:$S$607,4,FALSE) -> 79.02179887 | E86: =VLOOKUP($A86,DATA2!$A$2:$S$607,5,FALSE) -> 107.5 | F86: =VLOOKUP($A86,DATA2!$A$2:$S$607,6,FALSE) -> VTSD | G86: =VLOOKUP($A86,DATA2!$A$2:$S$607,7,FALSE) -> 706 | H86: =VLOOKUP($A86,DATA2!$A$2:$S$607,8,FALSE) -> TRUE | I86: =VLOOKUP($A86,DATA2!$A$2:$S$607,9,FALSE) -> 0 | J86: 57858.47 | K86: =VLOOKUP($A86,DATA2!$A$2:$S$607,10,FALSE) -> 55789.39 | L86: =VLOOKUP($A86,DATA2!$A$2:$S$607,11,FALSE) -> 669472.68 | M86: =VLOOKUP($A86,DATA2!$A$2:$S$607,12,FALSE) -> 2015-04-01 | N86: =VLOOKUP($A86,DATA2!$A$2:$S$607,13,FALSE) -> 2016-03-31 | O86: =VLOOKUP($A86,DATA2!$A$2:$S$607,14,FALSE) -> Yes | P86: =IF(MATRIX2!D86=1,($Y$8-$X$2)/365*Table_Provincial_GTAC3536[[#This Row],[Adj.AnnualRental]]*MATRIX2!D86,($Y$8-$X$2)/365*Table_Provincial_GTAC3536[[#This Row],[Adj.AnnualRental]]) -> 220100.6071 | Q86: =(Table_Provincial_GTAC3536[[#This Row],[Adj.AnnualRental]]*(1+$I86)^(2)) -> 669472.68 | R86: =(Table_Provincial_GTAC3536[[#This Row],[Adj.AnnualRental]]*(1+$I86)^(3)) -> 669472.68 | S86: =(Table_Provincial_GTAC3536[[#This Row],[Adj.AnnualRental]]*(1+$I86)^(4)) -> 669472.68 | T86: =(Table_Provincial_GTAC3536[[#This Row],[Adj.AnnualRental]]*(1+$I86)^(5)) -> 669472.68 | U86: =(Table_Provincial_GTAC3536[[#This Row],[Adj.AnnualRental]]*(1+$I86)^(6)) -> 669472.68 | V86: =(Table_Provincial_GTAC3536[[#This Row],[Adj.AnnualRental]]*(1+$I86)^(7)) -> 669472.68
A87: 98 | B87: =VLOOKUP($A87,DATA2!$A$2:$S$607,2,FALSE) -> KZN | C87: =VLOOKUP($A87,DATA2!$A$2:$S$607,3,FALSE) -> KwaZulu-Natal | D87: =VLOOKUP($A87,DATA2!$A$2:$S$607,4,FALSE) -> 56.97174419 | E87: =VLOOKUP($A87,DATA2!$A$2:$S$607,5,FALSE) -> 65 | F87: =VLOOKUP($A87,DATA2!$A$2:$S$607,6,FALSE) -> VTSD | G87: =VLOOKUP($A87,DATA2!$A$2:$S$607,7,FALSE) -> 344 | H87: =VLOOKUP($A87,DATA2!$A$2:$S$607,8,FALSE) -> TRUE | I87: =VLOOKUP($A87,DATA2!$A$2:$S$607,9,FALSE) -> 0.1 | J87: 19598.28 | K87: =VLOOKUP($A87,DATA2!$A$2:$S$607,10,FALSE) -> 19598.28 | L87: =VLOOKUP($A87,DATA2!$A$2:$S$607,11,FALSE) -> 235179.36 | M87: =VLOOKUP($A87,DATA2!$A$2:$S$607,12,FALSE) -> 2015-04-01 | N87: =VLOOKUP($A87,DATA2!$A$2:$S$607,13,FALSE) -> 2016-03-31 | O87: =VLOOKUP($A87,DATA2!$A$2:$S$607,14,FALSE) -> Yes | P87: =IF(MATRIX2!D87=1,($Y$8-$X$2)/365*Table_Provincial_GTAC3536[[#This Row],[Adj.AnnualRental]]*MATRIX2!D87,($Y$8-$X$2)/365*Table_Provincial_GTAC3536[[#This Row],[Adj.AnnualRental]]) -> 77319.24164 | Q87: =(Table_Provincial_GTAC3536[[#This Row],[Adj.AnnualRental]]*(1+$I87)^(2)) -> 284567.0256 | R87: =(Table_Provincial_GTAC3536[[#This Row],[Adj.AnnualRental]]*(1+$I87)^(3)) -> 313023.7282 | S87: =(Table_Provincial_GTAC3536[[#This Row],[Adj.AnnualRental]]*(1+$I87)^(4)) -> 344326.101 | T87: =(Table_Provincial_GTAC3536[[#This Row],[Adj.AnnualRental]]*(1+$I87)^(5)) -> 378758.7111 | U87: =(Table_Provincial_GTAC3536[[#This Row],[Adj.AnnualRental]]*(1+$I87)^(6)) -> 416634.5822 | V87: =(Table_Provincial_GTAC3536[[#This Row],[Adj.AnnualRental]]*(1+$I87)^(7)) -> 458298.0404
A88: 99 | B88: =VLOOKUP($A88,DATA2!$A$2:$S$607,2,FALSE) -> KZN | C88: =VLOOKUP($A88,DATA2!$A$2:$S$607,3,FALSE) -> KwaZulu-Natal | D88: =VLOOKUP($A88,DATA2!$A$2:$S$607,4,FALSE) -> 103.7679517 | E88: =VLOOKUP($A88,DATA2!$A$2:$S$607,5,FALSE) -> 65 | F88: =VLOOKUP($A88,DATA2!$A$2:$S$607,6,FALSE) -> VTSD | G88: =VLOOKUP($A88,DATA2!$A$2:$S$607,7,FALSE) -> 2243.8 | H88: =VLOOKUP($A88,DATA2!$A$2:$S$607,8,FALSE) -> TRUE | I88: =VLOOKUP($A88,DATA2!$A$2:$S$607,9,FALSE) -> 0.08 | J88: 260334.53 | K88: =VLOOKUP($A88,DATA2!$A$2:$S$607,10,FALSE) -> 232834.53 | L88: =VLOOKUP($A88,DATA2!$A$2:$S$607,11,FALSE) -> 2794014.36 | M88: =VLOOKUP($A88,DATA2!$A$2:$S$607,12,FALSE) -> 2015-01-01 | N88: =VLOOKUP($A88,DATA2!$A$2:$S$607,13,FALSE) -> 2017-12-31 | O88: =VLOOKUP($A88,DATA2!$A$2:$S$607,14,FALSE) -> No | P88: =IF(MATRIX2!D88=1,($Y$8-$X$2)/365*Table_Provincial_GTAC3536[[#This Row],[Adj.AnnualRental]]*MATRIX2!D88,($Y$8-$X$2)/365*Table_Provincial_GTAC3536[[#This Row],[Adj.AnnualRental]]) -> 918580.0636 | Q88: =(Table_Provincial_GTAC3536[[#This Row],[Adj.AnnualRental]]*(1+$I88)^(2)) -> 3258938.35 | R88: =(Table_Provincial_GTAC3536[[#This Row],[Adj.AnnualRental]]*(1+$I88)^(3)) -> 3519653.417 | S88: =(Table_Provincial_GTAC3536[[#This Row],[Adj.AnnualRental]]*(1+$I88)^(4)) -> 3801225.691 | T88: =(Table_Provincial_GTAC3536[[#This Row],[Adj.AnnualRental]]*(1+$I88)^(5)) -> 4105323.746 | U88: =(Table_Provincial_GTAC3536[[#This Row],[Adj.AnnualRental]]*(1+$I88)^(6)) -> 4433749.646 | V88: =(Table_Provincial_GTAC3536[[#This Row],[Adj.AnnualRental]]*(1+$I88)^(7)) -> 4788449.617
A89: 104 | B89: =VLOOKUP($A89,DATA2!$A$2:$S$607,2,FALSE) -> KZN | C89: =VLOOKUP($A89,DATA2!$A$2:$S$607,3,FALSE) -> KwaZulu-Natal | D89: =VLOOKUP($A89,DATA2!$A$2:$S$607,4,FALSE) -> 43.11020536 | E89: =VLOOKUP($A89,DATA2!$A$2:$S$607,5,FALSE) -> 65 | F89: =VLOOKUP($A89,DATA2!$A$2:$S$607,6,FALSE) -> MAIN CENTRE | G89: =VLOOKUP($A89,DATA2!$A$2:$S$607,7,FALSE) -> 6379 | H89: =VLOOKUP($A89,DATA2!$A$2:$S$607,8,FALSE) -> TRUE | I89: =VLOOKUP($A89,DATA2!$A$2:$S$607,9,FALSE) -> 0 | J89: 275000 | K89: =VLOOKUP($A89,DATA2!$A$2:$S$607,10,FALSE) -> 275000 | L89: =VLOOKUP($A89,DATA2!$A$2:$S$607,11,FALSE) -> 3300000 | M89: =VLOOKUP($A89,DATA2!$A$2:$S$607,12,FALSE) -> 2016-09-01 | N89: =VLOOKUP($A89,DATA2!$A$2:$S$607,13,FALSE) -> 2019-08-31 | O89: =VLOOKUP($A89,DATA2!$A$2:$S$607,14,FALSE) -> No | P89: =IF(MATRIX2!D89=1,($Y$8-$X$2)/365*Table_Provincial_GTAC3536[[#This Row],[Adj.AnnualRental]]*MATRIX2!D89,($Y$8-$X$2)/365*Table_Provincial_GTAC3536[[#This Row],[Adj.AnnualRental]]) -> 1084931.507 | Q89: =(Table_Provincial_GTAC3536[[#This Row],[Adj.AnnualRental]]*(1+$I89)^(2)) -> 3300000 | R89: =(Table_Provincial_GTAC3536[[#This Row],[Adj.AnnualRental]]*(1+$I89)^(3)) -> 3300000 | S89: =(Table_Provincial_GTAC3536[[#This Row],[Adj.AnnualRental]]*(1+$I89)^(4)) -> 3300000 | T89: =(Table_Provincial_GTAC3536[[#This Row],[Adj.AnnualRental]]*(1+$I89)^(5)) -> 3300000 | U89: =(Table_Provincial_GTAC3536[[#This Row],[Adj.AnnualRental]]*(1+$I89)^(6)) -> 3300000 | V89: =(Table_Provincial_GTAC3536[[#This Row],[Adj.AnnualRental]]*(1+$I89)^(7)) -> 3300000
A90: 106 | B90: =VLOOKUP($A90,DATA2!$A$2:$S$607,2,FALSE) -> KZN | C90: =VLOOKUP($A90,DATA2!$A$2:$S$607,3,FALSE) -> KwaZulu-Natal | D90: =VLOOKUP($A90,DATA2!$A$2:$S$607,4,FALSE) -> 133.2243243 | E90: =VLOOKUP($A90,DATA2!$A$2:$S$607,5,FALSE) -> 107.5 | F90: =VLOOKUP($A90,DATA2!$A$2:$S$607,6,FALSE) -> VTSD | G90: =VLOOKUP($A90,DATA2!$A$2:$S$607,7,FALSE) -> 336.7 | H90: =VLOOKUP($A90,DATA2!$A$2:$S$607,8,FALSE) -> TRUE | I90: =VLOOKUP($A90,DATA2!$A$2:$S$607,9,FALSE) -> 0.08 | J90: 50606.63 | K90: =VLOOKUP($A90,DATA2!$A$2:$S$607,10,FALSE) -> 44856.63 | L90: =VLOOKUP($A90,DATA2!$A$2:$S$607,11,FALSE) -> 538279.56 | M90: =VLOOKUP($A90,DATA2!$A$2:$S$607,12,FALSE) -> 2016-03-01 | N90: =VLOOKUP($A90,DATA2!$A$2:$S$607,13,FALSE) -> 2019-02-28 | O90: =VLOOKUP($A90,DATA2!$A$2:$S$607,14,FALSE) -> No | P90: =IF(MATRIX2!D90=1,($Y$8-$X$2)/365*Table_Provincial_GTAC3536[[#This Row],[Adj.AnnualRental]]*MATRIX2!D90,($Y$8-$X$2)/365*Table_Provincial_GTAC3536[[#This Row],[Adj.AnnualRental]]) -> 176968.6225 | Q90: =(Table_Provincial_GTAC3536[[#This Row],[Adj.AnnualRental]]*(1+$I90)^(2)) -> 627849.2788 | R90: =(Table_Provincial_GTAC3536[[#This Row],[Adj.AnnualRental]]*(1+$I90)^(3)) -> 678077.2211 | S90: =(Table_Provincial_GTAC3536[[#This Row],[Adj.AnnualRental]]*(1+$I90)^(4)) -> 732323.3988 | T90: =(Table_Provincial_GTAC3536[[#This Row],[Adj.AnnualRental]]*(1+$I90)^(5)) -> 790909.2707 | U90: =(Table_Provincial_GTAC3536[[#This Row],[Adj.AnnualRental]]*(1+$I90)^(6)) -> 854182.0123 | V90: =(Table_Provincial_GTAC3536[[#This Row],[Adj.AnnualRental]]*(1+$I90)^(7)) -> 922516.5733
A91: 107 | B91: =VLOOKUP($A91,DATA2!$A$2:$S$607,2,FALSE) -> KZN | C91: =VLOOKUP($A91,DATA2!$A$2:$S$607,3,FALSE) -> KwaZulu-Natal | D91: =VLOOKUP($A91,DATA2!$A$2:$S$607,4,FALSE) -> 59.77322097 | E91: =VLOOKUP($A91,DATA2!$A$2:$S$607,5,FALSE) -> 65 | F91: =VLOOKUP($A91,DATA2!$A$2:$S$607,6,FALSE) -> VTSD | G91: =VLOOKUP($A91,DATA2!$A$2:$S$607,7,FALSE) -> 427.2 | H91: =VLOOKUP($A91,DATA2!$A$2:$S$607,8,FALSE) -> TRUE | I91: =VLOOKUP($A91,DATA2!$A$2:$S$607,9,FALSE) -> 0.049 | J91: 26274.91 | K91: =VLOOKUP($A91,DATA2!$A$2:$S$607,10,FALSE) -> 25535.12 | L91: =VLOOKUP($A91,DATA2!$A$2:$S$607,11,FALSE) -> 306421.44 | M91: =VLOOKUP($A91,DATA2!$A$2:$S$607,12,FALSE) -> 2016-07-01 | N91: =VLOOKUP($A91,DATA2!$A$2:$S$607,13,FALSE) -> 2019-06-30 | O91: =VLOOKUP($A91,DATA2!$A$2:$S$607,14,FALSE) -> No | P91: =IF(MATRIX2!D91=1,($Y$8-$X$2)/365*Table_Provincial_GTAC3536[[#This Row],[Adj.AnnualRental]]*MATRIX2!D91,($Y$8-$X$2)/365*Table_Provincial_GTAC3536[[#This Row],[Adj.AnnualRental]]) -> 100741.2953 | Q91: =(Table_Provincial_GTAC3536[[#This Row],[Adj.AnnualRental]]*(1+$I91)^(2)) -> 337186.459 | R91: =(Table_Provincial_GTAC3536[[#This Row],[Adj.AnnualRental]]*(1+$I91)^(3)) -> 353708.5955 | S91: =(Table_Provincial_GTAC3536[[#This Row],[Adj.AnnualRental]]*(1+$I91)^(4)) -> 371040.3167 | T91: =(Table_Provincial_GTAC3536[[#This Row],[Adj.AnnualRental]]*(1+$I91)^(5)) -> 389221.2922 | U91: =(Table_Provincial_GTAC3536[[#This Row],[Adj.AnnualRental]]*(1+$I91)^(6)) -> 408293.1355 | V91: =(Table_Provincial_GTAC3536[[#This Row],[Adj.AnnualRental]]*(1+$I91)^(7)) -> 428299.4991
A92: 108 | B92: =VLOOKUP($A92,DATA2!$A$2:$S$607,2,FALSE) -> KZN | C92: =VLOOKUP($A92,DATA2!$A$2:$S$607,3,FALSE) -> KwaZulu-Natal | D92: =VLOOKUP($A92,DATA2!$A$2:$S$607,4,FALSE) -> 76.81816199 | E92: =VLOOKUP($A92,DATA2!$A$2:$S$607,5,FALSE) -> 65 | F92: =VLOOKUP($A92,DATA2!$A$2:$S$607,6,FALSE) -> VTSD | G92: =VLOOKUP($A92,DATA2!$A$2:$S$607,7,FALSE) -> 321 | H92: =VLOOKUP($A92,DATA2!$A$2:$S$607,8,FALSE) -> TRUE | I92: =VLOOKUP($A92,DATA2!$A$2:$S$607,9,FALSE) -> 0.049 | J92: 25490.23 | K92: =VLOOKUP($A92,DATA2!$A$2:$S$607,10,FALSE) -> 24658.63 | L92: =VLOOKUP($A92,DATA2!$A$2:$S$607,11,FALSE) -> 295903.56 | M92: =VLOOKUP($A92,DATA2!$A$2:$S$607,12,FALSE) -> 2016-07-01 | N92: =VLOOKUP($A92,DATA2!$A$2:$S$607,13,FALSE) -> 2019-06-30 | O92: =VLOOKUP($A92,DATA2!$A$2:$S$607,14,FALSE) -> No | P92: =IF(MATRIX2!D92=1,($Y$8-$X$2)/365*Table_Provincial_GTAC3536[[#This Row],[Adj.AnnualRental]]*MATRIX2!D92,($Y$8-$X$2)/365*Table_Provincial_GTAC3536[[#This Row],[Adj.AnnualRental]]) -> 97283.36219 | Q92: =(Table_Provincial_GTAC3536[[#This Row],[Adj.AnnualRental]]*(1+$I92)^(2)) -> 325612.5733 | R92: =(Table_Provincial_GTAC3536[[#This Row],[Adj.AnnualRental]]*(1+$I92)^(3)) -> 341567.5894 | S92: =(Table_Provincial_GTAC3536[[#This Row],[Adj.AnnualRental]]*(1+$I92)^(4)) -> 358304.4013 | T92: =(Table_Provincial_GTAC3536[[#This Row],[Adj.AnnualRental]]*(1+$I92)^(5)) -> 375861.317 | U92: =(Table_Provincial_GTAC3536[[#This Row],[Adj.AnnualRental]]*(1+$I92)^(6)) -> 394278.5215 | V92: =(Table_Provincial_GTAC3536[[#This Row],[Adj.AnnualRental]]*(1+$I92)^(7)) -> 413598.1691
A93: 110 | B93: =VLOOKUP($A93,DATA2!$A$2:$S$607,2,FALSE) -> KZN | C93: =VLOOKUP($A93,DATA2!$A$2:$S$607,3,FALSE) -> KwaZulu-Natal | D93: =VLOOKUP($A93,DATA2!$A$2:$S$607,4,FALSE) -> 83.87174875 | E93: =VLOOKUP($A93,DATA2!$A$2:$S$607,5,FALSE) -> 77.5 | F93: =VLOOKUP($A93,DATA2!$A$2:$S$607,6,FALSE) -> VTSD | G93: =VLOOKUP($A93,DATA2!$A$2:$S$607,7,FALSE) -> 2396 | H93: =VLOOKUP($A93,DATA2!$A$2:$S$607,8,FALSE) -> TRUE | I93: =VLOOKUP($A93,DATA2!$A$2:$S$607,9,FALSE) -> 0 | J93: 200956.71 | K93: =VLOOKUP($A93,DATA2!$A$2:$S$607,10,FALSE) -> 200956.71 | L93: =VLOOKUP($A93,DATA2!$A$2:$S$607,11,FALSE) -> 2411480.52 | M93: =VLOOKUP($A93,DATA2!$A$2:$S$607,12,FALSE) -> 2016-11-01 | N93: =VLOOKUP($A93,DATA2!$A$2:$S$607,13,FALSE) -> 2017-07-31 | O93: =VLOOKUP($A93,DATA2!$A$2:$S$607,14,FALSE) -> Yes | P93: =IF(MATRIX2!D93=1,($Y$8-$X$2)/365*Table_Provincial_GTAC3536[[#This Row],[Adj.AnnualRental]]*MATRIX2!D93,($Y$8-$X$2)/365*Table_Provincial_GTAC3536[[#This Row],[Adj.AnnualRental]]) -> 792815.5134 | Q93: =(Table_Provincial_GTAC3536[[#This Row],[Adj.AnnualRental]]*(1+$I93)^(2)) -> 2411480.52 | R93: =(Table_Provincial_GTAC3536[[#This Row],[Adj.AnnualRental]]*(1+$I93)^(3)) -> 2411480.52 | S93: =(Table_Provincial_GTAC3536[[#This Row],[Adj.AnnualRental]]*(1+$I93)^(4)) -> 2411480.52 | T93: =(Table_Provincial_GTAC3536[[#This Row],[Adj.AnnualRental]]*(1+$I93)^(5)) -> 2411480.52 | U93: =(Table_Provincial_GTAC3536[[#This Row],[Adj.AnnualRental]]*(1+$I93)^(6)) -> 2411480.52 | V93: =(Table_Provincial_GTAC3536[[#This Row],[Adj.AnnualRental]]*(1+$I93)^(7)) -> 2411480.52
A94: 111 | B94: =VLOOKUP($A94,DATA2!$A$2:$S$607,2,FALSE) -> KZN | C94: =VLOOKUP($A94,DATA2!$A$2:$S$607,3,FALSE) -> KwaZulu-Natal | D94: =VLOOKUP($A94,DATA2!$A$2:$S$607,4,FALSE) -> 116.6552272 | E94: =VLOOKUP($A94,DATA2!$A$2:$S$607,5,FALSE) -> 77.5 | F94: =VLOOKUP($A94,DATA2!$A$2:$S$607,6,FALSE) -> VTSD | G94: =VLOOKUP($A94,DATA2!$A$2:$S$607,7,FALSE) -> 2490.8 | H94: =VLOOKUP($A94,DATA2!$A$2:$S$607,8,FALSE) -> TRUE | I94: =VLOOKUP($A94,DATA2!$A$2:$S$607,9,FALSE) -> 0.08 | J94: 314725.84 | K94: =VLOOKUP($A94,DATA2!$A$2:$S$607,10,FALSE) -> 290564.84 | L94: =VLOOKUP($A94,DATA2!$A$2:$S$607,11,FALSE) -> 3486778.08 | M94: =VLOOKUP($A94,DATA2!$A$2:$S$607,12,FALSE) -> 2016-04-01 | N94: =VLOOKUP($A94,DATA2!$A$2:$S$607,13,FALSE) -> 2019-03-31 | O94: =VLOOKUP($A94,DATA2!$A$2:$S$607,14,FALSE) -> No | P94: =IF(MATRIX2!D94=1,($Y$8-$X$2)/365*Table_Provincial_GTAC3536[[#This Row],[Adj.AnnualRental]]*MATRIX2!D94,($Y$8-$X$2)/365*Table_Provincial_GTAC3536[[#This Row],[Adj.AnnualRental]]) -> 1146337.999 | Q94: =(Table_Provincial_GTAC3536[[#This Row],[Adj.AnnualRental]]*(1+$I94)^(2)) -> 4066977.953 | R94: =(Table_Provincial_GTAC3536[[#This Row],[Adj.AnnualRental]]*(1+$I94)^(3)) -> 4392336.189 | S94: =(Table_Provincial_GTAC3536[[#This Row],[Adj.AnnualRental]]*(1+$I94)^(4)) -> 4743723.084 | T94: =(Table_Provincial_GTAC3536[[#This Row],[Adj.AnnualRental]]*(1+$I94)^(5)) -> 5123220.931 | U94: =(Table_Provincial_GTAC3536[[#This Row],[Adj.AnnualRental]]*(1+$I94)^(6)) -> 5533078.605 | V94: =(Table_Provincial_GTAC3536[[#This Row],[Adj.AnnualRental]]*(1+$I94)^(7)) -> 5975724.893
A95: 112 | B95: =VLOOKUP($A95,DATA2!$A$2:$S$607,2,FALSE) -> KZN | C95: =VLOOKUP($A95,DATA2!$A$2:$S$607,3,FALSE) -> KwaZulu-Natal | D95: =VLOOKUP($A95,DATA2!$A$2:$S$607,4,FALSE) -> 32.75251225 | E95: =VLOOKUP($A95,DATA2!$A$2:$S$607,5,FALSE) -> 65 | F95: =VLOOKUP($A95,DATA2!$A$2:$S$607,6,FALSE) -> VTSD | G95: =VLOOKUP($A95,DATA2!$A$2:$S$607,7,FALSE) -> 2448 | H95: =VLOOKUP($A95,DATA2!$A$2:$S$607,8,FALSE) -> TRUE | I95: =VLOOKUP($A95,DATA2!$A$2:$S$607,9,FALSE) -> 0 | J95: 80178.15 | K95: =VLOOKUP($A95,DATA2!$A$2:$S$607,10,FALSE) -> 80178.15 | L95: =VLOOKUP($A95,DATA2!$A$2:$S$607,11,FALSE) -> 962137.8 | M95: =VLOOKUP($A95,DATA2!$A$2:$S$607,12,FALSE) -> 2016-07-01 | N95: =VLOOKUP($A95,DATA2!$A$2:$S$607,13,FALSE) -> 2017-06-30 | O95: =VLOOKUP($A95,DATA2!$A$2:$S$607,14,FALSE) -> Yes | P95: =IF(MATRIX2!D95=1,($Y$8-$X$2)/365*Table_Provincial_GTAC3536[[#This Row],[Adj.AnnualRental]]*MATRIX2!D95,($Y$8-$X$2)/365*Table_Provincial_GTAC3536[[#This Row],[Adj.AnnualRental]]) -> 316319.2767 | Q95: =(Table_Provincial_GTAC3536[[#This Row],[Adj.AnnualRental]]*(1+$I95)^(2)) -> 962137.8 | R95: =(Table_Provincial_GTAC3536[[#This Row],[Adj.AnnualRental]]*(1+$I95)^(3)) -> 962137.8 | S95: =(Table_Provincial_GTAC3536[[#This Row],[Adj.AnnualRental]]*(1+$I95)^(4)) -> 962137.8 | T95: =(Table_Provincial_GTAC3536[[#This Row],[Adj.AnnualRental]]*(1+$I95)^(5)) -> 962137.8 | U95: =(Table_Provincial_GTAC3536[[#This Row],[Adj.AnnualRental]]*(1+$I95)^(6)) -> 962137.8 | V95: =(Table_Provincial_GTAC3536[[#This Row],[Adj.AnnualRental]]*(1+$I95)^(7)) -> 962137.8
A96: 113 | B96: =VLOOKUP($A96,DATA2!$A$2:$S$607,2,FALSE) -> KZN | C96: =VLOOKUP($A96,DATA2!$A$2:$S$607,3,FALSE) -> KwaZulu-Natal | D96: =VLOOKUP($A96,DATA2!$A$2:$S$607,4,FALSE) -> 107.371916 | E96: =VLOOKUP($A96,DATA2!$A$2:$S$607,5,FALSE) -> 77.5 | F96: =VLOOKUP($A96,DATA2!$A$2:$S$607,6,FALSE) -> VTSD | G96: =VLOOKUP($A96,DATA2!$A$2:$S$607,7,FALSE) -> 2500 | H96: =VLOOKUP($A96,DATA2!$A$2:$S$607,8,FALSE) -> TRUE | I96: =VLOOKUP($A96,DATA2!$A$2:$S$607,9,FALSE) -> 0 | J96: 290704.79 | K96: =VLOOKUP($A96,DATA2!$A$2:$S$607,10,FALSE) -> 268429.79 | L96: =VLOOKUP($A96,DATA2!$A$2:$S$607,11,FALSE) -> 3221157.48 | M96: =VLOOKUP($A96,DATA2!$A$2:$S$607,12,FALSE) -> 2016-12-01 | N96: =VLOOKUP($A96,DATA2!$A$2:$S$607,13,FALSE) -> 2017-05-31 | O96: =VLOOKUP($A96,DATA2!$A$2:$S$607,14,FALSE) -> Yes | P96: =IF(MATRIX2!D96=1,($Y$8-$X$2)/365*Table_Provincial_GTAC3536[[#This Row],[Adj.AnnualRental]]*MATRIX2!D96,($Y$8-$X$2)/365*Table_Provincial_GTAC3536[[#This Row],[Adj.AnnualRental]]) -> 1059010.678 | Q96: =(Table_Provincial_GTAC3536[[#This Row],[Adj.AnnualRental]]*(1+$I96)^(2)) -> 3221157.48 | R96: =(Table_Provincial_GTAC3536[[#This Row],[Adj.AnnualRental]]*(1+$I96)^(3)) -> 3221157.48 | S96: =(Table_Provincial_GTAC3536[[#This Row],[Adj.AnnualRental]]*(1+$I96)^(4)) -> 3221157.48 | T96: =(Table_Provincial_GTAC3536[[#This Row],[Adj.AnnualRental]]*(1+$I96)^(5)) -> 3221157.48 | U96: =(Table_Provincial_GTAC3536[[#This Row],[Adj.AnnualRental]]*(1+$I96)^(6)) -> 3221157.48 | V96: =(Table_Provincial_GTAC3536[[#This Row],[Adj.AnnualRental]]*(1+$I96)^(7)) -> 3221157.48
A97: 114 | B97: =VLOOKUP($A97,DATA2!$A$2:$S$607,2,FALSE) -> KZN | C97: =VLOOKUP($A97,DATA2!$A$2:$S$607,3,FALSE) -> KwaZulu-Natal | D97: =VLOOKUP($A97,DATA2!$A$2:$S$607,4,FALSE) -> 182.9209109 | E97: =VLOOKUP($A97,DATA2!$A$2:$S$607,5,FALSE) -> 77.5 | F97: =VLOOKUP($A97,DATA2!$A$2:$S$607,6,FALSE) -> VTSD | G97: =VLOOKUP($A97,DATA2!$A$2:$S$607,7,FALSE) -> 505 | H97: =VLOOKUP($A97,DATA2!$A$2:$S$607,8,FALSE) -> TRUE | I97: =VLOOKUP($A97,DATA2!$A$2:$S$607,9,FALSE) -> 0 | J97: 92375.06 | K97: =VLOOKUP($A97,DATA2!$A$2:$S$607,10,FALSE) -> 92375.06 | L97: =VLOOKUP($A97,DATA2!$A$2:$S$607,11,FALSE) -> 1108500.72 | M97: =VLOOKUP($A97,DATA2!$A$2:$S$607,12,FALSE) -> 2016-04-01 | N97: =VLOOKUP($A97,DATA2!$A$2:$S$607,13,FALSE) -> 2017-03-31 | O97: =VLOOKUP($A97,DATA2!$A$2:$S$607,14,FALSE) -> Yes | P97: =IF(MATRIX2!D97=1,($Y$8-$X$2)/365*Table_Provincial_GTAC3536[[#This Row],[Adj.AnnualRental]]*MATRIX2!D97,($Y$8-$X$2)/365*Table_Provincial_GTAC3536[[#This Row],[Adj.AnnualRental]]) -> 364438.5929 | Q97: =(Table_Provincial_GTAC3536[[#This Row],[Adj.AnnualRental]]*(1+$I97)^(2)) -> 1108500.72 | R97: =(Table_Provincial_GTAC3536[[#This Row],[Adj.AnnualRental]]*(1+$I97)^(3)) -> 1108500.72 | S97: =(Table_Provincial_GTAC3536[[#This Row],[Adj.AnnualRental]]*(1+$I97)^(4)) -> 1108500.72 | T97: =(Table_Provincial_GTAC3536[[#This Row],[Adj.AnnualRental]]*(1+$I97)^(5)) -> 1108500.72 | U97: =(Table_Provincial_GTAC3536[[#This Row],[Adj.AnnualRental]]*(1+$I97)^(6)) -> 1108500.72 | V97: =(Table_Provincial_GTAC3536[[#This Row],[Adj.AnnualRental]]*(1+$I97)^(7)) -> 1108500.72
A98: 118 | B98: =VLOOKUP($A98,DATA2!$A$2:$S$607,2,FALSE) -> KZN | C98: =VLOOKUP($A98,DATA2!$A$2:$S$607,3,FALSE) -> KwaZulu-Natal | D98: =VLOOKUP($A98,DATA2!$A$2:$S$607,4,FALSE) -> 154.3254369 | E98: =VLOOKUP($A98,DATA2!$A$2:$S$607,5,FALSE) -> 100 | F98: =VLOOKUP($A98,DATA2!$A$2:$S$607,6,FALSE) -> VTSD | G98: =VLOOKUP($A98,DATA2!$A$2:$S$607,7,FALSE) -> 412 | H98: =VLOOKUP($A98,DATA2!$A$2:$S$607,8,FALSE) -> TRUE | I98: =VLOOKUP($A98,DATA2!$A$2:$S$607,9,FALSE) -> 0.08 | J98: 799.46 | K98: =VLOOKUP($A98,DATA2!$A$2:$S$607,10,FALSE) -> 63582.08 | L98: =VLOOKUP($A98,DATA2!$A$2:$S$607,11,FALSE) -> 762984.96 | M98: =VLOOKUP($A98,DATA2!$A$2:$S$607,12,FALSE) -> 2014-07-01 | N98: =VLOOKUP($A98,DATA2!$A$2:$S$607,13,FALSE) -> 2019-06-30 | O98: =VLOOKUP($A98,DATA2!$A$2:$S$607,14,FALSE) -> No | P98: =IF(MATRIX2!D98=1,($Y$8-$X$2)/365*Table_Provincial_GTAC3536[[#This Row],[Adj.AnnualRental]]*MATRIX2!D98,($Y$8-$X$2)/365*Table_Provincial_GTAC3536[[#This Row],[Adj.AnnualRental]]) -> 250844.3704 | Q98: =(Table_Provincial_GTAC3536[[#This Row],[Adj.AnnualRental]]*(1+$I98)^(2)) -> 889945.6573 | R98: =(Table_Provincial_GTAC3536[[#This Row],[Adj.AnnualRental]]*(1+$I98)^(3)) -> 961141.3099 | S98: =(Table_Provincial_GTAC3536[[#This Row],[Adj.AnnualRental]]*(1+$I98)^(4)) -> 1038032.615 | T98: =(Table_Provincial_GTAC3536[[#This Row],[Adj.AnnualRental]]*(1+$I98)^(5)) -> 1121075.224 | U98: =(Table_Provincial_GTAC3536[[#This Row],[Adj.AnnualRental]]*(1+$I98)^(6)) -> 1210761.242 | V98: =(Table_Provincial_GTAC3536[[#This Row],[Adj.AnnualRental]]*(1+$I98)^(7)) -> 1307622.141
A99: 121 | B99: =VLOOKUP($A99,DATA2!$A$2:$S$607,2,FALSE) -> KZN | C99: =VLOOKUP($A99,DATA2!$A$2:$S$607,3,FALSE) -> KwaZulu-Natal | D99: =VLOOKUP($A99,DATA2!$A$2:$S$607,4,FALSE) -> 137.0322034 | E99: =VLOOKUP($A99,DATA2!$A$2:$S$607,5,FALSE) -> 77.5 | F99: =VLOOKUP($A99,DATA2!$A$2:$S$607,6,FALSE) -> VTSD | G99: =VLOOKUP($A99,DATA2!$A$2:$S$607,7,FALSE) -> 230.1 | H99: =VLOOKUP($A99,DATA2!$A$2:$S$607,8,FALSE) -> TRUE | I99: =VLOOKUP($A99,DATA2!$A$2:$S$607,9,FALSE) -> 0.08 | J99: 63582.08 | K99: =VLOOKUP($A99,DATA2!$A$2:$S$607,10,FALSE) -> 31531.11 | L99: =VLOOKUP($A99,DATA2!$A$2:$S$607,11,FALSE) -> 378373.32 | M99: =VLOOKUP($A99,DATA2!$A$2:$S$607,12,FALSE) -> 2017-06-01 | N99: =VLOOKUP($A99,DATA2!$A$2:$S$607,13,FALSE) -> 2020-05-31 | O99: =VLOOKUP($A99,DATA2!$A$2:$S$607,14,FALSE) -> No | P99: =IF(MATRIX2!D99=1,($Y$8-$X$2)/365*Table_Provincial_GTAC3536[[#This Row],[Adj.AnnualRental]]*MATRIX2!D99,($Y$8-$X$2)/365*Table_Provincial_GTAC3536[[#This Row],[Adj.AnnualRental]]) -> 124396.7079 | Q99: =(Table_Provincial_GTAC3536[[#This Row],[Adj.AnnualRental]]*(1+$I99)^(2)) -> 441334.6404 | R99: =(Table_Provincial_GTAC3536[[#This Row],[Adj.AnnualRental]]*(1+$I99)^(3)) -> 476641.4117 | S99: =(Table_Provincial_GTAC3536[[#This Row],[Adj.AnnualRental]]*(1+$I99)^(4)) -> 514772.7246 | T99: =(Table_Provincial_GTAC3536[[#This Row],[Adj.AnnualRental]]*(1+$I99)^(5)) -> 555954.5426 | U99: =(Table_Provincial_GTAC3536[[#This Row],[Adj.AnnualRental]]*(1+$I99)^(6)) -> 600430.906 | V99: =(Table_Provincial_GTAC3536[[#This Row],[Adj.AnnualRental]]*(1+$I99)^(7)) -> 648465.3785
A100: 122 | B100: =VLOOKUP($A100,DATA2!$A$2:$S$607,2,FALSE) -> KZN | C100: =VLOOKUP($A100,DATA2!$A$2:$S$607,3,FALSE) -> KwaZulu-Natal | D100: =VLOOKUP($A100,DATA2!$A$2:$S$607,4,FALSE) -> 92.299575 | E100: =VLOOKUP($A100,DATA2!$A$2:$S$607,5,FALSE) -> 100 | F100: =VLOOKUP($A100,DATA2!$A$2:$S$607,6,FALSE) -> VTSD | G100: =VLOOKUP($A100,DATA2!$A$2:$S$607,7,FALSE) -> 2400 | H100: =VLOOKUP($A100,DATA2!$A$2:$S$607,8,FALSE) -> TRUE | I100: =VLOOKUP($A100,DATA2!$A$2:$S$607,9,FALSE) -> 0.07 | J100: 41281.11 | K100: =VLOOKUP($A100,DATA2!$A$2:$S$607,10,FALSE) -> 221518.98 | L100: =VLOOKUP($A100,DATA2!$A$2:$S$607,11,FALSE) -> 2658227.76 | M100: =VLOOKUP($A100,DATA2!$A$2:$S$607,12,FALSE) -> 2013-07-01 | N100: =VLOOKUP($A100,DATA2!$A$2:$S$607,13,FALSE) -> 2018-06-30 | O100: =VLOOKUP($A100,DATA2!$A$2:$S$607,14,FALSE) -> No | P100: =IF(MATRIX2!D100=1,($Y$8-$X$2)/365*Table_Provincial_GTAC3536[[#This Row],[Adj.AnnualRental]]*MATRIX2!D100,($Y$8-$X$2)/365*Table_Provincial_GTAC3536[[#This Row],[Adj.AnnualRental]]) -> 873937.8937 | Q100: =(Table_Provincial_GTAC3536[[#This Row],[Adj.AnnualRental]]*(1+$I100)^(2)) -> 3043404.962 | R100: =(Table_Provincial_GTAC3536[[#This Row],[Adj.AnnualRental]]*(1+$I100)^(3)) -> 3256443.31 | S100: =(Table_Provincial_GTAC3536[[#This Row],[Adj.AnnualRental]]*(1+$I100)^(4)) -> 3484394.341 | T100: =(Table_Provincial_GTAC3536[[#This Row],[Adj.AnnualRental]]*(1+$I100)^(5)) -> 3728301.945 | U100: =(Table_Provincial_GTAC3536[[#This Row],[Adj.AnnualRental]]*(1+$I100)^(6)) -> 3989283.082 | V100: =(Table_Provincial_GTAC3536[[#This Row],[Adj.AnnualRental]]*(1+$I100)^(7)) -> 4268532.897
A101: 125 | B101: =VLOOKUP($A101,DATA2!$A$2:$S$607,2,FALSE) -> KZN | C101: =VLOOKUP($A101,DATA2!$A$2:$S$607,3,FALSE) -> KwaZulu-Natal | D101: =VLOOKUP($A101,DATA2!$A$2:$S$607,4,FALSE) -> 134.4231 | E101: =VLOOKUP($A101,DATA2!$A$2:$S$607,5,FALSE) -> 110 | F101: =VLOOKUP($A101,DATA2!$A$2:$S$607,6,FALSE) -> MAIN CENTRE | G101: =VLOOKUP($A101,DATA2!$A$2:$S$607,7,FALSE) -> 1600 | H101: =VLOOKUP($A101,DATA2!$A$2:$S$607,8,FALSE) -> TRUE | I101: =VLOOKUP($A101,DATA2!$A$2:$S$607,9,FALSE) -> 0.08 | J101: 236518.98 | K101: =VLOOKUP($A101,DATA2!$A$2:$S$607,10,FALSE) -> 215076.96 | L101: =VLOOKUP($A101,DATA2!$A$2:$S$607,11,FALSE) -> 2580923.52 | M101: =VLOOKUP($A101,DATA2!$A$2:$S$607,12,FALSE) -> 2013-07-01 | N101: =VLOOKUP($A101,DATA2!$A$2:$S$607,13,FALSE) -> 2018-06-30 | O101: =VLOOKUP($A101,DATA2!$A$2:$S$607,14,FALSE) -> No | P101: =IF(MATRIX2!D101=1,($Y$8-$X$2)/365*Table_Provincial_GTAC3536[[#This Row],[Adj.AnnualRental]]*MATRIX2!D101,($Y$8-$X$2)/365*Table_Provincial_GTAC3536[[#This Row],[Adj.AnnualRental]]) -> 848522.8011 | Q101: =(Table_Provincial_GTAC3536[[#This Row],[Adj.AnnualRental]]*(1+$I101)^(2)) -> 3010389.194 | R101: =(Table_Provincial_GTAC3536[[#This Row],[Adj.AnnualRental]]*(1+$I101)^(3)) -> 3251220.329 | S101: =(Table_Provincial_GTAC3536[[#This Row],[Adj.AnnualRental]]*(1+$I101)^(4)) -> 3511317.956 | T101: =(Table_Provincial_GTAC3536[[#This Row],[Adj.AnnualRental]]*(1+$I101)^(5)) -> 3792223.392 | U101: =(Table_Provincial_GTAC3536[[#This Row],[Adj.AnnualRental]]*(1+$I101)^(6)) -> 4095601.263 | V101: =(Table_Provincial_GTAC3536[[#This Row],[Adj.AnnualRental]]*(1+$I101)^(7)) -> 4423249.364
A102: 126 | B102: =VLOOKUP($A102,DATA2!$A$2:$S$607,2,FALSE) -> KZN | C102: =VLOOKUP($A102,DATA2!$A$2:$S$607,3,FALSE) -> KwaZulu-Natal | D102: =VLOOKUP($A102,DATA2!$A$2:$S$607,4,FALSE) -> 109.0142857 | E102: =VLOOKUP($A102,DATA2!$A$2:$S$607,5,FALSE) -> 110 | F102: =VLOOKUP($A102,DATA2!$A$2:$S$607,6,FALSE) -> CBD | G102: =VLOOKUP($A102,DATA2!$A$2:$S$607,7,FALSE) -> 3234 | H102: =VLOOKUP($A102,DATA2!$A$2:$S$607,8,FALSE) -> TRUE | I102: =VLOOKUP($A102,DATA2!$A$2:$S$607,9,FALSE) -> 0.08 | J102: 215076.96 | K102: =VLOOKUP($A102,DATA2!$A$2:$S$607,10,FALSE) -> 352552.2 | L102: =VLOOKUP($A102,DATA2!$A$2:$S$607,11,FALSE) -> 4230626.4 | M102: =VLOOKUP($A102,DATA2!$A$2:$S$607,12,FALSE) -> 2015-02-01 | N102: =VLOOKUP($A102,DATA2!$A$2:$S$607,13,FALSE) -> 2017-09-30 | O102: =VLOOKUP($A102,DATA2!$A$2:$S$607,14,FALSE) -> No | P102: =IF(MATRIX2!D102=1,($Y$8-$X$2)/365*Table_Provincial_GTAC3536[[#This Row],[Adj.AnnualRental]]*MATRIX2!D102,($Y$8-$X$2)/365*Table_Provincial_GTAC3536[[#This Row],[Adj.AnnualRental]]) -> 1390890.871 | Q102: =(Table_Provincial_GTAC3536[[#This Row],[Adj.AnnualRental]]*(1+$I102)^(2)) -> 4934602.633 | R102: =(Table_Provincial_GTAC3536[[#This Row],[Adj.AnnualRental]]*(1+$I102)^(3)) -> 5329370.844 | S102: =(Table_Provincial_GTAC3536[[#This Row],[Adj.AnnualRental]]*(1+$I102)^(4)) -> 5755720.511 | T102: =(Table_Provincial_GTAC3536[[#This Row],[Adj.AnnualRental]]*(1+$I102)^(5)) -> 6216178.152 | U102: =(Table_Provincial_GTAC3536[[#This Row],[Adj.AnnualRental]]*(1+$I102)^(6)) -> 6713472.404 | V102: =(Table_Provincial_GTAC3536[[#This Row],[Adj.AnnualRental]]*(1+$I102)^(7)) -> 7250550.196
A103: 128 | B103: =VLOOKUP($A103,DATA2!$A$2:$S$607,2,FALSE) -> KZN | C103: =VLOOKUP($A103,DATA2!$A$2:$S$607,3,FALSE) -> KwaZulu-Natal | D103: =VLOOKUP($A103,DATA2!$A$2:$S$607,4,FALSE) -> 54.94525 | E103: =VLOOKUP($A103,DATA2!$A$2:$S$607,5,FALSE) -> 77.5 | F103: =VLOOKUP($A103,DATA2!$A$2:$S$607,6,FALSE) -> VTSD | G103: =VLOOKUP($A103,DATA2!$A$2:$S$607,7,FALSE) -> 160 | H103: =VLOOKUP($A103,DATA2!$A$2:$S$607,8,FALSE) -> TRUE | I103: =VLOOKUP($A103,DATA2!$A$2:$S$607,9,FALSE) -> 0.08 | J103: 369052.2 | K103: =VLOOKUP($A103,DATA2!$A$2:$S$607,10,FALSE) -> 8791.24 | L103: =VLOOKUP($A103,DATA2!$A$2:$S$607,11,FALSE) -> 105494.88 | M103: =VLOOKUP($A103,DATA2!$A$2:$S$607,12,FALSE) -> 2013-07-01 | N103: =VLOOKUP($A103,DATA2!$A$2:$S$607,13,FALSE) -> 2016-06-30 | O103: =VLOOKUP($A103,DATA2!$A$2:$S$607,14,FALSE) -> Yes | P103: =IF(MATRIX2!D103=1,($Y$8-$X$2)/365*Table_Provincial_GTAC3536[[#This Row],[Adj.AnnualRental]]*MATRIX2!D103,($Y$8-$X$2)/365*Table_Provincial_GTAC3536[[#This Row],[Adj.AnnualRental]]) -> 34683.24822 | Q103: =(Table_Provincial_GTAC3536[[#This Row],[Adj.AnnualRental]]*(1+$I103)^(2)) -> 123049.228 | R103: =(Table_Provincial_GTAC3536[[#This Row],[Adj.AnnualRental]]*(1+$I103)^(3)) -> 132893.1663 | S103: =(Table_Provincial_GTAC3536[[#This Row],[Adj.AnnualRental]]*(1+$I103)^(4)) -> 143524.6196 | T103: =(Table_Provincial_GTAC3536[[#This Row],[Adj.AnnualRental]]*(1+$I103)^(5)) -> 155006.5891 | U103: =(Table_Provincial_GTAC3536[[#This Row],[Adj.AnnualRental]]*(1+$I103)^(6)) -> 167407.1163 | V103: =(Table_Provincial_GTAC3536[[#This Row],[Adj.AnnualRental]]*(1+$I103)^(7)) -> 180799.6856
A104: 130 | B104: =VLOOKUP($A104,DATA2!$A$2:$S$607,2,FALSE) -> KZN | C104: =VLOOKUP($A104,DATA2!$A$2:$S$607,3,FALSE) -> KwaZulu-Natal | D104: =VLOOKUP($A104,DATA2!$A$2:$S$607,4,FALSE) -> 118.7128385 | E104: =VLOOKUP($A104,DATA2!$A$2:$S$607,5,FALSE) -> 77.5 | F104: =VLOOKUP($A104,DATA2!$A$2:$S$607,6,FALSE) -> VTSD | G104: =VLOOKUP($A104,DATA2!$A$2:$S$607,7,FALSE) -> 1994 | H104: =VLOOKUP($A104,DATA2!$A$2:$S$607,8,FALSE) -> TRUE | I104: =VLOOKUP($A104,DATA2!$A$2:$S$607,9,FALSE) -> 0.08 | J104: 8791.24 | K104: =VLOOKUP($A104,DATA2!$A$2:$S$607,10,FALSE) -> 236713.4 | L104: =VLOOKUP($A104,DATA2!$A$2:$S$607,11,FALSE) -> 2840560.8 | M104: =VLOOKUP($A104,DATA2!$A$2:$S$607,12,FALSE) -> 2014-07-01 | N104: =VLOOKUP($A104,DATA2!$A$2:$S$607,13,FALSE) -> 2019-06-30 | O104: =VLOOKUP($A104,DATA2!$A$2:$S$607,14,FALSE) -> No | P104: =IF(MATRIX2!D104=1,($Y$8-$X$2)/365*Table_Provincial_GTAC3536[[#This Row],[Adj.AnnualRental]]*MATRIX2!D104,($Y$8-$X$2)/365*Table_Provincial_GTAC3536[[#This Row],[Adj.AnnualRental]]) -> 933883.0027 | Q104: =(Table_Provincial_GTAC3536[[#This Row],[Adj.AnnualRental]]*(1+$I104)^(2)) -> 3313230.117 | R104: =(Table_Provincial_GTAC3536[[#This Row],[Adj.AnnualRental]]*(1+$I104)^(3)) -> 3578288.526 | S104: =(Table_Provincial_GTAC3536[[#This Row],[Adj.AnnualRental]]*(1+$I104)^(4)) -> 3864551.609 | T104: =(Table_Provincial_GTAC3536[[#This Row],[Adj.AnnualRental]]*(1+$I104)^(5)) -> 4173715.737 | U104: =(Table_Provincial_GTAC3536[[#This Row],[Adj.AnnualRental]]*(1+$I104)^(6)) -> 4507612.996 | V104: =(Table_Provincial_GTAC3536[[#This Row],[Adj.AnnualRental]]*(1+$I104)^(7)) -> 4868222.036
A105: 131 | B105: =VLOOKUP($A105,DATA2!$A$2:$S$607,2,FALSE) -> KZN | C105: =VLOOKUP($A105,DATA2!$A$2:$S$607,3,FALSE) -> KwaZulu-Natal | D105: =VLOOKUP($A105,DATA2!$A$2:$S$607,4,FALSE) -> 107.5607382 | E105: =VLOOKUP($A105,DATA2!$A$2:$S$607,5,FALSE) -> 110 | F105: =VLOOKUP($A105,DATA2!$A$2:$S$607,6,FALSE) -> MAIN CENTRE | G105: =VLOOKUP($A105,DATA2!$A$2:$S$607,7,FALSE) -> 718 | H105: =VLOOKUP($A105,DATA2!$A$2:$S$607,8,FALSE) -> TRUE | I105: =VLOOKUP($A105,DATA2!$A$2:$S$607,9,FALSE) -> 0 | J105: 254213.4 | K105: =VLOOKUP($A105,DATA2!$A$2:$S$607,10,FALSE) -> 77228.61 | L105: =VLOOKUP($A105,DATA2!$A$2:$S$607,11,FALSE) -> 926743.32 | M105: =VLOOKUP($A105,DATA2!$A$2:$S$607,12,FALSE) -> 2015-10-01 | N105: =VLOOKUP($A105,DATA2!$A$2:$S$607,13,FALSE) -> 2016-09-30 | O105: =VLOOKUP($A105,DATA2!$A$2:$S$607,14,FALSE) -> Yes | P105: =IF(MATRIX2!D105=1,($Y$8-$X$2)/365*Table_Provincial_GTAC3536[[#This Row],[Adj.AnnualRental]]*MATRIX2!D105,($Y$8-$X$2)/365*Table_Provincial_GTAC3536[[#This Row],[Adj.AnnualRental]]) -> 304682.7353 | Q105: =(Table_Provincial_GTAC3536[[#This Row],[Adj.AnnualRental]]*(1+$I105)^(2)) -> 926743.32 | R105: =(Table_Provincial_GTAC3536[[#This Row],[Adj.AnnualRental]]*(1+$I105)^(3)) -> 926743.32 | S105: =(Table_Provincial_GTAC3536[[#This Row],[Adj.AnnualRental]]*(1+$I105)^(4)) -> 926743.32 | T105: =(Table_Provincial_GTAC3536[[#This Row],[Adj.AnnualRental]]*(1+$I105)^(5)) -> 926743.32 | U105: =(Table_Provincial_GTAC3536[[#This Row],[Adj.AnnualRental]]*(1+$I105)^(6)) -> 926743.32 | V105: =(Table_Provincial_GTAC3536[[#This Row],[Adj.AnnualRental]]*(1+$I105)^(7)) -> 926743.32
A106: 132 | B106: =VLOOKUP($A106,DATA2!$A$2:$S$607,2,FALSE) -> KZN | C106: =VLOOKUP($A106,DATA2!$A$2:$S$607,3,FALSE) -> KwaZulu-Natal | D106: =VLOOKUP($A106,DATA2!$A$2:$S$607,4,FALSE) -> 162.1980935 | E106: =VLOOKUP($A106,DATA2!$A$2:$S$607,5,FALSE) -> 110 | F106: =VLOOKUP($A106,DATA2!$A$2:$S$607,6,FALSE) -> MAIN CENTRE | G106: =VLOOKUP($A106,DATA2!$A$2:$S$607,7,FALSE) -> 1112 | H106: =VLOOKUP($A106,DATA2!$A$2:$S$607,8,FALSE) -> TRUE | I106: =VLOOKUP($A106,DATA2!$A$2:$S$607,9,FALSE) -> 0.08 | J106: 81564.01 | K106: =VLOOKUP($A106,DATA2!$A$2:$S$607,10,FALSE) -> 180364.28 | L106: =VLOOKUP($A106,DATA2!$A$2:$S$607,11,FALSE) -> 2164371.36 | M106: =VLOOKUP($A106,DATA2!$A$2:$S$607,12,FALSE) -> 2016-10-01 | N106: =VLOOKUP($A106,DATA2!$A$2:$S$607,13,FALSE) -> 2018-09-30 | O106: =VLOOKUP($A106,DATA2!$A$2:$S$607,14,FALSE) -> No | P106: =IF(MATRIX2!D106=1,($Y$8-$X$2)/365*Table_Provincial_GTAC3536[[#This Row],[Adj.AnnualRental]]*MATRIX2!D106,($Y$8-$X$2)/365*Table_Provincial_GTAC3536[[#This Row],[Adj.AnnualRental]]) -> 711574.1458 | Q106: =(Table_Provincial_GTAC3536[[#This Row],[Adj.AnnualRental]]*(1+$I106)^(2)) -> 2524522.754 | R106: =(Table_Provincial_GTAC3536[[#This Row],[Adj.AnnualRental]]*(1+$I106)^(3)) -> 2726484.575 | S106: =(Table_Provincial_GTAC3536[[#This Row],[Adj.AnnualRental]]*(1+$I106)^(4)) -> 2944603.341 | T106: =(Table_Provincial_GTAC3536[[#This Row],[Adj.AnnualRental]]*(1+$I106)^(5)) -> 3180171.608 | U106: =(Table_Provincial_GTAC3536[[#This Row],[Adj.AnnualRental]]*(1+$I106)^(6)) -> 3434585.336 | V106: =(Table_Provincial_GTAC3536[[#This Row],[Adj.AnnualRental]]*(1+$I106)^(7)) -> 3709352.163
A107: 134 | B107: =VLOOKUP($A107,DATA2!$A$2:$S$607,2,FALSE) -> KZN | C107: =VLOOKUP($A107,DATA2!$A$2:$S$607,3,FALSE) -> KwaZulu-Natal | D107: =VLOOKUP($A107,DATA2!$A$2:$S$607,4,FALSE) -> 136.4178431 | E107: =VLOOKUP($A107,DATA2!$A$2:$S$607,5,FALSE) -> 77.5 | F107: =VLOOKUP($A107,DATA2!$A$2:$S$607,6,FALSE) -> VTSD | G107: =VLOOKUP($A107,DATA2!$A$2:$S$607,7,FALSE) -> 204 | H107: =VLOOKUP($A107,DATA2!$A$2:$S$607,8,FALSE) -> TRUE | I107: =VLOOKUP($A107,DATA2!$A$2:$S$607,9,FALSE) -> 0.07 | J107: 197378.63 | K107: =VLOOKUP($A107,DATA2!$A$2:$S$607,10,FALSE) -> 27829.24 | L107: =VLOOKUP($A107,DATA2!$A$2:$S$607,11,FALSE) -> 333950.88 | M107: =VLOOKUP($A107,DATA2!$A$2:$S$607,12,FALSE) -> 2015-08-01 | N107: =VLOOKUP($A107,DATA2!$A$2:$S$607,13,FALSE) -> 2018-07-31 | O107: =VLOOKUP($A107,DATA2!$A$2:$S$607,14,FALSE) -> No | P107: =IF(MATRIX2!D107=1,($Y$8-$X$2)/365*Table_Provincial_GTAC3536[[#This Row],[Adj.AnnualRental]]*MATRIX2!D107,($Y$8-$X$2)/365*Table_Provincial_GTAC3536[[#This Row],[Adj.AnnualRental]]) -> 109792.0701 | Q107: =(Table_Provincial_GTAC3536[[#This Row],[Adj.AnnualRental]]*(1+$I107)^(2)) -> 382340.3625 | R107: =(Table_Provincial_GTAC3536[[#This Row],[Adj.AnnualRental]]*(1+$I107)^(3)) -> 409104.1879 | S107: =(Table_Provincial_GTAC3536[[#This Row],[Adj.AnnualRental]]*(1+$I107)^(4)) -> 437741.481 | T107: =(Table_Provincial_GTAC3536[[#This Row],[Adj.AnnualRental]]*(1+$I107)^(5)) -> 468383.3847 | U107: =(Table_Provincial_GTAC3536[[#This Row],[Adj.AnnualRental]]*(1+$I107)^(6)) -> 501170.2216 | V107: =(Table_Provincial_GTAC3536[[#This Row],[Adj.AnnualRental]]*(1+$I107)^(7)) -> 536252.1372
A108: 135 | B108: =VLOOKUP($A108,DATA2!$A$2:$S$607,2,FALSE) -> KZN | C108: =VLOOKUP($A108,DATA2!$A$2:$S$607,3,FALSE) -> KwaZulu-Natal | D108: =VLOOKUP($A108,DATA2!$A$2:$S$607,4,FALSE) -> 112.5329101 | E108: =VLOOKUP($A108,DATA2!$A$2:$S$607,5,FALSE) -> 110 | F108: =VLOOKUP($A108,DATA2!$A$2:$S$607,6,FALSE) -> CBD | G108: =VLOOKUP($A108,DATA2!$A$2:$S$607,7,FALSE) -> 13484 | H108: =VLOOKUP($A108,DATA2!$A$2:$S$607,8,FALSE) -> TRUE | I108: =VLOOKUP($A108,DATA2!$A$2:$S$607,9,FALSE) -> 0 | J108: 41229.24 | K108: =VLOOKUP($A108,DATA2!$A$2:$S$607,10,FALSE) -> 1517393.76 | L108: =VLOOKUP($A108,DATA2!$A$2:$S$607,11,FALSE) -> 18208725.12 | M108: =VLOOKUP($A108,DATA2!$A$2:$S$607,12,FALSE) -> 2016-09-01 | N108: =VLOOKUP($A108,DATA2!$A$2:$S$607,13,FALSE) -> 2017-08-31 | O108: =VLOOKUP($A108,DATA2!$A$2:$S$607,14,FALSE) -> No | P108: =IF(MATRIX2!D108=1,($Y$8-$X$2)/365*Table_Provincial_GTAC3536[[#This Row],[Adj.AnnualRental]]*MATRIX2!D108,($Y$8-$X$2)/365*Table_Provincial_GTAC3536[[#This Row],[Adj.AnnualRental]]) -> 5986430.176 | Q108: =(Table_Provincial_GTAC3536[[#This Row],[Adj.AnnualRental]]*(1+$I108)^(2)) -> 18208725.12 | R108: =(Table_Provincial_GTAC3536[[#This Row],[Adj.AnnualRental]]*(1+$I108)^(3)) -> 18208725.12 | S108: =(Table_Provincial_GTAC3536[[#This Row],[Adj.AnnualRental]]*(1+$I108)^(4)) -> 18208725.12 | T108: =(Table_Provincial_GTAC3536[[#This Row],[Adj.AnnualRental]]*(1+$I108)^(5)) -> 18208725.12 | U108: =(Table_Provincial_GTAC3536[[#This Row],[Adj.AnnualRental]]*(1+$I108)^(6)) -> 18208725.12 | V108: =(Table_Provincial_GTAC3536[[#This Row],[Adj.AnnualRental]]*(1+$I108)^(7)) -> 18208725.12
A109: 140 | B109: =VLOOKUP($A109,DATA2!$A$2:$S$607,2,FALSE) -> KZN | C109: =VLOOKUP($A109,DATA2!$A$2:$S$607,3,FALSE) -> KwaZulu-Natal | D109: =VLOOKUP($A109,DATA2!$A$2:$S$607,4,FALSE) -> 108.3673841 | E109: =VLOOKUP($A109,DATA2!$A$2:$S$607,5,FALSE) -> 110 | F109: =VLOOKUP($A109,DATA2!$A$2:$S$607,6,FALSE) -> CBD | G109: =VLOOKUP($A109,DATA2!$A$2:$S$607,7,FALSE) -> 2481 | H109: =VLOOKUP($A109,DATA2!$A$2:$S$607,8,FALSE) -> TRUE | I109: =VLOOKUP($A109,DATA2!$A$2:$S$607,9,FALSE) -> 0.08 | J109: 1595233.76 | K109: =VLOOKUP($A109,DATA2!$A$2:$S$607,10,FALSE) -> 268859.48 | L109: =VLOOKUP($A109,DATA2!$A$2:$S$607,11,FALSE) -> 3226313.76 | M109: =VLOOKUP($A109,DATA2!$A$2:$S$607,12,FALSE) -> 2013-11-01 | N109: =VLOOKUP($A109,DATA2!$A$2:$S$607,13,FALSE) -> 2016-10-31 | O109: =VLOOKUP($A109,DATA2!$A$2:$S$607,14,FALSE) -> Yes | P109: =IF(MATRIX2!D109=1,($Y$8-$X$2)/365*Table_Provincial_GTAC3536[[#This Row],[Adj.AnnualRental]]*MATRIX2!D109,($Y$8-$X$2)/365*Table_Provincial_GTAC3536[[#This Row],[Adj.AnnualRental]]) -> 1060705.894 | Q109: =(Table_Provincial_GTAC3536[[#This Row],[Adj.AnnualRental]]*(1+$I109)^(2)) -> 3763172.37 | R109: =(Table_Provincial_GTAC3536[[#This Row],[Adj.AnnualRental]]*(1+$I109)^(3)) -> 4064226.159 | S109: =(Table_Provincial_GTAC3536[[#This Row],[Adj.AnnualRental]]*(1+$I109)^(4)) -> 4389364.252 | T109: =(Table_Provincial_GTAC3536[[#This Row],[Adj.AnnualRental]]*(1+$I109)^(5)) -> 4740513.392 | U109: =(Table_Provincial_GTAC3536[[#This Row],[Adj.AnnualRental]]*(1+$I109)^(6)) -> 5119754.464 | V109: =(Table_Provincial_GTAC3536[[#This Row],[Adj.AnnualRental]]*(1+$I109)^(7)) -> 5529334.821
A110: 142 | B110: =VLOOKUP($A110,DATA2!$A$2:$S$607,2,FALSE) -> KZN | C110: =VLOOKUP($A110,DATA2!$A$2:$S$607,3,FALSE) -> KwaZulu-Natal | D110: =VLOOKUP($A110,DATA2!$A$2:$S$607,4,FALSE) -> 127.4140443 | E110: =VLOOKUP($A110,DATA2!$A$2:$S$607,5,FALSE) -> 77.5 | F110: =VLOOKUP($A110,DATA2!$A$2:$S$607,6,FALSE) -> VTSD | G110: =VLOOKUP($A110,DATA2!$A$2:$S$607,7,FALSE) -> 361 | H110: =VLOOKUP($A110,DATA2!$A$2:$S$607,8,FALSE) -> TRUE | I110: =VLOOKUP($A110,DATA2!$A$2:$S$607,9,FALSE) -> 0.08 | J110: 303859.48 | K110: =VLOOKUP($A110,DATA2!$A$2:$S$607,10,FALSE) -> 45996.47 | L110: =VLOOKUP($A110,DATA2!$A$2:$S$607,11,FALSE) -> 551957.64 | M110: =VLOOKUP($A110,DATA2!$A$2:$S$607,12,FALSE) -> 2014-10-01 | N110: =VLOOKUP($A110,DATA2!$A$2:$S$607,13,FALSE) -> 2017-09-30 | O110: =VLOOKUP($A110,DATA2!$A$2:$S$607,14,FALSE) -> No | P110: =IF(MATRIX2!D110=1,($Y$8-$X$2)/365*Table_Provincial_GTAC3536[[#This Row],[Adj.AnnualRental]]*MATRIX2!D110,($Y$8-$X$2)/365*Table_Provincial_GTAC3536[[#This Row],[Adj.AnnualRental]]) -> 181465.5255 | Q110: =(Table_Provincial_GTAC3536[[#This Row],[Adj.AnnualRental]]*(1+$I110)^(2)) -> 643803.3913 | R110: =(Table_Provincial_GTAC3536[[#This Row],[Adj.AnnualRental]]*(1+$I110)^(3)) -> 695307.6626 | S110: =(Table_Provincial_GTAC3536[[#This Row],[Adj.AnnualRental]]*(1+$I110)^(4)) -> 750932.2756 | T110: =(Table_Provincial_GTAC3536[[#This Row],[Adj.AnnualRental]]*(1+$I110)^(5)) -> 811006.8577 | U110: =(Table_Provincial_GTAC3536[[#This Row],[Adj.AnnualRental]]*(1+$I110)^(6)) -> 875887.4063 | V110: =(Table_Provincial_GTAC3536[[#This Row],[Adj.AnnualRental]]*(1+$I110)^(7)) -> 945958.3988
A111: 143 | B111: =VLOOKUP($A111,DATA2!$A$2:$S$607,2,FALSE) -> KZN | C111: =VLOOKUP($A111,DATA2!$A$2:$S$607,3,FALSE) -> KwaZulu-Natal | D111: =VLOOKUP($A111,DATA2!$A$2:$S$607,4,FALSE) -> 106.5558108 | E111: =VLOOKUP($A111,DATA2!$A$2:$S$607,5,FALSE) -> 87.5 | F111: =VLOOKUP($A111,DATA2!$A$2:$S$607,6,FALSE) -> VTSD | G111: =VLOOKUP($A111,DATA2!$A$2:$S$607,7,FALSE) -> 222 | H111: =VLOOKUP($A111,DATA2!$A$2:$S$607,8,FALSE) -> TRUE | I111: =VLOOKUP($A111,DATA2!$A$2:$S$607,9,FALSE) -> 0.08 | J111: 59292.47 | K111: =VLOOKUP($A111,DATA2!$A$2:$S$607,10,FALSE) -> 23655.39 | L111: =VLOOKUP($A111,DATA2!$A$2:$S$607,11,FALSE) -> 283864.68 | M111: =VLOOKUP($A111,DATA2!$A$2:$S$607,12,FALSE) -> 2017-03-01 | N111: =VLOOKUP($A111,DATA2!$A$2:$S$607,13,FALSE) -> 2019-02-28 | O111: =VLOOKUP($A111,DATA2!$A$2:$S$607,14,FALSE) -> No | P111: =IF(MATRIX2!D111=1,($Y$8-$X$2)/365*Table_Provincial_GTAC3536[[#This Row],[Adj.AnnualRental]]*MATRIX2!D111,($Y$8-$X$2)/365*Table_Provincial_GTAC3536[[#This Row],[Adj.AnnualRental]]) -> 93325.37425 | Q111: =(Table_Provincial_GTAC3536[[#This Row],[Adj.AnnualRental]]*(1+$I111)^(2)) -> 331099.7628 | R111: =(Table_Provincial_GTAC3536[[#This Row],[Adj.AnnualRental]]*(1+$I111)^(3)) -> 357587.7438 | S111: =(Table_Provincial_GTAC3536[[#This Row],[Adj.AnnualRental]]*(1+$I111)^(4)) -> 386194.7633 | T111: =(Table_Provincial_GTAC3536[[#This Row],[Adj.AnnualRental]]*(1+$I111)^(5)) -> 417090.3443 | U111: =(Table_Provincial_GTAC3536[[#This Row],[Adj.AnnualRental]]*(1+$I111)^(6)) -> 450457.5719 | V111: =(Table_Provincial_GTAC3536[[#This Row],[Adj.AnnualRental]]*(1+$I111)^(7)) -> 486494.1776
A112: 154 | B112: =VLOOKUP($A112,DATA2!$A$2:$S$607,2,FALSE) -> KZN | C112: =VLOOKUP($A112,DATA2!$A$2:$S$607,3,FALSE) -> KwaZulu-Natal | D112: =VLOOKUP($A112,DATA2!$A$2:$S$607,4,FALSE) -> 81.78654545 | E112: =VLOOKUP($A112,DATA2!$A$2:$S$607,5,FALSE) -> 65 | F112: =VLOOKUP($A112,DATA2!$A$2:$S$607,6,FALSE) -> CBD | G112: =VLOOKUP($A112,DATA2!$A$2:$S$607,7,FALSE) -> 3300 | H112: =VLOOKUP($A112,DATA2!$A$2:$S$607,8,FALSE) -> TRUE | I112: =VLOOKUP($A112,DATA2!$A$2:$S$607,9,FALSE) -> 0 | J112: 23655.39 | K112: =VLOOKUP($A112,DATA2!$A$2:$S$607,10,FALSE) -> 269895.6 | L112: =VLOOKUP($A112,DATA2!$A$2:$S$607,11,FALSE) -> 3238747.2 | M112: =VLOOKUP($A112,DATA2!$A$2:$S$607,12,FALSE) -> 2015-12-01 | N112: =VLOOKUP($A112,DATA2!$A$2:$S$607,13,FALSE) -> 2016-11-30 | O112: =VLOOKUP($A112,DATA2!$A$2:$S$607,14,FALSE) -> Yes | P112: =IF(MATRIX2!D112=1,($Y$8-$X$2)/365*Table_Provincial_GTAC3536[[#This Row],[Adj.AnnualRental]]*MATRIX2!D112,($Y$8-$X$2)/365*Table_Provincial_GTAC3536[[#This Row],[Adj.AnnualRental]]) -> 1064793.6 | Q112: =(Table_Provincial_GTAC3536[[#This Row],[Adj.AnnualRental]]*(1+$I112)^(2)) -> 3238747.2 | R112: =(Table_Provincial_GTAC3536[[#This Row],[Adj.AnnualRental]]*(1+$I112)^(3)) -> 3238747.2 | S112: =(Table_Provincial_GTAC3536[[#This Row],[Adj.AnnualRental]]*(1+$I112)^(4)) -> 3238747.2 | T112: =(Table_Provincial_GTAC3536[[#This Row],[Adj.AnnualRental]]*(1+$I112)^(5)) -> 3238747.2 | U112: =(Table_Provincial_GTAC3536[[#This Row],[Adj.AnnualRental]]*(1+$I112)^(6)) -> 3238747.2 | V112: =(Table_Provincial_GTAC3536[[#This Row],[Adj.AnnualRental]]*(1+$I112)^(7)) -> 3238747.2
A113: 155 | B113: =VLOOKUP($A113,DATA2!$A$2:$S$607,2,FALSE) -> KZN | C113: =VLOOKUP($A113,DATA2!$A$2:$S$607,3,FALSE) -> KwaZulu-Natal | D113: =VLOOKUP($A113,DATA2!$A$2:$S$607,4,FALSE) -> 98.28847405 | E113: =VLOOKUP($A113,DATA2!$A$2:$S$607,5,FALSE) -> 65 | F113: =VLOOKUP($A113,DATA2!$A$2:$S$607,6,FALSE) -> CBD | G113: =VLOOKUP($A113,DATA2!$A$2:$S$607,7,FALSE) -> 645.5 | H113: =VLOOKUP($A113,DATA2!$A$2:$S$607,8,FALSE) -> TRUE | I113: =VLOOKUP($A113,DATA2!$A$2:$S$607,9,FALSE) -> 0.08 | J113: 336726.6 | K113: =VLOOKUP($A113,DATA2!$A$2:$S$607,10,FALSE) -> 63445.21 | L113: =VLOOKUP($A113,DATA2!$A$2:$S$607,11,FALSE) -> 761342.52 | M113: =VLOOKUP($A113,DATA2!$A$2:$S$607,12,FALSE) -> 2015-04-01 | N113: =VLOOKUP($A113,DATA2!$A$2:$S$607,13,FALSE) -> 2018-03-31 | O113: =VLOOKUP($A113,DATA2!$A$2:$S$607,14,FALSE) -> No | P113: =IF(MATRIX2!D113=1,($Y$8-$X$2)/365*Table_Provincial_GTAC3536[[#This Row],[Adj.AnnualRental]]*MATRIX2!D113,($Y$8-$X$2)/365*Table_Provincial_GTAC3536[[#This Row],[Adj.AnnualRental]]) -> 250304.3901 | Q113: =(Table_Provincial_GTAC3536[[#This Row],[Adj.AnnualRental]]*(1+$I113)^(2)) -> 888029.9153 | R113: =(Table_Provincial_GTAC3536[[#This Row],[Adj.AnnualRental]]*(1+$I113)^(3)) -> 959072.3086 | S113: =(Table_Provincial_GTAC3536[[#This Row],[Adj.AnnualRental]]*(1+$I113)^(4)) -> 1035798.093 | T113: =(Table_Provincial_GTAC3536[[#This Row],[Adj.AnnualRental]]*(1+$I113)^(5)) -> 1118661.941 | U113: =(Table_Provincial_GTAC3536[[#This Row],[Adj.AnnualRental]]*(1+$I113)^(6)) -> 1208154.896 | V113: =(Table_Provincial_GTAC3536[[#This Row],[Adj.AnnualRental]]*(1+$I113)^(7)) -> 1304807.288
A114: 156 | B114: =VLOOKUP($A114,DATA2!$A$2:$S$607,2,FALSE) -> KZN | C114: =VLOOKUP($A114,DATA2!$A$2:$S$607,3,FALSE) -> KwaZulu-Natal | D114: =VLOOKUP($A114,DATA2!$A$2:$S$607,4,FALSE) -> 110.0970764 | E114: =VLOOKUP($A114,DATA2!$A$2:$S$607,5,FALSE) -> 65 | F114: =VLOOKUP($A114,DATA2!$A$2:$S$607,6,FALSE) -> CBD | G114: =VLOOKUP($A114,DATA2!$A$2:$S$607,7,FALSE) -> 6882 | H114: =VLOOKUP($A114,DATA2!$A$2:$S$607,8,FALSE) -> TRUE | I114: =VLOOKUP($A114,DATA2!$A$2:$S$607,9,FALSE) -> 0 | J114: 73645.21 | K114: =VLOOKUP($A114,DATA2!$A$2:$S$607,10,FALSE) -> 757688.08 | L114: =VLOOKUP($A114,DATA2!$A$2:$S$607,11,FALSE) -> 9092256.96 | M114: =VLOOKUP($A114,DATA2!$A$2:$S$607,12,FALSE) -> 2017-01-01 | N114: =VLOOKUP($A114,DATA2!$A$2:$S$607,13,FALSE) -> 2017-06-30 | O114: =VLOOKUP($A114,DATA2!$A$2:$S$607,14,FALSE) -> Yes | P114: =IF(MATRIX2!D114=1,($Y$8-$X$2)/365*Table_Provincial_GTAC3536[[#This Row],[Adj.AnnualRental]]*MATRIX2!D114,($Y$8-$X$2)/365*Table_Provincial_GTAC3536[[#This Row],[Adj.AnnualRental]]) -> 2989235.165 | Q114: =(Table_Provincial_GTAC3536[[#This Row],[Adj.AnnualRental]]*(1+$I114)^(2)) -> 9092256.96 | R114: =(Table_Provincial_GTAC3536[[#This Row],[Adj.AnnualRental]]*(1+$I114)^(3)) -> 9092256.96 | S114: =(Table_Provincial_GTAC3536[[#This Row],[Adj.AnnualRental]]*(1+$I114)^(4)) -> 9092256.96 | T114: =(Table_Provincial_GTAC3536[[#This Row],[Adj.AnnualRental]]*(1+$I114)^(5)) -> 9092256.96 | U114: =(Table_Provincial_GTAC3536[[#This Row],[Adj.AnnualRental]]*(1+$I114)^(6)) -> 9092256.96 | V114: =(Table_Provincial_GTAC3536[[#This Row],[Adj.AnnualRental]]*(1+$I114)^(7)) -> 9092256.96
A115: 157 | B115: =VLOOKUP($A115,DATA2!$A$2:$S$607,2,FALSE) -> KZN | C115: =VLOOKUP($A115,DATA2!$A$2:$S$607,3,FALSE) -> KwaZulu-Natal | D115: =VLOOKUP($A115,DATA2!$A$2:$S$607,4,FALSE) -> 119.8408556 | E115: =VLOOKUP($A115,DATA2!$A$2:$S$607,5,FALSE) -> 65 | F115: =VLOOKUP($A115,DATA2!$A$2:$S$607,6,FALSE) -> VTSD | G115: =VLOOKUP($A115,DATA2!$A$2:$S$607,7,FALSE) -> 374 | H115: =VLOOKUP($A115,DATA2!$A$2:$S$607,8,FALSE) -> TRUE | I115: =VLOOKUP($A115,DATA2!$A$2:$S$607,9,FALSE) -> 0.08 | J115: 789988.08 | K115: =VLOOKUP($A115,DATA2!$A$2:$S$607,10,FALSE) -> 44820.48 | L115: =VLOOKUP($A115,DATA2!$A$2:$S$607,11,FALSE) -> 537845.76 | M115: =VLOOKUP($A115,DATA2!$A$2:$S$607,12,FALSE) -> 2014-06-01 | N115: =VLOOKUP($A115,DATA2!$A$2:$S$607,13,FALSE) -> 2019-05-31 | O115: =VLOOKUP($A115,DATA2!$A$2:$S$607,14,FALSE) -> No | P115: =IF(MATRIX2!D115=1,($Y$8-$X$2)/365*Table_Provincial_GTAC3536[[#This Row],[Adj.AnnualRental]]*MATRIX2!D115,($Y$8-$X$2)/365*Table_Provincial_GTAC3536[[#This Row],[Adj.AnnualRental]]) -> 176826.0033 | Q115: =(Table_Provincial_GTAC3536[[#This Row],[Adj.AnnualRental]]*(1+$I115)^(2)) -> 627343.2945 | R115: =(Table_Provincial_GTAC3536[[#This Row],[Adj.AnnualRental]]*(1+$I115)^(3)) -> 677530.758 | S115: =(Table_Provincial_GTAC3536[[#This Row],[Adj.AnnualRental]]*(1+$I115)^(4)) -> 731733.2187 | T115: =(Table_Provincial_GTAC3536[[#This Row],[Adj.AnnualRental]]*(1+$I115)^(5)) -> 790271.8762 | U115: =(Table_Provincial_GTAC3536[[#This Row],[Adj.AnnualRental]]*(1+$I115)^(6)) -> 853493.6262 | V115: =(Table_Provincial_GTAC3536[[#This Row],[Adj.AnnualRental]]*(1+$I115)^(7)) -> 921773.1163
A116: 159 | B116: =VLOOKUP($A116,DATA2!$A$2:$S$607,2,FALSE) -> KZN | C116: =VLOOKUP($A116,DATA2!$A$2:$S$607,3,FALSE) -> KwaZulu-Natal | D116: =VLOOKUP($A116,DATA2!$A$2:$S$607,4,FALSE) -> 103.7889431 | E116: =VLOOKUP($A116,DATA2!$A$2:$S$607,5,FALSE) -> 77.5 | F116: =VLOOKUP($A116,DATA2!$A$2:$S$607,6,FALSE) -> VTSD | G116: =VLOOKUP($A116,DATA2!$A$2:$S$607,7,FALSE) -> 246 | H116: =VLOOKUP($A116,DATA2!$A$2:$S$607,8,FALSE) -> TRUE | I116: =VLOOKUP($A116,DATA2!$A$2:$S$607,9,FALSE) -> 0.08 | J116: 49070.48 | K116: =VLOOKUP($A116,DATA2!$A$2:$S$607,10,FALSE) -> 25532.08 | L116: =VLOOKUP($A116,DATA2!$A$2:$S$607,11,FALSE) -> 306384.96 | M116: =VLOOKUP($A116,DATA2!$A$2:$S$607,12,FALSE) -> 2012-06-01 | N116: =VLOOKUP($A116,DATA2!$A$2:$S$607,13,FALSE) -> 2017-05-31 | O116: =VLOOKUP($A116,DATA2!$A$2:$S$607,14,FALSE) -> Yes | P116: =IF(MATRIX2!D116=1,($Y$8-$X$2)/365*Table_Provincial_GTAC3536[[#This Row],[Adj.AnnualRental]]*MATRIX2!D116,($Y$8-$X$2)/365*Table_Provincial_GTAC3536[[#This Row],[Adj.AnnualRental]]) -> 100729.3019 | Q116: =(Table_Provincial_GTAC3536[[#This Row],[Adj.AnnualRental]]*(1+$I116)^(2)) -> 357367.4173 | R116: =(Table_Provincial_GTAC3536[[#This Row],[Adj.AnnualRental]]*(1+$I116)^(3)) -> 385956.8107 | S116: =(Table_Provincial_GTAC3536[[#This Row],[Adj.AnnualRental]]*(1+$I116)^(4)) -> 416833.3556 | T116: =(Table_Provincial_GTAC3536[[#This Row],[Adj.AnnualRental]]*(1+$I116)^(5)) -> 450180.024 | U116: =(Table_Provincial_GTAC3536[[#This Row],[Adj.AnnualRental]]*(1+$I116)^(6)) -> 486194.426 | V116: =(Table_Provincial_GTAC3536[[#This Row],[Adj.AnnualRental]]*(1+$I116)^(7)) -> 525089.98
A117: 160 | B117: =VLOOKUP($A117,DATA2!$A$2:$S$607,2,FALSE) -> KZN | C117: =VLOOKUP($A117,DATA2!$A$2:$S$607,3,FALSE) -> KwaZulu-Natal | D117: =VLOOKUP($A117,DATA2!$A$2:$S$607,4,FALSE) -> 95.54925208 | E117: =VLOOKUP($A117,DATA2!$A$2:$S$607,5,FALSE) -> 77.5 | F117: =VLOOKUP($A117,DATA2!$A$2:$S$607,6,FALSE) -> VTSD | G117: =VLOOKUP($A117,DATA2!$A$2:$S$607,7,FALSE) -> 361 | H117: =VLOOKUP($A117,DATA2!$A$2:$S$607,8,FALSE) -> TRUE | I117: =VLOOKUP($A117,DATA2!$A$2:$S$607,9,FALSE) -> 0.08 | J117: 29782.08 | K117: =VLOOKUP($A117,DATA2!$A$2:$S$607,10,FALSE) -> 34493.28 | L117: =VLOOKUP($A117,DATA2!$A$2:$S$607,11,FALSE) -> 413919.36 | M117: =VLOOKUP($A117,DATA2!$A$2:$S$607,12,FALSE) -> 2013-07-01 | N117: =VLOOKUP($A117,DATA2!$A$2:$S$607,13,FALSE) -> 2018-06-30 | O117: =VLOOKUP($A117,DATA2!$A$2:$S$607,14,FALSE) -> No | P117: =IF(MATRIX2!D117=1,($Y$8-$X$2)/365*Table_Provincial_GTAC3536[[#This Row],[Adj.AnnualRental]]*MATRIX2!D117,($Y$8-$X$2)/365*Table_Provincial_GTAC3536[[#This Row],[Adj.AnnualRental]]) -> 136083.0773 | Q117: =(Table_Provincial_GTAC3536[[#This Row],[Adj.AnnualRental]]*(1+$I117)^(2)) -> 482795.5415 | R117: =(Table_Provincial_GTAC3536[[#This Row],[Adj.AnnualRental]]*(1+$I117)^(3)) -> 521419.1848 | S117: =(Table_Provincial_GTAC3536[[#This Row],[Adj.AnnualRental]]*(1+$I117)^(4)) -> 563132.7196 | T117: =(Table_Provincial_GTAC3536[[#This Row],[Adj.AnnualRental]]*(1+$I117)^(5)) -> 608183.3372 | U117: =(Table_Provincial_GTAC3536[[#This Row],[Adj.AnnualRental]]*(1+$I117)^(6)) -> 656838.0042 | V117: =(Table_Provincial_GTAC3536[[#This Row],[Adj.AnnualRental]]*(1+$I117)^(7)) -> 709385.0445
A118: 161 | B118: =VLOOKUP($A118,DATA2!$A$2:$S$607,2,FALSE) -> KZN | C118: =VLOOKUP($A118,DATA2!$A$2:$S$607,3,FALSE) -> KwaZulu-Natal | D118: =VLOOKUP($A118,DATA2!$A$2:$S$607,4,FALSE) -> 109.2237057 | E118: =VLOOKUP($A118,DATA2!$A$2:$S$607,5,FALSE) -> 110 | F118: =VLOOKUP($A118,DATA2!$A$2:$S$607,6,FALSE) -> CBD | G118: =VLOOKUP($A118,DATA2!$A$2:$S$607,7,FALSE) -> 2569 | H118: =VLOOKUP($A118,DATA2!$A$2:$S$607,8,FALSE) -> TRUE | I118: =VLOOKUP($A118,DATA2!$A$2:$S$607,9,FALSE) -> 0 | J118: 34493.28 | K118: =VLOOKUP($A118,DATA2!$A$2:$S$607,10,FALSE) -> 280595.7 | L118: =VLOOKUP($A118,DATA2!$A$2:$S$607,11,FALSE) -> 3367148.4 | M118: =VLOOKUP($A118,DATA2!$A$2:$S$607,12,FALSE) -> 2015-04-01 | N118: =VLOOKUP($A118,DATA2!$A$2:$S$607,13,FALSE) -> 2017-03-31 | O118: =VLOOKUP($A118,DATA2!$A$2:$S$607,14,FALSE) -> Yes | P118: =IF(MATRIX2!D118=1,($Y$8-$X$2)/365*Table_Provincial_GTAC3536[[#This Row],[Adj.AnnualRental]]*MATRIX2!D118,($Y$8-$X$2)/365*Table_Provincial_GTAC3536[[#This Row],[Adj.AnnualRental]]) -> 1107007.693 | Q118: =(Table_Provincial_GTAC3536[[#This Row],[Adj.AnnualRental]]*(1+$I118)^(2)) -> 3367148.4 | R118: =(Table_Provincial_GTAC3536[[#This Row],[Adj.AnnualRental]]*(1+$I118)^(3)) -> 3367148.4 | S118: =(Table_Provincial_GTAC3536[[#This Row],[Adj.AnnualRental]]*(1+$I118)^(4)) -> 3367148.4 | T118: =(Table_Provincial_GTAC3536[[#This Row],[Adj.AnnualRental]]*(1+$I118)^(5)) -> 3367148.4 | U118: =(Table_Provincial_GTAC3536[[#This Row],[Adj.AnnualRental]]*(1+$I118)^(6)) -> 3367148.4 | V118: =(Table_Provincial_GTAC3536[[#This Row],[Adj.AnnualRental]]*(1+$I118)^(7)) -> 3367148.4
A119: 162 | B119: =VLOOKUP($A119,DATA2!$A$2:$S$607,2,FALSE) -> KZN | C119: =VLOOKUP($A119,DATA2!$A$2:$S$607,3,FALSE) -> KwaZulu-Natal | D119: =VLOOKUP($A119,DATA2!$A$2:$S$607,4,FALSE) -> 119.4076742 | E119: =VLOOKUP($A119,DATA2!$A$2:$S$607,5,FALSE) -> 110 | F119: =VLOOKUP($A119,DATA2!$A$2:$S$607,6,FALSE) -> CBD | G119: =VLOOKUP($A119,DATA2!$A$2:$S$607,7,FALSE) -> 2124 | H119: =VLOOKUP($A119,DATA2!$A$2:$S$607,8,FALSE) -> TRUE | I119: =VLOOKUP($A119,DATA2!$A$2:$S$607,9,FALSE) -> 0 | J119: 297545.7 | K119: =VLOOKUP($A119,DATA2!$A$2:$S$607,10,FALSE) -> 253621.9 | L119: =VLOOKUP($A119,DATA2!$A$2:$S$607,11,FALSE) -> 3043462.8 | M119: =VLOOKUP($A119,DATA2!$A$2:$S$607,12,FALSE) -> 2016-01-01 | N119: =VLOOKUP($A119,DATA2!$A$2:$S$607,13,FALSE) -> 2016-12-31 | O119: =VLOOKUP($A119,DATA2!$A$2:$S$607,14,FALSE) -> Yes | P119: =IF(MATRIX2!D119=1,($Y$8-$X$2)/365*Table_Provincial_GTAC3536[[#This Row],[Adj.AnnualRental]]*MATRIX2!D119,($Y$8-$X$2)/365*Table_Provincial_GTAC3536[[#This Row],[Adj.AnnualRental]]) -> 1000590.51 | Q119: =(Table_Provincial_GTAC3536[[#This Row],[Adj.AnnualRental]]*(1+$I119)^(2)) -> 3043462.8 | R119: =(Table_Provincial_GTAC3536[[#This Row],[Adj.AnnualRental]]*(1+$I119)^(3)) -> 3043462.8 | S119: =(Table_Provincial_GTAC3536[[#This Row],[Adj.AnnualRental]]*(1+$I119)^(4)) -> 3043462.8 | T119: =(Table_Provincial_GTAC3536[[#This Row],[Adj.AnnualRental]]*(1+$I119)^(5)) -> 3043462.8 | U119: =(Table_Provincial_GTAC3536[[#This Row],[Adj.AnnualRental]]*(1+$I119)^(6)) -> 3043462.8 | V119: =(Table_Provincial_GTAC3536[[#This Row],[Adj.AnnualRental]]*(1+$I119)^(7)) -> 3043462.8
A120: 164 | B120: =VLOOKUP($A120,DATA2!$A$2:$S$607,2,FALSE) -> KZN | C120: =VLOOKUP($A120,DATA2!$A$2:$S$607,3,FALSE) -> KwaZulu-Natal | D120: =VLOOKUP($A120,DATA2!$A$2:$S$607,4,FALSE) -> 78.31114695 | E120: =VLOOKUP($A120,DATA2!$A$2:$S$607,5,FALSE) -> 110 | F120: =VLOOKUP($A120,DATA2!$A$2:$S$607,6,FALSE) -> MAIN CENTRE | G120: =VLOOKUP($A120,DATA2!$A$2:$S$607,7,FALSE) -> 837 | H120: =VLOOKUP($A120,DATA2!$A$2:$S$607,8,FALSE) -> TRUE | I120: =VLOOKUP($A120,DATA2!$A$2:$S$607,9,FALSE) -> 0.08 | J120: 272534 | K120: =VLOOKUP($A120,DATA2!$A$2:$S$607,10,FALSE) -> 65546.43 | L120: =VLOOKUP($A120,DATA2!$A$2:$S$607,11,FALSE) -> 786557.16 | M120: =VLOOKUP($A120,DATA2!$A$2:$S$607,12,FALSE) -> 2015-10-01 | N120: =VLOOKUP($A120,DATA2!$A$2:$S$607,13,FALSE) -> 2020-09-30 | O120: =VLOOKUP($A120,DATA2!$A$2:$S$607,14,FALSE) -> No | P120: =IF(MATRIX2!D120=1,($Y$8-$X$2)/365*Table_Provincial_GTAC3536[[#This Row],[Adj.AnnualRental]]*MATRIX2!D120,($Y$8-$X$2)/365*Table_Provincial_GTAC3536[[#This Row],[Adj.AnnualRental]]) -> 258594.1348 | Q120: =(Table_Provincial_GTAC3536[[#This Row],[Adj.AnnualRental]]*(1+$I120)^(2)) -> 917440.2714 | R120: =(Table_Provincial_GTAC3536[[#This Row],[Adj.AnnualRental]]*(1+$I120)^(3)) -> 990835.4931 | S120: =(Table_Provincial_GTAC3536[[#This Row],[Adj.AnnualRental]]*(1+$I120)^(4)) -> 1070102.333 | T120: =(Table_Provincial_GTAC3536[[#This Row],[Adj.AnnualRental]]*(1+$I120)^(5)) -> 1155710.519 | U120: =(Table_Provincial_GTAC3536[[#This Row],[Adj.AnnualRental]]*(1+$I120)^(6)) -> 1248167.361 | V120: =(Table_Provincial_GTAC3536[[#This Row],[Adj.AnnualRental]]*(1+$I120)^(7)) -> 1348020.75
A121: 165 | B121: =VLOOKUP($A121,DATA2!$A$2:$S$607,2,FALSE) -> KZN | C121: =VLOOKUP($A121,DATA2!$A$2:$S$607,3,FALSE) -> KwaZulu-Natal | D121: =VLOOKUP($A121,DATA2!$A$2:$S$607,4,FALSE) -> 110.4891315 | E121: =VLOOKUP($A121,DATA2!$A$2:$S$607,5,FALSE) -> 77.5 | F121: =VLOOKUP($A121,DATA2!$A$2:$S$607,6,FALSE) -> VTSD | G121: =VLOOKUP($A121,DATA2!$A$2:$S$607,7,FALSE) -> 403 | H121: =VLOOKUP($A121,DATA2!$A$2:$S$607,8,FALSE) -> TRUE | I121: =VLOOKUP($A121,DATA2!$A$2:$S$607,9,FALSE) -> 0.08 | J121: 14079.27 | K121: =VLOOKUP($A121,DATA2!$A$2:$S$607,10,FALSE) -> 44527.12 | L121: =VLOOKUP($A121,DATA2!$A$2:$S$607,11,FALSE) -> 534325.44 | M121: =VLOOKUP($A121,DATA2!$A$2:$S$607,12,FALSE) -> 2016-06-01 | N121: =VLOOKUP($A121,DATA2!$A$2:$S$607,13,FALSE) -> 2021-05-31 | O121: =VLOOKUP($A121,DATA2!$A$2:$S$607,14,FALSE) -> No | P121: =IF(MATRIX2!D121=1,($Y$8-$X$2)/365*Table_Provincial_GTAC3536[[#This Row],[Adj.AnnualRental]]*MATRIX2!D121,($Y$8-$X$2)/365*Table_Provincial_GTAC3536[[#This Row],[Adj.AnnualRental]]) -> 175668.6378 | Q121: =(Table_Provincial_GTAC3536[[#This Row],[Adj.AnnualRental]]*(1+$I121)^(2)) -> 623237.1932 | R121: =(Table_Provincial_GTAC3536[[#This Row],[Adj.AnnualRental]]*(1+$I121)^(3)) -> 673096.1687 | S121: =(Table_Provincial_GTAC3536[[#This Row],[Adj.AnnualRental]]*(1+$I121)^(4)) -> 726943.8622 | T121: =(Table_Provincial_GTAC3536[[#This Row],[Adj.AnnualRental]]*(1+$I121)^(5)) -> 785099.3711 | U121: =(Table_Provincial_GTAC3536[[#This Row],[Adj.AnnualRental]]*(1+$I121)^(6)) -> 847907.3208 | V121: =(Table_Provincial_GTAC3536[[#This Row],[Adj.AnnualRental]]*(1+$I121)^(7)) -> 915739.9065
A122: 166 | B122: =VLOOKUP($A122,DATA2!$A$2:$S$607,2,FALSE) -> KZN | C122: =VLOOKUP($A122,DATA2!$A$2:$S$607,3,FALSE) -> KwaZulu-Natal | D122: =VLOOKUP($A122,DATA2!$A$2:$S$607,4,FALSE) -> 164.8809966 | E122: =VLOOKUP($A122,DATA2!$A$2:$S$607,5,FALSE) -> 110 | F122: =VLOOKUP($A122,DATA2!$A$2:$S$607,6,FALSE) -> MAIN CENTRE | G122: =VLOOKUP($A122,DATA2!$A$2:$S$607,7,FALSE) -> 2920 | H122: =VLOOKUP($A122,DATA2!$A$2:$S$607,8,FALSE) -> TRUE | I122: =VLOOKUP($A122,DATA2!$A$2:$S$607,9,FALSE) -> 0.07 | J122: 53508.92 | K122: =VLOOKUP($A122,DATA2!$A$2:$S$607,10,FALSE) -> 481452.51 | L122: =VLOOKUP($A122,DATA2!$A$2:$S$607,11,FALSE) -> 5777430.12 | M122: =VLOOKUP($A122,DATA2!$A$2:$S$607,12,FALSE) -> 2014-04-01 | N122: =VLOOKUP($A122,DATA2!$A$2:$S$607,13,FALSE) -> 2019-03-31 | O122: =VLOOKUP($A122,DATA2!$A$2:$S$607,14,FALSE) -> No | P122: =IF(MATRIX2!D122=1,($Y$8-$X$2)/365*Table_Provincial_GTAC3536[[#This Row],[Adj.AnnualRental]]*MATRIX2!D122,($Y$8-$X$2)/365*Table_Provincial_GTAC3536[[#This Row],[Adj.AnnualRental]]) -> 1899429.081 | Q122: =(Table_Provincial_GTAC3536[[#This Row],[Adj.AnnualRental]]*(1+$I122)^(2)) -> 6614579.744 | R122: =(Table_Provincial_GTAC3536[[#This Row],[Adj.AnnualRental]]*(1+$I122)^(3)) -> 7077600.326 | S122: =(Table_Provincial_GTAC3536[[#This Row],[Adj.AnnualRental]]*(1+$I122)^(4)) -> 7573032.349 | T122: =(Table_Provincial_GTAC3536[[#This Row],[Adj.AnnualRental]]*(1+$I122)^(5)) -> 8103144.614 | U122: =(Table_Provincial_GTAC3536[[#This Row],[Adj.AnnualRental]]*(1+$I122)^(6)) -> 8670364.737 | V122: =(Table_Provincial_GTAC3536[[#This Row],[Adj.AnnualRental]]*(1+$I122)^(7)) -> 9277290.268
A123: 169 | B123: =VLOOKUP($A123,DATA2!$A$2:$S$607,2,FALSE) -> KZN | C123: =VLOOKUP($A123,DATA2!$A$2:$S$607,3,FALSE) -> KwaZulu-Natal | D123: =VLOOKUP($A123,DATA2!$A$2:$S$607,4,FALSE) -> 136.4268164 | E123: =VLOOKUP($A123,DATA2!$A$2:$S$607,5,FALSE) -> 65 | F123: =VLOOKUP($A123,DATA2!$A$2:$S$607,6,FALSE) -> CBD | G123: =VLOOKUP($A123,DATA2!$A$2:$S$607,7,FALSE) -> 779 | H123: =VLOOKUP($A123,DATA2!$A$2:$S$607,8,FALSE) -> TRUE | I123: =VLOOKUP($A123,DATA2!$A$2:$S$607,9,FALSE) -> 0.08 | J123: 305909.65 | K123: =VLOOKUP($A123,DATA2!$A$2:$S$607,10,FALSE) -> 106276.49 | L123: =VLOOKUP($A123,DATA2!$A$2:$S$607,11,FALSE) -> 1275317.88 | M123: =VLOOKUP($A123,DATA2!$A$2:$S$607,12,FALSE) -> 2014-04-01 | N123: =VLOOKUP($A123,DATA2!$A$2:$S$607,13,FALSE) -> 2019-03-31 | O123: =VLOOKUP($A123,DATA2!$A$2:$S$607,14,FALSE) -> No | P123: =IF(MATRIX2!D123=1,($Y$8-$X$2)/365*Table_Provincial_GTAC3536[[#This Row],[Adj.AnnualRental]]*MATRIX2!D123,($Y$8-$X$2)/365*Table_Provincial_GTAC3536[[#This Row],[Adj.AnnualRental]]) -> 419282.5907 | Q123: =(Table_Provincial_GTAC3536[[#This Row],[Adj.AnnualRental]]*(1+$I123)^(2)) -> 1487530.775 | R123: =(Table_Provincial_GTAC3536[[#This Row],[Adj.AnnualRental]]*(1+$I123)^(3)) -> 1606533.237 | S123: =(Table_Provincial_GTAC3536[[#This Row],[Adj.AnnualRental]]*(1+$I123)^(4)) -> 1735055.896 | T123: =(Table_Provincial_GTAC3536[[#This Row],[Adj.AnnualRental]]*(1+$I123)^(5)) -> 1873860.368 | U123: =(Table_Provincial_GTAC3536[[#This Row],[Adj.AnnualRental]]*(1+$I123)^(6)) -> 2023769.197 | V123: =(Table_Provincial_GTAC3536[[#This Row],[Adj.AnnualRental]]*(1+$I123)^(7)) -> 2185670.733
A124: 171 | B124: =VLOOKUP($A124,DATA2!$A$2:$S$607,2,FALSE) -> KZN | C124: =VLOOKUP($A124,DATA2!$A$2:$S$607,3,FALSE) -> KwaZulu-Natal | D124: =VLOOKUP($A124,DATA2!$A$2:$S$607,4,FALSE) -> 59.91015873 | E124: =VLOOKUP($A124,DATA2!$A$2:$S$607,5,FALSE) -> 65 | F124: =VLOOKUP($A124,DATA2!$A$2:$S$607,6,FALSE) -> CBD | G124: =VLOOKUP($A124,DATA2!$A$2:$S$607,7,FALSE) -> 252 | H124: =VLOOKUP($A124,DATA2!$A$2:$S$607,8,FALSE) -> TRUE | I124: =VLOOKUP($A124,DATA2!$A$2:$S$607,9,FALSE) -> 0.08 | J124: 98710.56 | K124: =VLOOKUP($A124,DATA2!$A$2:$S$607,10,FALSE) -> 15097.36 | L124: =VLOOKUP($A124,DATA2!$A$2:$S$607,11,FALSE) -> 181168.32 | M124: =VLOOKUP($A124,DATA2!$A$2:$S$607,12,FALSE) -> 2015-09-01 | N124: =VLOOKUP($A124,DATA2!$A$2:$S$607,13,FALSE) -> 2018-07-31 | O124: =VLOOKUP($A124,DATA2!$A$2:$S$607,14,FALSE) -> No | P124: =IF(MATRIX2!D124=1,($Y$8-$X$2)/365*Table_Provincial_GTAC3536[[#This Row],[Adj.AnnualRental]]*MATRIX2!D124,($Y$8-$X$2)/365*Table_Provincial_GTAC3536[[#This Row],[Adj.AnnualRental]]) -> 59562.1874 | Q124: =(Table_Provincial_GTAC3536[[#This Row],[Adj.AnnualRental]]*(1+$I124)^(2)) -> 211314.7284 | R124: =(Table_Provincial_GTAC3536[[#This Row],[Adj.AnnualRental]]*(1+$I124)^(3)) -> 228219.9067 | S124: =(Table_Provincial_GTAC3536[[#This Row],[Adj.AnnualRental]]*(1+$I124)^(4)) -> 246477.4993 | T124: =(Table_Provincial_GTAC3536[[#This Row],[Adj.AnnualRental]]*(1+$I124)^(5)) -> 266195.6992 | U124: =(Table_Provincial_GTAC3536[[#This Row],[Adj.AnnualRental]]*(1+$I124)^(6)) -> 287491.3551 | V124: =(Table_Provincial_GTAC3536[[#This Row],[Adj.AnnualRental]]*(1+$I124)^(7)) -> 310490.6636
A125: 172 | B125: =VLOOKUP($A125,DATA2!$A$2:$S$607,2,FALSE) -> KZN | C125: =VLOOKUP($A125,DATA2!$A$2:$S$607,3,FALSE) -> KwaZulu-Natal | D125: =VLOOKUP($A125,DATA2!$A$2:$S$607,4,FALSE) -> 79.40261176 | E125: =VLOOKUP($A125,DATA2!$A$2:$S$607,5,FALSE) -> 65 | F125: =VLOOKUP($A125,DATA2!$A$2:$S$607,6,FALSE) -> VTSD | G125: =VLOOKUP($A125,DATA2!$A$2:$S$607,7,FALSE) -> 850 | H125: =VLOOKUP($A125,DATA2!$A$2:$S$607,8,FALSE) -> TRUE | I125: =VLOOKUP($A125,DATA2!$A$2:$S$607,9,FALSE) -> 0.1 | J125: 94182.97 | K125: =VLOOKUP($A125,DATA2!$A$2:$S$607,10,FALSE) -> 67492.22 | L125: =VLOOKUP($A125,DATA2!$A$2:$S$607,11,FALSE) -> 809906.64 | M125: =VLOOKUP($A125,DATA2!$A$2:$S$607,12,FALSE) -> 2013-11-01 | N125: =VLOOKUP($A125,DATA2!$A$2:$S$607,13,FALSE) -> 2018-10-31 | O125: =VLOOKUP($A125,DATA2!$A$2:$S$607,14,FALSE) -> No | P125: =IF(MATRIX2!D125=1,($Y$8-$X$2)/365*Table_Provincial_GTAC3536[[#This Row],[Adj.AnnualRental]]*MATRIX2!D125,($Y$8-$X$2)/365*Table_Provincial_GTAC3536[[#This Row],[Adj.AnnualRental]]) -> 266270.6762 | Q125: =(Table_Provincial_GTAC3536[[#This Row],[Adj.AnnualRental]]*(1+$I125)^(2)) -> 979987.0344 | R125: =(Table_Provincial_GTAC3536[[#This Row],[Adj.AnnualRental]]*(1+$I125)^(3)) -> 1077985.738 | S125: =(Table_Provincial_GTAC3536[[#This Row],[Adj.AnnualRental]]*(1+$I125)^(4)) -> 1185784.312 | T125: =(Table_Provincial_GTAC3536[[#This Row],[Adj.AnnualRental]]*(1+$I125)^(5)) -> 1304362.743 | U125: =(Table_Provincial_GTAC3536[[#This Row],[Adj.AnnualRental]]*(1+$I125)^(6)) -> 1434799.017 | V125: =(Table_Provincial_GTAC3536[[#This Row],[Adj.AnnualRental]]*(1+$I125)^(7)) -> 1578278.919
A126: 173 | B126: =VLOOKUP($A126,DATA2!$A$2:$S$607,2,FALSE) -> KZN | C126: =VLOOKUP($A126,DATA2!$A$2:$S$607,3,FALSE) -> KwaZulu-Natal | D126: =VLOOKUP($A126,DATA2!$A$2:$S$607,4,FALSE) -> 88.65605 | E126: =VLOOKUP($A126,DATA2!$A$2:$S$607,5,FALSE) -> 77.5 | F126: =VLOOKUP($A126,DATA2!$A$2:$S$607,6,FALSE) -> VTSD | G126: =VLOOKUP($A126,DATA2!$A$2:$S$607,7,FALSE) -> 1800 | H126: =VLOOKUP($A126,DATA2!$A$2:$S$607,8,FALSE) -> TRUE | I126: =VLOOKUP($A126,DATA2!$A$2:$S$607,9,FALSE) -> 0.07 | J126: 190166.82 | K126: =VLOOKUP($A126,DATA2!$A$2:$S$607,10,FALSE) -> 159580.89 | L126: =VLOOKUP($A126,DATA2!$A$2:$S$607,11,FALSE) -> 1914970.68 | M126: =VLOOKUP($A126,DATA2!$A$2:$S$607,12,FALSE) -> 2012-12-01 | N126: =VLOOKUP($A126,DATA2!$A$2:$S$607,13,FALSE) -> 2017-11-30 | O126: =VLOOKUP($A126,DATA2!$A$2:$S$607,14,FALSE) -> No | P126: =IF(MATRIX2!D126=1,($Y$8-$X$2)/365*Table_Provincial_GTAC3536[[#This Row],[Adj.AnnualRental]]*MATRIX2!D126,($Y$8-$X$2)/365*Table_Provincial_GTAC3536[[#This Row],[Adj.AnnualRental]]) -> 629579.4016 | Q126: =(Table_Provincial_GTAC3536[[#This Row],[Adj.AnnualRental]]*(1+$I126)^(2)) -> 2192449.932 | R126: =(Table_Provincial_GTAC3536[[#This Row],[Adj.AnnualRental]]*(1+$I126)^(3)) -> 2345921.427 | S126: =(Table_Provincial_GTAC3536[[#This Row],[Adj.AnnualRental]]*(1+$I126)^(4)) -> 2510135.927 | T126: =(Table_Provincial_GTAC3536[[#This Row],[Adj.AnnualRental]]*(1+$I126)^(5)) -> 2685845.441 | U126: =(Table_Provincial_GTAC3536[[#This Row],[Adj.AnnualRental]]*(1+$I126)^(6)) -> 2873854.622 | V126: =(Table_Provincial_GTAC3536[[#This Row],[Adj.AnnualRental]]*(1+$I126)^(7)) -> 3075024.446
A127: 174 | B127: =VLOOKUP($A127,DATA2!$A$2:$S$607,2,FALSE) -> KZN | C127: =VLOOKUP($A127,DATA2!$A$2:$S$607,3,FALSE) -> KwaZulu-Natal | D127: =VLOOKUP($A127,DATA2!$A$2:$S$607,4,FALSE) -> 149.1033457 | E127: =VLOOKUP($A127,DATA2!$A$2:$S$607,5,FALSE) -> 77.5 | F127: =VLOOKUP($A127,DATA2!$A$2:$S$607,6,FALSE) -> VTSD | G127: =VLOOKUP($A127,DATA2!$A$2:$S$607,7,FALSE) -> 538 | H127: =VLOOKUP($A127,DATA2!$A$2:$S$607,8,FALSE) -> TRUE | I127: =VLOOKUP($A127,DATA2!$A$2:$S$607,9,FALSE) -> 0.1 | J127: 220054.36 | K127: =VLOOKUP($A127,DATA2!$A$2:$S$607,10,FALSE) -> 80217.6 | L127: =VLOOKUP($A127,DATA2!$A$2:$S$607,11,FALSE) -> 962611.2 | M127: =VLOOKUP($A127,DATA2!$A$2:$S$607,12,FALSE) -> 2014-10-01 | N127: =VLOOKUP($A127,DATA2!$A$2:$S$607,13,FALSE) -> 2019-09-30 | O127: =VLOOKUP($A127,DATA2!$A$2:$S$607,14,FALSE) -> No | P127: =IF(MATRIX2!D127=1,($Y$8-$X$2)/365*Table_Provincial_GTAC3536[[#This Row],[Adj.AnnualRental]]*MATRIX2!D127,($Y$8-$X$2)/365*Table_Provincial_GTAC3536[[#This Row],[Adj.AnnualRental]]) -> 316474.9151 | Q127: =(Table_Provincial_GTAC3536[[#This Row],[Adj.AnnualRental]]*(1+$I127)^(2)) -> 1164759.552 | R127: =(Table_Provincial_GTAC3536[[#This Row],[Adj.AnnualRental]]*(1+$I127)^(3)) -> 1281235.507 | S127: =(Table_Provincial_GTAC3536[[#This Row],[Adj.AnnualRental]]*(1+$I127)^(4)) -> 1409359.058 | T127: =(Table_Provincial_GTAC3536[[#This Row],[Adj.AnnualRental]]*(1+$I127)^(5)) -> 1550294.964 | U127: =(Table_Provincial_GTAC3536[[#This Row],[Adj.AnnualRental]]*(1+$I127)^(6)) -> 1705324.46 | V127: =(Table_Provincial_GTAC3536[[#This Row],[Adj.AnnualRental]]*(1+$I127)^(7)) -> 1875856.906
A128: 175 | B128: =VLOOKUP($A128,DATA2!$A$2:$S$607,2,FALSE) -> KZN | C128: =VLOOKUP($A128,DATA2!$A$2:$S$607,3,FALSE) -> KwaZulu-Natal | D128: =VLOOKUP($A128,DATA2!$A$2:$S$607,4,FALSE) -> 126.2990485 | E128: =VLOOKUP($A128,DATA2!$A$2:$S$607,5,FALSE) -> 65 | F128: =VLOOKUP($A128,DATA2!$A$2:$S$607,6,FALSE) -> CBD | G128: =VLOOKUP($A128,DATA2!$A$2:$S$607,7,FALSE) -> 3342 | H128: =VLOOKUP($A128,DATA2!$A$2:$S$607,8,FALSE) -> TRUE | I128: =VLOOKUP($A128,DATA2!$A$2:$S$607,9,FALSE) -> 0.08 | J128: 101623.61 | K128: =VLOOKUP($A128,DATA2!$A$2:$S$607,10,FALSE) -> 422091.42 | L128: =VLOOKUP($A128,DATA2!$A$2:$S$607,11,FALSE) -> 5065097.04 | M128: =VLOOKUP($A128,DATA2!$A$2:$S$607,12,FALSE) -> 2016-08-01 | N128: =VLOOKUP($A128,DATA2!$A$2:$S$607,13,FALSE) -> 2019-07-31 | O128: =VLOOKUP($A128,DATA2!$A$2:$S$607,14,FALSE) -> No | P128: =IF(MATRIX2!D128=1,($Y$8-$X$2)/365*Table_Provincial_GTAC3536[[#This Row],[Adj.AnnualRental]]*MATRIX2!D128,($Y$8-$X$2)/365*Table_Provincial_GTAC3536[[#This Row],[Adj.AnnualRental]]) -> 1665237.383 | Q128: =(Table_Provincial_GTAC3536[[#This Row],[Adj.AnnualRental]]*(1+$I128)^(2)) -> 5907929.187 | R128: =(Table_Provincial_GTAC3536[[#This Row],[Adj.AnnualRental]]*(1+$I128)^(3)) -> 6380563.522 | S128: =(Table_Provincial_GTAC3536[[#This Row],[Adj.AnnualRental]]*(1+$I128)^(4)) -> 6891008.604 | T128: =(Table_Provincial_GTAC3536[[#This Row],[Adj.AnnualRental]]*(1+$I128)^(5)) -> 7442289.293 | U128: =(Table_Provincial_GTAC3536[[#This Row],[Adj.AnnualRental]]*(1+$I128)^(6)) -> 8037672.436 | V128: =(Table_Provincial_GTAC3536[[#This Row],[Adj.AnnualRental]]*(1+$I128)^(7)) -> 8680686.231
A129: 177 | B129: =VLOOKUP($A129,DATA2!$A$2:$S$607,2,FALSE) -> KZN | C129: =VLOOKUP($A129,DATA2!$A$2:$S$607,3,FALSE) -> KwaZulu-Natal | D129: =VLOOKUP($A129,DATA2!$A$2:$S$607,4,FALSE) -> 107.0658875 | E129: =VLOOKUP($A129,DATA2!$A$2:$S$607,5,FALSE) -> 65 | F129: =VLOOKUP($A129,DATA2!$A$2:$S$607,6,FALSE) -> MAIN CENTRE | G129: =VLOOKUP($A129,DATA2!$A$2:$S$607,7,FALSE) -> 1600 | H129: =VLOOKUP($A129,DATA2!$A$2:$S$607,8,FALSE) -> TRUE | I129: =VLOOKUP($A129,DATA2!$A$2:$S$607,9,FALSE) -> 0.08 | J129: 2247349.76 | K129: =VLOOKUP($A129,DATA2!$A$2:$S$607,10,FALSE) -> 171305.42 | L129: =VLOOKUP($A129,DATA2!$A$2:$S$607,11,FALSE) -> 2055665.04 | M129: =VLOOKUP($A129,DATA2!$A$2:$S$607,12,FALSE) -> 2013-11-18 | N129: =VLOOKUP($A129,DATA2!$A$2:$S$607,13,FALSE) -> 2018-11-17 | O129: =VLOOKUP($A129,DATA2!$A$2:$S$607,14,FALSE) -> No | P129: =IF(MATRIX2!D129=1,($Y$8-$X$2)/365*Table_Provincial_GTAC3536[[#This Row],[Adj.AnnualRental]]*MATRIX2!D129,($Y$8-$X$2)/365*Table_Provincial_GTAC3536[[#This Row],[Adj.AnnualRental]]) -> 675835.0816 | Q129: =(Table_Provincial_GTAC3536[[#This Row],[Adj.AnnualRental]]*(1+$I129)^(2)) -> 2397727.703 | R129: =(Table_Provincial_GTAC3536[[#This Row],[Adj.AnnualRental]]*(1+$I129)^(3)) -> 2589545.919 | S129: =(Table_Provincial_GTAC3536[[#This Row],[Adj.AnnualRental]]*(1+$I129)^(4)) -> 2796709.592 | T129: =(Table_Provincial_GTAC3536[[#This Row],[Adj.AnnualRental]]*(1+$I129)^(5)) -> 3020446.36 | U129: =(Table_Provincial_GTAC3536[[#This Row],[Adj.AnnualRental]]*(1+$I129)^(6)) -> 3262082.069 | V129: =(Table_Provincial_GTAC3536[[#This Row],[Adj.AnnualRental]]*(1+$I129)^(7)) -> 3523048.634
A130: 179 | B130: =VLOOKUP($A130,DATA2!$A$2:$S$607,2,FALSE) -> KZN | C130: =VLOOKUP($A130,DATA2!$A$2:$S$607,3,FALSE) -> KwaZulu-Natal | D130: =VLOOKUP($A130,DATA2!$A$2:$S$607,4,FALSE) -> 125.4 | E130: =VLOOKUP($A130,DATA2!$A$2:$S$607,5,FALSE) -> 77.5 | F130: =VLOOKUP($A130,DATA2!$A$2:$S$607,6,FALSE) -> VTSD | G130: =VLOOKUP($A130,DATA2!$A$2:$S$607,7,FALSE) -> 744.05 | H130: =VLOOKUP($A130,DATA2!$A$2:$S$607,8,FALSE) -> TRUE | I130: =VLOOKUP($A130,DATA2!$A$2:$S$607,9,FALSE) -> 0.07 | J130: 90631.14 | K130: =VLOOKUP($A130,DATA2!$A$2:$S$607,10,FALSE) -> 93303.87 | L130: =VLOOKUP($A130,DATA2!$A$2:$S$607,11,FALSE) -> 1119646.44 | M130: =VLOOKUP($A130,DATA2!$A$2:$S$607,12,FALSE) -> 2016-01-01 | N130: =VLOOKUP($A130,DATA2!$A$2:$S$607,13,FALSE) -> 2020-12-31 | O130: =VLOOKUP($A130,DATA2!$A$2:$S$607,14,FALSE) -> No | P130: =IF(MATRIX2!D130=1,($Y$8-$X$2)/365*Table_Provincial_GTAC3536[[#This Row],[Adj.AnnualRental]]*MATRIX2!D130,($Y$8-$X$2)/365*Table_Provincial_GTAC3536[[#This Row],[Adj.AnnualRental]]) -> 368102.9392 | Q130: =(Table_Provincial_GTAC3536[[#This Row],[Adj.AnnualRental]]*(1+$I130)^(2)) -> 1281883.209 | R130: =(Table_Provincial_GTAC3536[[#This Row],[Adj.AnnualRental]]*(1+$I130)^(3)) -> 1371615.034 | S130: =(Table_Provincial_GTAC3536[[#This Row],[Adj.AnnualRental]]*(1+$I130)^(4)) -> 1467628.086 | T130: =(Table_Provincial_GTAC3536[[#This Row],[Adj.AnnualRental]]*(1+$I130)^(5)) -> 1570362.052 | U130: =(Table_Provincial_GTAC3536[[#This Row],[Adj.AnnualRental]]*(1+$I130)^(6)) -> 1680287.396 | V130: =(Table_Provincial_GTAC3536[[#This Row],[Adj.AnnualRental]]*(1+$I130)^(7)) -> 1797907.514
A131: 180 | B131: =VLOOKUP($A131,DATA2!$A$2:$S$607,2,FALSE) -> KZN | C131: =VLOOKUP($A131,DATA2!$A$2:$S$607,3,FALSE) -> KwaZulu-Natal | D131: =VLOOKUP($A131,DATA2!$A$2:$S$607,4,FALSE) -> 101.2915747 | E131: =VLOOKUP($A131,DATA2!$A$2:$S$607,5,FALSE) -> 100 | F131: =VLOOKUP($A131,DATA2!$A$2:$S$607,6,FALSE) -> VTSD | G131: =VLOOKUP($A131,DATA2!$A$2:$S$607,7,FALSE) -> 1350.7 | H131: =VLOOKUP($A131,DATA2!$A$2:$S$607,8,FALSE) -> TRUE | I131: =VLOOKUP($A131,DATA2!$A$2:$S$607,9,FALSE) -> 0.1 | J131: 295055.94 | K131: =VLOOKUP($A131,DATA2!$A$2:$S$607,10,FALSE) -> 136814.53 | L131: =VLOOKUP($A131,DATA2!$A$2:$S$607,11,FALSE) -> 1641774.36 | M131: =VLOOKUP($A131,DATA2!$A$2:$S$607,12,FALSE) -> 2014-12-01 | N131: =VLOOKUP($A131,DATA2!$A$2:$S$607,13,FALSE) -> 2019-11-30 | O131: =VLOOKUP($A131,DATA2!$A$2:$S$607,14,FALSE) -> No | P131: =IF(MATRIX2!D131=1,($Y$8-$X$2)/365*Table_Provincial_GTAC3536[[#This Row],[Adj.AnnualRental]]*MATRIX2!D131,($Y$8-$X$2)/365*Table_Provincial_GTAC3536[[#This Row],[Adj.AnnualRental]]) -> 539761.4334 | Q131: =(Table_Provincial_GTAC3536[[#This Row],[Adj.AnnualRental]]*(1+$I131)^(2)) -> 1986546.976 | R131: =(Table_Provincial_GTAC3536[[#This Row],[Adj.AnnualRental]]*(1+$I131)^(3)) -> 2185201.673 | S131: =(Table_Provincial_GTAC3536[[#This Row],[Adj.AnnualRental]]*(1+$I131)^(4)) -> 2403721.84 | T131: =(Table_Provincial_GTAC3536[[#This Row],[Adj.AnnualRental]]*(1+$I131)^(5)) -> 2644094.025 | U131: =(Table_Provincial_GTAC3536[[#This Row],[Adj.AnnualRental]]*(1+$I131)^(6)) -> 2908503.427 | V131: =(Table_Provincial_GTAC3536[[#This Row],[Adj.AnnualRental]]*(1+$I131)^(7)) -> 3199353.77
A132: 181 | B132: =VLOOKUP($A132,DATA2!$A$2:$S$607,2,FALSE) -> KZN | C132: =VLOOKUP($A132,DATA2!$A$2:$S$607,3,FALSE) -> KwaZulu-Natal | D132: =VLOOKUP($A132,DATA2!$A$2:$S$607,4,FALSE) -> 94.49956407 | E132: =VLOOKUP($A132,DATA2!$A$2:$S$607,5,FALSE) -> 107.5 | F132: =VLOOKUP($A132,DATA2!$A$2:$S$607,6,FALSE) -> VTSD | G132: =VLOOKUP($A132,DATA2!$A$2:$S$607,7,FALSE) -> 757 | H132: =VLOOKUP($A132,DATA2!$A$2:$S$607,8,FALSE) -> TRUE | I132: =VLOOKUP($A132,DATA2!$A$2:$S$607,9,FALSE) -> 0.05 | J132: 154433.52 | K132: =VLOOKUP($A132,DATA2!$A$2:$S$607,10,FALSE) -> 71536.17 | L132: =VLOOKUP($A132,DATA2!$A$2:$S$607,11,FALSE) -> 858434.04 | M132: =VLOOKUP($A132,DATA2!$A$2:$S$607,12,FALSE) -> 2014-09-01 | N132: =VLOOKUP($A132,DATA2!$A$2:$S$607,13,FALSE) -> 2019-08-31 | O132: =VLOOKUP($A132,DATA2!$A$2:$S$607,14,FALSE) -> No | P132: =IF(MATRIX2!D132=1,($Y$8-$X$2)/365*Table_Provincial_GTAC3536[[#This Row],[Adj.AnnualRental]]*MATRIX2!D132,($Y$8-$X$2)/365*Table_Provincial_GTAC3536[[#This Row],[Adj.AnnualRental]]) -> 282224.8899 | Q132: =(Table_Provincial_GTAC3536[[#This Row],[Adj.AnnualRental]]*(1+$I132)^(2)) -> 946423.5291 | R132: =(Table_Provincial_GTAC3536[[#This Row],[Adj.AnnualRental]]*(1+$I132)^(3)) -> 993744.7056 | S132: =(Table_Provincial_GTAC3536[[#This Row],[Adj.AnnualRental]]*(1+$I132)^(4)) -> 1043431.941 | T132: =(Table_Provincial_GTAC3536[[#This Row],[Adj.AnnualRental]]*(1+$I132)^(5)) -> 1095603.538 | U132: =(Table_Provincial_GTAC3536[[#This Row],[Adj.AnnualRental]]*(1+$I132)^(6)) -> 1150383.715 | V132: =(Table_Provincial_GTAC3536[[#This Row],[Adj.AnnualRental]]*(1+$I132)^(7)) -> 1207902.901
A133: 184 | B133: =VLOOKUP($A133,DATA2!$A$2:$S$607,2,FALSE) -> KZN | C133: =VLOOKUP($A133,DATA2!$A$2:$S$607,3,FALSE) -> KwaZulu-Natal | D133: =VLOOKUP($A133,DATA2!$A$2:$S$607,4,FALSE) -> 136.714892 | E133: =VLOOKUP($A133,DATA2!$A$2:$S$607,5,FALSE) -> 110 | F133: =VLOOKUP($A133,DATA2!$A$2:$S$607,6,FALSE) -> CBD | G133: =VLOOKUP($A133,DATA2!$A$2:$S$607,7,FALSE) -> 2615.5 | H133: =VLOOKUP($A133,DATA2!$A$2:$S$607,8,FALSE) -> TRUE | I133: =VLOOKUP($A133,DATA2!$A$2:$S$607,9,FALSE) -> 0.07 | J133: 132988.25 | K133: =VLOOKUP($A133,DATA2!$A$2:$S$607,10,FALSE) -> 357577.8 | L133: =VLOOKUP($A133,DATA2!$A$2:$S$607,11,FALSE) -> 4290933.6 | M133: =VLOOKUP($A133,DATA2!$A$2:$S$607,12,FALSE) -> 2014-07-01 | N133: =VLOOKUP($A133,DATA2!$A$2:$S$607,13,FALSE) -> 2019-06-30 | O133: =VLOOKUP($A133,DATA2!$A$2:$S$607,14,FALSE) -> No | P133: =IF(MATRIX2!D133=1,($Y$8-$X$2)/365*Table_Provincial_GTAC3536[[#This Row],[Adj.AnnualRental]]*MATRIX2!D133,($Y$8-$X$2)/365*Table_Provincial_GTAC3536[[#This Row],[Adj.AnnualRental]]) -> 1410717.896 | Q133: =(Table_Provincial_GTAC3536[[#This Row],[Adj.AnnualRental]]*(1+$I133)^(2)) -> 4912689.879 | R133: =(Table_Provincial_GTAC3536[[#This Row],[Adj.AnnualRental]]*(1+$I133)^(3)) -> 5256578.17 | S133: =(Table_Provincial_GTAC3536[[#This Row],[Adj.AnnualRental]]*(1+$I133)^(4)) -> 5624538.642 | T133: =(Table_Provincial_GTAC3536[[#This Row],[Adj.AnnualRental]]*(1+$I133)^(5)) -> 6018256.347 | U133: =(Table_Provincial_GTAC3536[[#This Row],[Adj.AnnualRental]]*(1+$I133)^(6)) -> 6439534.291 | V133: =(Table_Provincial_GTAC3536[[#This Row],[Adj.AnnualRental]]*(1+$I133)^(7)) -> 6890301.692
A134: 185 | B134: =VLOOKUP($A134,DATA2!$A$2:$S$607,2,FALSE) -> KZN | C134: =VLOOKUP($A134,DATA2!$A$2:$S$607,3,FALSE) -> KwaZulu-Natal | D134: =VLOOKUP($A134,DATA2!$A$2:$S$607,4,FALSE) -> 98.9277981 | E134: =VLOOKUP($A134,DATA2!$A$2:$S$607,5,FALSE) -> 110 | F134: =VLOOKUP($A134,DATA2!$A$2:$S$607,6,FALSE) -> CBD | G134: =VLOOKUP($A134,DATA2!$A$2:$S$607,7,FALSE) -> 2734 | H134: =VLOOKUP($A134,DATA2!$A$2:$S$607,8,FALSE) -> TRUE | I134: =VLOOKUP($A134,DATA2!$A$2:$S$607,9,FALSE) -> 0.07 | J134: 196079.4 | K134: =VLOOKUP($A134,DATA2!$A$2:$S$607,10,FALSE) -> 270468.6 | L134: =VLOOKUP($A134,DATA2!$A$2:$S$607,11,FALSE) -> 3245623.2 | M134: =VLOOKUP($A134,DATA2!$A$2:$S$607,12,FALSE) -> 2016-07-01 | N134: =VLOOKUP($A134,DATA2!$A$2:$S$607,13,FALSE) -> 2019-06-30 | O134: =VLOOKUP($A134,DATA2!$A$2:$S$607,14,FALSE) -> No | P134: =IF(MATRIX2!D134=1,($Y$8-$X$2)/365*Table_Provincial_GTAC3536[[#This Row],[Adj.AnnualRental]]*MATRIX2!D134,($Y$8-$X$2)/365*Table_Provincial_GTAC3536[[#This Row],[Adj.AnnualRental]]) -> 1067054.203 | Q134: =(Table_Provincial_GTAC3536[[#This Row],[Adj.AnnualRental]]*(1+$I134)^(2)) -> 3715914.002 | R134: =(Table_Provincial_GTAC3536[[#This Row],[Adj.AnnualRental]]*(1+$I134)^(3)) -> 3976027.982 | S134: =(Table_Provincial_GTAC3536[[#This Row],[Adj.AnnualRental]]*(1+$I134)^(4)) -> 4254349.941 | T134: =(Table_Provincial_GTAC3536[[#This Row],[Adj.AnnualRental]]*(1+$I134)^(5)) -> 4552154.436 | U134: =(Table_Provincial_GTAC3536[[#This Row],[Adj.AnnualRental]]*(1+$I134)^(6)) -> 4870805.247 | V134: =(Table_Provincial_GTAC3536[[#This Row],[Adj.AnnualRental]]*(1+$I134)^(7)) -> 5211761.614
A135: 186 | B135: =VLOOKUP($A135,DATA2!$A$2:$S$607,2,FALSE) -> KZN | C135: =VLOOKUP($A135,DATA2!$A$2:$S$607,3,FALSE) -> KwaZulu-Natal | D135: =VLOOKUP($A135,DATA2!$A$2:$S$607,4,FALSE) -> 134.4655196 | E135: =VLOOKUP($A135,DATA2!$A$2:$S$607,5,FALSE) -> 110 | F135: =VLOOKUP($A135,DATA2!$A$2:$S$607,6,FALSE) -> MAIN CENTRE | G135: =VLOOKUP($A135,DATA2!$A$2:$S$607,7,FALSE) -> 4975 | H135: =VLOOKUP($A135,DATA2!$A$2:$S$607,8,FALSE) -> TRUE | I135: =VLOOKUP($A135,DATA2!$A$2:$S$607,9,FALSE) -> 0.075 | J135: 161283.9 | K135: =VLOOKUP($A135,DATA2!$A$2:$S$607,10,FALSE) -> 668965.96 | L135: =VLOOKUP($A135,DATA2!$A$2:$S$607,11,FALSE) -> 8027591.52 | M135: =VLOOKUP($A135,DATA2!$A$2:$S$607,12,FALSE) -> 2016-07-01 | N135: =VLOOKUP($A135,DATA2!$A$2:$S$607,13,FALSE) -> 2019-06-30 | O135: =VLOOKUP($A135,DATA2!$A$2:$S$607,14,FALSE) -> No | P135: =IF(MATRIX2!D135=1,($Y$8-$X$2)/365*Table_Provincial_GTAC3536[[#This Row],[Adj.AnnualRental]]*MATRIX2!D135,($Y$8-$X$2)/365*Table_Provincial_GTAC3536[[#This Row],[Adj.AnnualRental]]) -> 2639208.171 | Q135: =(Table_Provincial_GTAC3536[[#This Row],[Adj.AnnualRental]]*(1+$I135)^(2)) -> 9276885.45 | R135: =(Table_Provincial_GTAC3536[[#This Row],[Adj.AnnualRental]]*(1+$I135)^(3)) -> 9972651.859 | S135: =(Table_Provincial_GTAC3536[[#This Row],[Adj.AnnualRental]]*(1+$I135)^(4)) -> 10720600.75 | T135: =(Table_Provincial_GTAC3536[[#This Row],[Adj.AnnualRental]]*(1+$I135)^(5)) -> 11524645.8 | U135: =(Table_Provincial_GTAC3536[[#This Row],[Adj.AnnualRental]]*(1+$I135)^(6)) -> 12388994.24 | V135: =(Table_Provincial_GTAC3536[[#This Row],[Adj.AnnualRental]]*(1+$I135)^(7)) -> 13318168.81
A136: 187 | B136: =VLOOKUP($A136,DATA2!$A$2:$S$607,2,FALSE) -> KZN | C136: =VLOOKUP($A136,DATA2!$A$2:$S$607,3,FALSE) -> KwaZulu-Natal | D136: =VLOOKUP($A136,DATA2!$A$2:$S$607,4,FALSE) -> 129.632208 | E136: =VLOOKUP($A136,DATA2!$A$2:$S$607,5,FALSE) -> 87.5 | F136: =VLOOKUP($A136,DATA2!$A$2:$S$607,6,FALSE) -> VTSD | G136: =VLOOKUP($A136,DATA2!$A$2:$S$607,7,FALSE) -> 625 | H136: =VLOOKUP($A136,DATA2!$A$2:$S$607,8,FALSE) -> TRUE | I136: =VLOOKUP($A136,DATA2!$A$2:$S$607,9,FALSE) -> 0 | J136: 255293.33 | K136: =VLOOKUP($A136,DATA2!$A$2:$S$607,10,FALSE) -> 81020.13 | L136: =VLOOKUP($A136,DATA2!$A$2:$S$607,11,FALSE) -> 972241.56 | M136: =VLOOKUP($A136,DATA2!$A$2:$S$607,12,FALSE) -> 2016-09-01 | N136: =VLOOKUP($A136,DATA2!$A$2:$S$607,13,FALSE) -> 2017-08-31 | O136: =VLOOKUP($A136,DATA2!$A$2:$S$607,14,FALSE) -> No | P136: =IF(MATRIX2!D136=1,($Y$8-$X$2)/365*Table_Provincial_GTAC3536[[#This Row],[Adj.AnnualRental]]*MATRIX2!D136,($Y$8-$X$2)/365*Table_Provincial_GTAC3536[[#This Row],[Adj.AnnualRental]]) -> 319641.0608 | Q136: =(Table_Provincial_GTAC3536[[#This Row],[Adj.AnnualRental]]*(1+$I136)^(2)) -> 972241.56 | R136: =(Table_Provincial_GTAC3536[[#This Row],[Adj.AnnualRental]]*(1+$I136)^(3)) -> 972241.56 | S136: =(Table_Provincial_GTAC3536[[#This Row],[Adj.AnnualRental]]*(1+$I136)^(4)) -> 972241.56 | T136: =(Table_Provincial_GTAC3536[[#This Row],[Adj.AnnualRental]]*(1+$I136)^(5)) -> 972241.56 | U136: =(Table_Provincial_GTAC3536[[#This Row],[Adj.AnnualRental]]*(1+$I136)^(6)) -> 972241.56 | V136: =(Table_Provincial_GTAC3536[[#This Row],[Adj.AnnualRental]]*(1+$I136)^(7)) -> 972241.56
A137: 188 | B137: =VLOOKUP($A137,DATA2!$A$2:$S$607,2,FALSE) -> KZN | C137: =VLOOKUP($A137,DATA2!$A$2:$S$607,3,FALSE) -> KwaZulu-Natal | D137: =VLOOKUP($A137,DATA2!$A$2:$S$607,4,FALSE) -> 85.18519444 | E137: =VLOOKUP($A137,DATA2!$A$2:$S$607,5,FALSE) -> 110 | F137: =VLOOKUP($A137,DATA2!$A$2:$S$607,6,FALSE) -> VTSD | G137: =VLOOKUP($A137,DATA2!$A$2:$S$607,7,FALSE) -> 720 | H137: =VLOOKUP($A137,DATA2!$A$2:$S$607,8,FALSE) -> TRUE | I137: =VLOOKUP($A137,DATA2!$A$2:$S$607,9,FALSE) -> 0.08 | J137: 912597.64 | K137: =VLOOKUP($A137,DATA2!$A$2:$S$607,10,FALSE) -> 61333.34 | L137: =VLOOKUP($A137,DATA2!$A$2:$S$607,11,FALSE) -> 736000.08 | M137: =VLOOKUP($A137,DATA2!$A$2:$S$607,12,FALSE) -> 2012-09-01 | N137: =VLOOKUP($A137,DATA2!$A$2:$S$607,13,FALSE) -> 2017-08-30 | O137: =VLOOKUP($A137,DATA2!$A$2:$S$607,14,FALSE) -> No | P137: =IF(MATRIX2!D137=1,($Y$8-$X$2)/365*Table_Provincial_GTAC3536[[#This Row],[Adj.AnnualRental]]*MATRIX2!D137,($Y$8-$X$2)/365*Table_Provincial_GTAC3536[[#This Row],[Adj.AnnualRental]]) -> 241972.629 | Q137: =(Table_Provincial_GTAC3536[[#This Row],[Adj.AnnualRental]]*(1+$I137)^(2)) -> 858470.4933 | R137: =(Table_Provincial_GTAC3536[[#This Row],[Adj.AnnualRental]]*(1+$I137)^(3)) -> 927148.1328 | S137: =(Table_Provincial_GTAC3536[[#This Row],[Adj.AnnualRental]]*(1+$I137)^(4)) -> 1001319.983 | T137: =(Table_Provincial_GTAC3536[[#This Row],[Adj.AnnualRental]]*(1+$I137)^(5)) -> 1081425.582 | U137: =(Table_Provincial_GTAC3536[[#This Row],[Adj.AnnualRental]]*(1+$I137)^(6)) -> 1167939.629 | V137: =(Table_Provincial_GTAC3536[[#This Row],[Adj.AnnualRental]]*(1+$I137)^(7)) -> 1261374.799
A138: 190 | B138: =VLOOKUP($A138,DATA2!$A$2:$S$607,2,FALSE) -> KZN | C138: =VLOOKUP($A138,DATA2!$A$2:$S$607,3,FALSE) -> KwaZulu-Natal | D138: =VLOOKUP($A138,DATA2!$A$2:$S$607,4,FALSE) -> 51.25 | E138: =VLOOKUP($A138,DATA2!$A$2:$S$607,5,FALSE) -> 77.5 | F138: =VLOOKUP($A138,DATA2!$A$2:$S$607,6,FALSE) -> VTSD | G138: =VLOOKUP($A138,DATA2!$A$2:$S$607,7,FALSE) -> 250 | H138: =VLOOKUP($A138,DATA2!$A$2:$S$607,8,FALSE) -> TRUE | I138: =VLOOKUP($A138,DATA2!$A$2:$S$607,9,FALSE) -> 0.1 | J138: 15090.87 | K138: =VLOOKUP($A138,DATA2!$A$2:$S$607,10,FALSE) -> 12812.5 | L138: =VLOOKUP($A138,DATA2!$A$2:$S$607,11,FALSE) -> 153750 | M138: =VLOOKUP($A138,DATA2!$A$2:$S$607,12,FALSE) -> 2015-04-01 | N138: =VLOOKUP($A138,DATA2!$A$2:$S$607,13,FALSE) -> 2018-03-31 | O138: =VLOOKUP($A138,DATA2!$A$2:$S$607,14,FALSE) -> No | P138: =IF(MATRIX2!D138=1,($Y$8-$X$2)/365*Table_Provincial_GTAC3536[[#This Row],[Adj.AnnualRental]]*MATRIX2!D138,($Y$8-$X$2)/365*Table_Provincial_GTAC3536[[#This Row],[Adj.AnnualRental]]) -> 50547.94521 | Q138: =(Table_Provincial_GTAC3536[[#This Row],[Adj.AnnualRental]]*(1+$I138)^(2)) -> 186037.5 | R138: =(Table_Provincial_GTAC3536[[#This Row],[Adj.AnnualRental]]*(1+$I138)^(3)) -> 204641.25 | S138: =(Table_Provincial_GTAC3536[[#This Row],[Adj.AnnualRental]]*(1+$I138)^(4)) -> 225105.375 | T138: =(Table_Provincial_GTAC3536[[#This Row],[Adj.AnnualRental]]*(1+$I138)^(5)) -> 247615.9125 | U138: =(Table_Provincial_GTAC3536[[#This Row],[Adj.AnnualRental]]*(1+$I138)^(6)) -> 272377.5038 | V138: =(Table_Provincial_GTAC3536[[#This Row],[Adj.AnnualRental]]*(1+$I138)^(7)) -> 299615.2541
A139: 191 | B139: =VLOOKUP($A139,DATA2!$A$2:$S$607,2,FALSE) -> KZN | C139: =VLOOKUP($A139,DATA2!$A$2:$S$607,3,FALSE) -> KwaZulu-Natal | D139: =VLOOKUP($A139,DATA2!$A$2:$S$607,4,FALSE) -> 116.296149 | E139: =VLOOKUP($A139,DATA2!$A$2:$S$607,5,FALSE) -> 77.5 | F139: =VLOOKUP($A139,DATA2!$A$2:$S$607,6,FALSE) -> VTSD | G139: =VLOOKUP($A139,DATA2!$A$2:$S$607,7,FALSE) -> 953 | H139: =VLOOKUP($A139,DATA2!$A$2:$S$607,8,FALSE) -> TRUE | I139: =VLOOKUP($A139,DATA2!$A$2:$S$607,9,FALSE) -> 0.07 | J139: 374981.81 | K139: =VLOOKUP($A139,DATA2!$A$2:$S$607,10,FALSE) -> 110830.23 | L139: =VLOOKUP($A139,DATA2!$A$2:$S$607,11,FALSE) -> 1329962.76 | M139: =VLOOKUP($A139,DATA2!$A$2:$S$607,12,FALSE) -> 2015-11-01 | N139: =VLOOKUP($A139,DATA2!$A$2:$S$607,13,FALSE) -> 2020-10-31 | O139: =VLOOKUP($A139,DATA2!$A$2:$S$607,14,FALSE) -> No | P139: =IF(MATRIX2!D139=1,($Y$8-$X$2)/365*Table_Provincial_GTAC3536[[#This Row],[Adj.AnnualRental]]*MATRIX2!D139,($Y$8-$X$2)/365*Table_Provincial_GTAC3536[[#This Row],[Adj.AnnualRental]]) -> 437248.0307 | Q139: =(Table_Provincial_GTAC3536[[#This Row],[Adj.AnnualRental]]*(1+$I139)^(2)) -> 1522674.364 | R139: =(Table_Provincial_GTAC3536[[#This Row],[Adj.AnnualRental]]*(1+$I139)^(3)) -> 1629261.569 | S139: =(Table_Provincial_GTAC3536[[#This Row],[Adj.AnnualRental]]*(1+$I139)^(4)) -> 1743309.879 | T139: =(Table_Provincial_GTAC3536[[#This Row],[Adj.AnnualRental]]*(1+$I139)^(5)) -> 1865341.571 | U139: =(Table_Provincial_GTAC3536[[#This Row],[Adj.AnnualRental]]*(1+$I139)^(6)) -> 1995915.481 | V139: =(Table_Provincial_GTAC3536[[#This Row],[Adj.AnnualRental]]*(1+$I139)^(7)) -> 2135629.564
A140: 192 | B140: =VLOOKUP($A140,DATA2!$A$2:$S$607,2,FALSE) -> KZN | C140: =VLOOKUP($A140,DATA2!$A$2:$S$607,3,FALSE) -> KwaZulu-Natal | D140: =VLOOKUP($A140,DATA2!$A$2:$S$607,4,FALSE) -> 71.83588889 | E140: =VLOOKUP($A140,DATA2!$A$2:$S$607,5,FALSE) -> 77.5 | F140: =VLOOKUP($A140,DATA2!$A$2:$S$607,6,FALSE) -> VTSD | G140: =VLOOKUP($A140,DATA2!$A$2:$S$607,7,FALSE) -> 450 | H140: =VLOOKUP($A140,DATA2!$A$2:$S$607,8,FALSE) -> TRUE | I140: =VLOOKUP($A140,DATA2!$A$2:$S$607,9,FALSE) -> 0.08 | J140: 17392.23 | K140: =VLOOKUP($A140,DATA2!$A$2:$S$607,10,FALSE) -> 32326.15 | L140: =VLOOKUP($A140,DATA2!$A$2:$S$607,11,FALSE) -> 387913.8 | M140: =VLOOKUP($A140,DATA2!$A$2:$S$607,12,FALSE) -> 2013-08-01 | N140: =VLOOKUP($A140,DATA2!$A$2:$S$607,13,FALSE) -> 2018-07-31 | O140: =VLOOKUP($A140,DATA2!$A$2:$S$607,14,FALSE) -> No | P140: =IF(MATRIX2!D140=1,($Y$8-$X$2)/365*Table_Provincial_GTAC3536[[#This Row],[Adj.AnnualRental]]*MATRIX2!D140,($Y$8-$X$2)/365*Table_Provincial_GTAC3536[[#This Row],[Adj.AnnualRental]]) -> 127533.3041 | Q140: =(Table_Provincial_GTAC3536[[#This Row],[Adj.AnnualRental]]*(1+$I140)^(2)) -> 452462.6563 | R140: =(Table_Provincial_GTAC3536[[#This Row],[Adj.AnnualRental]]*(1+$I140)^(3)) -> 488659.6688 | S140: =(Table_Provincial_GTAC3536[[#This Row],[Adj.AnnualRental]]*(1+$I140)^(4)) -> 527752.4423 | T140: =(Table_Provincial_GTAC3536[[#This Row],[Adj.AnnualRental]]*(1+$I140)^(5)) -> 569972.6377 | U140: =(Table_Provincial_GTAC3536[[#This Row],[Adj.AnnualRental]]*(1+$I140)^(6)) -> 615570.4487 | V140: =(Table_Provincial_GTAC3536[[#This Row],[Adj.AnnualRental]]*(1+$I140)^(7)) -> 664816.0846
A141: 193 | B141: =VLOOKUP($A141,DATA2!$A$2:$S$607,2,FALSE) -> KZN | C141: =VLOOKUP($A141,DATA2!$A$2:$S$607,3,FALSE) -> KwaZulu-Natal | D141: =VLOOKUP($A141,DATA2!$A$2:$S$607,4,FALSE) -> 75.31331111 | E141: =VLOOKUP($A141,DATA2!$A$2:$S$607,5,FALSE) -> 77.5 | F141: =VLOOKUP($A141,DATA2!$A$2:$S$607,6,FALSE) -> VTSD | G141: =VLOOKUP($A141,DATA2!$A$2:$S$607,7,FALSE) -> 450 | H141: =VLOOKUP($A141,DATA2!$A$2:$S$607,8,FALSE) -> TRUE | I141: =VLOOKUP($A141,DATA2!$A$2:$S$607,9,FALSE) -> 0.08 | J141: 64812.75 | K141: =VLOOKUP($A141,DATA2!$A$2:$S$607,10,FALSE) -> 33890.99 | L141: =VLOOKUP($A141,DATA2!$A$2:$S$607,11,FALSE) -> 406691.88 | M141: =VLOOKUP($A141,DATA2!$A$2:$S$607,12,FALSE) -> 2013-04-01 | N141: =VLOOKUP($A141,DATA2!$A$2:$S$607,13,FALSE) -> 2018-03-31 | O141: =VLOOKUP($A141,DATA2!$A$2:$S$607,14,FALSE) -> No | P141: =IF(MATRIX2!D141=1,($Y$8-$X$2)/365*Table_Provincial_GTAC3536[[#This Row],[Adj.AnnualRental]]*MATRIX2!D141,($Y$8-$X$2)/365*Table_Provincial_GTAC3536[[#This Row],[Adj.AnnualRental]]) -> 133706.9195 | Q141: =(Table_Provincial_GTAC3536[[#This Row],[Adj.AnnualRental]]*(1+$I141)^(2)) -> 474365.4088 | R141: =(Table_Provincial_GTAC3536[[#This Row],[Adj.AnnualRental]]*(1+$I141)^(3)) -> 512314.6415 | S141: =(Table_Provincial_GTAC3536[[#This Row],[Adj.AnnualRental]]*(1+$I141)^(4)) -> 553299.8129 | T141: =(Table_Provincial_GTAC3536[[#This Row],[Adj.AnnualRental]]*(1+$I141)^(5)) -> 597563.7979 | U141: =(Table_Provincial_GTAC3536[[#This Row],[Adj.AnnualRental]]*(1+$I141)^(6)) -> 645368.9017 | V141: =(Table_Provincial_GTAC3536[[#This Row],[Adj.AnnualRental]]*(1+$I141)^(7)) -> 696998.4139
A142: 194 | B142: =VLOOKUP($A142,DATA2!$A$2:$S$607,2,FALSE) -> KZN | C142: =VLOOKUP($A142,DATA2!$A$2:$S$607,3,FALSE) -> KwaZulu-Natal | D142: =VLOOKUP($A142,DATA2!$A$2:$S$607,4,FALSE) -> 126.7755309 | E142: =VLOOKUP($A142,DATA2!$A$2:$S$607,5,FALSE) -> 77.5 | F142: =VLOOKUP($A142,DATA2!$A$2:$S$607,6,FALSE) -> VTSD | G142: =VLOOKUP($A142,DATA2!$A$2:$S$607,7,FALSE) -> 405 | H142: =VLOOKUP($A142,DATA2!$A$2:$S$607,8,FALSE) -> TRUE | I142: =VLOOKUP($A142,DATA2!$A$2:$S$607,9,FALSE) -> 0.08 | J142: 10262.2 | K142: =VLOOKUP($A142,DATA2!$A$2:$S$607,10,FALSE) -> 51344.09 | L142: =VLOOKUP($A142,DATA2!$A$2:$S$607,11,FALSE) -> 616129.08 | M142: =VLOOKUP($A142,DATA2!$A$2:$S$607,12,FALSE) -> 2015-04-01 | N142: =VLOOKUP($A142,DATA2!$A$2:$S$607,13,FALSE) -> 2020-03-31 | O142: =VLOOKUP($A142,DATA2!$A$2:$S$607,14,FALSE) -> No | P142: =IF(MATRIX2!D142=1,($Y$8-$X$2)/365*Table_Provincial_GTAC3536[[#This Row],[Adj.AnnualRental]]*MATRIX2!D142,($Y$8-$X$2)/365*Table_Provincial_GTAC3536[[#This Row],[Adj.AnnualRental]]) -> 202562.9852 | Q142: =(Table_Provincial_GTAC3536[[#This Row],[Adj.AnnualRental]]*(1+$I142)^(2)) -> 718652.9589 | R142: =(Table_Provincial_GTAC3536[[#This Row],[Adj.AnnualRental]]*(1+$I142)^(3)) -> 776145.1956 | S142: =(Table_Provincial_GTAC3536[[#This Row],[Adj.AnnualRental]]*(1+$I142)^(4)) -> 838236.8113 | T142: =(Table_Provincial_GTAC3536[[#This Row],[Adj.AnnualRental]]*(1+$I142)^(5)) -> 905295.7562 | U142: =(Table_Provincial_GTAC3536[[#This Row],[Adj.AnnualRental]]*(1+$I142)^(6)) -> 977719.4167 | V142: =(Table_Provincial_GTAC3536[[#This Row],[Adj.AnnualRental]]*(1+$I142)^(7)) -> 1055936.97
A143: 195 | B143: =VLOOKUP($A143,DATA2!$A$2:$S$607,2,FALSE) -> KZN | C143: =VLOOKUP($A143,DATA2!$A$2:$S$607,3,FALSE) -> KwaZulu-Natal | D143: =VLOOKUP($A143,DATA2!$A$2:$S$607,4,FALSE) -> 213.7638495 | E143: =VLOOKUP($A143,DATA2!$A$2:$S$607,5,FALSE) -> 100 | F143: =VLOOKUP($A143,DATA2!$A$2:$S$607,6,FALSE) -> VTSD | G143: =VLOOKUP($A143,DATA2!$A$2:$S$607,7,FALSE) -> 465 | H143: =VLOOKUP($A143,DATA2!$A$2:$S$607,8,FALSE) -> TRUE | I143: =VLOOKUP($A143,DATA2!$A$2:$S$607,9,FALSE) -> 0.08 | J143: 117234.75 | K143: =VLOOKUP($A143,DATA2!$A$2:$S$607,10,FALSE) -> 99400.19 | L143: =VLOOKUP($A143,DATA2!$A$2:$S$607,11,FALSE) -> 1192802.28 | M143: =VLOOKUP($A143,DATA2!$A$2:$S$607,12,FALSE) -> 2015-07-01 | N143: =VLOOKUP($A143,DATA2!$A$2:$S$607,13,FALSE) -> 2020-06-30 | O143: =VLOOKUP($A143,DATA2!$A$2:$S$607,14,FALSE) -> No | P143: =IF(MATRIX2!D143=1,($Y$8-$X$2)/365*Table_Provincial_GTAC3536[[#This Row],[Adj.AnnualRental]]*MATRIX2!D143,($Y$8-$X$2)/365*Table_Provincial_GTAC3536[[#This Row],[Adj.AnnualRental]]) -> 392154.1742 | Q143: =(Table_Provincial_GTAC3536[[#This Row],[Adj.AnnualRental]]*(1+$I143)^(2)) -> 1391284.579 | R143: =(Table_Provincial_GTAC3536[[#This Row],[Adj.AnnualRental]]*(1+$I143)^(3)) -> 1502587.346 | S143: =(Table_Provincial_GTAC3536[[#This Row],[Adj.AnnualRental]]*(1+$I143)^(4)) -> 1622794.333 | T143: =(Table_Provincial_GTAC3536[[#This Row],[Adj.AnnualRental]]*(1+$I143)^(5)) -> 1752617.88 | U143: =(Table_Provincial_GTAC3536[[#This Row],[Adj.AnnualRental]]*(1+$I143)^(6)) -> 1892827.31 | V143: =(Table_Provincial_GTAC3536[[#This Row],[Adj.AnnualRental]]*(1+$I143)^(7)) -> 2044253.495
A144: 196 | B144: =VLOOKUP($A144,DATA2!$A$2:$S$607,2,FALSE) -> KZN | C144: =VLOOKUP($A144,DATA2!$A$2:$S$607,3,FALSE) -> KwaZulu-Natal | D144: =VLOOKUP($A144,DATA2!$A$2:$S$607,4,FALSE) -> 125.5498089 | E144: =VLOOKUP($A144,DATA2!$A$2:$S$607,5,FALSE) -> 110 | F144: =VLOOKUP($A144,DATA2!$A$2:$S$607,6,FALSE) -> CBD | G144: =VLOOKUP($A144,DATA2!$A$2:$S$607,7,FALSE) -> 2198 | H144: =VLOOKUP($A144,DATA2!$A$2:$S$607,8,FALSE) -> TRUE | I144: =VLOOKUP($A144,DATA2!$A$2:$S$607,9,FALSE) -> 0.08 | J144: 259280.57 | K144: =VLOOKUP($A144,DATA2!$A$2:$S$607,10,FALSE) -> 275958.48 | L144: =VLOOKUP($A144,DATA2!$A$2:$S$607,11,FALSE) -> 3311501.76 | M144: =VLOOKUP($A144,DATA2!$A$2:$S$607,12,FALSE) -> 2016-04-01 | N144: =VLOOKUP($A144,DATA2!$A$2:$S$607,13,FALSE) -> 2018-03-31 | O144: =VLOOKUP($A144,DATA2!$A$2:$S$607,14,FALSE) -> No | P144: =IF(MATRIX2!D144=1,($Y$8-$X$2)/365*Table_Provincial_GTAC3536[[#This Row],[Adj.AnnualRental]]*MATRIX2!D144,($Y$8-$X$2)/365*Table_Provincial_GTAC3536[[#This Row],[Adj.AnnualRental]]) -> 1088712.907 | Q144: =(Table_Provincial_GTAC3536[[#This Row],[Adj.AnnualRental]]*(1+$I144)^(2)) -> 3862535.653 | R144: =(Table_Provincial_GTAC3536[[#This Row],[Adj.AnnualRental]]*(1+$I144)^(3)) -> 4171538.505 | S144: =(Table_Provincial_GTAC3536[[#This Row],[Adj.AnnualRental]]*(1+$I144)^(4)) -> 4505261.586 | T144: =(Table_Provincial_GTAC3536[[#This Row],[Adj.AnnualRental]]*(1+$I144)^(5)) -> 4865682.512 | U144: =(Table_Provincial_GTAC3536[[#This Row],[Adj.AnnualRental]]*(1+$I144)^(6)) -> 5254937.113 | V144: =(Table_Provincial_GTAC3536[[#This Row],[Adj.AnnualRental]]*(1+$I144)^(7)) -> 5675332.082
A145: 198 | B145: =VLOOKUP($A145,DATA2!$A$2:$S$607,2,FALSE) -> KZN | C145: =VLOOKUP($A145,DATA2!$A$2:$S$607,3,FALSE) -> KwaZulu-Natal | D145: =VLOOKUP($A145,DATA2!$A$2:$S$607,4,FALSE) -> 106.6759812 | E145: =VLOOKUP($A145,DATA2!$A$2:$S$607,5,FALSE) -> 110 | F145: =VLOOKUP($A145,DATA2!$A$2:$S$607,6,FALSE) -> CBD | G145: =VLOOKUP($A145,DATA2!$A$2:$S$607,7,FALSE) -> 1493 | H145: =VLOOKUP($A145,DATA2!$A$2:$S$607,8,FALSE) -> TRUE | I145: =VLOOKUP($A145,DATA2!$A$2:$S$607,9,FALSE) -> 0.08 | J145: 75546.43 | K145: =VLOOKUP($A145,DATA2!$A$2:$S$607,10,FALSE) -> 159267.24 | L145: =VLOOKUP($A145,DATA2!$A$2:$S$607,11,FALSE) -> 1911206.88 | M145: =VLOOKUP($A145,DATA2!$A$2:$S$607,12,FALSE) -> 2015-06-01 | N145: =VLOOKUP($A145,DATA2!$A$2:$S$607,13,FALSE) -> 2017-12-31 | O145: =VLOOKUP($A145,DATA2!$A$2:$S$607,14,FALSE) -> No | P145: =IF(MATRIX2!D145=1,($Y$8-$X$2)/365*Table_Provincial_GTAC3536[[#This Row],[Adj.AnnualRental]]*MATRIX2!D145,($Y$8-$X$2)/365*Table_Provincial_GTAC3536[[#This Row],[Adj.AnnualRental]]) -> 628341.9879 | Q145: =(Table_Provincial_GTAC3536[[#This Row],[Adj.AnnualRental]]*(1+$I145)^(2)) -> 2229231.705 | R145: =(Table_Provincial_GTAC3536[[#This Row],[Adj.AnnualRental]]*(1+$I145)^(3)) -> 2407570.241 | S145: =(Table_Provincial_GTAC3536[[#This Row],[Adj.AnnualRental]]*(1+$I145)^(4)) -> 2600175.861 | T145: =(Table_Provincial_GTAC3536[[#This Row],[Adj.AnnualRental]]*(1+$I145)^(5)) -> 2808189.929 | U145: =(Table_Provincial_GTAC3536[[#This Row],[Adj.AnnualRental]]*(1+$I145)^(6)) -> 3032845.124 | V145: =(Table_Provincial_GTAC3536[[#This Row],[Adj.AnnualRental]]*(1+$I145)^(7)) -> 3275472.734
A146: 199 | B146: =VLOOKUP($A146,DATA2!$A$2:$S$607,2,FALSE) -> KZN | C146: =VLOOKUP($A146,DATA2!$A$2:$S$607,3,FALSE) -> KwaZulu-Natal | D146: =VLOOKUP($A146,DATA2!$A$2:$S$607,4,FALSE) -> 128.5181407 | E146: =VLOOKUP($A146,DATA2!$A$2:$S$607,5,FALSE) -> 110 | F146: =VLOOKUP($A146,DATA2!$A$2:$S$607,6,FALSE) -> CBD | G146: =VLOOKUP($A146,DATA2!$A$2:$S$607,7,FALSE) -> 3227 | H146: =VLOOKUP($A146,DATA2!$A$2:$S$607,8,FALSE) -> TRUE | I146: =VLOOKUP($A146,DATA2!$A$2:$S$607,9,FALSE) -> 0.07 | J146: 55527.12 | K146: =VLOOKUP($A146,DATA2!$A$2:$S$607,10,FALSE) -> 414728.04 | L146: =VLOOKUP($A146,DATA2!$A$2:$S$607,11,FALSE) -> 4976736.48 | M146: =VLOOKUP($A146,DATA2!$A$2:$S$607,12,FALSE) -> 2014-08-01 | N146: =VLOOKUP($A146,DATA2!$A$2:$S$607,13,FALSE) -> 2019-07-31 | O146: =VLOOKUP($A146,DATA2!$A$2:$S$607,14,FALSE) -> No | P146: =IF(MATRIX2!D146=1,($Y$8-$X$2)/365*Table_Provincial_GTAC3536[[#This Row],[Adj.AnnualRental]]*MATRIX2!D146,($Y$8-$X$2)/365*Table_Provincial_GTAC3536[[#This Row],[Adj.AnnualRental]]) -> 1636187.336 | Q146: =(Table_Provincial_GTAC3536[[#This Row],[Adj.AnnualRental]]*(1+$I146)^(2)) -> 5697865.596 | R146: =(Table_Provincial_GTAC3536[[#This Row],[Adj.AnnualRental]]*(1+$I146)^(3)) -> 6096716.188 | S146: =(Table_Provincial_GTAC3536[[#This Row],[Adj.AnnualRental]]*(1+$I146)^(4)) -> 6523486.321 | T146: =(Table_Provincial_GTAC3536[[#This Row],[Adj.AnnualRental]]*(1+$I146)^(5)) -> 6980130.363 | U146: =(Table_Provincial_GTAC3536[[#This Row],[Adj.AnnualRental]]*(1+$I146)^(6)) -> 7468739.489 | V146: =(Table_Provincial_GTAC3536[[#This Row],[Adj.AnnualRental]]*(1+$I146)^(7)) -> 7991551.253
A147: 201 | B147: =VLOOKUP($A147,DATA2!$A$2:$S$607,2,FALSE) -> KZN | C147: =VLOOKUP($A147,DATA2!$A$2:$S$607,3,FALSE) -> KwaZulu-Natal | D147: =VLOOKUP($A147,DATA2!$A$2:$S$607,4,FALSE) -> 88.28228481 | E147: =VLOOKUP($A147,DATA2!$A$2:$S$607,5,FALSE) -> 110 | F147: =VLOOKUP($A147,DATA2!$A$2:$S$607,6,FALSE) -> CBD | G147: =VLOOKUP($A147,DATA2!$A$2:$S$607,7,FALSE) -> 7364.3 | H147: =VLOOKUP($A147,DATA2!$A$2:$S$607,8,FALSE) -> TRUE | I147: =VLOOKUP($A147,DATA2!$A$2:$S$607,9,FALSE) -> 0.1 | J147: 512952.51 | K147: =VLOOKUP($A147,DATA2!$A$2:$S$607,10,FALSE) -> 650137.23 | L147: =VLOOKUP($A147,DATA2!$A$2:$S$607,11,FALSE) -> 7801646.76 | M147: =VLOOKUP($A147,DATA2!$A$2:$S$607,12,FALSE) -> 2012-03-01 | N147: =VLOOKUP($A147,DATA2!$A$2:$S$607,13,FALSE) -> 2017-02-28 | O147: =VLOOKUP($A147,DATA2!$A$2:$S$607,14,FALSE) -> Yes | P147: =IF(MATRIX2!D147=1,($Y$8-$X$2)/365*Table_Provincial_GTAC3536[[#This Row],[Adj.AnnualRental]]*MATRIX2!D147,($Y$8-$X$2)/365*Table_Provincial_GTAC3536[[#This Row],[Adj.AnnualRental]]) -> 2564924.962 | Q147: =(Table_Provincial_GTAC3536[[#This Row],[Adj.AnnualRental]]*(1+$I147)^(2)) -> 9439992.58 | R147: =(Table_Provincial_GTAC3536[[#This Row],[Adj.AnnualRental]]*(1+$I147)^(3)) -> 10383991.84 | S147: =(Table_Provincial_GTAC3536[[#This Row],[Adj.AnnualRental]]*(1+$I147)^(4)) -> 11422391.02 | T147: =(Table_Provincial_GTAC3536[[#This Row],[Adj.AnnualRental]]*(1+$I147)^(5)) -> 12564630.12 | U147: =(Table_Provincial_GTAC3536[[#This Row],[Adj.AnnualRental]]*(1+$I147)^(6)) -> 13821093.14 | V147: =(Table_Provincial_GTAC3536[[#This Row],[Adj.AnnualRental]]*(1+$I147)^(7)) -> 15203202.45
A148: 203 | B148: =VLOOKUP($A148,DATA2!$A$2:$S$607,2,FALSE) -> EC | C148: =VLOOKUP($A148,DATA2!$A$2:$S$607,3,FALSE) -> Eastern Cape | D148: =VLOOKUP($A148,DATA2!$A$2:$S$607,4,FALSE) -> 199.5762719 | E148: =VLOOKUP($A148,DATA2!$A$2:$S$607,5,FALSE) -> 75 | F148: =VLOOKUP($A148,DATA2!$A$2:$S$607,6,FALSE) -> MAIN CENTRE | G148: =VLOOKUP($A148,DATA2!$A$2:$S$607,7,FALSE) -> 1258 | H148: =VLOOKUP($A148,DATA2!$A$2:$S$607,8,FALSE) -> TRUE | I148: =VLOOKUP($A148,DATA2!$A$2:$S$607,9,FALSE) -> 0.08 | J148: 6242.18 | K148: =VLOOKUP($A148,DATA2!$A$2:$S$607,10,FALSE) -> 251066.95 | L148: =VLOOKUP($A148,DATA2!$A$2:$S$607,11,FALSE) -> 3012803.4 | M148: =VLOOKUP($A148,DATA2!$A$2:$S$607,12,FALSE) -> 2014-02-01 | N148: =VLOOKUP($A148,DATA2!$A$2:$S$607,13,FALSE) -> 2017-01-31 | O148: =VLOOKUP($A148,DATA2!$A$2:$S$607,14,FALSE) -> Yes | P148: =IF(MATRIX2!D148=1,($Y$8-$X$2)/365*Table_Provincial_GTAC3536[[#This Row],[Adj.AnnualRental]]*MATRIX2!D148,($Y$8-$X$2)/365*Table_Provincial_GTAC3536[[#This Row],[Adj.AnnualRental]]) -> 990510.7068 | Q148: =(Table_Provincial_GTAC3536[[#This Row],[Adj.AnnualRental]]*(1+$I148)^(2)) -> 3514133.886 | R148: =(Table_Provincial_GTAC3536[[#This Row],[Adj.AnnualRental]]*(1+$I148)^(3)) -> 3795264.597 | S148: =(Table_Provincial_GTAC3536[[#This Row],[Adj.AnnualRental]]*(1+$I148)^(4)) -> 4098885.764 | T148: =(Table_Provincial_GTAC3536[[#This Row],[Adj.AnnualRental]]*(1+$I148)^(5)) -> 4426796.625 | U148: =(Table_Provincial_GTAC3536[[#This Row],[Adj.AnnualRental]]*(1+$I148)^(6)) -> 4780940.356 | V148: =(Table_Provincial_GTAC3536[[#This Row],[Adj.AnnualRental]]*(1+$I148)^(7)) -> 5163415.584
A149: 204 | B149: =VLOOKUP($A149,DATA2!$A$2:$S$607,2,FALSE) -> EC | C149: =VLOOKUP($A149,DATA2!$A$2:$S$607,3,FALSE) -> Eastern Cape | D149: =VLOOKUP($A149,DATA2!$A$2:$S$607,4,FALSE) -> 87.85333333 | E149: =VLOOKUP($A149,DATA2!$A$2:$S$607,5,FALSE) -> 95 | F149: =VLOOKUP($A149,DATA2!$A$2:$S$607,6,FALSE) -> MAIN CENTRE | G149: =VLOOKUP($A149,DATA2!$A$2:$S$607,7,FALSE) -> 120 | H149: =VLOOKUP($A149,DATA2!$A$2:$S$607,8,FALSE) -> TRUE | I149: =VLOOKUP($A149,DATA2!$A$2:$S$607,9,FALSE) -> 0.07 | J149: 106276.49 | K149: =VLOOKUP($A149,DATA2!$A$2:$S$607,10,FALSE) -> 10542.4 | L149: =VLOOKUP($A149,DATA2!$A$2:$S$607,11,FALSE) -> 126508.8 | M149: =VLOOKUP($A149,DATA2!$A$2:$S$607,12,FALSE) -> 2015-11-01 | N149: =VLOOKUP($A149,DATA2!$A$2:$S$607,13,FALSE) -> 2018-10-31 | O149: =VLOOKUP($A149,DATA2!$A$2:$S$607,14,FALSE) -> No | P149: =IF(MATRIX2!D149=1,($Y$8-$X$2)/365*Table_Provincial_GTAC3536[[#This Row],[Adj.AnnualRental]]*MATRIX2!D149,($Y$8-$X$2)/365*Table_Provincial_GTAC3536[[#This Row],[Adj.AnnualRental]]) -> 41591.93425 | Q149: =(Table_Provincial_GTAC3536[[#This Row],[Adj.AnnualRental]]*(1+$I149)^(2)) -> 144839.9251 | R149: =(Table_Provincial_GTAC3536[[#This Row],[Adj.AnnualRental]]*(1+$I149)^(3)) -> 154978.7199 | S149: =(Table_Provincial_GTAC3536[[#This Row],[Adj.AnnualRental]]*(1+$I149)^(4)) -> 165827.2303 | T149: =(Table_Provincial_GTAC3536[[#This Row],[Adj.AnnualRental]]*(1+$I149)^(5)) -> 177435.1364 | U149: =(Table_Provincial_GTAC3536[[#This Row],[Adj.AnnualRental]]*(1+$I149)^(6)) -> 189855.5959 | V149: =(Table_Provincial_GTAC3536[[#This Row],[Adj.AnnualRental]]*(1+$I149)^(7)) -> 203145.4877
A150: 205 | B150: =VLOOKUP($A150,DATA2!$A$2:$S$607,2,FALSE) -> EC | C150: =VLOOKUP($A150,DATA2!$A$2:$S$607,3,FALSE) -> Eastern Cape | D150: =VLOOKUP($A150,DATA2!$A$2:$S$607,4,FALSE) -> 74.49288703 | E150: =VLOOKUP($A150,DATA2!$A$2:$S$607,5,FALSE) -> 95 | F150: =VLOOKUP($A150,DATA2!$A$2:$S$607,6,FALSE) -> MAIN CENTRE | G150: =VLOOKUP($A150,DATA2!$A$2:$S$607,7,FALSE) -> 1434 | H150: =VLOOKUP($A150,DATA2!$A$2:$S$607,8,FALSE) -> TRUE | I150: =VLOOKUP($A150,DATA2!$A$2:$S$607,9,FALSE) -> 0.07 | J150: 15097.36 | K150: =VLOOKUP($A150,DATA2!$A$2:$S$607,10,FALSE) -> 106822.8 | L150: =VLOOKUP($A150,DATA2!$A$2:$S$607,11,FALSE) -> 1281873.6 | M150: =VLOOKUP($A150,DATA2!$A$2:$S$607,12,FALSE) -> 2016-04-01 | N150: =VLOOKUP($A150,DATA2!$A$2:$S$607,13,FALSE) -> 2021-03-31 | O150: =VLOOKUP($A150,DATA2!$A$2:$S$607,14,FALSE) -> No | P150: =IF(MATRIX2!D150=1,($Y$8-$X$2)/365*Table_Provincial_GTAC3536[[#This Row],[Adj.AnnualRental]]*MATRIX2!D150,($Y$8-$X$2)/365*Table_Provincial_GTAC3536[[#This Row],[Adj.AnnualRental]]) -> 421437.8959 | Q150: =(Table_Provincial_GTAC3536[[#This Row],[Adj.AnnualRental]]*(1+$I150)^(2)) -> 1467617.085 | R150: =(Table_Provincial_GTAC3536[[#This Row],[Adj.AnnualRental]]*(1+$I150)^(3)) -> 1570350.281 | S150: =(Table_Provincial_GTAC3536[[#This Row],[Adj.AnnualRental]]*(1+$I150)^(4)) -> 1680274.8 | T150: =(Table_Provincial_GTAC3536[[#This Row],[Adj.AnnualRental]]*(1+$I150)^(5)) -> 1797894.036 | U150: =(Table_Provincial_GTAC3536[[#This Row],[Adj.AnnualRental]]*(1+$I150)^(6)) -> 1923746.619 | V150: =(Table_Provincial_GTAC3536[[#This Row],[Adj.AnnualRental]]*(1+$I150)^(7)) -> 2058408.882
A151: 206 | B151: =VLOOKUP($A151,DATA2!$A$2:$S$607,2,FALSE) -> EC | C151: =VLOOKUP($A151,DATA2!$A$2:$S$607,3,FALSE) -> Eastern Cape | D151: =VLOOKUP($A151,DATA2!$A$2:$S$607,4,FALSE) -> 102.8177049 | E151: =VLOOKUP($A151,DATA2!$A$2:$S$607,5,FALSE) -> 95 | F151: =VLOOKUP($A151,DATA2!$A$2:$S$607,6,FALSE) -> MAIN CENTRE | G151: =VLOOKUP($A151,DATA2!$A$2:$S$607,7,FALSE) -> 366 | H151: =VLOOKUP($A151,DATA2!$A$2:$S$607,8,FALSE) -> TRUE | I151: =VLOOKUP($A151,DATA2!$A$2:$S$607,9,FALSE) -> 0.07 | J151: 70492.22 | K151: =VLOOKUP($A151,DATA2!$A$2:$S$607,10,FALSE) -> 37631.28 | L151: =VLOOKUP($A151,DATA2!$A$2:$S$607,11,FALSE) -> 451575.36 | M151: =VLOOKUP($A151,DATA2!$A$2:$S$607,12,FALSE) -> 2015-04-01 | N151: =VLOOKUP($A151,DATA2!$A$2:$S$607,13,FALSE) -> 2020-03-31 | O151: =VLOOKUP($A151,DATA2!$A$2:$S$607,14,FALSE) -> No | P151: =IF(MATRIX2!D151=1,($Y$8-$X$2)/365*Table_Provincial_GTAC3536[[#This Row],[Adj.AnnualRental]]*MATRIX2!D151,($Y$8-$X$2)/365*Table_Provincial_GTAC3536[[#This Row],[Adj.AnnualRental]]) -> 148463.1321 | Q151: =(Table_Provincial_GTAC3536[[#This Row],[Adj.AnnualRental]]*(1+$I151)^(2)) -> 517008.6297 | R151: =(Table_Provincial_GTAC3536[[#This Row],[Adj.AnnualRental]]*(1+$I151)^(3)) -> 553199.2337 | S151: =(Table_Provincial_GTAC3536[[#This Row],[Adj.AnnualRental]]*(1+$I151)^(4)) -> 591923.1801 | T151: =(Table_Provincial_GTAC3536[[#This Row],[Adj.AnnualRental]]*(1+$I151)^(5)) -> 633357.8027 | U151: =(Table_Provincial_GTAC3536[[#This Row],[Adj.AnnualRental]]*(1+$I151)^(6)) -> 677692.8489 | V151: =(Table_Provincial_GTAC3536[[#This Row],[Adj.AnnualRental]]*(1+$I151)^(7)) -> 725131.3483
A152: 207 | B152: =VLOOKUP($A152,DATA2!$A$2:$S$607,2,FALSE) -> EC | C152: =VLOOKUP($A152,DATA2!$A$2:$S$607,3,FALSE) -> Eastern Cape | D152: =VLOOKUP($A152,DATA2!$A$2:$S$607,4,FALSE) -> 87.80452632 | E152: =VLOOKUP($A152,DATA2!$A$2:$S$607,5,FALSE) -> 95 | F152: =VLOOKUP($A152,DATA2!$A$2:$S$607,6,FALSE) -> MAIN CENTRE | G152: =VLOOKUP($A152,DATA2!$A$2:$S$607,7,FALSE) -> 95 | H152: =VLOOKUP($A152,DATA2!$A$2:$S$607,8,FALSE) -> TRUE | I152: =VLOOKUP($A152,DATA2!$A$2:$S$607,9,FALSE) -> 0.07 | J152: 169080.89 | K152: =VLOOKUP($A152,DATA2!$A$2:$S$607,10,FALSE) -> 8341.43 | L152: =VLOOKUP($A152,DATA2!$A$2:$S$607,11,FALSE) -> 100097.16 | M152: =VLOOKUP($A152,DATA2!$A$2:$S$607,12,FALSE) -> 2015-04-01 | N152: =VLOOKUP($A152,DATA2!$A$2:$S$607,13,FALSE) -> 2020-02-28 | O152: =VLOOKUP($A152,DATA2!$A$2:$S$607,14,FALSE) -> No | P152: =IF(MATRIX2!D152=1,($Y$8-$X$2)/365*Table_Provincial_GTAC3536[[#This Row],[Adj.AnnualRental]]*MATRIX2!D152,($Y$8-$X$2)/365*Table_Provincial_GTAC3536[[#This Row],[Adj.AnnualRental]]) -> 32908.65534 | Q152: =(Table_Provincial_GTAC3536[[#This Row],[Adj.AnnualRental]]*(1+$I152)^(2)) -> 114601.2385 | R152: =(Table_Provincial_GTAC3536[[#This Row],[Adj.AnnualRental]]*(1+$I152)^(3)) -> 122623.3252 | S152: =(Table_Provincial_GTAC3536[[#This Row],[Adj.AnnualRental]]*(1+$I152)^(4)) -> 131206.9579 | T152: =(Table_Provincial_GTAC3536[[#This Row],[Adj.AnnualRental]]*(1+$I152)^(5)) -> 140391.445 | U152: =(Table_Provincial_GTAC3536[[#This Row],[Adj.AnnualRental]]*(1+$I152)^(6)) -> 150218.8461 | V152: =(Table_Provincial_GTAC3536[[#This Row],[Adj.AnnualRental]]*(1+$I152)^(7)) -> 160734.1654
A153: 208 | B153: =VLOOKUP($A153,DATA2!$A$2:$S$607,2,FALSE) -> EC | C153: =VLOOKUP($A153,DATA2!$A$2:$S$607,3,FALSE) -> Eastern Cape | D153: =VLOOKUP($A153,DATA2!$A$2:$S$607,4,FALSE) -> 135.3219512 | E153: =VLOOKUP($A153,DATA2!$A$2:$S$607,5,FALSE) -> 95 | F153: =VLOOKUP($A153,DATA2!$A$2:$S$607,6,FALSE) -> MAIN CENTRE | G153: =VLOOKUP($A153,DATA2!$A$2:$S$607,7,FALSE) -> 246 | H153: =VLOOKUP($A153,DATA2!$A$2:$S$607,8,FALSE) -> TRUE | I153: =VLOOKUP($A153,DATA2!$A$2:$S$607,9,FALSE) -> 0.08 | J153: 90217.6 | K153: =VLOOKUP($A153,DATA2!$A$2:$S$607,10,FALSE) -> 33289.2 | L153: =VLOOKUP($A153,DATA2!$A$2:$S$607,11,FALSE) -> 399470.4 | M153: =VLOOKUP($A153,DATA2!$A$2:$S$607,12,FALSE) -> 2012-06-01 | N153: =VLOOKUP($A153,DATA2!$A$2:$S$607,13,FALSE) -> 2014-05-31 | O153: =VLOOKUP($A153,DATA2!$A$2:$S$607,14,FALSE) -> Yes | P153: =IF(MATRIX2!D153=1,($Y$8-$X$2)/365*Table_Provincial_GTAC3536[[#This Row],[Adj.AnnualRental]]*MATRIX2!D153,($Y$8-$X$2)/365*Table_Provincial_GTAC3536[[#This Row],[Adj.AnnualRental]]) -> 131332.7342 | Q153: =(Table_Provincial_GTAC3536[[#This Row],[Adj.AnnualRental]]*(1+$I153)^(2)) -> 465942.2746 | R153: =(Table_Provincial_GTAC3536[[#This Row],[Adj.AnnualRental]]*(1+$I153)^(3)) -> 503217.6565 | S153: =(Table_Provincial_GTAC3536[[#This Row],[Adj.AnnualRental]]*(1+$I153)^(4)) -> 543475.069 | T153: =(Table_Provincial_GTAC3536[[#This Row],[Adj.AnnualRental]]*(1+$I153)^(5)) -> 586953.0746 | U153: =(Table_Provincial_GTAC3536[[#This Row],[Adj.AnnualRental]]*(1+$I153)^(6)) -> 633909.3205 | V153: =(Table_Provincial_GTAC3536[[#This Row],[Adj.AnnualRental]]*(1+$I153)^(7)) -> 684622.0662
A154: 209 | B154: =VLOOKUP($A154,DATA2!$A$2:$S$607,2,FALSE) -> EC | C154: =VLOOKUP($A154,DATA2!$A$2:$S$607,3,FALSE) -> Eastern Cape | D154: =VLOOKUP($A154,DATA2!$A$2:$S$607,4,FALSE) -> 83.5839876 | E154: =VLOOKUP($A154,DATA2!$A$2:$S$607,5,FALSE) -> 95 | F154: =VLOOKUP($A154,DATA2!$A$2:$S$607,6,FALSE) -> MAIN CENTRE | G154: =VLOOKUP($A154,DATA2!$A$2:$S$607,7,FALSE) -> 193.6 | H154: =VLOOKUP($A154,DATA2!$A$2:$S$607,8,FALSE) -> TRUE | I154: =VLOOKUP($A154,DATA2!$A$2:$S$607,9,FALSE) -> 0.07 | J154: 512091.42 | K154: =VLOOKUP($A154,DATA2!$A$2:$S$607,10,FALSE) -> 16181.86 | L154: =VLOOKUP($A154,DATA2!$A$2:$S$607,11,FALSE) -> 194182.32 | M154: =VLOOKUP($A154,DATA2!$A$2:$S$607,12,FALSE) -> 2016-01-01 | N154: =VLOOKUP($A154,DATA2!$A$2:$S$607,13,FALSE) -> 2017-12-31 | O154: =VLOOKUP($A154,DATA2!$A$2:$S$607,14,FALSE) -> No | P154: =IF(MATRIX2!D154=1,($Y$8-$X$2)/365*Table_Provincial_GTAC3536[[#This Row],[Adj.AnnualRental]]*MATRIX2!D154,($Y$8-$X$2)/365*Table_Provincial_GTAC3536[[#This Row],[Adj.AnnualRental]]) -> 63840.76274 | Q154: =(Table_Provincial_GTAC3536[[#This Row],[Adj.AnnualRental]]*(1+$I154)^(2)) -> 222319.3382 | R154: =(Table_Provincial_GTAC3536[[#This Row],[Adj.AnnualRental]]*(1+$I154)^(3)) -> 237881.6918 | S154: =(Table_Provincial_GTAC3536[[#This Row],[Adj.AnnualRental]]*(1+$I154)^(4)) -> 254533.4103 | T154: =(Table_Provincial_GTAC3536[[#This Row],[Adj.AnnualRental]]*(1+$I154)^(5)) -> 272350.749 | U154: =(Table_Provincial_GTAC3536[[#This Row],[Adj.AnnualRental]]*(1+$I154)^(6)) -> 291415.3014 | V154: =(Table_Provincial_GTAC3536[[#This Row],[Adj.AnnualRental]]*(1+$I154)^(7)) -> 311814.3725
A155: 210 | B155: =VLOOKUP($A155,DATA2!$A$2:$S$607,2,FALSE) -> EC | C155: =VLOOKUP($A155,DATA2!$A$2:$S$607,3,FALSE) -> Eastern Cape | D155: =VLOOKUP($A155,DATA2!$A$2:$S$607,4,FALSE) -> 256.4715171 | E155: =VLOOKUP($A155,DATA2!$A$2:$S$607,5,FALSE) -> 75 | F155: =VLOOKUP($A155,DATA2!$A$2:$S$607,6,FALSE) -> CBD | G155: =VLOOKUP($A155,DATA2!$A$2:$S$607,7,FALSE) -> 1259 | H155: =VLOOKUP($A155,DATA2!$A$2:$S$607,8,FALSE) -> TRUE | I155: =VLOOKUP($A155,DATA2!$A$2:$S$607,9,FALSE) -> 0.07 | J155: 195305.42 | K155: =VLOOKUP($A155,DATA2!$A$2:$S$607,10,FALSE) -> 322897.64 | L155: =VLOOKUP($A155,DATA2!$A$2:$S$607,11,FALSE) -> 3874771.68 | M155: =VLOOKUP($A155,DATA2!$A$2:$S$607,12,FALSE) -> 2015-09-01 | N155: =VLOOKUP($A155,DATA2!$A$2:$S$607,13,FALSE) -> 2020-08-31 | O155: =VLOOKUP($A155,DATA2!$A$2:$S$607,14,FALSE) -> No | P155: =IF(MATRIX2!D155=1,($Y$8-$X$2)/365*Table_Provincial_GTAC3536[[#This Row],[Adj.AnnualRental]]*MATRIX2!D155,($Y$8-$X$2)/365*Table_Provincial_GTAC3536[[#This Row],[Adj.AnnualRental]]) -> 1273897.539 | Q155: =(Table_Provincial_GTAC3536[[#This Row],[Adj.AnnualRental]]*(1+$I155)^(2)) -> 4436226.096 | R155: =(Table_Provincial_GTAC3536[[#This Row],[Adj.AnnualRental]]*(1+$I155)^(3)) -> 4746761.923 | S155: =(Table_Provincial_GTAC3536[[#This Row],[Adj.AnnualRental]]*(1+$I155)^(4)) -> 5079035.258 | T155: =(Table_Provincial_GTAC3536[[#This Row],[Adj.AnnualRental]]*(1+$I155)^(5)) -> 5434567.726 | U155: =(Table_Provincial_GTAC3536[[#This Row],[Adj.AnnualRental]]*(1+$I155)^(6)) -> 5814987.467 | V155: =(Table_Provincial_GTAC3536[[#This Row],[Adj.AnnualRental]]*(1+$I155)^(7)) -> 6222036.589
A156: 211 | B156: =VLOOKUP($A156,DATA2!$A$2:$S$607,2,FALSE) -> EC | C156: =VLOOKUP($A156,DATA2!$A$2:$S$607,3,FALSE) -> Eastern Cape | D156: =VLOOKUP($A156,DATA2!$A$2:$S$607,4,FALSE) -> 136.7489797 | E156: =VLOOKUP($A156,DATA2!$A$2:$S$607,5,FALSE) -> 110 | F156: =VLOOKUP($A156,DATA2!$A$2:$S$607,6,FALSE) -> VTSD | G156: =VLOOKUP($A156,DATA2!$A$2:$S$607,7,FALSE) -> 1382 | H156: =VLOOKUP($A156,DATA2!$A$2:$S$607,8,FALSE) -> TRUE | I156: =VLOOKUP($A156,DATA2!$A$2:$S$607,9,FALSE) -> 0.07 | J156: 93303.87 | K156: =VLOOKUP($A156,DATA2!$A$2:$S$607,10,FALSE) -> 188987.09 | L156: =VLOOKUP($A156,DATA2!$A$2:$S$607,11,FALSE) -> 2267845.08 | M156: =VLOOKUP($A156,DATA2!$A$2:$S$607,12,FALSE) -> 2015-04-01 | N156: =VLOOKUP($A156,DATA2!$A$2:$S$607,13,FALSE) -> 2018-03-31 | O156: =VLOOKUP($A156,DATA2!$A$2:$S$607,14,FALSE) -> No | P156: =IF(MATRIX2!D156=1,($Y$8-$X$2)/365*Table_Provincial_GTAC3536[[#This Row],[Adj.AnnualRental]]*MATRIX2!D156,($Y$8-$X$2)/365*Table_Provincial_GTAC3536[[#This Row],[Adj.AnnualRental]]) -> 745592.903 | Q156: =(Table_Provincial_GTAC3536[[#This Row],[Adj.AnnualRental]]*(1+$I156)^(2)) -> 2596455.832 | R156: =(Table_Provincial_GTAC3536[[#This Row],[Adj.AnnualRental]]*(1+$I156)^(3)) -> 2778207.74 | S156: =(Table_Provincial_GTAC3536[[#This Row],[Adj.AnnualRental]]*(1+$I156)^(4)) -> 2972682.282 | T156: =(Table_Provincial_GTAC3536[[#This Row],[Adj.AnnualRental]]*(1+$I156)^(5)) -> 3180770.042 | U156: =(Table_Provincial_GTAC3536[[#This Row],[Adj.AnnualRental]]*(1+$I156)^(6)) -> 3403423.945 | V156: =(Table_Provincial_GTAC3536[[#This Row],[Adj.AnnualRental]]*(1+$I156)^(7)) -> 3641663.621
A157: 212 | B157: =VLOOKUP($A157,DATA2!$A$2:$S$607,2,FALSE) -> EC | C157: =VLOOKUP($A157,DATA2!$A$2:$S$607,3,FALSE) -> Eastern Cape | D157: =VLOOKUP($A157,DATA2!$A$2:$S$607,4,FALSE) -> 81 | E157: =VLOOKUP($A157,DATA2!$A$2:$S$607,5,FALSE) -> 95 | F157: =VLOOKUP($A157,DATA2!$A$2:$S$607,6,FALSE) -> VTSD | G157: =VLOOKUP($A157,DATA2!$A$2:$S$607,7,FALSE) -> 1031 | H157: =VLOOKUP($A157,DATA2!$A$2:$S$607,8,FALSE) -> TRUE | I157: =VLOOKUP($A157,DATA2!$A$2:$S$607,9,FALSE) -> 0 | J157: 149339.53 | K157: =VLOOKUP($A157,DATA2!$A$2:$S$607,10,FALSE) -> 83511 | L157: =VLOOKUP($A157,DATA2!$A$2:$S$607,11,FALSE) -> 1002132 | M157: =VLOOKUP($A157,DATA2!$A$2:$S$607,12,FALSE) -> 2015-09-01 | N157: =VLOOKUP($A157,DATA2!$A$2:$S$607,13,FALSE) -> 2016-08-31 | O157: =VLOOKUP($A157,DATA2!$A$2:$S$607,14,FALSE) -> Yes | P157: =IF(MATRIX2!D157=1,($Y$8-$X$2)/365*Table_Provincial_GTAC3536[[#This Row],[Adj.AnnualRental]]*MATRIX2!D157,($Y$8-$X$2)/365*Table_Provincial_GTAC3536[[#This Row],[Adj.AnnualRental]]) -> 329468.0548 | Q157: =(Table_Provincial_GTAC3536[[#This Row],[Adj.AnnualRental]]*(1+$I157)^(2)) -> 1002132 | R157: =(Table_Provincial_GTAC3536[[#This Row],[Adj.AnnualRental]]*(1+$I157)^(3)) -> 1002132 | S157: =(Table_Provincial_GTAC3536[[#This Row],[Adj.AnnualRental]]*(1+$I157)^(4)) -> 1002132 | T157: =(Table_Provincial_GTAC3536[[#This Row],[Adj.AnnualRental]]*(1+$I157)^(5)) -> 1002132 | U157: =(Table_Provincial_GTAC3536[[#This Row],[Adj.AnnualRental]]*(1+$I157)^(6)) -> 1002132 | V157: =(Table_Provincial_GTAC3536[[#This Row],[Adj.AnnualRental]]*(1+$I157)^(7)) -> 1002132
A158: 213 | B158: =VLOOKUP($A158,DATA2!$A$2:$S$607,2,FALSE) -> EC | C158: =VLOOKUP($A158,DATA2!$A$2:$S$607,3,FALSE) -> Eastern Cape | D158: =VLOOKUP($A158,DATA2!$A$2:$S$607,4,FALSE) -> 44.92606232 | E158: =VLOOKUP($A158,DATA2!$A$2:$S$607,5,FALSE) -> 95 | F158: =VLOOKUP($A158,DATA2!$A$2:$S$607,6,FALSE) -> VTSD | G158: =VLOOKUP($A158,DATA2!$A$2:$S$607,7,FALSE) -> 353 | H158: =VLOOKUP($A158,DATA2!$A$2:$S$607,8,FALSE) -> TRUE | I158: =VLOOKUP($A158,DATA2!$A$2:$S$607,9,FALSE) -> 0.07 | J158: 72231.17 | K158: =VLOOKUP($A158,DATA2!$A$2:$S$607,10,FALSE) -> 15858.9 | L158: =VLOOKUP($A158,DATA2!$A$2:$S$607,11,FALSE) -> 190306.8 | M158: =VLOOKUP($A158,DATA2!$A$2:$S$607,12,FALSE) -> 2015-04-01 | N158: =VLOOKUP($A158,DATA2!$A$2:$S$607,13,FALSE) -> 2017-03-31 | O158: =VLOOKUP($A158,DATA2!$A$2:$S$607,14,FALSE) -> Yes | P158: =IF(MATRIX2!D158=1,($Y$8-$X$2)/365*Table_Provincial_GTAC3536[[#This Row],[Adj.AnnualRental]]*MATRIX2!D158,($Y$8-$X$2)/365*Table_Provincial_GTAC3536[[#This Row],[Adj.AnnualRental]]) -> 62566.61918 | Q158: =(Table_Provincial_GTAC3536[[#This Row],[Adj.AnnualRental]]*(1+$I158)^(2)) -> 217882.2553 | R158: =(Table_Provincial_GTAC3536[[#This Row],[Adj.AnnualRental]]*(1+$I158)^(3)) -> 233134.0132 | S158: =(Table_Provincial_GTAC3536[[#This Row],[Adj.AnnualRental]]*(1+$I158)^(4)) -> 249453.3941 | T158: =(Table_Provincial_GTAC3536[[#This Row],[Adj.AnnualRental]]*(1+$I158)^(5)) -> 266915.1317 | U158: =(Table_Provincial_GTAC3536[[#This Row],[Adj.AnnualRental]]*(1+$I158)^(6)) -> 285599.1909 | V158: =(Table_Provincial_GTAC3536[[#This Row],[Adj.AnnualRental]]*(1+$I158)^(7)) -> 305591.1343
A159: 214 | B159: =VLOOKUP($A159,DATA2!$A$2:$S$607,2,FALSE) -> EC | C159: =VLOOKUP($A159,DATA2!$A$2:$S$607,3,FALSE) -> Eastern Cape | D159: =VLOOKUP($A159,DATA2!$A$2:$S$607,4,FALSE) -> 87.18572941 | E159: =VLOOKUP($A159,DATA2!$A$2:$S$607,5,FALSE) -> 95 | F159: =VLOOKUP($A159,DATA2!$A$2:$S$607,6,FALSE) -> VTSD | G159: =VLOOKUP($A159,DATA2!$A$2:$S$607,7,FALSE) -> 1700 | H159: =VLOOKUP($A159,DATA2!$A$2:$S$607,8,FALSE) -> TRUE | I159: =VLOOKUP($A159,DATA2!$A$2:$S$607,9,FALSE) -> 0.06 | J159: 384127.8 | K159: =VLOOKUP($A159,DATA2!$A$2:$S$607,10,FALSE) -> 148215.74 | L159: =VLOOKUP($A159,DATA2!$A$2:$S$607,11,FALSE) -> 1778588.88 | M159: =VLOOKUP($A159,DATA2!$A$2:$S$607,12,FALSE) -> 2016-03-01 | N159: =VLOOKUP($A159,DATA2!$A$2:$S$607,13,FALSE) -> 2019-02-28 | O159: =VLOOKUP($A159,DATA2!$A$2:$S$607,14,FALSE) -> No | P159: =IF(MATRIX2!D159=1,($Y$8-$X$2)/365*Table_Provincial_GTAC3536[[#This Row],[Adj.AnnualRental]]*MATRIX2!D159,($Y$8-$X$2)/365*Table_Provincial_GTAC3536[[#This Row],[Adj.AnnualRental]]) -> 584741.5496 | Q159: =(Table_Provincial_GTAC3536[[#This Row],[Adj.AnnualRental]]*(1+$I159)^(2)) -> 1998422.466 | R159: =(Table_Provincial_GTAC3536[[#This Row],[Adj.AnnualRental]]*(1+$I159)^(3)) -> 2118327.814 | S159: =(Table_Provincial_GTAC3536[[#This Row],[Adj.AnnualRental]]*(1+$I159)^(4)) -> 2245427.482 | T159: =(Table_Provincial_GTAC3536[[#This Row],[Adj.AnnualRental]]*(1+$I159)^(5)) -> 2380153.131 | U159: =(Table_Provincial_GTAC3536[[#This Row],[Adj.AnnualRental]]*(1+$I159)^(6)) -> 2522962.319 | V159: =(Table_Provincial_GTAC3536[[#This Row],[Adj.AnnualRental]]*(1+$I159)^(7)) -> 2674340.058
A160: 215 | B160: =VLOOKUP($A160,DATA2!$A$2:$S$607,2,FALSE) -> EC | C160: =VLOOKUP($A160,DATA2!$A$2:$S$607,3,FALSE) -> Eastern Cape | D160: =VLOOKUP($A160,DATA2!$A$2:$S$607,4,FALSE) -> 23.15721745 | E160: =VLOOKUP($A160,DATA2!$A$2:$S$607,5,FALSE) -> 95 | F160: =VLOOKUP($A160,DATA2!$A$2:$S$607,6,FALSE) -> VTSD | G160: =VLOOKUP($A160,DATA2!$A$2:$S$607,7,FALSE) -> 1398 | H160: =VLOOKUP($A160,DATA2!$A$2:$S$607,8,FALSE) -> TRUE | I160: =VLOOKUP($A160,DATA2!$A$2:$S$607,9,FALSE) -> 0 | J160: 310068.6 | K160: =VLOOKUP($A160,DATA2!$A$2:$S$607,10,FALSE) -> 32373.79 | L160: =VLOOKUP($A160,DATA2!$A$2:$S$607,11,FALSE) -> 388485.48 | M160: =VLOOKUP($A160,DATA2!$A$2:$S$607,12,FALSE) -> 2008-05-01 | N160: =VLOOKUP($A160,DATA2!$A$2:$S$607,13,FALSE) -> 2018-03-31 | O160: =VLOOKUP($A160,DATA2!$A$2:$S$607,14,FALSE) -> No | P160: =IF(MATRIX2!D160=1,($Y$8-$X$2)/365*Table_Provincial_GTAC3536[[#This Row],[Adj.AnnualRental]]*MATRIX2!D160,($Y$8-$X$2)/365*Table_Provincial_GTAC3536[[#This Row],[Adj.AnnualRental]]) -> 127721.2537 | Q160: =(Table_Provincial_GTAC3536[[#This Row],[Adj.AnnualRental]]*(1+$I160)^(2)) -> 388485.48 | R160: =(Table_Provincial_GTAC3536[[#This Row],[Adj.AnnualRental]]*(1+$I160)^(3)) -> 388485.48 | S160: =(Table_Provincial_GTAC3536[[#This Row],[Adj.AnnualRental]]*(1+$I160)^(4)) -> 388485.48 | T160: =(Table_Provincial_GTAC3536[[#This Row],[Adj.AnnualRental]]*(1+$I160)^(5)) -> 388485.48 | U160: =(Table_Provincial_GTAC3536[[#This Row],[Adj.AnnualRental]]*(1+$I160)^(6)) -> 388485.48 | V160: =(Table_Provincial_GTAC3536[[#This Row],[Adj.AnnualRental]]*(1+$I160)^(7)) -> 388485.48
A161: 216 | B161: =VLOOKUP($A161,DATA2!$A$2:$S$607,2,FALSE) -> EC | C161: =VLOOKUP($A161,DATA2!$A$2:$S$607,3,FALSE) -> Eastern Cape | D161: =VLOOKUP($A161,DATA2!$A$2:$S$607,4,FALSE) -> 109.3801126 | E161: =VLOOKUP($A161,DATA2!$A$2:$S$607,5,FALSE) -> 95 | F161: =VLOOKUP($A161,DATA2!$A$2:$S$607,6,FALSE) -> VTSD | G161: =VLOOKUP($A161,DATA2!$A$2:$S$607,7,FALSE) -> 888 | H161: =VLOOKUP($A161,DATA2!$A$2:$S$607,8,FALSE) -> TRUE | I161: =VLOOKUP($A161,DATA2!$A$2:$S$607,9,FALSE) -> 0.08 | J161: 844065.96 | K161: =VLOOKUP($A161,DATA2!$A$2:$S$607,10,FALSE) -> 97129.54 | L161: =VLOOKUP($A161,DATA2!$A$2:$S$607,11,FALSE) -> 1165554.48 | M161: =VLOOKUP($A161,DATA2!$A$2:$S$607,12,FALSE) -> 2012-09-01 | N161: =VLOOKUP($A161,DATA2!$A$2:$S$607,13,FALSE) -> 2015-08-31 | O161: =VLOOKUP($A161,DATA2!$A$2:$S$607,14,FALSE) -> Yes | P161: =IF(MATRIX2!D161=1,($Y$8-$X$2)/365*Table_Provincial_GTAC3536[[#This Row],[Adj.AnnualRental]]*MATRIX2!D161,($Y$8-$X$2)/365*Table_Provincial_GTAC3536[[#This Row],[Adj.AnnualRental]]) -> 383195.9934 | Q161: =(Table_Provincial_GTAC3536[[#This Row],[Adj.AnnualRental]]*(1+$I161)^(2)) -> 1359502.745 | R161: =(Table_Provincial_GTAC3536[[#This Row],[Adj.AnnualRental]]*(1+$I161)^(3)) -> 1468262.965 | S161: =(Table_Provincial_GTAC3536[[#This Row],[Adj.AnnualRental]]*(1+$I161)^(4)) -> 1585724.002 | T161: =(Table_Provincial_GTAC3536[[#This Row],[Adj.AnnualRental]]*(1+$I161)^(5)) -> 1712581.923 | U161: =(Table_Provincial_GTAC3536[[#This Row],[Adj.AnnualRental]]*(1+$I161)^(6)) -> 1849588.476 | V161: =(Table_Provincial_GTAC3536[[#This Row],[Adj.AnnualRental]]*(1+$I161)^(7)) -> 1997555.554
A162: 217 | B162: =VLOOKUP($A162,DATA2!$A$2:$S$607,2,FALSE) -> EC | C162: =VLOOKUP($A162,DATA2!$A$2:$S$607,3,FALSE) -> Eastern Cape | D162: =VLOOKUP($A162,DATA2!$A$2:$S$607,4,FALSE) -> 70.98699627 | E162: =VLOOKUP($A162,DATA2!$A$2:$S$607,5,FALSE) -> 95 | F162: =VLOOKUP($A162,DATA2!$A$2:$S$607,6,FALSE) -> VTSD | G162: =VLOOKUP($A162,DATA2!$A$2:$S$607,7,FALSE) -> 2144 | H162: =VLOOKUP($A162,DATA2!$A$2:$S$607,8,FALSE) -> TRUE | I162: =VLOOKUP($A162,DATA2!$A$2:$S$607,9,FALSE) -> 0.07 | J162: 86020.13 | K162: =VLOOKUP($A162,DATA2!$A$2:$S$607,10,FALSE) -> 152196.12 | L162: =VLOOKUP($A162,DATA2!$A$2:$S$607,11,FALSE) -> 1826353.44 | M162: =VLOOKUP($A162,DATA2!$A$2:$S$607,12,FALSE) -> 2017-03-01 | N162: =VLOOKUP($A162,DATA2!$A$2:$S$607,13,FALSE) -> 2019-02-28 | O162: =VLOOKUP($A162,DATA2!$A$2:$S$607,14,FALSE) -> No | P162: =IF(MATRIX2!D162=1,($Y$8-$X$2)/365*Table_Provincial_GTAC3536[[#This Row],[Adj.AnnualRental]]*MATRIX2!D162,($Y$8-$X$2)/365*Table_Provincial_GTAC3536[[#This Row],[Adj.AnnualRental]]) -> 600444.9666 | Q162: =(Table_Provincial_GTAC3536[[#This Row],[Adj.AnnualRental]]*(1+$I162)^(2)) -> 2090992.053 | R162: =(Table_Provincial_GTAC3536[[#This Row],[Adj.AnnualRental]]*(1+$I162)^(3)) -> 2237361.497 | S162: =(Table_Provincial_GTAC3536[[#This Row],[Adj.AnnualRental]]*(1+$I162)^(4)) -> 2393976.802 | T162: =(Table_Provincial_GTAC3536[[#This Row],[Adj.AnnualRental]]*(1+$I162)^(5)) -> 2561555.178 | U162: =(Table_Provincial_GTAC3536[[#This Row],[Adj.AnnualRental]]*(1+$I162)^(6)) -> 2740864.041 | V162: =(Table_Provincial_GTAC3536[[#This Row],[Adj.AnnualRental]]*(1+$I162)^(7)) -> 2932724.523
A163: 218 | B163: =VLOOKUP($A163,DATA2!$A$2:$S$607,2,FALSE) -> EC | C163: =VLOOKUP($A163,DATA2!$A$2:$S$607,3,FALSE) -> Eastern Cape | D163: =VLOOKUP($A163,DATA2!$A$2:$S$607,4,FALSE) -> 70.36 | E163: =VLOOKUP($A163,DATA2!$A$2:$S$607,5,FALSE) -> 95 | F163: =VLOOKUP($A163,DATA2!$A$2:$S$607,6,FALSE) -> MAIN CENTRE | G163: =VLOOKUP($A163,DATA2!$A$2:$S$607,7,FALSE) -> 1044 | H163: =VLOOKUP($A163,DATA2!$A$2:$S$607,8,FALSE) -> TRUE | I163: =VLOOKUP($A163,DATA2!$A$2:$S$607,9,FALSE) -> 0 | J163: 72583.34 | K163: =VLOOKUP($A163,DATA2!$A$2:$S$607,10,FALSE) -> 73455.84 | L163: =VLOOKUP($A163,DATA2!$A$2:$S$607,11,FALSE) -> 881470.08 | M163: =VLOOKUP($A163,DATA2!$A$2:$S$607,12,FALSE) -> 2015-08-01 | N163: =VLOOKUP($A163,DATA2!$A$2:$S$607,13,FALSE) -> 2016-07-31 | O163: =VLOOKUP($A163,DATA2!$A$2:$S$607,14,FALSE) -> Yes | P163: =IF(MATRIX2!D163=1,($Y$8-$X$2)/365*Table_Provincial_GTAC3536[[#This Row],[Adj.AnnualRental]]*MATRIX2!D163,($Y$8-$X$2)/365*Table_Provincial_GTAC3536[[#This Row],[Adj.AnnualRental]]) -> 289798.3825 | Q163: =(Table_Provincial_GTAC3536[[#This Row],[Adj.AnnualRental]]*(1+$I163)^(2)) -> 881470.08 | R163: =(Table_Provincial_GTAC3536[[#This Row],[Adj.AnnualRental]]*(1+$I163)^(3)) -> 881470.08 | S163: =(Table_Provincial_GTAC3536[[#This Row],[Adj.AnnualRental]]*(1+$I163)^(4)) -> 881470.08 | T163: =(Table_Provincial_GTAC3536[[#This Row],[Adj.AnnualRental]]*(1+$I163)^(5)) -> 881470.08 | U163: =(Table_Provincial_GTAC3536[[#This Row],[Adj.AnnualRental]]*(1+$I163)^(6)) -> 881470.08 | V163: =(Table_Provincial_GTAC3536[[#This Row],[Adj.AnnualRental]]*(1+$I163)^(7)) -> 881470.08
A164: 219 | B164: =VLOOKUP($A164,DATA2!$A$2:$S$607,2,FALSE) -> EC | C164: =VLOOKUP($A164,DATA2!$A$2:$S$607,3,FALSE) -> Eastern Cape | D164: =VLOOKUP($A164,DATA2!$A$2:$S$607,4,FALSE) -> 84.325 | E164: =VLOOKUP($A164,DATA2!$A$2:$S$607,5,FALSE) -> 95 | F164: =VLOOKUP($A164,DATA2!$A$2:$S$607,6,FALSE) -> VTSD | G164: =VLOOKUP($A164,DATA2!$A$2:$S$607,7,FALSE) -> 1360 | H164: =VLOOKUP($A164,DATA2!$A$2:$S$607,8,FALSE) -> TRUE | I164: =VLOOKUP($A164,DATA2!$A$2:$S$607,9,FALSE) -> 0.07 | J164: 12812.5 | K164: =VLOOKUP($A164,DATA2!$A$2:$S$607,10,FALSE) -> 114682 | L164: =VLOOKUP($A164,DATA2!$A$2:$S$607,11,FALSE) -> 1376184 | M164: =VLOOKUP($A164,DATA2!$A$2:$S$607,12,FALSE) -> 2017-03-01 | N164: =VLOOKUP($A164,DATA2!$A$2:$S$607,13,FALSE) -> 2020-02-28 | O164: =VLOOKUP($A164,DATA2!$A$2:$S$607,14,FALSE) -> No | P164: =IF(MATRIX2!D164=1,($Y$8-$X$2)/365*Table_Provincial_GTAC3536[[#This Row],[Adj.AnnualRental]]*MATRIX2!D164,($Y$8-$X$2)/365*Table_Provincial_GTAC3536[[#This Row],[Adj.AnnualRental]]) -> 452444.0548 | Q164: =(Table_Provincial_GTAC3536[[#This Row],[Adj.AnnualRental]]*(1+$I164)^(2)) -> 1575593.062 | R164: =(Table_Provincial_GTAC3536[[#This Row],[Adj.AnnualRental]]*(1+$I164)^(3)) -> 1685884.576 | S164: =(Table_Provincial_GTAC3536[[#This Row],[Adj.AnnualRental]]*(1+$I164)^(4)) -> 1803896.496 | T164: =(Table_Provincial_GTAC3536[[#This Row],[Adj.AnnualRental]]*(1+$I164)^(5)) -> 1930169.251 | U164: =(Table_Provincial_GTAC3536[[#This Row],[Adj.AnnualRental]]*(1+$I164)^(6)) -> 2065281.099 | V164: =(Table_Provincial_GTAC3536[[#This Row],[Adj.AnnualRental]]*(1+$I164)^(7)) -> 2209850.775
A165: 220 | B165: =VLOOKUP($A165,DATA2!$A$2:$S$607,2,FALSE) -> EC | C165: =VLOOKUP($A165,DATA2!$A$2:$S$607,3,FALSE) -> Eastern Cape | D165: =VLOOKUP($A165,DATA2!$A$2:$S$607,4,FALSE) -> 77.5704186 | E165: =VLOOKUP($A165,DATA2!$A$2:$S$607,5,FALSE) -> 110 | F165: =VLOOKUP($A165,DATA2!$A$2:$S$607,6,FALSE) -> VTSD | G165: =VLOOKUP($A165,DATA2!$A$2:$S$607,7,FALSE) -> 215 | H165: =VLOOKUP($A165,DATA2!$A$2:$S$607,8,FALSE) -> TRUE | I165: =VLOOKUP($A165,DATA2!$A$2:$S$607,9,FALSE) -> 0.07 | J165: 112630.23 | K165: =VLOOKUP($A165,DATA2!$A$2:$S$607,10,FALSE) -> 16677.64 | L165: =VLOOKUP($A165,DATA2!$A$2:$S$607,11,FALSE) -> 200131.68 | M165: =VLOOKUP($A165,DATA2!$A$2:$S$607,12,FALSE) -> 2016-03-01 | N165: =VLOOKUP($A165,DATA2!$A$2:$S$607,13,FALSE) -> 2019-02-28 | O165: =VLOOKUP($A165,DATA2!$A$2:$S$607,14,FALSE) -> No | P165: =IF(MATRIX2!D165=1,($Y$8-$X$2)/365*Table_Provincial_GTAC3536[[#This Row],[Adj.AnnualRental]]*MATRIX2!D165,($Y$8-$X$2)/365*Table_Provincial_GTAC3536[[#This Row],[Adj.AnnualRental]]) -> 65796.71671 | Q165: =(Table_Provincial_GTAC3536[[#This Row],[Adj.AnnualRental]]*(1+$I165)^(2)) -> 229130.7604 | R165: =(Table_Provincial_GTAC3536[[#This Row],[Adj.AnnualRental]]*(1+$I165)^(3)) -> 245169.9137 | S165: =(Table_Provincial_GTAC3536[[#This Row],[Adj.AnnualRental]]*(1+$I165)^(4)) -> 262331.8076 | T165: =(Table_Provincial_GTAC3536[[#This Row],[Adj.AnnualRental]]*(1+$I165)^(5)) -> 280695.0342 | U165: =(Table_Provincial_GTAC3536[[#This Row],[Adj.AnnualRental]]*(1+$I165)^(6)) -> 300343.6865 | V165: =(Table_Provincial_GTAC3536[[#This Row],[Adj.AnnualRental]]*(1+$I165)^(7)) -> 321367.7446
A166: 221 | B166: =VLOOKUP($A166,DATA2!$A$2:$S$607,2,FALSE) -> EC | C166: =VLOOKUP($A166,DATA2!$A$2:$S$607,3,FALSE) -> Eastern Cape | D166: =VLOOKUP($A166,DATA2!$A$2:$S$607,4,FALSE) -> 122.4464715 | E166: =VLOOKUP($A166,DATA2!$A$2:$S$607,5,FALSE) -> 95 | F166: =VLOOKUP($A166,DATA2!$A$2:$S$607,6,FALSE) -> VTSD | G166: =VLOOKUP($A166,DATA2!$A$2:$S$607,7,FALSE) -> 2477 | H166: =VLOOKUP($A166,DATA2!$A$2:$S$607,8,FALSE) -> TRUE | I166: =VLOOKUP($A166,DATA2!$A$2:$S$607,9,FALSE) -> 0.07 | J166: 36276.15 | K166: =VLOOKUP($A166,DATA2!$A$2:$S$607,10,FALSE) -> 303299.91 | L166: =VLOOKUP($A166,DATA2!$A$2:$S$607,11,FALSE) -> 3639598.92 | M166: =VLOOKUP($A166,DATA2!$A$2:$S$607,12,FALSE) -> 2015-03-01 | N166: =VLOOKUP($A166,DATA2!$A$2:$S$607,13,FALSE) -> 2018-02-28 | O166: =VLOOKUP($A166,DATA2!$A$2:$S$607,14,FALSE) -> No | P166: =IF(MATRIX2!D166=1,($Y$8-$X$2)/365*Table_Provincial_GTAC3536[[#This Row],[Adj.AnnualRental]]*MATRIX2!D166,($Y$8-$X$2)/365*Table_Provincial_GTAC3536[[#This Row],[Adj.AnnualRental]]) -> 1196580.467 | Q166: =(Table_Provincial_GTAC3536[[#This Row],[Adj.AnnualRental]]*(1+$I166)^(2)) -> 4166976.804 | R166: =(Table_Provincial_GTAC3536[[#This Row],[Adj.AnnualRental]]*(1+$I166)^(3)) -> 4458665.18 | S166: =(Table_Provincial_GTAC3536[[#This Row],[Adj.AnnualRental]]*(1+$I166)^(4)) -> 4770771.742 | T166: =(Table_Provincial_GTAC3536[[#This Row],[Adj.AnnualRental]]*(1+$I166)^(5)) -> 5104725.764 | U166: =(Table_Provincial_GTAC3536[[#This Row],[Adj.AnnualRental]]*(1+$I166)^(6)) -> 5462056.568 | V166: =(Table_Provincial_GTAC3536[[#This Row],[Adj.AnnualRental]]*(1+$I166)^(7)) -> 5844400.528
A167: 222 | B167: =VLOOKUP($A167,DATA2!$A$2:$S$607,2,FALSE) -> EC | C167: =VLOOKUP($A167,DATA2!$A$2:$S$607,3,FALSE) -> Eastern Cape | D167: =VLOOKUP($A167,DATA2!$A$2:$S$607,4,FALSE) -> 93.67784504 | E167: =VLOOKUP($A167,DATA2!$A$2:$S$607,5,FALSE) -> 55 | F167: =VLOOKUP($A167,DATA2!$A$2:$S$607,6,FALSE) -> VTSD | G167: =VLOOKUP($A167,DATA2!$A$2:$S$607,7,FALSE) -> 2891 | H167: =VLOOKUP($A167,DATA2!$A$2:$S$607,8,FALSE) -> TRUE | I167: =VLOOKUP($A167,DATA2!$A$2:$S$607,9,FALSE) -> 0.07 | J167: 38690.99 | K167: =VLOOKUP($A167,DATA2!$A$2:$S$607,10,FALSE) -> 270822.65 | L167: =VLOOKUP($A167,DATA2!$A$2:$S$607,11,FALSE) -> 3249871.8 | M167: =VLOOKUP($A167,DATA2!$A$2:$S$607,12,FALSE) -> 2015-03-01 | N167: =VLOOKUP($A167,DATA2!$A$2:$S$607,13,FALSE) -> 2018-02-28 | O167: =VLOOKUP($A167,DATA2!$A$2:$S$607,14,FALSE) -> No | P167: =IF(MATRIX2!D167=1,($Y$8-$X$2)/365*Table_Provincial_GTAC3536[[#This Row],[Adj.AnnualRental]]*MATRIX2!D167,($Y$8-$X$2)/365*Table_Provincial_GTAC3536[[#This Row],[Adj.AnnualRental]]) -> 1068451.003 | Q167: =(Table_Provincial_GTAC3536[[#This Row],[Adj.AnnualRental]]*(1+$I167)^(2)) -> 3720778.224 | R167: =(Table_Provincial_GTAC3536[[#This Row],[Adj.AnnualRental]]*(1+$I167)^(3)) -> 3981232.699 | S167: =(Table_Provincial_GTAC3536[[#This Row],[Adj.AnnualRental]]*(1+$I167)^(4)) -> 4259918.988 | T167: =(Table_Provincial_GTAC3536[[#This Row],[Adj.AnnualRental]]*(1+$I167)^(5)) -> 4558113.318 | U167: =(Table_Provincial_GTAC3536[[#This Row],[Adj.AnnualRental]]*(1+$I167)^(6)) -> 4877181.25 | V167: =(Table_Provincial_GTAC3536[[#This Row],[Adj.AnnualRental]]*(1+$I167)^(7)) -> 5218583.937
A168: 223 | B168: =VLOOKUP($A168,DATA2!$A$2:$S$607,2,FALSE) -> EC | C168: =VLOOKUP($A168,DATA2!$A$2:$S$607,3,FALSE) -> Eastern Cape | D168: =VLOOKUP($A168,DATA2!$A$2:$S$607,4,FALSE) -> 83.99736156 | E168: =VLOOKUP($A168,DATA2!$A$2:$S$607,5,FALSE) -> 55 | F168: =VLOOKUP($A168,DATA2!$A$2:$S$607,6,FALSE) -> MAIN CENTRE | G168: =VLOOKUP($A168,DATA2!$A$2:$S$607,7,FALSE) -> 2763 | H168: =VLOOKUP($A168,DATA2!$A$2:$S$607,8,FALSE) -> TRUE | I168: =VLOOKUP($A168,DATA2!$A$2:$S$607,9,FALSE) -> 0.07 | J168: 55169.09 | K168: =VLOOKUP($A168,DATA2!$A$2:$S$607,10,FALSE) -> 232084.71 | L168: =VLOOKUP($A168,DATA2!$A$2:$S$607,11,FALSE) -> 2785016.52 | M168: =VLOOKUP($A168,DATA2!$A$2:$S$607,12,FALSE) -> 2015-03-01 | N168: =VLOOKUP($A168,DATA2!$A$2:$S$607,13,FALSE) -> 2018-02-28 | O168: =VLOOKUP($A168,DATA2!$A$2:$S$607,14,FALSE) -> No | P168: =IF(MATRIX2!D168=1,($Y$8-$X$2)/365*Table_Provincial_GTAC3536[[#This Row],[Adj.AnnualRental]]*MATRIX2!D168,($Y$8-$X$2)/365*Table_Provincial_GTAC3536[[#This Row],[Adj.AnnualRental]]) -> 915621.8696 | Q168: =(Table_Provincial_GTAC3536[[#This Row],[Adj.AnnualRental]]*(1+$I168)^(2)) -> 3188565.414 | R168: =(Table_Provincial_GTAC3536[[#This Row],[Adj.AnnualRental]]*(1+$I168)^(3)) -> 3411764.993 | S168: =(Table_Provincial_GTAC3536[[#This Row],[Adj.AnnualRental]]*(1+$I168)^(4)) -> 3650588.542 | T168: =(Table_Provincial_GTAC3536[[#This Row],[Adj.AnnualRental]]*(1+$I168)^(5)) -> 3906129.74 | U168: =(Table_Provincial_GTAC3536[[#This Row],[Adj.AnnualRental]]*(1+$I168)^(6)) -> 4179558.822 | V168: =(Table_Provincial_GTAC3536[[#This Row],[Adj.AnnualRental]]*(1+$I168)^(7)) -> 4472127.94
A169: 224 | B169: =VLOOKUP($A169,DATA2!$A$2:$S$607,2,FALSE) -> EC | C169: =VLOOKUP($A169,DATA2!$A$2:$S$607,3,FALSE) -> Eastern Cape | D169: =VLOOKUP($A169,DATA2!$A$2:$S$607,4,FALSE) -> 87.48111111 | E169: =VLOOKUP($A169,DATA2!$A$2:$S$607,5,FALSE) -> 55 | F169: =VLOOKUP($A169,DATA2!$A$2:$S$607,6,FALSE) -> MAIN CENTRE | G169: =VLOOKUP($A169,DATA2!$A$2:$S$607,7,FALSE) -> 2160 | H169: =VLOOKUP($A169,DATA2!$A$2:$S$607,8,FALSE) -> TRUE | I169: =VLOOKUP($A169,DATA2!$A$2:$S$607,9,FALSE) -> 0.01 | J169: 110205.19 | K169: =VLOOKUP($A169,DATA2!$A$2:$S$607,10,FALSE) -> 188959.2 | L169: =VLOOKUP($A169,DATA2!$A$2:$S$607,11,FALSE) -> 2267510.4 | M169: =VLOOKUP($A169,DATA2!$A$2:$S$607,12,FALSE) -> 2016-03-01 | N169: =VLOOKUP($A169,DATA2!$A$2:$S$607,13,FALSE) -> 2021-02-28 | O169: =VLOOKUP($A169,DATA2!$A$2:$S$607,14,FALSE) -> No | P169: =IF(MATRIX2!D169=1,($Y$8-$X$2)/365*Table_Provincial_GTAC3536[[#This Row],[Adj.AnnualRental]]*MATRIX2!D169,($Y$8-$X$2)/365*Table_Provincial_GTAC3536[[#This Row],[Adj.AnnualRental]]) -> 745482.8712 | Q169: =(Table_Provincial_GTAC3536[[#This Row],[Adj.AnnualRental]]*(1+$I169)^(2)) -> 2313087.359 | R169: =(Table_Provincial_GTAC3536[[#This Row],[Adj.AnnualRental]]*(1+$I169)^(3)) -> 2336218.233 | S169: =(Table_Provincial_GTAC3536[[#This Row],[Adj.AnnualRental]]*(1+$I169)^(4)) -> 2359580.415 | T169: =(Table_Provincial_GTAC3536[[#This Row],[Adj.AnnualRental]]*(1+$I169)^(5)) -> 2383176.219 | U169: =(Table_Provincial_GTAC3536[[#This Row],[Adj.AnnualRental]]*(1+$I169)^(6)) -> 2407007.981 | V169: =(Table_Provincial_GTAC3536[[#This Row],[Adj.AnnualRental]]*(1+$I169)^(7)) -> 2431078.061
A170: 225 | B170: =VLOOKUP($A170,DATA2!$A$2:$S$607,2,FALSE) -> EC | C170: =VLOOKUP($A170,DATA2!$A$2:$S$607,3,FALSE) -> Eastern Cape | D170: =VLOOKUP($A170,DATA2!$A$2:$S$607,4,FALSE) -> 114.0790018 | E170: =VLOOKUP($A170,DATA2!$A$2:$S$607,5,FALSE) -> 95 | F170: =VLOOKUP($A170,DATA2!$A$2:$S$607,6,FALSE) -> MAIN CENTRE | G170: =VLOOKUP($A170,DATA2!$A$2:$S$607,7,FALSE) -> 2284 | H170: =VLOOKUP($A170,DATA2!$A$2:$S$607,8,FALSE) -> TRUE | I170: =VLOOKUP($A170,DATA2!$A$2:$S$607,9,FALSE) -> 0.07 | J170: 299058.48 | K170: =VLOOKUP($A170,DATA2!$A$2:$S$607,10,FALSE) -> 260556.44 | L170: =VLOOKUP($A170,DATA2!$A$2:$S$607,11,FALSE) -> 3126677.28 | M170: =VLOOKUP($A170,DATA2!$A$2:$S$607,12,FALSE) -> 2016-03-01 | N170: =VLOOKUP($A170,DATA2!$A$2:$S$607,13,FALSE) -> 2019-02-28 | O170: =VLOOKUP($A170,DATA2!$A$2:$S$607,14,FALSE) -> No | P170: =IF(MATRIX2!D170=1,($Y$8-$X$2)/365*Table_Provincial_GTAC3536[[#This Row],[Adj.AnnualRental]]*MATRIX2!D170,($Y$8-$X$2)/365*Table_Provincial_GTAC3536[[#This Row],[Adj.AnnualRental]]) -> 1027948.695 | Q170: =(Table_Provincial_GTAC3536[[#This Row],[Adj.AnnualRental]]*(1+$I170)^(2)) -> 3579732.818 | R170: =(Table_Provincial_GTAC3536[[#This Row],[Adj.AnnualRental]]*(1+$I170)^(3)) -> 3830314.115 | S170: =(Table_Provincial_GTAC3536[[#This Row],[Adj.AnnualRental]]*(1+$I170)^(4)) -> 4098436.103 | T170: =(Table_Provincial_GTAC3536[[#This Row],[Adj.AnnualRental]]*(1+$I170)^(5)) -> 4385326.63 | U170: =(Table_Provincial_GTAC3536[[#This Row],[Adj.AnnualRental]]*(1+$I170)^(6)) -> 4692299.495 | V170: =(Table_Provincial_GTAC3536[[#This Row],[Adj.AnnualRental]]*(1+$I170)^(7)) -> 5020760.459
A171: 226 | B171: =VLOOKUP($A171,DATA2!$A$2:$S$607,2,FALSE) -> EC | C171: =VLOOKUP($A171,DATA2!$A$2:$S$607,3,FALSE) -> Eastern Cape | D171: =VLOOKUP($A171,DATA2!$A$2:$S$607,4,FALSE) -> 94.98304 | E171: =VLOOKUP($A171,DATA2!$A$2:$S$607,5,FALSE) -> 95 | F171: =VLOOKUP($A171,DATA2!$A$2:$S$607,6,FALSE) -> MAIN CENTRE | G171: =VLOOKUP($A171,DATA2!$A$2:$S$607,7,FALSE) -> 250 | H171: =VLOOKUP($A171,DATA2!$A$2:$S$607,8,FALSE) -> TRUE | I171: =VLOOKUP($A171,DATA2!$A$2:$S$607,9,FALSE) -> 0.07 | J171: 620.58 | K171: =VLOOKUP($A171,DATA2!$A$2:$S$607,10,FALSE) -> 23745.76 | L171: =VLOOKUP($A171,DATA2!$A$2:$S$607,11,FALSE) -> 284949.12 | M171: =VLOOKUP($A171,DATA2!$A$2:$S$607,12,FALSE) -> 2015-03-01 | N171: =VLOOKUP($A171,DATA2!$A$2:$S$607,13,FALSE) -> 2018-02-28 | O171: =VLOOKUP($A171,DATA2!$A$2:$S$607,14,FALSE) -> No | P171: =IF(MATRIX2!D171=1,($Y$8-$X$2)/365*Table_Provincial_GTAC3536[[#This Row],[Adj.AnnualRental]]*MATRIX2!D171,($Y$8-$X$2)/365*Table_Provincial_GTAC3536[[#This Row],[Adj.AnnualRental]]) -> 93681.90247 | Q171: =(Table_Provincial_GTAC3536[[#This Row],[Adj.AnnualRental]]*(1+$I171)^(2)) -> 326238.2475 | R171: =(Table_Provincial_GTAC3536[[#This Row],[Adj.AnnualRental]]*(1+$I171)^(3)) -> 349074.9248 | S171: =(Table_Provincial_GTAC3536[[#This Row],[Adj.AnnualRental]]*(1+$I171)^(4)) -> 373510.1695 | T171: =(Table_Provincial_GTAC3536[[#This Row],[Adj.AnnualRental]]*(1+$I171)^(5)) -> 399655.8814 | U171: =(Table_Provincial_GTAC3536[[#This Row],[Adj.AnnualRental]]*(1+$I171)^(6)) -> 427631.7931 | V171: =(Table_Provincial_GTAC3536[[#This Row],[Adj.AnnualRental]]*(1+$I171)^(7)) -> 457566.0186
A172: 227 | B172: =VLOOKUP($A172,DATA2!$A$2:$S$607,2,FALSE) -> EC | C172: =VLOOKUP($A172,DATA2!$A$2:$S$607,3,FALSE) -> Eastern Cape | D172: =VLOOKUP($A172,DATA2!$A$2:$S$607,4,FALSE) -> 94.9830137 | E172: =VLOOKUP($A172,DATA2!$A$2:$S$607,5,FALSE) -> 95 | F172: =VLOOKUP($A172,DATA2!$A$2:$S$607,6,FALSE) -> MAIN CENTRE | G172: =VLOOKUP($A172,DATA2!$A$2:$S$607,7,FALSE) -> 146 | H172: =VLOOKUP($A172,DATA2!$A$2:$S$607,8,FALSE) -> TRUE | I172: =VLOOKUP($A172,DATA2!$A$2:$S$607,9,FALSE) -> 0.07 | J172: 174267.24 | K172: =VLOOKUP($A172,DATA2!$A$2:$S$607,10,FALSE) -> 13867.52 | L172: =VLOOKUP($A172,DATA2!$A$2:$S$607,11,FALSE) -> 166410.24 | M172: =VLOOKUP($A172,DATA2!$A$2:$S$607,12,FALSE) -> 2015-06-01 | N172: =VLOOKUP($A172,DATA2!$A$2:$S$607,13,FALSE) -> 2018-05-31 | O172: =VLOOKUP($A172,DATA2!$A$2:$S$607,14,FALSE) -> No | P172: =IF(MATRIX2!D172=1,($Y$8-$X$2)/365*Table_Provincial_GTAC3536[[#This Row],[Adj.AnnualRental]]*MATRIX2!D172,($Y$8-$X$2)/365*Table_Provincial_GTAC3536[[#This Row],[Adj.AnnualRental]]) -> 54710.21589 | Q172: =(Table_Provincial_GTAC3536[[#This Row],[Adj.AnnualRental]]*(1+$I172)^(2)) -> 190523.0838 | R172: =(Table_Provincial_GTAC3536[[#This Row],[Adj.AnnualRental]]*(1+$I172)^(3)) -> 203859.6996 | S172: =(Table_Provincial_GTAC3536[[#This Row],[Adj.AnnualRental]]*(1+$I172)^(4)) -> 218129.8786 | T172: =(Table_Provincial_GTAC3536[[#This Row],[Adj.AnnualRental]]*(1+$I172)^(5)) -> 233398.9701 | U172: =(Table_Provincial_GTAC3536[[#This Row],[Adj.AnnualRental]]*(1+$I172)^(6)) -> 249736.898 | V172: =(Table_Provincial_GTAC3536[[#This Row],[Adj.AnnualRental]]*(1+$I172)^(7)) -> 267218.4809
A173: 228 | B173: =VLOOKUP($A173,DATA2!$A$2:$S$607,2,FALSE) -> EC | C173: =VLOOKUP($A173,DATA2!$A$2:$S$607,3,FALSE) -> Eastern Cape | D173: =VLOOKUP($A173,DATA2!$A$2:$S$607,4,FALSE) -> 105.4737736 | E173: =VLOOKUP($A173,DATA2!$A$2:$S$607,5,FALSE) -> 95 | F173: =VLOOKUP($A173,DATA2!$A$2:$S$607,6,FALSE) -> MAIN CENTRE | G173: =VLOOKUP($A173,DATA2!$A$2:$S$607,7,FALSE) -> 159 | H173: =VLOOKUP($A173,DATA2!$A$2:$S$607,8,FALSE) -> TRUE | I173: =VLOOKUP($A173,DATA2!$A$2:$S$607,9,FALSE) -> 0.07 | J173: 434978.04 | K173: =VLOOKUP($A173,DATA2!$A$2:$S$607,10,FALSE) -> 16770.33 | L173: =VLOOKUP($A173,DATA2!$A$2:$S$607,11,FALSE) -> 201243.96 | M173: =VLOOKUP($A173,DATA2!$A$2:$S$607,12,FALSE) -> 2015-04-01 | N173: =VLOOKUP($A173,DATA2!$A$2:$S$607,13,FALSE) -> 2020-03-31 | O173: =VLOOKUP($A173,DATA2!$A$2:$S$607,14,FALSE) -> No | P173: =IF(MATRIX2!D173=1,($Y$8-$X$2)/365*Table_Provincial_GTAC3536[[#This Row],[Adj.AnnualRental]]*MATRIX2!D173,($Y$8-$X$2)/365*Table_Provincial_GTAC3536[[#This Row],[Adj.AnnualRental]]) -> 66162.39781 | Q173: =(Table_Provincial_GTAC3536[[#This Row],[Adj.AnnualRental]]*(1+$I173)^(2)) -> 230404.2098 | R173: =(Table_Provincial_GTAC3536[[#This Row],[Adj.AnnualRental]]*(1+$I173)^(3)) -> 246532.5045 | S173: =(Table_Provincial_GTAC3536[[#This Row],[Adj.AnnualRental]]*(1+$I173)^(4)) -> 263789.7798 | T173: =(Table_Provincial_GTAC3536[[#This Row],[Adj.AnnualRental]]*(1+$I173)^(5)) -> 282255.0644 | U173: =(Table_Provincial_GTAC3536[[#This Row],[Adj.AnnualRental]]*(1+$I173)^(6)) -> 302012.9189 | V173: =(Table_Provincial_GTAC3536[[#This Row],[Adj.AnnualRental]]*(1+$I173)^(7)) -> 323153.8232
A174: 229 | B174: =VLOOKUP($A174,DATA2!$A$2:$S$607,2,FALSE) -> EC | C174: =VLOOKUP($A174,DATA2!$A$2:$S$607,3,FALSE) -> Eastern Cape | D174: =VLOOKUP($A174,DATA2!$A$2:$S$607,4,FALSE) -> 94.05886179 | E174: =VLOOKUP($A174,DATA2!$A$2:$S$607,5,FALSE) -> 95 | F174: =VLOOKUP($A174,DATA2!$A$2:$S$607,6,FALSE) -> MAIN CENTRE | G174: =VLOOKUP($A174,DATA2!$A$2:$S$607,7,FALSE) -> 123 | H174: =VLOOKUP($A174,DATA2!$A$2:$S$607,8,FALSE) -> TRUE | I174: =VLOOKUP($A174,DATA2!$A$2:$S$607,9,FALSE) -> 0.07 | J174: 703284.03 | K174: =VLOOKUP($A174,DATA2!$A$2:$S$607,10,FALSE) -> 11569.24 | L174: =VLOOKUP($A174,DATA2!$A$2:$S$607,11,FALSE) -> 138830.88 | M174: =VLOOKUP($A174,DATA2!$A$2:$S$607,12,FALSE) -> 2015-08-01 | N174: =VLOOKUP($A174,DATA2!$A$2:$S$607,13,FALSE) -> 2018-07-31 | O174: =VLOOKUP($A174,DATA2!$A$2:$S$607,14,FALSE) -> No | P174: =IF(MATRIX2!D174=1,($Y$8-$X$2)/365*Table_Provincial_GTAC3536[[#This Row],[Adj.AnnualRental]]*MATRIX2!D174,($Y$8-$X$2)/365*Table_Provincial_GTAC3536[[#This Row],[Adj.AnnualRental]]) -> 45643.02904 | Q174: =(Table_Provincial_GTAC3536[[#This Row],[Adj.AnnualRental]]*(1+$I174)^(2)) -> 158947.4745 | R174: =(Table_Provincial_GTAC3536[[#This Row],[Adj.AnnualRental]]*(1+$I174)^(3)) -> 170073.7977 | S174: =(Table_Provincial_GTAC3536[[#This Row],[Adj.AnnualRental]]*(1+$I174)^(4)) -> 181978.9636 | T174: =(Table_Provincial_GTAC3536[[#This Row],[Adj.AnnualRental]]*(1+$I174)^(5)) -> 194717.491 | U174: =(Table_Provincial_GTAC3536[[#This Row],[Adj.AnnualRental]]*(1+$I174)^(6)) -> 208347.7154 | V174: =(Table_Provincial_GTAC3536[[#This Row],[Adj.AnnualRental]]*(1+$I174)^(7)) -> 222932.0555
A175: 230 | B175: =VLOOKUP($A175,DATA2!$A$2:$S$607,2,FALSE) -> EC | C175: =VLOOKUP($A175,DATA2!$A$2:$S$607,3,FALSE) -> Eastern Cape | D175: =VLOOKUP($A175,DATA2!$A$2:$S$607,4,FALSE) -> 117.0111268 | E175: =VLOOKUP($A175,DATA2!$A$2:$S$607,5,FALSE) -> 95 | F175: =VLOOKUP($A175,DATA2!$A$2:$S$607,6,FALSE) -> MAIN CENTRE | G175: =VLOOKUP($A175,DATA2!$A$2:$S$607,7,FALSE) -> 11120 | H175: =VLOOKUP($A175,DATA2!$A$2:$S$607,8,FALSE) -> TRUE | I175: =VLOOKUP($A175,DATA2!$A$2:$S$607,9,FALSE) -> 0.07 | J175: 268678.95 | K175: =VLOOKUP($A175,DATA2!$A$2:$S$607,10,FALSE) -> 1301163.73 | L175: =VLOOKUP($A175,DATA2!$A$2:$S$607,11,FALSE) -> 15613964.76 | M175: =VLOOKUP($A175,DATA2!$A$2:$S$607,12,FALSE) -> 2015-08-01 | N175: =VLOOKUP($A175,DATA2!$A$2:$S$607,13,FALSE) -> 2020-07-31 | O175: =VLOOKUP($A175,DATA2!$A$2:$S$607,14,FALSE) -> No | P175: =IF(MATRIX2!D175=1,($Y$8-$X$2)/365*Table_Provincial_GTAC3536[[#This Row],[Adj.AnnualRental]]*MATRIX2!D175,($Y$8-$X$2)/365*Table_Provincial_GTAC3536[[#This Row],[Adj.AnnualRental]]) -> 5133358.277 | Q175: =(Table_Provincial_GTAC3536[[#This Row],[Adj.AnnualRental]]*(1+$I175)^(2)) -> 17876428.25 | R175: =(Table_Provincial_GTAC3536[[#This Row],[Adj.AnnualRental]]*(1+$I175)^(3)) -> 19127778.23 | S175: =(Table_Provincial_GTAC3536[[#This Row],[Adj.AnnualRental]]*(1+$I175)^(4)) -> 20466722.71 | T175: =(Table_Provincial_GTAC3536[[#This Row],[Adj.AnnualRental]]*(1+$I175)^(5)) -> 21899393.3 | U175: =(Table_Provincial_GTAC3536[[#This Row],[Adj.AnnualRental]]*(1+$I175)^(6)) -> 23432350.83 | V175: =(Table_Provincial_GTAC3536[[#This Row],[Adj.AnnualRental]]*(1+$I175)^(7)) -> 25072615.39
A176: 231 | B176: =VLOOKUP($A176,DATA2!$A$2:$S$607,2,FALSE) -> EC | C176: =VLOOKUP($A176,DATA2!$A$2:$S$607,3,FALSE) -> Eastern Cape | D176: =VLOOKUP($A176,DATA2!$A$2:$S$607,4,FALSE) -> 73.21570128 | E176: =VLOOKUP($A176,DATA2!$A$2:$S$607,5,FALSE) -> 95 | F176: =VLOOKUP($A176,DATA2!$A$2:$S$607,6,FALSE) -> MAIN CENTRE | G176: =VLOOKUP($A176,DATA2!$A$2:$S$607,7,FALSE) -> 1098 | H176: =VLOOKUP($A176,DATA2!$A$2:$S$607,8,FALSE) -> TRUE | I176: =VLOOKUP($A176,DATA2!$A$2:$S$607,9,FALSE) -> 0.07 | J176: 12222.4 | K176: =VLOOKUP($A176,DATA2!$A$2:$S$607,10,FALSE) -> 80390.84 | L176: =VLOOKUP($A176,DATA2!$A$2:$S$607,11,FALSE) -> 964690.08 | M176: =VLOOKUP($A176,DATA2!$A$2:$S$607,12,FALSE) -> 2015-10-01 | N176: =VLOOKUP($A176,DATA2!$A$2:$S$607,13,FALSE) -> 2020-09-30 | O176: =VLOOKUP($A176,DATA2!$A$2:$S$607,14,FALSE) -> No | P176: =IF(MATRIX2!D176=1,($Y$8-$X$2)/365*Table_Provincial_GTAC3536[[#This Row],[Adj.AnnualRental]]*MATRIX2!D176,($Y$8-$X$2)/365*Table_Provincial_GTAC3536[[#This Row],[Adj.AnnualRental]]) -> 317158.3825 | Q176: =(Table_Provincial_GTAC3536[[#This Row],[Adj.AnnualRental]]*(1+$I176)^(2)) -> 1104473.673 | R176: =(Table_Provincial_GTAC3536[[#This Row],[Adj.AnnualRental]]*(1+$I176)^(3)) -> 1181786.83 | S176: =(Table_Provincial_GTAC3536[[#This Row],[Adj.AnnualRental]]*(1+$I176)^(4)) -> 1264511.908 | T176: =(Table_Provincial_GTAC3536[[#This Row],[Adj.AnnualRental]]*(1+$I176)^(5)) -> 1353027.741 | U176: =(Table_Provincial_GTAC3536[[#This Row],[Adj.AnnualRental]]*(1+$I176)^(6)) -> 1447739.683 | V176: =(Table_Provincial_GTAC3536[[#This Row],[Adj.AnnualRental]]*(1+$I176)^(7)) -> 1549081.461
A177: 232 | B177: =VLOOKUP($A177,DATA2!$A$2:$S$607,2,FALSE) -> EC | C177: =VLOOKUP($A177,DATA2!$A$2:$S$607,3,FALSE) -> Eastern Cape | D177: =VLOOKUP($A177,DATA2!$A$2:$S$607,4,FALSE) -> 77.485 | E177: =VLOOKUP($A177,DATA2!$A$2:$S$607,5,FALSE) -> 80 | F177: =VLOOKUP($A177,DATA2!$A$2:$S$607,6,FALSE) -> CBD | G177: =VLOOKUP($A177,DATA2!$A$2:$S$607,7,FALSE) -> 7018 | H177: =VLOOKUP($A177,DATA2!$A$2:$S$607,8,FALSE) -> TRUE | I177: =VLOOKUP($A177,DATA2!$A$2:$S$607,9,FALSE) -> 0.07 | J177: 126898.8 | K177: =VLOOKUP($A177,DATA2!$A$2:$S$607,10,FALSE) -> 543789.73 | L177: =VLOOKUP($A177,DATA2!$A$2:$S$607,11,FALSE) -> 6525476.76 | M177: =VLOOKUP($A177,DATA2!$A$2:$S$607,12,FALSE) -> 2015-09-01 | N177: =VLOOKUP($A177,DATA2!$A$2:$S$607,13,FALSE) -> 2017-08-31 | O177: =VLOOKUP($A177,DATA2!$A$2:$S$607,14,FALSE) -> No | P177: =IF(MATRIX2!D177=1,($Y$8-$X$2)/365*Table_Provincial_GTAC3536[[#This Row],[Adj.AnnualRental]]*MATRIX2!D177,($Y$8-$X$2)/365*Table_Provincial_GTAC3536[[#This Row],[Adj.AnnualRental]]) -> 2145362.222 | Q177: =(Table_Provincial_GTAC3536[[#This Row],[Adj.AnnualRental]]*(1+$I177)^(2)) -> 7471018.343 | R177: =(Table_Provincial_GTAC3536[[#This Row],[Adj.AnnualRental]]*(1+$I177)^(3)) -> 7993989.627 | S177: =(Table_Provincial_GTAC3536[[#This Row],[Adj.AnnualRental]]*(1+$I177)^(4)) -> 8553568.9 | T177: =(Table_Provincial_GTAC3536[[#This Row],[Adj.AnnualRental]]*(1+$I177)^(5)) -> 9152318.723 | U177: =(Table_Provincial_GTAC3536[[#This Row],[Adj.AnnualRental]]*(1+$I177)^(6)) -> 9792981.034 | V177: =(Table_Provincial_GTAC3536[[#This Row],[Adj.AnnualRental]]*(1+$I177)^(7)) -> 10478489.71
A178: 233 | B178: =VLOOKUP($A178,DATA2!$A$2:$S$607,2,FALSE) -> EC | C178: =VLOOKUP($A178,DATA2!$A$2:$S$607,3,FALSE) -> Eastern Cape | D178: =VLOOKUP($A178,DATA2!$A$2:$S$607,4,FALSE) -> 78.65168296 | E178: =VLOOKUP($A178,DATA2!$A$2:$S$607,5,FALSE) -> 95 | F178: =VLOOKUP($A178,DATA2!$A$2:$S$607,6,FALSE) -> VTSD | G178: =VLOOKUP($A178,DATA2!$A$2:$S$607,7,FALSE) -> 1063.6 | H178: =VLOOKUP($A178,DATA2!$A$2:$S$607,8,FALSE) -> TRUE | I178: =VLOOKUP($A178,DATA2!$A$2:$S$607,9,FALSE) -> 0.07 | J178: 42755.28 | K178: =VLOOKUP($A178,DATA2!$A$2:$S$607,10,FALSE) -> 83653.93 | L178: =VLOOKUP($A178,DATA2!$A$2:$S$607,11,FALSE) -> 1003847.16 | M178: =VLOOKUP($A178,DATA2!$A$2:$S$607,12,FALSE) -> 2017-03-01 | N178: =VLOOKUP($A178,DATA2!$A$2:$S$607,13,FALSE) -> 2019-02-28 | O178: =VLOOKUP($A178,DATA2!$A$2:$S$607,14,FALSE) -> No | P178: =IF(MATRIX2!D178=1,($Y$8-$X$2)/365*Table_Provincial_GTAC3536[[#This Row],[Adj.AnnualRental]]*MATRIX2!D178,($Y$8-$X$2)/365*Table_Provincial_GTAC3536[[#This Row],[Adj.AnnualRental]]) -> 330031.943 | Q178: =(Table_Provincial_GTAC3536[[#This Row],[Adj.AnnualRental]]*(1+$I178)^(2)) -> 1149304.613 | R178: =(Table_Provincial_GTAC3536[[#This Row],[Adj.AnnualRental]]*(1+$I178)^(3)) -> 1229755.936 | S178: =(Table_Provincial_GTAC3536[[#This Row],[Adj.AnnualRental]]*(1+$I178)^(4)) -> 1315838.852 | T178: =(Table_Provincial_GTAC3536[[#This Row],[Adj.AnnualRental]]*(1+$I178)^(5)) -> 1407947.572 | U178: =(Table_Provincial_GTAC3536[[#This Row],[Adj.AnnualRental]]*(1+$I178)^(6)) -> 1506503.902 | V178: =(Table_Provincial_GTAC3536[[#This Row],[Adj.AnnualRental]]*(1+$I178)^(7)) -> 1611959.175
A179: 234 | B179: =VLOOKUP($A179,DATA2!$A$2:$S$607,2,FALSE) -> EC | C179: =VLOOKUP($A179,DATA2!$A$2:$S$607,3,FALSE) -> Eastern Cape | D179: =VLOOKUP($A179,DATA2!$A$2:$S$607,4,FALSE) -> 141.0957377 | E179: =VLOOKUP($A179,DATA2!$A$2:$S$607,5,FALSE) -> 95 | F179: =VLOOKUP($A179,DATA2!$A$2:$S$607,6,FALSE) -> MAIN CENTRE | G179: =VLOOKUP($A179,DATA2!$A$2:$S$607,7,FALSE) -> 366 | H179: =VLOOKUP($A179,DATA2!$A$2:$S$607,8,FALSE) -> TRUE | I179: =VLOOKUP($A179,DATA2!$A$2:$S$607,9,FALSE) -> 0.08 | J179: 9671.43 | K179: =VLOOKUP($A179,DATA2!$A$2:$S$607,10,FALSE) -> 51641.04 | L179: =VLOOKUP($A179,DATA2!$A$2:$S$607,11,FALSE) -> 619692.48 | M179: =VLOOKUP($A179,DATA2!$A$2:$S$607,12,FALSE) -> 2012-11-01 | N179: =VLOOKUP($A179,DATA2!$A$2:$S$607,13,FALSE) -> 2017-10-31 | O179: =VLOOKUP($A179,DATA2!$A$2:$S$607,14,FALSE) -> No | P179: =IF(MATRIX2!D179=1,($Y$8-$X$2)/365*Table_Provincial_GTAC3536[[#This Row],[Adj.AnnualRental]]*MATRIX2!D179,($Y$8-$X$2)/365*Table_Provincial_GTAC3536[[#This Row],[Adj.AnnualRental]]) -> 203734.514 | Q179: =(Table_Provincial_GTAC3536[[#This Row],[Adj.AnnualRental]]*(1+$I179)^(2)) -> 722809.3087 | R179: =(Table_Provincial_GTAC3536[[#This Row],[Adj.AnnualRental]]*(1+$I179)^(3)) -> 780634.0534 | S179: =(Table_Provincial_GTAC3536[[#This Row],[Adj.AnnualRental]]*(1+$I179)^(4)) -> 843084.7776 | T179: =(Table_Provincial_GTAC3536[[#This Row],[Adj.AnnualRental]]*(1+$I179)^(5)) -> 910531.5598 | U179: =(Table_Provincial_GTAC3536[[#This Row],[Adj.AnnualRental]]*(1+$I179)^(6)) -> 983374.0846 | V179: =(Table_Provincial_GTAC3536[[#This Row],[Adj.AnnualRental]]*(1+$I179)^(7)) -> 1062044.011
A180: 235 | B180: =VLOOKUP($A180,DATA2!$A$2:$S$607,2,FALSE) -> EC | C180: =VLOOKUP($A180,DATA2!$A$2:$S$607,3,FALSE) -> Eastern Cape | D180: =VLOOKUP($A180,DATA2!$A$2:$S$607,4,FALSE) -> 91.20774957 | E180: =VLOOKUP($A180,DATA2!$A$2:$S$607,5,FALSE) -> 95 | F180: =VLOOKUP($A180,DATA2!$A$2:$S$607,6,FALSE) -> MAIN CENTRE | G180: =VLOOKUP($A180,DATA2!$A$2:$S$607,7,FALSE) -> 4057 | H180: =VLOOKUP($A180,DATA2!$A$2:$S$607,8,FALSE) -> TRUE | I180: =VLOOKUP($A180,DATA2!$A$2:$S$607,9,FALSE) -> 0.07 | J180: 36733.2 | K180: =VLOOKUP($A180,DATA2!$A$2:$S$607,10,FALSE) -> 370029.84 | L180: =VLOOKUP($A180,DATA2!$A$2:$S$607,11,FALSE) -> 4440358.08 | M180: =VLOOKUP($A180,DATA2!$A$2:$S$607,12,FALSE) -> 2015-09-01 | N180: =VLOOKUP($A180,DATA2!$A$2:$S$607,13,FALSE) -> 2020-08-31 | O180: =VLOOKUP($A180,DATA2!$A$2:$S$607,14,FALSE) -> No | P180: =IF(MATRIX2!D180=1,($Y$8-$X$2)/365*Table_Provincial_GTAC3536[[#This Row],[Adj.AnnualRental]]*MATRIX2!D180,($Y$8-$X$2)/365*Table_Provincial_GTAC3536[[#This Row],[Adj.AnnualRental]]) -> 1459843.752 | Q180: =(Table_Provincial_GTAC3536[[#This Row],[Adj.AnnualRental]]*(1+$I180)^(2)) -> 5083765.966 | R180: =(Table_Provincial_GTAC3536[[#This Row],[Adj.AnnualRental]]*(1+$I180)^(3)) -> 5439629.583 | S180: =(Table_Provincial_GTAC3536[[#This Row],[Adj.AnnualRental]]*(1+$I180)^(4)) -> 5820403.654 | T180: =(Table_Provincial_GTAC3536[[#This Row],[Adj.AnnualRental]]*(1+$I180)^(5)) -> 6227831.91 | U180: =(Table_Provincial_GTAC3536[[#This Row],[Adj.AnnualRental]]*(1+$I180)^(6)) -> 6663780.144 | V180: =(Table_Provincial_GTAC3536[[#This Row],[Adj.AnnualRental]]*(1+$I180)^(7)) -> 7130244.754
A181: 236 | B181: =VLOOKUP($A181,DATA2!$A$2:$S$607,2,FALSE) -> EC | C181: =VLOOKUP($A181,DATA2!$A$2:$S$607,3,FALSE) -> Eastern Cape | D181: =VLOOKUP($A181,DATA2!$A$2:$S$607,4,FALSE) -> 118.8251577 | E181: =VLOOKUP($A181,DATA2!$A$2:$S$607,5,FALSE) -> 95 | F181: =VLOOKUP($A181,DATA2!$A$2:$S$607,6,FALSE) -> MAIN CENTRE | G181: =VLOOKUP($A181,DATA2!$A$2:$S$607,7,FALSE) -> 6881 | H181: =VLOOKUP($A181,DATA2!$A$2:$S$607,8,FALSE) -> TRUE | I181: =VLOOKUP($A181,DATA2!$A$2:$S$607,9,FALSE) -> 0.07 | J181: 18892.26 | K181: =VLOOKUP($A181,DATA2!$A$2:$S$607,10,FALSE) -> 817635.91 | L181: =VLOOKUP($A181,DATA2!$A$2:$S$607,11,FALSE) -> 9811630.92 | M181: =VLOOKUP($A181,DATA2!$A$2:$S$607,12,FALSE) -> 2015-10-01 | N181: =VLOOKUP($A181,DATA2!$A$2:$S$607,13,FALSE) -> 2019-09-30 | O181: =VLOOKUP($A181,DATA2!$A$2:$S$607,14,FALSE) -> No | P181: =IF(MATRIX2!D181=1,($Y$8-$X$2)/365*Table_Provincial_GTAC3536[[#This Row],[Adj.AnnualRental]]*MATRIX2!D181,($Y$8-$X$2)/365*Table_Provincial_GTAC3536[[#This Row],[Adj.AnnualRental]]) -> 3225741.672 | Q181: =(Table_Provincial_GTAC3536[[#This Row],[Adj.AnnualRental]]*(1+$I181)^(2)) -> 11233336.24 | R181: =(Table_Provincial_GTAC3536[[#This Row],[Adj.AnnualRental]]*(1+$I181)^(3)) -> 12019669.78 | S181: =(Table_Provincial_GTAC3536[[#This Row],[Adj.AnnualRental]]*(1+$I181)^(4)) -> 12861046.66 | T181: =(Table_Provincial_GTAC3536[[#This Row],[Adj.AnnualRental]]*(1+$I181)^(5)) -> 13761319.93 | U181: =(Table_Provincial_GTAC3536[[#This Row],[Adj.AnnualRental]]*(1+$I181)^(6)) -> 14724612.32 | V181: =(Table_Provincial_GTAC3536[[#This Row],[Adj.AnnualRental]]*(1+$I181)^(7)) -> 15755335.19
A182: 237 | B182: =VLOOKUP($A182,DATA2!$A$2:$S$607,2,FALSE) -> EC | C182: =VLOOKUP($A182,DATA2!$A$2:$S$607,3,FALSE) -> Eastern Cape | D182: =VLOOKUP($A182,DATA2!$A$2:$S$607,4,FALSE) -> 234.4213888 | E182: =VLOOKUP($A182,DATA2!$A$2:$S$607,5,FALSE) -> 75 | F182: =VLOOKUP($A182,DATA2!$A$2:$S$607,6,FALSE) -> MAIN CENTRE | G182: =VLOOKUP($A182,DATA2!$A$2:$S$607,7,FALSE) -> 8000 | H182: =VLOOKUP($A182,DATA2!$A$2:$S$607,8,FALSE) -> TRUE | I182: =VLOOKUP($A182,DATA2!$A$2:$S$607,9,FALSE) -> 0.01 | J182: 340523.64 | K182: =VLOOKUP($A182,DATA2!$A$2:$S$607,10,FALSE) -> 1875371.11 | L182: =VLOOKUP($A182,DATA2!$A$2:$S$607,11,FALSE) -> 22504453.32 | M182: =VLOOKUP($A182,DATA2!$A$2:$S$607,12,FALSE) -> 2014-02-01 | N182: =VLOOKUP($A182,DATA2!$A$2:$S$607,13,FALSE) -> 2014-03-31 | O182: =VLOOKUP($A182,DATA2!$A$2:$S$607,14,FALSE) -> Yes | P182: =IF(MATRIX2!D182=1,($Y$8-$X$2)/365*Table_Provincial_GTAC3536[[#This Row],[Adj.AnnualRental]]*MATRIX2!D182,($Y$8-$X$2)/365*Table_Provincial_GTAC3536[[#This Row],[Adj.AnnualRental]]) -> 7398724.379 | Q182: =(Table_Provincial_GTAC3536[[#This Row],[Adj.AnnualRental]]*(1+$I182)^(2)) -> 22956792.83 | R182: =(Table_Provincial_GTAC3536[[#This Row],[Adj.AnnualRental]]*(1+$I182)^(3)) -> 23186360.76 | S182: =(Table_Provincial_GTAC3536[[#This Row],[Adj.AnnualRental]]*(1+$I182)^(4)) -> 23418224.37 | T182: =(Table_Provincial_GTAC3536[[#This Row],[Adj.AnnualRental]]*(1+$I182)^(5)) -> 23652406.61 | U182: =(Table_Provincial_GTAC3536[[#This Row],[Adj.AnnualRental]]*(1+$I182)^(6)) -> 23888930.68 | V182: =(Table_Provincial_GTAC3536[[#This Row],[Adj.AnnualRental]]*(1+$I182)^(7)) -> 24127819.98
A183: 238 | B183: =VLOOKUP($A183,DATA2!$A$2:$S$607,2,FALSE) -> EC | C183: =VLOOKUP($A183,DATA2!$A$2:$S$607,3,FALSE) -> Eastern Cape | D183: =VLOOKUP($A183,DATA2!$A$2:$S$607,4,FALSE) -> 102.5805901 | E183: =VLOOKUP($A183,DATA2!$A$2:$S$607,5,FALSE) -> 55 | F183: =VLOOKUP($A183,DATA2!$A$2:$S$607,6,FALSE) -> MAIN CENTRE | G183: =VLOOKUP($A183,DATA2!$A$2:$S$607,7,FALSE) -> 1576 | H183: =VLOOKUP($A183,DATA2!$A$2:$S$607,8,FALSE) -> TRUE | I183: =VLOOKUP($A183,DATA2!$A$2:$S$607,9,FALSE) -> 0.08 | J183: 208335.09 | K183: =VLOOKUP($A183,DATA2!$A$2:$S$607,10,FALSE) -> 161667.01 | L183: =VLOOKUP($A183,DATA2!$A$2:$S$607,11,FALSE) -> 1940004.12 | M183: =VLOOKUP($A183,DATA2!$A$2:$S$607,12,FALSE) -> 2014-01-01 | N183: =VLOOKUP($A183,DATA2!$A$2:$S$607,13,FALSE) -> 2016-12-31 | O183: =VLOOKUP($A183,DATA2!$A$2:$S$607,14,FALSE) -> Yes | P183: =IF(MATRIX2!D183=1,($Y$8-$X$2)/365*Table_Provincial_GTAC3536[[#This Row],[Adj.AnnualRental]]*MATRIX2!D183,($Y$8-$X$2)/365*Table_Provincial_GTAC3536[[#This Row],[Adj.AnnualRental]]) -> 637809.5737 | Q183: =(Table_Provincial_GTAC3536[[#This Row],[Adj.AnnualRental]]*(1+$I183)^(2)) -> 2262820.806 | R183: =(Table_Provincial_GTAC3536[[#This Row],[Adj.AnnualRental]]*(1+$I183)^(3)) -> 2443846.47 | S183: =(Table_Provincial_GTAC3536[[#This Row],[Adj.AnnualRental]]*(1+$I183)^(4)) -> 2639354.188 | T183: =(Table_Provincial_GTAC3536[[#This Row],[Adj.AnnualRental]]*(1+$I183)^(5)) -> 2850502.523 | U183: =(Table_Provincial_GTAC3536[[#This Row],[Adj.AnnualRental]]*(1+$I183)^(6)) -> 3078542.724 | V183: =(Table_Provincial_GTAC3536[[#This Row],[Adj.AnnualRental]]*(1+$I183)^(7)) -> 3324826.142
A184: 239 | B184: =VLOOKUP($A184,DATA2!$A$2:$S$607,2,FALSE) -> EC | C184: =VLOOKUP($A184,DATA2!$A$2:$S$607,3,FALSE) -> Eastern Cape | D184: =VLOOKUP($A184,DATA2!$A$2:$S$607,4,FALSE) -> 134.2747059 | E184: =VLOOKUP($A184,DATA2!$A$2:$S$607,5,FALSE) -> 95 | F184: =VLOOKUP($A184,DATA2!$A$2:$S$607,6,FALSE) -> VTSD | G184: =VLOOKUP($A184,DATA2!$A$2:$S$607,7,FALSE) -> 765 | H184: =VLOOKUP($A184,DATA2!$A$2:$S$607,8,FALSE) -> TRUE | I184: =VLOOKUP($A184,DATA2!$A$2:$S$607,9,FALSE) -> 0.01 | J184: 97945 | K184: =VLOOKUP($A184,DATA2!$A$2:$S$607,10,FALSE) -> 102720.15 | L184: =VLOOKUP($A184,DATA2!$A$2:$S$607,11,FALSE) -> 1232641.8 | M184: =VLOOKUP($A184,DATA2!$A$2:$S$607,12,FALSE) -> 2014-03-01 | N184: =VLOOKUP($A184,DATA2!$A$2:$S$607,13,FALSE) -> 2014-03-31 | O184: =VLOOKUP($A184,DATA2!$A$2:$S$607,14,FALSE) -> Yes | P184: =IF(MATRIX2!D184=1,($Y$8-$X$2)/365*Table_Provincial_GTAC3536[[#This Row],[Adj.AnnualRental]]*MATRIX2!D184,($Y$8-$X$2)/365*Table_Provincial_GTAC3536[[#This Row],[Adj.AnnualRental]]) -> 405252.0986 | Q184: =(Table_Provincial_GTAC3536[[#This Row],[Adj.AnnualRental]]*(1+$I184)^(2)) -> 1257417.9 | R184: =(Table_Provincial_GTAC3536[[#This Row],[Adj.AnnualRental]]*(1+$I184)^(3)) -> 1269992.079 | S184: =(Table_Provincial_GTAC3536[[#This Row],[Adj.AnnualRental]]*(1+$I184)^(4)) -> 1282692 | T184: =(Table_Provincial_GTAC3536[[#This Row],[Adj.AnnualRental]]*(1+$I184)^(5)) -> 1295518.92 | U184: =(Table_Provincial_GTAC3536[[#This Row],[Adj.AnnualRental]]*(1+$I184)^(6)) -> 1308474.109 | V184: =(Table_Provincial_GTAC3536[[#This Row],[Adj.AnnualRental]]*(1+$I184)^(7)) -> 1321558.85
A185: 240 | B185: =VLOOKUP($A185,DATA2!$A$2:$S$607,2,FALSE) -> EC | C185: =VLOOKUP($A185,DATA2!$A$2:$S$607,3,FALSE) -> Eastern Cape | D185: =VLOOKUP($A185,DATA2!$A$2:$S$607,4,FALSE) -> 89.41782609 | E185: =VLOOKUP($A185,DATA2!$A$2:$S$607,5,FALSE) -> 80 | F185: =VLOOKUP($A185,DATA2!$A$2:$S$607,6,FALSE) -> CBD | G185: =VLOOKUP($A185,DATA2!$A$2:$S$607,7,FALSE) -> 4600 | H185: =VLOOKUP($A185,DATA2!$A$2:$S$607,8,FALSE) -> TRUE | I185: =VLOOKUP($A185,DATA2!$A$2:$S$607,9,FALSE) -> 0.07 | J185: 20800.9 | K185: =VLOOKUP($A185,DATA2!$A$2:$S$607,10,FALSE) -> 411322 | L185: =VLOOKUP($A185,DATA2!$A$2:$S$607,11,FALSE) -> 4935864 | M185: =VLOOKUP($A185,DATA2!$A$2:$S$607,12,FALSE) -> 2016-11-01 | N185: =VLOOKUP($A185,DATA2!$A$2:$S$607,13,FALSE) -> 2021-10-31 | O185: =VLOOKUP($A185,DATA2!$A$2:$S$607,14,FALSE) -> No | P185: =IF(MATRIX2!D185=1,($Y$8-$X$2)/365*Table_Provincial_GTAC3536[[#This Row],[Adj.AnnualRental]]*MATRIX2!D185,($Y$8-$X$2)/365*Table_Provincial_GTAC3536[[#This Row],[Adj.AnnualRental]]) -> 1622749.808 | Q185: =(Table_Provincial_GTAC3536[[#This Row],[Adj.AnnualRental]]*(1+$I185)^(2)) -> 5651070.694 | R185: =(Table_Provincial_GTAC3536[[#This Row],[Adj.AnnualRental]]*(1+$I185)^(3)) -> 6046645.642 | S185: =(Table_Provincial_GTAC3536[[#This Row],[Adj.AnnualRental]]*(1+$I185)^(4)) -> 6469910.837 | T185: =(Table_Provincial_GTAC3536[[#This Row],[Adj.AnnualRental]]*(1+$I185)^(5)) -> 6922804.596 | U185: =(Table_Provincial_GTAC3536[[#This Row],[Adj.AnnualRental]]*(1+$I185)^(6)) -> 7407400.917 | V185: =(Table_Provincial_GTAC3536[[#This Row],[Adj.AnnualRental]]*(1+$I185)^(7)) -> 7925918.982
